Workbook

Sheet For Bill Impact(HideBeforeFile) (hidden)
A1: Summary of Rates and Rate Riders | M1: c
C3: Current Rates
C5: Rate Group | D5: Commodity | E5: Transp/System Gas | F5: REDA | G5: PGTVA | H5: ADVADA | I5: LDMDA | J5: UFGVA | K5: ='C1.1 Current Rate Riders'!J12 -> FCCVA | L5: ='C1.1 Current Rate Riders'!K12 -> GGEADA | M5: Federal Carbon | N5: Facility Carbon | O5: Dist. Customer Rate | P5: Dist. Vol. Rate Tier 1 | Q5: Dist. Vol. Rate Tier 2 | R5: Dist. Vol. Rate Tier 3 | S5: Dist. Capacity Rate
C6: ='B1.1 Current Distribution Rates'!C16 -> R1 - Residential | D6: =12.3013+2.3323 -> 14.6336 | E6: ='B1.1 Current Distribution Rates'!K16 -> 2.4159 | F6: ='C1.1 Current Rate Riders'!D14 -> 0.02 | G6: ='C1.1 Current Rate Riders'!E14 -> 0.7981 | H6: ='C1.1 Current Rate Riders'!F14 -> -0.029 | I6: ='C1.1 Current Rate Riders'!H14 -> 0 | J6: ='C1.1 Current Rate Riders'!I14 -> 0 | K6: ='C1.1 Current Rate Riders'!J14 -> 0 | L6: ='C1.1 Current Rate Riders'!K14 -> 0 | M6: 15.25 | N6: 0.0037 | O6: ='B1.1 Current Distribution Rates'!D16 -> 20.5 | P6: ='B1.1 Current Distribution Rates'!E16 -> 12.1616662 | Q6: ='B1.1 Current Distribution Rates'!F16 -> 9.308655499 | R6: ="" ->  | S6: ="" -> 
C7: ='B1.1 Current Distribution Rates'!C17 -> R1 - Commercial | D7: =D6 -> 14.6336 | E7: ='B1.1 Current Distribution Rates'!K17 -> 2.4159 | F7: ='C1.1 Current Rate Riders'!D15 -> 0.02 | G7: ='C1.1 Current Rate Riders'!E15 -> 0.7981 | H7: ='C1.1 Current Rate Riders'!F15 -> -0.029 | I7: ='C1.1 Current Rate Riders'!H15 -> 0 | J7: ='C1.1 Current Rate Riders'!I15 -> 0 | K7: ='C1.1 Current Rate Riders'!J15 -> 0 | L7: ='C1.1 Current Rate Riders'!K15 -> 0 | M7: =M$6 -> 15.25 | N7: =N$6 -> 0.0037 | O7: ='B1.1 Current Distribution Rates'!D17 -> 20.5 | P7: ='B1.1 Current Distribution Rates'!E17 -> 12.1616662 | Q7: ='B1.1 Current Distribution Rates'!F17 -> 9.308655499 | R7: ="" ->  | S7: ="" -> 
C8: ='B1.1 Current Distribution Rates'!C18 -> R1 - Industrial | D8: =D7 -> 14.6336 | E8: ='B1.1 Current Distribution Rates'!K18 -> 2.4159 | F8: ='C1.1 Current Rate Riders'!D16 -> 0.02 | G8: ='C1.1 Current Rate Riders'!E16 -> 0.7981 | H8: ='C1.1 Current Rate Riders'!F16 -> -0.029 | I8: ='C1.1 Current Rate Riders'!H16 -> 0 | J8: ='C1.1 Current Rate Riders'!I16 -> 0 | K8: ='C1.1 Current Rate Riders'!J16 -> 0 | L8: ='C1.1 Current Rate Riders'!K16 -> 0 | M8: =M$6 -> 15.25 | N8: 0.0037 | O8: ='B1.1 Current Distribution Rates'!D18 -> 20.5 | P8: ='B1.1 Current Distribution Rates'!E18 -> 12.1616662 | Q8: ='B1.1 Current Distribution Rates'!F18 -> 9.308655499 | R8: ="" ->  | S8: ="" -> 
C9: ='B1.1 Current Distribution Rates'!C20 -> R2 - Seasonal - Nov to Mar | D9: 14.6336 | E9: ='B1.1 Current Distribution Rates'!K20 -> 2.4159 | F9: ='C1.1 Current Rate Riders'!D17 -> 0.02 | G9: ='C1.1 Current Rate Riders'!E17 -> 0.7981 | H9: ='C1.1 Current Rate Riders'!F17 -> -0.029 | J9: ='C1.1 Current Rate Riders'!I17 -> 0 | K9: ='C1.1 Current Rate Riders'!J17 -> 0 | L9: ='C1.1 Current Rate Riders'!K17 -> 0 | M9: 15.25 | N9: 0.0037 | O9: ='B1.1 Current Distribution Rates'!D20 -> 22.59404392 | P9: ='B1.1 Current Distribution Rates'!E20 -> 21.24470223 | Q9: ='B1.1 Current Distribution Rates'!G20 -> 13.67490672 | R9: ='B1.1 Current Distribution Rates'!H20 -> 14.90063361 | S9: ="" -> 
C10: ='B1.1 Current Distribution Rates'!C19 -> R2 - Seasonal - Apr to Oct | D10: 14.6336 | E10: ='B1.1 Current Distribution Rates'!K19 -> 2.4159 | F10: ='C1.1 Current Rate Riders'!D18 -> 0.02 | G10: ='C1.1 Current Rate Riders'!E18 -> 0.7981 | H10: ='C1.1 Current Rate Riders'!F18 -> -0.029 | J10: ='C1.1 Current Rate Riders'!I18 -> 0 | K10: ='C1.1 Current Rate Riders'!J18 -> 0 | L10: ='C1.1 Current Rate Riders'!K18 -> 0 | M10: 15.25 | N10: 0.0037 | O10: ='B1.1 Current Distribution Rates'!D19 -> 22.59404392 | P10: ='B1.1 Current Distribution Rates'!E19 -> 16.3641628 | Q10: ='B1.1 Current Distribution Rates'!G19 -> 7.322478305 | R10: ='B1.1 Current Distribution Rates'!H19 -> 5.294662863 | S10: ="" -> 
C11: ='B1.1 Current Distribution Rates'!C21 -> R3 - Large Volume Contract | D11: 14.6336 | E11: ='B1.1 Current Distribution Rates'!K21 -> 2.4159 | F11: ='C1.1 Current Rate Riders'!D19 -> 0.02 | G11: ='C1.1 Current Rate Riders'!E19 -> 0.7981 | H11: ='C1.1 Current Rate Riders'!F19 -> -0.029 | J11: ='C1.1 Current Rate Riders'!I19 -> 0 | K11: ='C1.1 Current Rate Riders'!J19 -> 0 | L11: ='C1.1 Current Rate Riders'!K19 -> 0 | M11: 15.25 | N11: 0.0037 | O11: ='B1.1 Current Distribution Rates'!D21 -> 225.9404392 | P11: ='B1.1 Current Distribution Rates'!I21 -> 1.695770578 | Q11: ="" ->  | R11: ="" ->  | S11: ='B1.1 Current Distribution Rates'!J21 -> 32.87139668
C12: ='B1.1 Current Distribution Rates'!C22 -> R4 - Peaking - Apr to Dec | D12: 14.6336 | E12: ='B1.1 Current Distribution Rates'!K22 -> 2.4159 | F12: ='C1.1 Current Rate Riders'!D20 -> 0.02 | G12: ='C1.1 Current Rate Riders'!E20 -> 0.7981 | H12: ='C1.1 Current Rate Riders'!F20 -> -0.029 | J12: ='C1.1 Current Rate Riders'!I20 -> 0 | K12: ='C1.1 Current Rate Riders'!J20 -> 0 | L12: ='C1.1 Current Rate Riders'!K20 -> 0 | M12: 15.25 | N12: 0.0037 | O12: ='B1.1 Current Distribution Rates'!D22 -> 22.59404392 | P12: ='B1.1 Current Distribution Rates'!E22 -> 18.25980309 | Q12: ='B1.1 Current Distribution Rates'!F22 -> 10.2867039 | R12: ="" ->  | S12: ="" -> 
C13: ='B1.1 Current Distribution Rates'!C23 -> R4 - Peaking - Jan to Mar | D13: 14.6336 | E13: ='B1.1 Current Distribution Rates'!K23 -> 2.4159 | F13: ='C1.1 Current Rate Riders'!D21 -> 0.02 | G13: ='C1.1 Current Rate Riders'!E21 -> 0.7981 | H13: ='C1.1 Current Rate Riders'!F21 -> -0.029 | J13: ='C1.1 Current Rate Riders'!I21 -> 0 | K13: ='C1.1 Current Rate Riders'!J21 -> 0 | L13: ='C1.1 Current Rate Riders'!K21 -> 0 | M13: 15.25 | N13: 0.0037 | O13: ='B1.1 Current Distribution Rates'!D23 -> 22.59404392 | P13: ='B1.1 Current Distribution Rates'!E23 -> 23.94853146 | Q13: ='B1.1 Current Distribution Rates'!F23 -> 17.96675834 | R13: ="" ->  | S13: ="" -> 
C14: ='B1.1 Current Distribution Rates'!C24 -> R5 - Interruptible Peaking | D14: 14.6336 | E14: ='B1.1 Current Distribution Rates'!K24 -> 2.4159 | F14: ='C1.1 Current Rate Riders'!D22 -> 0.02 | G14: ='C1.1 Current Rate Riders'!E22 -> 0.7981 | H14: ='C1.1 Current Rate Riders'!F22 -> -0.029 | J14: ='C1.1 Current Rate Riders'!I22 -> 0 | K14: ='C1.1 Current Rate Riders'!J22 -> 0 | L14: ='C1.1 Current Rate Riders'!K22 -> 0 | M14: 15.25 | N14: 0.0037 | O14: ='B1.1 Current Distribution Rates'!D24 -> 214.6434172 | P14: ='B1.1 Current Distribution Rates'!I24 -> 6.2387208 | Q14: ="" ->  | R14: ="" ->  | S14: ="" -> 
C15: ='B1.1 Current Distribution Rates'!C25 -> R6 - IGPC | D15: ="" ->  | E15: ="" ->  | F15: ='C1.1 Current Rate Riders'!D23 -> 0.02 | G15: ='C1.1 Current Rate Riders'!F23 -> 0 | H15: ='C1.1 Current Rate Riders'!H23 -> 0 | J15: ='C1.1 Current Rate Riders'!I23 -> 0 | K15: ='C1.1 Current Rate Riders'!J23 -> 0 | L15: ='C1.1 Current Rate Riders'!K23 -> 0 | M15: ="" ->  | N15: 0.0037 | O15: ='B1.1 Current Distribution Rates'!D25 -> 69170.5332 | P15: ="" ->  | Q15: ="" ->  | R15: ="" ->  | S15: ="" -> 
C17: Proposed Rates
C19: =C5 -> Rate Group | D19: =D5 -> Commodity | E19: Transp/System Gas | F19: REDA | G19: PGTVA | H19: ADVADA | I19: =I5 -> LDMDA | J19: UFGVA | K19: =K5 -> FCCVA | L19: =L5 -> GGEADA | M19: Federal Carbon | N19: Facility Carbon | O19: Dist. Customer Rate | P19: Dist. Vol. Rate Tier 1 | Q19: Dist. Vol. Rate Tier 2 | R19: Dist. Vol. Rate Tier 3 | S19: Dist. Capacity Rate
C20: =C6 -> R1 - Residential | D20: =14.0187+1.0683 -> 15.087 | E20: ='E1.1 Proposed Dist Rates '!K16 -> 2.761870971 | F20: 0 | G20: ='F1.1 Proposed Rate Riders'!D11 -> 0.6290804449 | H20: 0 | I20: 0 | J20: ='F1.1 Proposed Rate Riders'!E11 -> 1.316518199 | K20: =K6 -> 0 | L20: =L6 -> 0 | M20: =M6 -> 15.25 | N20: =N6 -> 0.0037 | O20: ='E1.1 Proposed Dist Rates '!D16 -> 24 | P20: ='E1.1 Proposed Dist Rates '!E16 -> 10.93300967 | Q20: ='E1.1 Proposed Dist Rates '!F16 -> 0 | R20: ="" ->  | S20: ="" -> 
C21: =C7 -> R1 - Commercial | D21: =D20 -> 15.087 | E21: ='E1.1 Proposed Dist Rates '!K17 -> 2.761870971 | F21: 0 | G21: ='F1.1 Proposed Rate Riders'!D12 -> 0.6290804449 | H21: 0 | I21: 0 | J21: ='F1.1 Proposed Rate Riders'!E12 -> 1.316518199 | K21: =K7 -> 0 | L21: 0 | M21: =M$20 -> 15.25 | N21: =N$20 -> 0.0037 | O21: ='D1.1 Rate 1 GS Adjustment'!M17 -> 23.5 | P21: ='D1.1 Rate 1 GS Adjustment'!M18 -> 12.05816496 | Q21: ='D1.1 Rate 1 GS Adjustment'!M19 -> 9.627606754 | R21: ="" ->  | S21: ="" -> 
C22: R1 - Industrial | D22: =D21 -> 15.087 | E22: ='E1.1 Proposed Dist Rates '!K18 -> 2.761870971 | F22: 0 | G22: ='F1.1 Proposed Rate Riders'!D13 -> 0.6290804449 | H22: 0 | I22: 0 | J22: ='F1.1 Proposed Rate Riders'!E13 -> 1.316518199 | K22: 0 | L22: 0 | M22: =M$20 -> 15.25 | N22: 0.0037 | O22: =O21 -> 23.5 | P22: =P21 -> 12.05816496 | Q22: =Q21 -> 9.627606754 | R22: ="" ->  | S22: ="" -> 
C23: R2 - Seasonal - Nov to Mar | D23: 15.087 | E23: ='E1.1 Proposed Dist Rates '!K20 -> 2.761870971 | F23: 0 | G23: ='F1.1 Proposed Rate Riders'!D14 -> 0.7157536893 | H23: 0 | J23: ='F1.1 Proposed Rate Riders'!E14 -> 1.457478891 | K23: 0 | L23: 0 | M23: 15.25 | N23: 0.0037 | O23: ='E1.1 Proposed Dist Rates '!D20 -> 23.47731148 | P23: ='E1.1 Proposed Dist Rates '!E20 -> 22.07522005 | Q23: ='E1.1 Proposed Dist Rates '!G20 -> 14.209499 | R23: ='E1.1 Proposed Dist Rates '!H20 -> 15.48314315 | S23: ="" -> 
C24: R2 - Seasonal - Apr to Oct | D24: 15.087 | E24: ='E1.1 Proposed Dist Rates '!K19 -> 2.761870971 | F24: 0 | G24: ='F1.1 Proposed Rate Riders'!D15 -> 0.7157536893 | H24: 0 | J24: ='F1.1 Proposed Rate Riders'!E15 -> 1.457478891 | K24: 0 | L24: 0 | M24: 15.25 | N24: 0.0037 | O24: ='E1.1 Proposed Dist Rates '!D19 -> 23.47731148 | P24: ='E1.1 Proposed Dist Rates '!E19 -> 17.003886 | Q24: ='E1.1 Proposed Dist Rates '!G19 -> 7.608735495 | R24: ='E1.1 Proposed Dist Rates '!H19 -> 5.50164679 | S24: ="" -> 
C25: R3 - Large Volume Contract | D25: 15.087 | E25: ='E1.1 Proposed Dist Rates '!K21 -> 2.761870971 | F25: 0 | G25: ='F1.1 Proposed Rate Riders'!D16 -> 0.2336479504 | H25: 0 | J25: ='F1.1 Proposed Rate Riders'!E16 -> 0.527673602 | K25: 0 | L25: 0 | M25: 15.25 | N25: 0.0037 | O25: ='E1.1 Proposed Dist Rates '!D21 -> 233.6822198 | P25: ='E1.1 Proposed Dist Rates '!I21 -> 1.753875642 | Q25: ="" ->  | R25: ="" ->  | S25: ='E1.1 Proposed Dist Rates '!J21 -> 33.99772511
C26: R4 - Peaking - Apr to Dec | D26: 15.087 | E26: ='E1.1 Proposed Dist Rates '!K22 -> 2.761870971 | F26: 0 | G26: ='F1.1 Proposed Rate Riders'!D17 -> 0.6539084146 | H26: 0 | J26: ='F1.1 Proposed Rate Riders'!E17 -> 1.117808199 | K26: 0 | L26: 0 | M26: 15.25 | N26: 0.0037 | O26: ='E1.1 Proposed Dist Rates '!D22 -> 23.83267274 | P26: ='E1.1 Proposed Dist Rates '!E22 -> 19.26082435 | Q26: ='E1.1 Proposed Dist Rates '!F22 -> 10.85063163 | R26: ="" ->  | S26: ="" -> 
C27: R4 - Peaking - Jan to Mar | D27: 15.087 | E27: ='E1.1 Proposed Dist Rates '!K23 -> 2.761870971 | F27: 0 | G27: ='F1.1 Proposed Rate Riders'!D18 -> 0.6539084146 | H27: 0 | J27: ='F1.1 Proposed Rate Riders'!E18 -> 1.117808199 | K27: 0 | L27: 0 | M27: 15.25 | N27: 0.0037 | O27: ='E1.1 Proposed Dist Rates '!D23 -> 23.83267274 | P27: ='E1.1 Proposed Dist Rates '!E23 -> 25.26141469 | Q27: ='E1.1 Proposed Dist Rates '!F23 -> 18.95171458 | R27: ="" ->  | S27: ="" -> 
C28: R5 - Interruptible Peaking | D28: 15.087 | E28: ='E1.1 Proposed Dist Rates '!K24 -> 2.761870971 | F28: 0 | G28: ='F1.1 Proposed Rate Riders'!D19 -> 1.037404084 | H28: 0 | J28: ='F1.1 Proposed Rate Riders'!E19 -> 1.593380434 | K28: 0 | L28: 0 | M28: 15.25 | N28: 0.0037 | O28: ='E1.1 Proposed Dist Rates '!D24 -> 196.2210295 | P28: ='E1.1 Proposed Dist Rates '!I24 -> 5.70326467 | Q28: ="" ->  | R28: ="" ->  | S28: ="" -> 
C29: R6 - IGPC | D29: ="" ->  | E29: ="" ->  | F29: 0 | G29: ="" ->  | H29: 0 | I29: ="" ->  | J29: ="" ->  | K29: ='C1.1 Current Rate Riders'!J37 -> 0 | L29: ='C1.1 Current Rate Riders'!K37 -> 0 | M29: ="" ->  | N29: 0.0037 | O29: ='E1.1 Proposed Dist Rates '!D25 -> 71540.35315 | P29: ="" ->  | Q29: ="" ->  | R29: ="" ->  | S29: ="" -> 
C31: Average Bill Determinant per Customer
C33: =C47 -> Rate Group | D33: Commodity | E33: Transp/System Gas | F33: REDA | G33: PGTVA | H33: ADVADA | I33: =I47 -> LDMDA | J33: UFGVA | K33: =K19 -> FCCVA | L33: =L19 -> GGEADA | M33: =M47 -> Federal Carbon | N33: Facility Carbon | O33: =O47 -> Dist. Customer Rate | P33: =P47 -> Dist. Vol. Rate Tier 1 | Q33: =Q47 -> Dist. Vol. Rate Tier 2 | R33: =R47 -> Dist. Vol. Rate Tier 3 | S33: =S47 -> Dist. Capacity Rate
C34: =C6 -> R1 - Residential | D34: =SUM($P34:$R34) -> 2064.983894 | E34: =SUM($P34:$R34) -> 2064.983894 | F34: =$O34 -> 12 | G34: =SUM($P34:$R34) -> 2064.983894 | H34: 2064.983894 | I34: =$O34 -> 12 | J34: 2064.983894 | K34: =$O34 -> 12 | L34: =$O34 -> 12 | M34: =SUM($P34:$R34) -> 2064.983894 | N34: =SUM($P34:$R34) -> 2064.983894 | O34: 12 | P34: ='B1.2 Billing Determinants'!E16/'B1.2 Billing Determinants'!$D16 -> 2051.276941 | Q34: ='B1.2 Billing Determinants'!F16/'B1.2 Billing Determinants'!$D16 -> 13.70695362 | R34: ="" ->  | S34: ="" -> 
C35: =C7 -> R1 - Commercial | D35: =SUM($P35:$R35) -> 10498.08231 | E35: 10498.08231 | F35: =$O35 -> 12 | G35: 10498.08231 | H35: 10498.08231 | I35: 12 | J35: 10498.08231 | K35: 12 | L35: 12 | M35: 10498.08231 | N35: 10498.08231 | O35: 12 | P35: ='E1.2 Proposed Bill Determinants'!E17/'E1.2 Proposed Bill Determinants'!D17 -> 4911.974735 | Q35: ='E1.2 Proposed Bill Determinants'!F17/'E1.2 Proposed Bill Determinants'!D17 -> 5586.10758 | R35: ="" ->  | S35: ="" -> 
C36: R1 - Industrial | D36: 33165.09568 | E36: 33165.09568 | F36: 12 | G36: 33165.09568 | H36: 33165.09568 | I36: 12 | J36: 33165.09568 | K36: 12 | L36: 12 | M36: 33165.09568 | N36: 33165.09568 | O36: 12 | P36: ='E1.2 Proposed Bill Determinants'!E18/'E1.2 Proposed Bill Determinants'!$D$18 -> 8126.438903 | Q36: ='E1.2 Proposed Bill Determinants'!F18/'E1.2 Proposed Bill Determinants'!D18 -> 25038.65677 | R36: ="" ->  | S36: ="" -> 
C37: R2 - Seasonal - Nov to Mar | D37: 4511.382829 | E37: 4511.382829 | F37: 7 | G37: 4511.382829 | H37: 4511.382829 | I37: 7 | J37: 4511.382829 | K37: 7 | L37: 7 | M37: 4511.382829 | N37: 4511.382829 | O37: 7 | P37: ='B1.2 Billing Determinants'!E20/'B1.2 Billing Determinants'!$D20 -> 860.0911453 | Q37: ='B1.2 Billing Determinants'!G20/'B1.2 Billing Determinants'!$D20 -> 3424.912778 | R37: ='B1.2 Billing Determinants'!H20/'B1.2 Billing Determinants'!$D20 -> 226.378906 | S37: ="" -> 
C38: R2 - Seasonal - Apr to Oct | D38: 12134.22951 | E38: 12134.22951 | F38: 5 | G38: 12134.22951 | H38: 12134.22951 | I38: 5 | J38: 12134.22951 | K38: 5 | L38: 5 | M38: 12134.22951 | N38: 12134.22951 | O38: 5 | P38: ='B1.2 Billing Determinants'!E19/'B1.2 Billing Determinants'!$D19 -> 1108.292886 | Q38: ='B1.2 Billing Determinants'!G19/'B1.2 Billing Determinants'!$D19 -> 9257.395393 | R38: ='B1.2 Billing Determinants'!H19/'B1.2 Billing Determinants'!$D19 -> 1768.541235 | S38: ="" -> 
C39: R3 - Large Volume Contract | D39: 783607.2 | E39: 783607.2 | F39: 12 | G39: 783607.2 | H39: 783607.2 | I39: 12 | J39: 783607.2 | K39: 12 | L39: 12 | M39: 783607.2 | N39: 783607.2 | O39: 12 | P39: ='B1.2 Billing Determinants'!I21/'B1.2 Billing Determinants'!D21 -> 783607.2 | Q39: ="" ->  | R39: ="" ->  | S39: ='B1.2 Billing Determinants'!J21/'B1.2 Billing Determinants'!D21 -> 116293.44
C40: R4 - Peaking - Apr to Dec | D40: 49796.31427 | E40: 49796.31427 | F40: 9 | G40: 49796.31427 | H40: 49796.31427 | I40: 9 | J40: 49796.31427 | K40: 9 | L40: 9 | M40: 49796.31427 | N40: 49796.31427 | O40: 9 | P40: ='B1.2 Billing Determinants'!E22/'B1.2 Billing Determinants'!$D22 -> 4165.414814 | Q40: ='B1.2 Billing Determinants'!F22/'B1.2 Billing Determinants'!$D22 -> 45630.89946 | R40: ="" ->  | S40: ="" -> 
C41: R4 - Peaking - Jan to Mar | D41: 956.2096983 | E41: 956.2096983 | F41: 3 | G41: 956.2096983 | H41: 956.2096983 | I41: 3 | J41: 956.2096983 | K41: 3 | L41: 3 | M41: 956.2096983 | N41: 956.2096983 | O41: 3 | P41: ='B1.2 Billing Determinants'!E23/'B1.2 Billing Determinants'!$D23 -> 795.2183763 | Q41: ='B1.2 Billing Determinants'!F23/'B1.2 Billing Determinants'!$D23 -> 160.991322 | R41: ="" ->  | S41: ="" -> 
C42: R5 - Interruptible Peaking | D42: 161896.4045 | E42: 161896.4045 | F42: 12 | G42: 161896.4045 | H42: 161896.4045 | I42: 12 | J42: 161896.4045 | K42: 12 | L42: 12 | M42: 161896.4045 | N42: 161896.4045 | O42: 12 | P42: ='B1.2 Billing Determinants'!I24/'B1.2 Billing Determinants'!D24 -> 161896.4045 | Q42: ="" ->  | R42: ="" ->  | S42: ="" -> 
C43: R6 - IGPC | D43: ="" ->  | E43: ="" ->  | F43: 12 | G43: 12 | H43: 12 | I43: 12 | J43: 12 | K43: 12 | L43: 12 | M43: ="" ->  | N43: ='B1.2 Billing Determinants'!I25 -> 65345852.2 | O43: 12 | P43: ="" ->  | Q43: ="" ->  | R43: ="" ->  | S43: ="" -> 
C45: Label
C47: =C19 -> Rate Group | D47: Commodity | E47: Transp/System Gas | F47: REDA | G47: PGTVA | H47: ADVADA | I47: =I19 -> LDMDA | J47: UFGVA | K47: =K33 -> FCCVA | L47: =L33 -> GGEADA | M47: =M19 -> Federal Carbon | N47: Facility Carbon | O47: =O19 -> Dist. Customer Rate | P47: =P19 -> Dist. Vol. Rate Tier 1 | Q47: =Q19 -> Dist. Vol. Rate Tier 2 | R47: =R19 -> Dist. Vol. Rate Tier 3 | S47: =S19 -> Dist. Capacity Rate
C48: =C6 -> R1 - Residential | D48: Commodity | E48: Transportation | F48: REDA | G48: PGTVA | H48: ADVADA | I48: LDMDA | J48: UFGVA | K48: =K47 -> FCCVA | L48: =L47 -> GGEADA | M48: Federal Carbon | N48: Facility Carbon | O48: Customer (excl. Bill 32) | P48: Block 1 (First 1,000 m3 per month) | Q48: Block 2 (Over 1,000 m3 per month) | R48: ="" ->  | S48: ="" -> 
C49: =C7 -> R1 - Commercial | D49: Commodity | E49: Transportation | F49: REDA | G49: PGTVA | H49: ADVADA | I49: LDMDA | J49: UFGVA | K49: =K48 -> FCCVA | L49: GGEADA | M49: Federal Carbon | N49: Facility Carbon | O49: Customer (excl. Bill 32) | P49: Block 1 (First 1,000 m3 per month) | Q49: Block 2 (Over 1,000 m3 per month) | R49: ="" ->  | S49: ="" -> 
C50: R1 - Industrial | D50: Commodity | E50: Transportation | F50: REDA | G50: PGTVA | H50: ADVADA | I50: LDMDA | J50: UFGVA | K50: FCCVA | L50: GGEADA | M50: Federal Carbon | N50: Facility Carbon | O50: Customer (excl. Bill 32) | P50: Block 1 (First 1,000 m3 per month) | Q50: Block 2 (Over 1,000 m3 per month) | R50: ="" ->  | S50: ="" -> 
C51: R2 - Seasonal - Nov to Mar | D51: Commodity | E51: Transportation | F51: REDA | G51: PGTVA | H51: ADVADA | I51: LDMDA | J51: UFGVA | K51: FCCVA | L51: GGEADA | M51: Federal Carbon | N51: Facility Carbon | O51: Customer (excl. Bill 32) | P51: Block 1 (First 1,000 m3 per month) | Q51: Block 2 (Next 24,000 m3 per month) | R51: Block 3 (Over 25,000 m3 per month) | S51: ="" -> 
C52: R2 - Seasonal - Apr to Oct | D52: Commodity | E52: Transportation | F52: REDA | G52: PGTVA | H52: ADVADA | I52: LDMDA | J52: UFGVA | K52: FCCVA | L52: GGEADA | M52: Federal Carbon | N52: Facility Carbon | O52: Customer (excl. Bill 32) | P52: Block 1 (First 1,000 m3 per month) | Q52: Block 2 (Next 24,000 m3 per month) | R52: Block 3 (Over 25,000 m3 per month) | S52: ="" -> 
C53: R3 - Large Volume Contract | D53: Commodity | E53: Transportation | F53: REDA | G53: PGTVA | H53: ADVADA | I53: LDMDA | J53: UFGVA | K53: FCCVA | L53: GGEADA | M53: Federal Carbon | N53: Facility Carbon | O53: Customer (excl. Bill 32) | P53: Delivery - Firm | Q53: ="" ->  | R53: ="" ->  | S53: Demand - Firm
C54: R4 - Peaking - Apr to Dec | D54: Commodity | E54: Transportation | F54: REDA | G54: PGTVA | H54: ADVADA | I54: LDMDA | J54: UFGVA | K54: FCCVA | L54: GGEADA | M54: Federal Carbon | N54: Facility Carbon | O54: Customer (excl. Bill 32) | P54: Block 1 (First 1,000 m3 per month) | Q54: Block 2 (Over 1,000 m3 per month) | R54: ="" ->  | S54: ="" -> 
C55: R4 - Peaking - Jan to Mar | D55: Commodity | E55: Transportation | F55: REDA | G55: PGTVA | H55: ADVADA | I55: LDMDA | J55: UFGVA | K55: FCCVA | L55: GGEADA | M55: Federal Carbon | N55: Facility Carbon | O55: Customer (excl. Bill 32) | P55: Block 1 (First 1,000 m3 per month) | Q55: Block 2 (Over 1,000 m3 per month) | R55: ="" ->  | S55: ="" -> 
C56: R5 - Interruptible Peaking | D56: Commodity | E56: Transportation | F56: REDA | G56: PGTVA | H56: ADVADA | I56: LDMDA | J56: UFGVA | K56: FCCVA | L56: GGEADA | M56: Federal Carbon | N56: Facility Carbon | O56: Customer (excl. Bill 32) | P56: Delivery - Firm | Q56: ="" ->  | R56: ="" ->  | S56: ="" -> 
C57: R6 - IGPC | D57: ="" ->  | E57: ="" ->  | F57: REDA | G57: PGTVA | H57: ADVADA | I57: LDMDA | J57: UFGVA | K57: FCCVA | L57: GGEADA | M57: ="" ->  | N57: Facility Carbon | O57: Customer (excl. Bill 32) | P57: ="" ->  | Q57: ="" ->  | R57: ="" ->  | S57: ="" -> 
C59: Unit
C61: =C33 -> Rate Group | D61: Commodity | E61: Transp/System Gas | F61: REDA | G61: PGTVA | H61: ADVADA | I61: =I33 -> LDMDA | J61: UFGVA | K61: =K47 -> FCCVA | L61: =L47 -> GGEADA | M61: =M33 -> Federal Carbon | N61: Facility Carbon | O61: =O33 -> Dist. Customer Rate | P61: =P33 -> Dist. Vol. Rate Tier 1 | Q61: =Q33 -> Dist. Vol. Rate Tier 2 | R61: =R33 -> Dist. Vol. Rate Tier 3 | S61: =S33 -> Dist. Capacity Rate
C62: =C20 -> R1 - Residential | D62: cents / m3 | E62: cents / m3 | F62: $ / month | G62: cents / m3 | H62: cents / m3 | I62: $ / month | J62: ='F1.1 Proposed Rate Riders'!$E$10 -> cents / m3 | K62: =I62 -> $ / month | L62: =K62 -> $ / month | M62: cents / m3 | N62: cents / m3 | O62: $ / month | P62: cents / m3 | Q62: cents / m3 | R62: ="" ->  | S62: ="" -> 
C63: =C21 -> R1 - Commercial | D63: cents / m3 | E63: cents / m3 | F63: $ / month | G63: cents / m3 | H63: cents / m3 | I63: $ / month | J63: ='F1.1 Proposed Rate Riders'!$E$10 -> cents / m3 | K63: =I63 -> $ / month | L63: =K63 -> $ / month | M63: cents / m3 | N63: cents / m3 | O63: $ / month | P63: cents / m3 | Q63: cents / m3 | R63: ="" ->  | S63: ="" -> 
C64: R1 - Industrial | D64: cents / m3 | E64: cents / m3 | F64: $ / month | G64: cents / m3 | H64: cents / m3 | I64: $ / month | J64: ='F1.1 Proposed Rate Riders'!$E$10 -> cents / m3 | K64: $ / month | L64: $ / month | M64: cents / m3 | N64: cents / m3 | O64: $ / month | P64: cents / m3 | Q64: cents / m3 | R64: ="" ->  | S64: ="" -> 
C65: R2 - Seasonal - Nov to Mar | D65: cents / m3 | E65: cents / m3 | F65: $ / month | G65: cents / m3 | H65: cents / m3 | I65: $ / month | J65: ='F1.1 Proposed Rate Riders'!$E$10 -> cents / m3 | K65: $ / month | L65: $ / month | M65: cents / m3 | N65: cents / m3 | O65: $ / month | P65: cents / m3 | Q65: cents / m3 | R65: cents / m3 | S65: ="" -> 
C66: R2 - Seasonal - Apr to Oct | D66: cents / m3 | E66: cents / m3 | F66: $ / month | G66: cents / m3 | H66: cents / m3 | I66: $ / month | J66: ='F1.1 Proposed Rate Riders'!$E$10 -> cents / m3 | K66: $ / month | L66: $ / month | M66: cents / m3 | N66: cents / m3 | O66: $ / month | P66: cents / m3 | Q66: cents / m3 | R66: cents / m3 | S66: ="" -> 
C67: R3 - Large Volume Contract | D67: cents / m3 | E67: cents / m3 | F67: $ / month | G67: cents / m3 | H67: cents / m3 | I67: $ / month | J67: ='F1.1 Proposed Rate Riders'!$E$10 -> cents / m3 | K67: $ / month | L67: $ / month | M67: cents / m3 | N67: cents / m3 | O67: $ / month | P67: cents / m3 | Q67: ="" ->  | R67: ="" ->  | S67: cents / m3
C68: R4 - Peaking - Apr to Dec | D68: cents / m3 | E68: cents / m3 | F68: $ / month | G68: cents / m3 | H68: cents / m3 | I68: $ / month | J68: ='F1.1 Proposed Rate Riders'!$E$10 -> cents / m3 | K68: $ / month | L68: $ / month | M68: cents / m3 | N68: cents / m3 | O68: $ / month | P68: cents / m3 | Q68: cents / m3 | R68: ="" ->  | S68: ="" -> 
C69: R4 - Peaking - Jan to Mar | D69: cents / m3 | E69: cents / m3 | F69: $ / month | G69: cents / m3 | H69: cents / m3 | I69: $ / month | J69: ='F1.1 Proposed Rate Riders'!$E$10 -> cents / m3 | K69: $ / month | L69: $ / month | M69: cents / m3 | N69: cents / m3 | O69: $ / month | P69: cents / m3 | Q69: cents / m3 | R69: ="" ->  | S69: ="" -> 
C70: R5 - Interruptible Peaking | D70: cents / m3 | E70: cents / m3 | F70: $ / month | G70: cents / m3 | H70: cents / m3 | I70: $ / month | J70: ='F1.1 Proposed Rate Riders'!$E$10 -> cents / m3 | K70: $ / month | L70: $ / month | M70: cents / m3 | N70: cents / m3 | O70: $ / month | P70: cents / m3 | Q70: ="" ->  | R70: ="" ->  | S70: ="" -> 
C71: R6 - IGPC | D71: ="" ->  | E71: ="" ->  | F71: $ / month | G71: $ / month | H71: $ / month | I71: $ / month | J71: ='F1.1 Proposed Rate Riders'!$E$10 -> cents / m3 | K71: $ / month | L71: $ / month | M71: ="" ->  | N71: cents / m3 | O71: $ / month | P71: ="" ->  | Q71: ="" ->  | R71: ="" ->  | S71: ="" -> 

Sheet A1.1 Distributor Information
C11: Distributor Information
C21: Distributor Name | D21: EPCOR Natural Gas Limited Partnership
C23: OEB Application Number | D23: EB-2024-0130
C30: =MID(CELL("filename",A1),FIND("]",CELL("filename",A1))+1,255) -> A1.1 Distributor Information

Sheet B1.1 Current Distribution Rates
C2: ='A1.1 Distributor Information'!D21 -> EPCOR Natural Gas Limited Partnership
C3: ='A1.1 Distributor Information'!D23 -> EB-2024-0130
C10: Current Distribution Tariff Sheet Rates
C15: Rate Group | D15: Monthly Service Charge (excl. Bill 32) ($) | E15: Delivery First 1,000 m3 (₵) | F15: Delivery Over 1,000 m3 (₵) | G15: Delivery Next 24,000 m3 (₵) | H15: Delivery Over 25,000 m3 (₵) | I15: Delivery - Firm (₵) | J15: Demand - Firm (₵) | K15: Transportation (incl system gas fee) (₵) (2) | L15: Delivery - Int - Lower (₵) | M15: Delivery - Int - Upper (₵)
C16: R1 - Residential | D16: 20.5 | E16: =14.5340661971218-K30 -> 12.1616662 | F16: =11.6810554985071-K30 -> 9.308655499 | K16: =0.0435+2.3724 -> 2.4159
C17: R1 - Commercial | D17: 20.5 | E17: =E16 -> 12.1616662 | F17: =F16 -> 9.308655499 | K17: =0.0435+2.3724 -> 2.4159
C18: R1 - Industrial | D18: 20.5 | E18: =E16 -> 12.1616662 | F18: =F16 -> 9.308655499 | K18: 2.4159
C19: R2 - Seasonal - Apr to Oct | D19: 22.59404392 | E19: =18.7365628006096-K30 -> 16.3641628 | G19: =9.69487830515222-K30 -> 7.322478305 | H19: =7.66706286343274-K30 -> 5.294662863 | K19: 2.4159
C20: R2 - Seasonal - Nov to Mar | D20: 22.59404392 | E20: =23.6171022275269-K30 -> 21.24470223 | G20: =16.0473067231649-K30 -> 13.67490672 | H20: =17.2730336057642-K30 -> 14.90063361 | K20: 2.4159
C21: R3 - Large Volume Contract | D21: 225.9404392 | I21: =4.06817057781394-K30 -> 1.695770578 | J21: 32.87139668 | K21: 2.4159 | L21: =8.6033952-K30 -> 6.2309952 | M21: =11.8751868-K30 -> 9.5027868
C22: R4 - Peaking - Apr to Dec | D22: 22.59404392 | E22: =20.6322030854036-K30 -> 18.25980309 | F22: =12.6591038970897-K30 -> 10.2867039 | K22: 2.4159
C23: R4 - Peaking - Jan to Mar | D23: 22.59404392 | E23: =26.3209314632992-K30 -> 23.94853146 | F23: =20.3391583357758-K30 -> 17.96675834 | K23: 2.4159
C24: R5 - Interruptible Peaking | D24: 214.6434172 | I24: =8.6111208-K30 -> 6.2387208 | J24: (1) | K24: 2.4159 | L24: =6.7555152-K30 -> 4.3831152 | M24: =10.4667264-K30 -> 8.0943264
C25: R6 - IGPC | D25: 69170.5332 | I25: 0 | J25: 0 | L25: 0 | M25: 0
C27: 1 Placeholder rate for average application
J30: (2) PGTVA Reference Price | K30: =0.023724*100 -> 2.3724
J31: Plus System Gas Fee | K31: =K24-K30 -> 0.0435
K32: =SUM(K30:K31) -> 2.4159
C34: =MID(CELL("filename",A1),FIND("]",CELL("filename",A1))+1,255) -> B1.1 Current Distribution Rates

Sheet B1.2 Billing Determinants
C2: ='B1.1 Current Distribution Rates'!C2 -> EPCOR Natural Gas Limited Partnership
C3: ='B1.1 Current Distribution Rates'!C3 -> EB-2024-0130
C10: Billing Determinants - January 1, 2025 to December 31, 2025
C15: ='B1.1 Current Distribution Rates'!C15 -> Rate Group | D15: Monthly Service Charge | E15: Delivery First 1,000 m3 | F15: Delivery Over 1,000 m3 | G15: Delivery Next 24,000 m3 | H15: Delivery Over 25,000 m3 | I15: Delivery - Firm | J15: Demand - Firm | K15: Transportation | L15: Delivery - Int - Lower | M15: Delivery - Int - Upper
C16: ='B1.1 Current Distribution Rates'!C16 -> R1 - Residential | D16: 9578 | E16: 19647130.54 | F16: 131285.2017 | K16: =E16+F16+G16+H16+I16 -> 19778415.74
C17: ='B1.1 Current Distribution Rates'!C17 -> R1 - Commercial | D17: 590 | E17: 2898065.093 | F17: 3295803.472 | K17: 6193868.565
C18: ='B1.1 Current Distribution Rates'!C18 -> R1 - Industrial | D18: 81 | E18: 658241.5512 | F18: 2028131.199 | K18: 2686372.75
C19: ='B1.1 Current Distribution Rates'!C19 -> R2 - Seasonal - Apr to Oct | D19: 50 | E19: 55414.64429 | G19: 462869.7696 | H19: 88427.06177 | K19: 606711.4757
C20: ='B1.1 Current Distribution Rates'!C20 -> R2 - Seasonal - Nov to Mar | D20: 50 | E20: 43004.55727 | G20: 171245.6389 | H20: 11318.9453 | K20: 225569.1414
C21: ='B1.1 Current Distribution Rates'!C21 -> R3 - Large Volume Contract | D21: 5 | I21: 3918036 | J21: 581467.2 | K21: 3918036
C22: ='B1.1 Current Distribution Rates'!C22 -> R4 - Peaking - Apr to Dec | D22: 46 | E22: 191609.0814 | F22: 2099021.375 | K22: 2290630.456
C23: ='B1.1 Current Distribution Rates'!C23 -> R4 - Peaking - Jan to Mar | D23: 46 | E23: 36580.04531 | F23: 7405.600814 | K23: 43985.64612
C24: ='B1.1 Current Distribution Rates'!C24 -> R5 - Interruptible Peaking | D24: 4 | I24: 647585.618 | K24: 647585.618
C25: ='B1.1 Current Distribution Rates'!C25 -> R6 - IGPC | D25: 1 | I25: 65345852.2
C26: Total | D26: =SUM(D16:D20,D21:D22,D24:D25) -> 10405 | E26: =SUM(E16:E25) -> 23530045.51 | F26: 7561646.848 | G26: 634115.4085 | H26: 99746.00706 | I26: 69911473.82 | J26: 581467.2 | K26: 36391175.39 | L26: 0 | M26: =SUM(M16:M25) -> 0
C30: =MID(CELL("filename",A1),FIND("]",CELL("filename",A1))+1,255) -> B1.2 Billing Determinants

Sheet B1.3 Current Rev From Rates
C2: ='B1.1 Current Distribution Rates'!C2 -> EPCOR Natural Gas Limited Partnership
C3: ='B1.1 Current Distribution Rates'!C3 -> EB-2024-0130
C10: Revenue from Current Rates
C15: ='B1.2 Billing Determinants'!C15 -> Rate Group | D15: ='B1.2 Billing Determinants'!D15 -> Monthly Service Charge | E15: ='B1.2 Billing Determinants'!E15 -> Delivery First 1,000 m3 | F15: ='B1.2 Billing Determinants'!F15 -> Delivery Over 1,000 m3 | G15: ='B1.2 Billing Determinants'!G15 -> Delivery Next 24,000 m3 | H15: ='B1.2 Billing Determinants'!H15 -> Delivery Over 25,000 m3 | I15: ='B1.2 Billing Determinants'!I15 -> Delivery - Firm | J15: ='B1.2 Billing Determinants'!J15 -> Demand - Firm | K15: Total Distribution | M15: Transportation (incl system gas fee) | N15: ='B1.2 Billing Determinants'!L15 -> Delivery - Int - Lower | O15: ='B1.2 Billing Determinants'!M15 -> Delivery - Int - Upper | P15: Combined Total
B16: R1R | C16: ='B1.2 Billing Determinants'!C16 -> R1 - Residential | D16: ='B1.1 Current Distribution Rates'!D16*'B1.2 Billing Determinants'!D16*12 -> 2356188 | E16: ='B1.1 Current Distribution Rates'!E16*'B1.2 Billing Determinants'!E16/100 -> 2389418.433 | F16: ='B1.1 Current Distribution Rates'!F16*'B1.2 Billing Determinants'!F16/100 -> 12220.88715 | G16: ='B1.1 Current Distribution Rates'!G16*'B1.2 Billing Determinants'!G16/100 -> 0 | H16: ='B1.1 Current Distribution Rates'!H16*'B1.2 Billing Determinants'!H16/100 -> 0 | I16: ='B1.1 Current Distribution Rates'!I16*'B1.2 Billing Determinants'!I16/100 -> 0 | J16: ='B1.1 Current Distribution Rates'!J16*'B1.2 Billing Determinants'!J16/100 -> 0 | K16: =SUM(D16:J16) -> 4757827.321 | M16: ='B1.1 Current Distribution Rates'!K16*'B1.2 Billing Determinants'!K16/100 -> 477826.7459 | N16: ='B1.1 Current Distribution Rates'!L16*'B1.2 Billing Determinants'!L16/100 -> 0 | O16: ='B1.1 Current Distribution Rates'!M16*'B1.2 Billing Determinants'!M16/100 -> 0 | P16: =K16+M16 -> 5235654.066
B17: R1C | C17: ='B1.2 Billing Determinants'!C17 -> R1 - Commercial | D17: ='B1.1 Current Distribution Rates'!D17*'B1.2 Billing Determinants'!D17*12 -> 145140 | E17: ='B1.1 Current Distribution Rates'!E17*'B1.2 Billing Determinants'!E17/100 -> 352453.0028 | F17: ='B1.1 Current Distribution Rates'!F17*'B1.2 Billing Determinants'!F17/100 -> 306794.9911 | G17: ='B1.1 Current Distribution Rates'!G17*'B1.2 Billing Determinants'!G17/100 -> 0 | H17: ='B1.1 Current Distribution Rates'!H17*'B1.2 Billing Determinants'!H17/100 -> 0 | I17: ='B1.1 Current Distribution Rates'!I17*'B1.2 Billing Determinants'!I17/100 -> 0 | J17: ='B1.1 Current Distribution Rates'!J17*'B1.2 Billing Determinants'!J17/100 -> 0 | K17: =SUM(D17:J17) -> 804387.994 | M17: ='B1.1 Current Distribution Rates'!K17*'B1.2 Billing Determinants'!K17/100 -> 149637.6707 | N17: ='B1.1 Current Distribution Rates'!L17*'B1.2 Billing Determinants'!L17/100 -> 0 | O17: ='B1.1 Current Distribution Rates'!M17*'B1.2 Billing Determinants'!M17/100 -> 0 | P17: 954025.6646
B18: R1I | C18: ='B1.2 Billing Determinants'!C18 -> R1 - Industrial | D18: ='B1.1 Current Distribution Rates'!D18*'B1.2 Billing Determinants'!D18*12 -> 19926 | E18: ='B1.1 Current Distribution Rates'!E18*'B1.2 Billing Determinants'!E18/100 -> 80053.14023 | F18: ='B1.1 Current Distribution Rates'!F18*'B1.2 Billing Determinants'!F18/100 -> 188791.7463 | G18: ='B1.1 Current Distribution Rates'!G18*'B1.2 Billing Determinants'!G18/100 -> 0 | H18: ='B1.1 Current Distribution Rates'!H18*'B1.2 Billing Determinants'!H18/100 -> 0 | I18: ='B1.1 Current Distribution Rates'!I18*'B1.2 Billing Determinants'!I18/100 -> 0 | J18: ='B1.1 Current Distribution Rates'!J18*'B1.2 Billing Determinants'!J18/100 -> 0 | K18: 288770.8866 | M18: ='B1.1 Current Distribution Rates'!K18*'B1.2 Billing Determinants'!K18/100 -> 64900.07926 | N18: ='B1.1 Current Distribution Rates'!L18*'B1.2 Billing Determinants'!L18/100 -> 0 | O18: ='B1.1 Current Distribution Rates'!M18*'B1.2 Billing Determinants'!M18/100 -> 0 | P18: 353670.9658
B19: R2 | C19: ='B1.2 Billing Determinants'!C19 -> R2 - Seasonal - Apr to Oct | D19: ='B1.1 Current Distribution Rates'!D19*'B1.2 Billing Determinants'!D19*5 -> 5648.51098 | E19: ='B1.1 Current Distribution Rates'!E19*'B1.2 Billing Determinants'!E19/100 -> 9068.142607 | F19: ='B1.1 Current Distribution Rates'!F19*'B1.2 Billing Determinants'!F19/100 -> 0 | G19: ='B1.1 Current Distribution Rates'!G19*'B1.2 Billing Determinants'!G19/100 -> 33893.53846 | H19: ='B1.1 Current Distribution Rates'!H19*'B1.2 Billing Determinants'!H19/100 -> 4681.914801 | I19: ='B1.1 Current Distribution Rates'!I19*'B1.2 Billing Determinants'!I19/100 -> 0 | J19: ='B1.1 Current Distribution Rates'!J19*'B1.2 Billing Determinants'!J19/100 -> 0 | K19: 53292.10685 | M19: ='B1.1 Current Distribution Rates'!K19*'B1.2 Billing Determinants'!K19/100 -> 14657.54254 | N19: ='B1.1 Current Distribution Rates'!L19*'B1.2 Billing Determinants'!L19/100 -> 0 | O19: ='B1.1 Current Distribution Rates'!M19*'B1.2 Billing Determinants'!M19/100 -> 0 | P19: 67949.64939
B20: R2 | C20: ='B1.2 Billing Determinants'!C20 -> R2 - Seasonal - Nov to Mar | D20: ='B1.1 Current Distribution Rates'!D20*'B1.2 Billing Determinants'!D20*7 -> 7907.915372 | E20: ='B1.1 Current Distribution Rates'!E20*'B1.2 Billing Determinants'!E20/100 -> 9136.190135 | F20: ='B1.1 Current Distribution Rates'!F20*'B1.2 Billing Determinants'!F20/100 -> 0 | G20: ='B1.1 Current Distribution Rates'!G20*'B1.2 Billing Determinants'!G20/100 -> 23417.68138 | H20: ='B1.1 Current Distribution Rates'!H20*'B1.2 Billing Determinants'!H20/100 -> 1686.594567 | I20: ='B1.1 Current Distribution Rates'!I20*'B1.2 Billing Determinants'!I20/100 -> 0 | J20: ='B1.1 Current Distribution Rates'!J20*'B1.2 Billing Determinants'!J20/100 -> 0 | K20: =SUM(D20:J20) -> 42148.38146 | M20: ='B1.1 Current Distribution Rates'!K20*'B1.2 Billing Determinants'!K20/100 -> 5449.524888 | N20: ='B1.1 Current Distribution Rates'!L20*'B1.2 Billing Determinants'!L20/100 -> 0 | O20: ='B1.1 Current Distribution Rates'!M20*'B1.2 Billing Determinants'!M20/100 -> 0 | P20: =K20+M20 -> 47597.90635
B21: R3 | C21: ='B1.2 Billing Determinants'!C21 -> R3 - Large Volume Contract | D21: ='B1.1 Current Distribution Rates'!D21*'B1.2 Billing Determinants'!D21*12 -> 13556.42635 | E21: ='B1.1 Current Distribution Rates'!E21*'B1.2 Billing Determinants'!E21/100 -> 0 | F21: ='B1.1 Current Distribution Rates'!F21*'B1.2 Billing Determinants'!F21/100 -> 0 | G21: ='B1.1 Current Distribution Rates'!G21*'B1.2 Billing Determinants'!G21/100 -> 0 | H21: ='B1.1 Current Distribution Rates'!H21*'B1.2 Billing Determinants'!H21/100 -> 0 | I21: ='B1.1 Current Distribution Rates'!I21*'B1.2 Billing Determinants'!I21/100 -> 66440.90172 | J21: ='B1.1 Current Distribution Rates'!J21*'B1.2 Billing Determinants'!J21/100 -> 191136.3899 | K21: 271133.7179 | M21: ='B1.1 Current Distribution Rates'!K21*'B1.2 Billing Determinants'!K21/100 -> 94655.83172 | N21: ='B1.1 Current Distribution Rates'!L21*'B1.2 Billing Determinants'!L21/100 -> 0 | O21: ='B1.1 Current Distribution Rates'!M21*'B1.2 Billing Determinants'!M21/100 -> 0 | P21: 365789.5496
B22: R3 | C22: ='B1.2 Billing Determinants'!C22 -> R4 - Peaking - Apr to Dec | D22: ='B1.1 Current Distribution Rates'!D22*'B1.2 Billing Determinants'!D22*9 -> 9353.934182 | E22: ='B1.1 Current Distribution Rates'!E22*'B1.2 Billing Determinants'!E22/100 -> 34987.44096 | F22: ='B1.1 Current Distribution Rates'!F22*'B1.2 Billing Determinants'!F22/100 -> 215920.1136 | G22: ='B1.1 Current Distribution Rates'!G22*'B1.2 Billing Determinants'!G22/100 -> 0 | H22: ='B1.1 Current Distribution Rates'!H22*'B1.2 Billing Determinants'!H22/100 -> 0 | I22: ='B1.1 Current Distribution Rates'!I22*'B1.2 Billing Determinants'!I22/100 -> 0 | J22: ='B1.1 Current Distribution Rates'!J22*'B1.2 Billing Determinants'!J22/100 -> 0 | K22: 260261.4887 | M22: ='B1.1 Current Distribution Rates'!K22*'B1.2 Billing Determinants'!K22/100 -> 55339.3412 | N22: ='B1.1 Current Distribution Rates'!L22*'B1.2 Billing Determinants'!L22/100 -> 0 | O22: ='B1.1 Current Distribution Rates'!M22*'B1.2 Billing Determinants'!M22/100 -> 0 | P22: 315600.8299
B23: R4 | C23: ='B1.2 Billing Determinants'!C23 -> R4 - Peaking - Jan to Mar | D23: ='B1.1 Current Distribution Rates'!D23*'B1.2 Billing Determinants'!D23*3 -> 3117.978061 | E23: ='B1.1 Current Distribution Rates'!E23*'B1.2 Billing Determinants'!E23/100 -> 8760.38366 | F23: ='B1.1 Current Distribution Rates'!F23*'B1.2 Billing Determinants'!F23/100 -> 1330.546401 | G23: ='B1.1 Current Distribution Rates'!G23*'B1.2 Billing Determinants'!G23/100 -> 0 | H23: ='B1.1 Current Distribution Rates'!H23*'B1.2 Billing Determinants'!H23/100 -> 0 | I23: ='B1.1 Current Distribution Rates'!I23*'B1.2 Billing Determinants'!I23/100 -> 0 | J23: ='B1.1 Current Distribution Rates'!J23*'B1.2 Billing Determinants'!J23/100 -> 0 | K23: 13208.90812 | M23: ='B1.1 Current Distribution Rates'!K23*'B1.2 Billing Determinants'!K23/100 -> 1062.649225 | N23: ='B1.1 Current Distribution Rates'!L23*'B1.2 Billing Determinants'!L23/100 -> 0 | O23: ='B1.1 Current Distribution Rates'!M23*'B1.2 Billing Determinants'!M23/100 -> 0 | P23: 14271.55735
B24: R5 | C24: ='B1.2 Billing Determinants'!C24 -> R5 - Interruptible Peaking | D24: ='B1.1 Current Distribution Rates'!D24*'B1.2 Billing Determinants'!D24*12 -> 10302.88403 | E24: ='B1.1 Current Distribution Rates'!E24*'B1.2 Billing Determinants'!E24/100 -> 0 | F24: ='B1.1 Current Distribution Rates'!F24*'B1.2 Billing Determinants'!F24/100 -> 0 | G24: ='B1.1 Current Distribution Rates'!G24*'B1.2 Billing Determinants'!G24/100 -> 0 | H24: ='B1.1 Current Distribution Rates'!H24*'B1.2 Billing Determinants'!H24/100 -> 0 | I24: ='B1.1 Current Distribution Rates'!I24*'B1.2 Billing Determinants'!I24/100 -> 40401.05865 | J24: ='B1.1 Current Distribution Rates'!J24*'B1.2 Billing Determinants'!J24/100 -> 0 | K24: 50703.94267 | M24: ='B1.1 Current Distribution Rates'!K24*'B1.2 Billing Determinants'!K24/100 -> 15645.02094 | N24: ='B1.1 Current Distribution Rates'!L24*'B1.2 Billing Determinants'!L24/100 -> 0 | O24: ='B1.1 Current Distribution Rates'!M24*'B1.2 Billing Determinants'!M24/100 -> 0 | P24: 66348.96362
B25: R6 | C25: ='B1.2 Billing Determinants'!C25 -> R6 - IGPC | D25: ='B1.1 Current Distribution Rates'!D25*'B1.2 Billing Determinants'!D25*12 -> 830046.3984 | E25: ='B1.1 Current Distribution Rates'!E25*'B1.2 Billing Determinants'!E25/100 -> 0 | F25: ='B1.1 Current Distribution Rates'!F25*'B1.2 Billing Determinants'!F25/100 -> 0 | G25: ='B1.1 Current Distribution Rates'!G25*'B1.2 Billing Determinants'!G25/100 -> 0 | H25: ='B1.1 Current Distribution Rates'!H25*'B1.2 Billing Determinants'!H25/100 -> 0 | I25: ='B1.1 Current Distribution Rates'!I25*'B1.2 Billing Determinants'!I25/100 -> 0 | J25: ='B1.1 Current Distribution Rates'!J25*'B1.2 Billing Determinants'!J25/100 -> 0 | K25: 830046.3984 | M25: ='B1.1 Current Distribution Rates'!K25*'B1.2 Billing Determinants'!K25/100 -> 0 | N25: ='B1.1 Current Distribution Rates'!L25*'B1.2 Billing Determinants'!L25/100 -> 0 | O25: ='B1.1 Current Distribution Rates'!M25*'B1.2 Billing Determinants'!M25/100 -> 0 | P25: 830046.3984
D26: =SUM(D16:D25) -> 3401188.047 | E26: 2883876.734 | F26: 725058.2846 | G26: 57311.21985 | H26: 6368.509367 | I26: 106841.9604 | J26: 191136.3899 | K26: 7371781.145 | M26: 879174.4063 | N26: 0 | O26: 0 | P26: 8250955.551
C29: =MID(CELL("filename",A1),FIND("]",CELL("filename",A1))+1,255) -> B1.3 Current Rev From Rates
C30: =D16 -> 2356188 | D30: =E16+F16 -> 2401639.321

Sheet C1.1 Current Rate Riders
C2: ='B1.3 Current Rev From Rates'!C2 -> EPCOR Natural Gas Limited Partnership
C3: ='B1.3 Current Rev From Rates'!C3 -> EB-2024-0130
C10: Current Rate Riders
C12: Rate Group | D12: REDA | E12: PGTVA | F12: ADVADA | G12: ADVADA Rate 6 | H12: LDMDA | I12: SICDA | J12: FCCVA | K12: GGEADA
D13: $ per Customer Per Month | E13: cents / m3 | F13: cents / m3 | G13: $ per Customer Per Month | H13: $ per Customer Per Month | I13: cents / m3 | J13: $ per Customer Per Month | K13: $ per Customer Per Month
C14: ='B1.3 Current Rev From Rates'!C16 -> R1 - Residential | D14: 0.02 | E14: 0.7981 | F14: -0.029
C15: ='B1.3 Current Rev From Rates'!C17 -> R1 - Commercial | D15: =D14 -> 0.02 | E15: 0.7981 | F15: -0.029
C16: ='B1.3 Current Rev From Rates'!C18 -> R1 - Industrial | D16: =D15 -> 0.02 | E16: 0.7981 | F16: -0.029
C17: ='B1.3 Current Rev From Rates'!C20 -> R2 - Seasonal - Nov to Mar | D17: 0.02 | E17: 0.7981 | F17: -0.029
C18: ='B1.3 Current Rev From Rates'!C19 -> R2 - Seasonal - Apr to Oct | D18: 0.02 | E18: 0.7981 | F18: -0.029
C19: ='B1.3 Current Rev From Rates'!C21 -> R3 - Large Volume Contract | D19: 0.02 | E19: 0.7981 | F19: -0.029
C20: ='B1.3 Current Rev From Rates'!C22 -> R4 - Peaking - Apr to Dec | D20: 0.02 | E20: 0.7981 | F20: -0.029
C21: ='B1.3 Current Rev From Rates'!C23 -> R4 - Peaking - Jan to Mar | D21: 0.02 | E21: 0.7981 | F21: -0.029
C22: ='B1.3 Current Rev From Rates'!C24 -> R5 - Interruptible Peaking | D22: 0.02 | E22: 0.7981 | F22: -0.029
C23: ='B1.3 Current Rev From Rates'!C25 -> R6 - IGPC | D23: 0.02 | G23: =#REF! -> 
C27: =MID(CELL("filename",A1),FIND("]",CELL("filename",A1))+1,255) -> C1.1 Current Rate Riders

Sheet D1.1 Rate 1 Residential Adjust
C2: ='B1.3 Current Rev From Rates'!C2 -> EPCOR Natural Gas Limited Partnership
C3: ='B1.3 Current Rev From Rates'!C3 -> EB-2024-0130
C8: Rate 1 Residential Adjustment
C11: Rate Escalation | E11: =(J25-J24)/J24 -> 0.034262022
C12: Less Productivity | E12: 0
C13: Less Stretch Factor | E13: 0
C14: Price Cap Adjustment | E14: =E11-E12-E13 -> 0.034262022
E16: Current Rate (excl. Bill 32) | F16: 2020 Rate including previously disallowed ratebase | G16: Price Cap | H16: Adjusted Rates (excl. Bill 32) | I16: Billing Determinants | J16: Revenue | L16: Balanced Rates | M16: Revenue
C17: Monthly Service Charge | E17: ='B1.1 Current Distribution Rates'!D16 -> 20.5 | G17: =E14 -> 0.034262022 | H17: =E17*(1+G17) -> 21.20237145 | I17: =SUM('B1.2 Billing Determinants'!D16) -> 9578 | J17: =H17*I17*12 -> 2436915.765 | K17: Change | L17: 24 | M17: =I17*L17*12 -> 2758464
C18: Delivery First 1,000 m3 | E18: ='B1.1 Current Distribution Rates'!E16 -> 12.1616662 | G18: =E14 -> 0.034262022 | H18: =E18*(1+G18) -> 12.57834947 | I18: =SUM('B1.2 Billing Determinants'!E16) -> 19647130.54 | J18: =H18*I18/100 -> 2471284.74 | K18: Change | L18: =M18/(I18+I19)*100 -> 10.93300967 | M18: =J25-M17 -> 2162376.105
C19: Delivery Over 1,000 m3 | E19: ='B1.1 Current Distribution Rates'!F16 -> 9.308655499 | G19: =E14 -> 0.034262022 | H19: 9.627588858 | I19: =SUM('B1.2 Billing Determinants'!F16) -> 131285.2017 | J19: =H19*I19/100 -> 12639.59945 | K19: Change | L19: =M19/I19*100 -> 0
J21: =SUM(J17:J20) -> 4920840.105 | M21: =SUM(M17:M20) -> 4920840.105
I24: Current Revenue | J24: ='B1.3 Current Rev From Rates'!K16 -> 4757827.321
I25: New Revenue | J25: ='G1.9 Summary of Revenue'!E7 -> 4920840.105
C30: =MID(CELL("filename",A1),FIND("]",CELL("filename",A1))+1,255) -> D1.1 Rate 1 Residential Adjust

Sheet D1.1 Rate 1 GS Adjustment
C2: ='B1.3 Current Rev From Rates'!C2 -> EPCOR Natural Gas Limited Partnership
C3: ='B1.3 Current Rev From Rates'!C3 -> EB-2024-0130
C8: Rate 1 General Service Adjustment
C11: Rate Escalation | E11: =(J25-J24)/J24 -> 0.03426394455
C12: Less Productivity | E12: 0
C13: Less Stretch Factor | E13: 0
C14: Price Cap Adjustment | E14: =E11-E12-E13 -> 0.03426394455
E16: Current Rate (excl. Bill 32) | F16: 2020 Rate including previously disallowed ratebase | G16: Price Cap | H16: Adjusted Rates (excl. Bill 32) | I16: Current Billing Determinants | J16: Revenue | L16: Proposed Billing Determinants | M16: Balanced Rates | N16: Revenue
C17: Monthly Service Charge | E17: ='B1.1 Current Distribution Rates'!D16 -> 20.5 | G17: =E14 -> 0.03426394455 | H17: =E17*(1+G17) -> 21.20241086 | I17: ='B1.2 Billing Determinants'!D17+'B1.2 Billing Determinants'!D18 -> 671 | J17: =H17*I17*12 -> 170721.8123 | K17: Change | L17: ='E1.2 Proposed Bill Determinants'!D17+'E1.2 Proposed Bill Determinants'!D18 -> 671 | M17: 23.5 | N17: =L17*M17*12 -> 189222
C18: Delivery First 1,000 m3 | E18: ='B1.1 Current Distribution Rates'!E16 -> 12.1616662 | G18: =E14 -> 0.03426394455 | H18: =E18*(1+G18) -> 12.57837285 | I18: ='B1.2 Billing Determinants'!E17+'B1.2 Billing Determinants'!E18 -> 3556306.645 | J18: =H18*I18/100 -> 447325.5096 | K18: Change | L18: ='E1.2 Proposed Bill Determinants'!E17+'E1.2 Proposed Bill Determinants'!E18 -> 3556306.645 | M18: =N18/L18*100 -> 12.05816496 | N18: =J25-N19-N17 -> 428825.3218
C19: Delivery Over 1,000 m3 | E19: ='B1.1 Current Distribution Rates'!F16 -> 9.308655499 | G19: =E11 -> 0.03426394455 | H19: 9.627606754 | I19: ='B1.2 Billing Determinants'!F17+'B1.2 Billing Determinants'!F18 -> 5323934.671 | J19: =H19*I19/100 -> 512567.494 | K19: Change | L19: ='E1.2 Proposed Bill Determinants'!F17+'E1.2 Proposed Bill Determinants'!F18 -> 5323934.671 | M19: =H19 -> 9.627606754 | N19: =M19*L19/100 -> 512567.494
J21: =SUM(J17:J20) -> 1130614.816 | N21: =SUM(N17:N20) -> 1130614.816
N23: =(L17*M17)*12+SUMPRODUCT(L18:L20,M18:M20)/100-N21 -> 0
I24: Current Revenue | J24: ='B1.3 Current Rev From Rates'!K17+'B1.3 Current Rev From Rates'!K18 -> 1093158.881
I25: New Revenue | J25: ='G1.9 Summary of Revenue'!E9+'G1.9 Summary of Revenue'!E8 -> 1130614.816
C30: =MID(CELL("filename",A1),FIND("]",CELL("filename",A1))+1,255) -> D1.1 Rate 1 GS Adjustment

Sheet D1.2 Rate 2 Adjustment
C2: ='D1.1 Rate 1 Residential Adjust'!C2 -> EPCOR Natural Gas Limited Partnership
C3: ='D1.1 Rate 1 Residential Adjust'!C3 -> EB-2024-0130
C8: Rate 2 Adjustment
C11: Rate Escalation | E11: =(J29-J28)/J28 -> 0.03909293798
C12: Less Productivity | E12: ='D1.1 Rate 1 Residential Adjust'!E12 -> 0
C13: Less Stretch Factor | E13: ='D1.1 Rate 1 Residential Adjust'!E13 -> 0
C14: Price Cap Adjustment | E14: =E11-E12-E13 -> 0.03909293798
E16: Current Rate (excl. Bill 32) | F16: ='D1.1 Rate 1 Residential Adjust'!F16 -> 2020 Rate including previously disallowed ratebase | G16: Price Cap | H16: Adjusted Rates (excl. Bill 32) | I16: Billing Determinants | J16: Revenue | L16: Rebalanced Rates | M16: Revenue
C17: Monthly Service Charge | E17: ='B1.1 Current Distribution Rates'!D20 -> 22.59404392 | G17: =$E$14 -> 0.03909293798 | H17: =E17*(1+G17) -> 23.47731148 | I17: ='B1.2 Billing Determinants'!D20 -> 50 | J17: =H17*I17*12 -> 14086.38689 | K17: Change | L17: =E17*(1+G17) -> 23.47731148 | M17: =I17*L17*12 -> 14086.38689
C18: Delivery First 1,000 m3 - Apr To Oct | E18: ='B1.1 Current Distribution Rates'!E19 -> 16.3641628 | G18: =$E$14 -> 0.03909293798 | H18: =E18*(1+G18) -> 17.003886 | I18: ='B1.2 Billing Determinants'!E19 -> 55414.64429 | J18: =H18*I18/100 -> 9422.642943 | K18: Change | L18: =E18*(1+G18) -> 17.003886 | M18: =L18*I18/100 -> 9422.642943
C19: Delivery Next 24,000 m3 - Apr To Oct | E19: ='B1.1 Current Distribution Rates'!G19 -> 7.322478305 | G19: 0.03909293798 | H19: =E19*(1+G19) -> 7.608735495 | I19: ='B1.2 Billing Determinants'!G19 -> 462869.7696 | J19: =H19*I19/100 -> 35218.53646 | K19: Change | L19: 7.608735495 | M19: =L19*I19/100 -> 35218.53646
C20: Delivery Over 25,000 m3 - Apr To Oct | E20: ='B1.1 Current Distribution Rates'!H19 -> 5.294662863 | G20: 0.03909293798 | H20: 5.50164679 | I20: ='B1.2 Billing Determinants'!H19 -> 88427.06177 | J20: 4864.944605 | K20: Change | L20: 5.50164679 | M20: 4864.944605
C21: Delivery First 1,000 m3 - Nov To Mar | E21: ='B1.1 Current Distribution Rates'!E20 -> 21.24470223 | G21: 0.03909293798 | H21: 22.07522005 | I21: ='B1.2 Billing Determinants'!E20 -> 43004.55727 | J21: 9493.35065 | K21: Change | L21: 22.07522005 | M21: 9493.35065
C22: Delivery Next 24,000 m3 - Nov To Mar | E22: ='B1.1 Current Distribution Rates'!G20 -> 13.67490672 | G22: 0.03909293798 | H22: 14.209499 | I22: ='B1.2 Billing Determinants'!G20 -> 171245.6389 | J22: 24333.14735 | K22: Change | L22: 14.209499 | M22: 24333.14735
C23: Delivery Over 25,000 m3 - Nov To Mar | E23: ='B1.1 Current Distribution Rates'!H20 -> 14.90063361 | G23: 0.03909293798 | H23: 15.48314315 | I23: ='B1.2 Billing Determinants'!H20 -> 11318.9453 | J23: 1752.528504 | K23: Change | L23: 15.48314315 | M23: 1752.528504
J25: =SUM(J17:J24) -> 99171.5374 | M25: =SUM(M17:M24) -> 99171.5374
M27: =(I17*L17)*12+SUMPRODUCT(I18:I24,L18:L24)/100-M25 -> 0
I28: Current Revenue | J28: ='B1.3 Current Rev From Rates'!K20+'B1.3 Current Rev From Rates'!K19 -> 95440.48831
I29: New Revenue | J29: ='G1.9 Summary of Revenue'!E10 -> 99171.5374
C31: =MID(CELL("filename",A1),FIND("]",CELL("filename",A1))+1,255) -> D1.2 Rate 2 Adjustment

Sheet D1.3 Rate 3 Adjustment
C2: ='D1.2 Rate 2 Adjustment'!C2 -> EPCOR Natural Gas Limited Partnership
C3: ='D1.2 Rate 2 Adjustment'!C3 -> EB-2024-0130
C8: Rate 3 Adjustment
C11: ='D1.2 Rate 2 Adjustment'!C11 -> Rate Escalation | E11: =(J24-J23)/J23 -> 0.03426469663
C12: Less Productivity | E12: ='D1.1 Rate 1 Residential Adjust'!E12 -> 0
C13: Less Stretch Factor | E13: ='D1.1 Rate 1 Residential Adjust'!E13 -> 0
C14: Price Cap Adjustment | E14: =E11-E12-E13 -> 0.03426469663
E16: Current Rate (excl. Bill 32) | F16: ='D1.1 Rate 1 Residential Adjust'!F16 -> 2020 Rate including previously disallowed ratebase | G16: Price Cap | H16: Adjusted Rates (excl. Bill 32) | I16: Billing Determinants | J16: Revenue | L16: Rebalanced Rates | M16: Revenue
C17: Monthly Service Charge | E17: ='B1.1 Current Distribution Rates'!D21 -> 225.9404392 | G17: =E14 -> 0.03426469663 | H17: =E17*(1+G17) -> 233.6822198 | I17: ='B1.2 Billing Determinants'!D21 -> 5 | J17: =H17*I17*12 -> 14020.93319 | K17: Change | L17: =E17*(1+G17) -> 233.6822198 | M17: =I17*L17*12 -> 14020.93319
C18: Delivery Firm | E18: ='B1.1 Current Distribution Rates'!I21 -> 1.695770578 | G18: =E14 -> 0.03426469663 | H18: =E18*(1+G18) -> 1.753875642 | I18: ='B1.2 Billing Determinants'!I21 -> 3918036 | J18: =H18*I18/100 -> 68717.47906 | K18: Change | L18: =E18*(1+G18) -> 1.753875642 | M18: =L18*I18/100 -> 68717.47906
C19: Demand Firm | E19: ='B1.1 Current Distribution Rates'!J21 -> 32.87139668 | G19: =E14 -> 0.03426469663 | H19: =E19*(1+G19) -> 33.99772511 | I19: ='B1.2 Billing Determinants'!J21 -> 581467.2 | J19: =H19*I19/100 -> 197685.6203 | K19: Change | L19: 33.99772511 | M19: =L19*I19/100 -> 197685.6203
J21: =SUM(J17:J20) -> 280424.0325 | M21: =SUM(M17:M20) -> 280424.0325
I23: Current Revenue | J23: ='B1.3 Current Rev From Rates'!K21 -> 271133.7179 | M23: =(I17*L17)*12+SUMPRODUCT(I18:I20,L18:L20)/100-M21 -> 0
I24: New Revenue | J24: ='G1.9 Summary of Revenue'!E11 -> 280424.0325
C26: =MID(CELL("filename",A1),FIND("]",CELL("filename",A1))+1,255) -> D1.3 Rate 3 Adjustment

Sheet D1.4 Rate 4 Adjustment
C2: ='D1.3 Rate 3 Adjustment'!C2 -> EPCOR Natural Gas Limited Partnership
C3: ='D1.3 Rate 3 Adjustment'!C3 -> EB-2024-0130
C8: Rate 4 Adjustment
C11: ='D1.2 Rate 2 Adjustment'!C11 -> Rate Escalation | E11: =(J26-J25)/J25 -> 0.05482103269
C12: Less Productivity | E12: ='D1.1 Rate 1 Residential Adjust'!E12 -> 0
C13: Less Stretch Factor | E13: ='D1.1 Rate 1 Residential Adjust'!E13 -> 0
C14: Price Cap Adjustment | E14: =E11-E12-E13 -> 0.05482103269
E16: Current Rate (excl. Bill 32) | F16: ='D1.1 Rate 1 Residential Adjust'!F16 -> 2020 Rate including previously disallowed ratebase | G16: Price Cap | H16: Adjusted Rates (excl. Bill 32) | I16: Billing Determinants | J16: Revenue | L16: Balanced Rates | M16: Revenue
C17: Monthly Service Charge | E17: ='B1.1 Current Distribution Rates'!D22 -> 22.59404392 | G17: =$E$14 -> 0.05482103269 | H17: =E17*(1+G17) -> 23.83267274 | I17: ='B1.2 Billing Determinants'!D22 -> 46 | J17: =H17*I17*12 -> 13155.63535 | K17: Change | L17: =E17*(1+G17) -> 23.83267274 | M17: =I17*L17*12 -> 13155.63535
C18: Delivery First 1,000 m3 - Apr To Dec | E18: ='B1.1 Current Distribution Rates'!E22 -> 18.25980309 | G18: =$E$14 -> 0.05482103269 | H18: =E18*(1+G18) -> 19.26082435 | I18: ='B1.2 Billing Determinants'!E22 -> 191609.0814 | J18: =H18*I18/100 -> 36905.48861 | K18: Change | L18: =E18*(1+G18) -> 19.26082435 | M18: =L18*I18/100 -> 36905.48861
C19: Delivery Over 1,000 m3 - Apr To Dec | E19: ='B1.1 Current Distribution Rates'!F22 -> 10.2867039 | G19: 0.05482103269 | H19: 10.85063163 | I19: ='B1.2 Billing Determinants'!F22 -> 2099021.375 | J19: =H19*I19/100 -> 227757.0772 | K19: Change | L19: 10.85063163 | M19: =L19*I19/100 -> 227757.0772
C20: Delivery First 1,000 m3 - Jan To Mar | E20: ='B1.1 Current Distribution Rates'!E23 -> 23.94853146 | G20: 0.05482103269 | H20: 25.26141469 | I20: ='B1.2 Billing Determinants'!E23 -> 36580.04531 | J20: =H20*I20/100 -> 9240.636939 | K20: Change | L20: 25.26141469 | M20: 9240.636939
C21: Delivery Over 1,000 m3 - Jan To Mar | E21: ='B1.1 Current Distribution Rates'!F23 -> 17.96675834 | G21: 0.05482103269 | H21: 18.95171458 | I21: ='B1.2 Billing Determinants'!F23 -> 7405.600814 | J21: =H21*I21/100 -> 1403.488329 | K21: Change | L21: 18.95171458 | M21: 1403.488329
J23: =SUM(J17:J22) -> 288462.3264 | M23: =SUM(M17:M22) -> 288462.3264
I25: Current Revenue | J25: ='B1.3 Current Rev From Rates'!K22+'B1.3 Current Rev From Rates'!K23 -> 273470.3968 | M25: =(I17*L17)*12+SUMPRODUCT(I18:I22,L18:L22)/100-M23 -> 0
I26: New Revenue | J26: ='G1.9 Summary of Revenue'!E12 -> 288462.3264
C28: =MID(CELL("filename",A1),FIND("]",CELL("filename",A1))+1,255) -> D1.4 Rate 4 Adjustment

Sheet D1.5 Rate 5 Adjustment
C2: ='D1.4 Rate 4 Adjustment'!C2 -> EPCOR Natural Gas Limited Partnership
C3: ='D1.4 Rate 4 Adjustment'!C3 -> EB-2024-0130
C8: Rate 5 Adjustment
C11: ='D1.2 Rate 2 Adjustment'!C11 -> Rate Escalation | E11: =(J23-J22)/J22 -> -0.0858278719
C12: Less Productivity | E12: ='D1.1 Rate 1 Residential Adjust'!E12 -> 0
C13: Less Stretch Factor | E13: ='D1.1 Rate 1 Residential Adjust'!E13 -> 0
C14: Price Cap Adjustment | E14: =E11-E12-E13 -> -0.0858278719
E16: Current Rate (excl. Bill 32) | F16: ='D1.1 Rate 1 Residential Adjust'!F16 -> 2020 Rate including previously disallowed ratebase | G16: Price Cap | H16: Adjusted Rates (excl. Bill 32) | I16: Billing Determinants | J16: Revenue | L16: Rebalanced Rates | M16: Revenue
C17: Monthly Service Charge | E17: ='B1.1 Current Distribution Rates'!D24 -> 214.6434172 | G17: =E14 -> -0.0858278719 | H17: =E17*(1+G17) -> 196.2210295 | I17: ='B1.2 Billing Determinants'!D24 -> 4 | J17: =H17*I17*12 -> 9418.609417 | K17: Change | L17: =E17*(1+G17) -> 196.2210295 | M17: =I17*L17*12 -> 9418.609417
C18: Delivery Firm | E18: ='B1.1 Current Distribution Rates'!I24 -> 6.2387208 | G18: =E14 -> -0.0858278719 | H18: =E18*(1+G18) -> 5.70326467 | I18: ='B1.2 Billing Determinants'!I24 -> 647585.618 | J18: =H18*I18/100 -> 36933.52176 | K18: Change | L18: =E18*(1+G18) -> 5.70326467 | M18: =I18*L18/100 -> 36933.52176
J20: =SUM(J17:J19) -> 46352.13118 | M20: =SUM(M17:M19) -> 46352.13118
I22: Current Revenue | J22: ='B1.3 Current Rev From Rates'!K24 -> 50703.94267 | M22: =(I17*L17)*12+SUMPRODUCT(I18:I19,L18:L19)/100-M20 -> 0
I23: New Revenue | J23: ='G1.9 Summary of Revenue'!E13 -> 46352.13118
C26: =MID(CELL("filename",A1),FIND("]",CELL("filename",A1))+1,255) -> D1.5 Rate 5 Adjustment

Sheet D1.6 Rate 6 Adjustment
C2: ='D1.5 Rate 5 Adjustment'!C2 -> EPCOR Natural Gas Limited Partnership
C3: ='D1.5 Rate 5 Adjustment'!C3 -> EB-2024-0130
C8: Rate 6 Adjustment
C11: ='D1.2 Rate 2 Adjustment'!C11 -> Rate Escalation | E11: =(J23-J22)/J22 -> 0.03426054183
C12: Less Productivity | E12: ='D1.1 Rate 1 Residential Adjust'!E12 -> 0
C13: Less Stretch Factor | E13: ='D1.1 Rate 1 Residential Adjust'!E13 -> 0
C14: Price Cap Adjustment | E14: =E11-E12-E13 -> 0.03426054183
E16: Current Rate (excl. Bill 32) | F16: ='D1.1 Rate 1 Residential Adjust'!F16 -> 2020 Rate including previously disallowed ratebase | G16: Price Cap | H16: Adjusted Rates (excl. Bill 32) | I16: Billing Determinants | J16: Revenue | L16: Balanced Rates | M16: Revenue
C17: Monthly Service Charge | E17: ='B1.1 Current Distribution Rates'!D25 -> 69170.5332 | G17: =E14 -> 0.03426054183 | H17: =E17*(1+G17) -> 71540.35315 | I17: ='B1.2 Billing Determinants'!D25 -> 1 | J17: =H17*I17*12 -> 858484.2378 | K17: Change | L17: =H17 -> 71540.35315 | M17: =I17*L17*12 -> 858484.2378
C18: Delivery Firm | E18: ='B1.1 Current Distribution Rates'!I25 -> 0 | G18: =E14 -> 0.03426054183 | H18: =F18*(1+G18) -> 0 | I18: ='B1.2 Billing Determinants'!I25 -> 65345852.2 | J18: =H18*I18/100 -> 0 | K18: No Change | M18: =J20-M17-M19 -> 0
C19: Demand Firm | E19: ='B1.1 Current Distribution Rates'!J25 -> 0 | G19: =E14 -> 0.03426054183 | H19: 0 | I19: ='B1.2 Billing Determinants'!J25 -> 0 | J19: =H19*I19/100 -> 0 | K19: No Change | M19: =I19*L19/100 -> 0
J20: =SUM(J17:J19) -> 858484.2378 | M20: =SUM(M17:M19) -> 858484.2378
I22: Current Revenue | J22: ='B1.3 Current Rev From Rates'!K25 -> 830046.3984 | M22: =J20-M20 -> 0
I23: New Revenue | J23: ='G1.9 Summary of Revenue'!E14 -> 858484.2378
C24: =MID(CELL("filename",A1),FIND("]",CELL("filename",A1))+1,255) -> D1.6 Rate 6 Adjustment

Sheet E1.1 Proposed Dist Rates
C2: ='B1.3 Current Rev From Rates'!C2 -> EPCOR Natural Gas Limited Partnership
C3: ='B1.3 Current Rev From Rates'!C3 -> EB-2024-0130
C4: ='B1.3 Current Rev From Rates'!C4 -> 0
C5: ='B1.3 Current Rev From Rates'!C5 -> 0
C6: ='B1.3 Current Rev From Rates'!C6 -> 0
C7: ='B1.3 Current Rev From Rates'!C7 -> 0
C8: ='B1.3 Current Rev From Rates'!C8 -> 0
C10: Proposed Distribution Tariff Sheet Rates
C15: ='B1.1 Current Distribution Rates'!C15 -> Rate Group | D15: ='B1.1 Current Distribution Rates'!D15 -> Monthly Service Charge (excl. Bill 32) ($) | E15: ='B1.1 Current Distribution Rates'!E15 -> Delivery First 1,000 m3 (₵) | F15: ='B1.1 Current Distribution Rates'!F15 -> Delivery Over 1,000 m3 (₵) | G15: ='B1.1 Current Distribution Rates'!G15 -> Delivery Next 24,000 m3 (₵) | H15: ='B1.1 Current Distribution Rates'!H15 -> Delivery Over 25,000 m3 (₵) | I15: ='B1.1 Current Distribution Rates'!I15 -> Delivery - Firm (₵) | J15: ='B1.1 Current Distribution Rates'!J15 -> Demand - Firm (₵) | K15: Transportation (₵) (2) | L15: ='B1.1 Current Distribution Rates'!L15 -> Delivery - Int - Lower (₵) | M15: ='B1.1 Current Distribution Rates'!M15 -> Delivery - Int - Upper (₵)
C16: ='B1.1 Current Distribution Rates'!C16 -> R1 - Residential | D16: ='D1.1 Rate 1 Residential Adjust'!L17 -> 24 | E16: ='D1.1 Rate 1 Residential Adjust'!L18 -> 10.93300967 | F16: ='D1.1 Rate 1 Residential Adjust'!L19 -> 0 | K16: ='I1.3_Transportation'!O12*100 -> 2.761870971
C17: R1 GS - Commercial | D17: ='D1.1 Rate 1 GS Adjustment'!M17 -> 23.5 | E17: ='D1.1 Rate 1 GS Adjustment'!$M$18 -> 12.05816496 | F17: ='D1.1 Rate 1 GS Adjustment'!$M$19 -> 9.627606754 | K17: =K16 -> 2.761870971
C18: R1 GS - Industrial | D18: =D17 -> 23.5 | E18: =E17 -> 12.05816496 | F18: =F17 -> 9.627606754 | K18: =K17 -> 2.761870971
C19: ='B1.1 Current Distribution Rates'!C19 -> R2 - Seasonal - Apr to Oct | D19: ='D1.2 Rate 2 Adjustment'!L17 -> 23.47731148 | E19: ='D1.2 Rate 2 Adjustment'!L18 -> 17.003886 | G19: ='D1.2 Rate 2 Adjustment'!L19 -> 7.608735495 | H19: ='D1.2 Rate 2 Adjustment'!L20 -> 5.50164679 | K19: 2.761870971
C20: ='B1.1 Current Distribution Rates'!C20 -> R2 - Seasonal - Nov to Mar | D20: ='D1.2 Rate 2 Adjustment'!L17 -> 23.47731148 | E20: ='D1.2 Rate 2 Adjustment'!L21 -> 22.07522005 | G20: ='D1.2 Rate 2 Adjustment'!L22 -> 14.209499 | H20: ='D1.2 Rate 2 Adjustment'!L23 -> 15.48314315 | K20: 2.761870971
C21: ='B1.1 Current Distribution Rates'!C21 -> R3 - Large Volume Contract | D21: ='D1.3 Rate 3 Adjustment'!L17 -> 233.6822198 | I21: ='D1.3 Rate 3 Adjustment'!L18 -> 1.753875642 | J21: ='D1.3 Rate 3 Adjustment'!L19 -> 33.99772511 | K21: 2.761870971 | L21: ='B1.1 Current Distribution Rates'!L21*(1+'D1.3 Rate 3 Adjustment'!$E$14) -> 6.44449836 | M21: ='B1.1 Current Distribution Rates'!M21*(1+'D1.3 Rate 3 Adjustment'!$E$14) -> 9.828396907
C22: ='B1.1 Current Distribution Rates'!C22 -> R4 - Peaking - Apr to Dec | D22: ='D1.4 Rate 4 Adjustment'!L17 -> 23.83267274 | E22: ='D1.4 Rate 4 Adjustment'!L18 -> 19.26082435 | F22: ='D1.4 Rate 4 Adjustment'!L19 -> 10.85063163 | K22: 2.761870971
C23: ='B1.1 Current Distribution Rates'!C23 -> R4 - Peaking - Jan to Mar | D23: ='D1.4 Rate 4 Adjustment'!L17 -> 23.83267274 | E23: ='D1.4 Rate 4 Adjustment'!L20 -> 25.26141469 | F23: ='D1.4 Rate 4 Adjustment'!L21 -> 18.95171458 | K23: 2.761870971
C24: ='B1.1 Current Distribution Rates'!C24 -> R5 - Interruptible Peaking | D24: ='D1.5 Rate 5 Adjustment'!L17 -> 196.2210295 | I24: ='D1.5 Rate 5 Adjustment'!L18 -> 5.70326467 | J24: (1) | K24: 2.761870971 | L24: ='B1.1 Current Distribution Rates'!L24*(1+'D1.5 Rate 5 Adjustment'!$E$14) -> 4.00692175 | M24: ='B1.1 Current Distribution Rates'!M24*(1+'D1.5 Rate 5 Adjustment'!$E$14) -> 7.399607591
C25: ='B1.1 Current Distribution Rates'!C25 -> R6 - IGPC | D25: ='D1.6 Rate 6 Adjustment'!L17 -> 71540.35315 | I25: ='D1.6 Rate 6 Adjustment'!L18 -> 0 | J25: ='D1.6 Rate 6 Adjustment'!L19 -> 0 | L25: ='B1.1 Current Distribution Rates'!L25 -> 0 | M25: ='B1.1 Current Distribution Rates'!M25 -> 0
C27: (1) Placeholder rate for average application
C28: (2) System Gas Fee no longer applicable for 2025 rates
C30: =MID(CELL("filename",A1),FIND("]",CELL("filename",A1))+1,255) -> E1.1 Proposed Dist Rates

Sheet E1.2 Proposed Bill Determinants
C2: ='E1.1 Proposed Dist Rates '!C2 -> EPCOR Natural Gas Limited Partnership
C3: ='E1.1 Proposed Dist Rates '!C3 -> EB-2024-0130
C4: ='E1.1 Proposed Dist Rates '!C4 -> 0
C5: ='E1.1 Proposed Dist Rates '!C5 -> 0
C6: ='E1.1 Proposed Dist Rates '!C6 -> 0
C7: ='E1.1 Proposed Dist Rates '!C7 -> 0
C8: ='E1.1 Proposed Dist Rates '!C8 -> 0
C10: ='B1.2 Billing Determinants'!C10 -> Billing Determinants - January 1, 2025 to December 31, 2025
C15: ='B1.2 Billing Determinants'!C15 -> Rate Group | D15: Monthly Service Charge | E15: Delivery First 1,000 m3 | F15: Delivery Over 1,000 m3 | G15: Delivery Next 24,000 m3 | H15: Delivery Over 25,000 m3 | I15: Delivery - Firm | J15: Demand - Firm | K15: Transportation (incl system gas fee) | L15: Delivery - Int - Lower | M15: Delivery - Int - Upper
C16: ='B1.2 Billing Determinants'!C16 -> R1 - Residential | D16: ='B1.2 Billing Determinants'!D16 -> 9578 | E16: ='B1.2 Billing Determinants'!E16+'B1.2 Billing Determinants'!F16 -> 19778415.74 | F16: 0 | G16: ='B1.2 Billing Determinants'!G16 -> 0 | H16: ='B1.2 Billing Determinants'!H16 -> 0 | I16: ='B1.2 Billing Determinants'!I16 -> 0 | J16: ='B1.2 Billing Determinants'!J16 -> 0 | K16: =E16+F16+G16+H16+I16 -> 19778415.74 | L16: ='B1.2 Billing Determinants'!L16 -> 0 | M16: ='B1.2 Billing Determinants'!M16 -> 0
C17: ='B1.2 Billing Determinants'!C17 -> R1 - Commercial | D17: ='B1.2 Billing Determinants'!D17 -> 590 | E17: ='B1.2 Billing Determinants'!E17 -> 2898065.093 | F17: ='B1.2 Billing Determinants'!F17 -> 3295803.472 | G17: ='B1.2 Billing Determinants'!G17 -> 0 | H17: ='B1.2 Billing Determinants'!H17 -> 0 | I17: ='B1.2 Billing Determinants'!I17 -> 0 | J17: ='B1.2 Billing Determinants'!J17 -> 0 | K17: =E17+F17+G17+H17+I17 -> 6193868.565 | L17: ='B1.2 Billing Determinants'!L17 -> 0 | M17: ='B1.2 Billing Determinants'!M17 -> 0
C18: ='B1.2 Billing Determinants'!C18 -> R1 - Industrial | D18: ='B1.2 Billing Determinants'!D18 -> 81 | E18: ='B1.2 Billing Determinants'!E18 -> 658241.5512 | F18: ='B1.2 Billing Determinants'!F18 -> 2028131.199 | G18: ='B1.2 Billing Determinants'!G18 -> 0 | H18: ='B1.2 Billing Determinants'!H18 -> 0 | I18: ='B1.2 Billing Determinants'!I18 -> 0 | J18: ='B1.2 Billing Determinants'!J18 -> 0 | K18: 2686372.75 | L18: ='B1.2 Billing Determinants'!L18 -> 0 | M18: ='B1.2 Billing Determinants'!M18 -> 0
C19: ='B1.2 Billing Determinants'!C19 -> R2 - Seasonal - Apr to Oct | D19: ='B1.2 Billing Determinants'!D19 -> 50 | E19: ='B1.2 Billing Determinants'!E19 -> 55414.64429 | F19: ='B1.2 Billing Determinants'!F19 -> 0 | G19: ='B1.2 Billing Determinants'!G19 -> 462869.7696 | H19: ='B1.2 Billing Determinants'!H19 -> 88427.06177 | I19: ='B1.2 Billing Determinants'!I19 -> 0 | J19: ='B1.2 Billing Determinants'!J19 -> 0 | K19: 606711.4757 | L19: ='B1.2 Billing Determinants'!L19 -> 0 | M19: ='B1.2 Billing Determinants'!M19 -> 0
C20: ='B1.2 Billing Determinants'!C20 -> R2 - Seasonal - Nov to Mar | D20: ='B1.2 Billing Determinants'!D20 -> 50 | E20: ='B1.2 Billing Determinants'!E20 -> 43004.55727 | F20: ='B1.2 Billing Determinants'!F20 -> 0 | G20: ='B1.2 Billing Determinants'!G20 -> 171245.6389 | H20: ='B1.2 Billing Determinants'!H20 -> 11318.9453 | I20: ='B1.2 Billing Determinants'!I20 -> 0 | J20: ='B1.2 Billing Determinants'!J20 -> 0 | K20: 225569.1414 | L20: ='B1.2 Billing Determinants'!L20 -> 0 | M20: ='B1.2 Billing Determinants'!M20 -> 0
C21: ='B1.2 Billing Determinants'!C21 -> R3 - Large Volume Contract | D21: ='B1.2 Billing Determinants'!D21 -> 5 | E21: ='B1.2 Billing Determinants'!E21 -> 0 | F21: ='B1.2 Billing Determinants'!F21 -> 0 | G21: ='B1.2 Billing Determinants'!G21 -> 0 | H21: ='B1.2 Billing Determinants'!H21 -> 0 | I21: ='B1.2 Billing Determinants'!I21 -> 3918036 | J21: ='B1.2 Billing Determinants'!J21 -> 581467.2 | K21: 3918036 | L21: ='B1.2 Billing Determinants'!L21 -> 0 | M21: ='B1.2 Billing Determinants'!M21 -> 0
C22: ='B1.2 Billing Determinants'!C22 -> R4 - Peaking - Apr to Dec | D22: ='B1.2 Billing Determinants'!D22 -> 46 | E22: ='B1.2 Billing Determinants'!E22 -> 191609.0814 | F22: ='B1.2 Billing Determinants'!F22 -> 2099021.375 | G22: ='B1.2 Billing Determinants'!G22 -> 0 | H22: ='B1.2 Billing Determinants'!H22 -> 0 | I22: ='B1.2 Billing Determinants'!I22 -> 0 | J22: ='B1.2 Billing Determinants'!J22 -> 0 | K22: 2290630.456 | L22: ='B1.2 Billing Determinants'!L22 -> 0 | M22: ='B1.2 Billing Determinants'!M22 -> 0
C23: ='B1.2 Billing Determinants'!C23 -> R4 - Peaking - Jan to Mar | D23: ='B1.2 Billing Determinants'!D23 -> 46 | E23: ='B1.2 Billing Determinants'!E23 -> 36580.04531 | F23: ='B1.2 Billing Determinants'!F23 -> 7405.600814 | G23: ='B1.2 Billing Determinants'!G23 -> 0 | H23: ='B1.2 Billing Determinants'!H23 -> 0 | I23: ='B1.2 Billing Determinants'!I23 -> 0 | J23: ='B1.2 Billing Determinants'!J23 -> 0 | K23: 43985.64612 | L23: ='B1.2 Billing Determinants'!L23 -> 0 | M23: ='B1.2 Billing Determinants'!M23 -> 0
C24: ='B1.2 Billing Determinants'!C24 -> R5 - Interruptible Peaking | D24: ='B1.2 Billing Determinants'!D24 -> 4 | E24: ='B1.2 Billing Determinants'!E24 -> 0 | F24: ='B1.2 Billing Determinants'!F24 -> 0 | G24: ='B1.2 Billing Determinants'!G24 -> 0 | H24: ='B1.2 Billing Determinants'!H24 -> 0 | I24: ='B1.2 Billing Determinants'!I24 -> 647585.618 | J24: ='B1.2 Billing Determinants'!J24 -> 0 | K24: 647585.618 | L24: ='B1.2 Billing Determinants'!L24 -> 0 | M24: ='B1.2 Billing Determinants'!M24 -> 0
C25: ='B1.2 Billing Determinants'!C25 -> R6 - IGPC | D25: ='B1.2 Billing Determinants'!D25 -> 1 | E25: ='B1.2 Billing Determinants'!E25 -> 0 | F25: ='B1.2 Billing Determinants'!F25 -> 0 | G25: ='B1.2 Billing Determinants'!G25 -> 0 | H25: ='B1.2 Billing Determinants'!H25 -> 0 | I25: ='B1.2 Billing Determinants'!I25 -> 65345852.2 | J25: ='B1.2 Billing Determinants'!J25 -> 0 | K25: ='B1.2 Billing Determinants'!K25 -> 0 | L25: ='B1.2 Billing Determinants'!L25 -> 0 | M25: ='B1.2 Billing Determinants'!M25 -> 0
C26: ='B1.2 Billing Determinants'!C26 -> Total | D26: =SUM(D16:D20,D21:D22,D24:D25) -> 10405 | E26: =SUM(E16:E25) -> 23661330.71 | F26: 7430361.646 | G26: 634115.4085 | H26: 99746.00706 | I26: 69911473.82 | J26: 581467.2 | K26: 36391175.39 | L26: 0 | M26: 0
C30: =MID(CELL("filename",A1),FIND("]",CELL("filename",A1))+1,255) -> E1.2 Proposed Bill Determinants

Sheet E1.3 Proposed Rev From Rate
C2: ='E1.2 Proposed Bill Determinants'!C2 -> EPCOR Natural Gas Limited Partnership
C3: ='E1.2 Proposed Bill Determinants'!C3 -> EB-2024-0130
C10: Proposed Revenue from Rates
C15: ='E1.2 Proposed Bill Determinants'!C15 -> Rate Group | D15: ='E1.2 Proposed Bill Determinants'!D15 -> Monthly Service Charge | E15: ='E1.2 Proposed Bill Determinants'!E15 -> Delivery First 1,000 m3 | F15: ='E1.2 Proposed Bill Determinants'!F15 -> Delivery Over 1,000 m3 | G15: ='E1.2 Proposed Bill Determinants'!G15 -> Delivery Next 24,000 m3 | H15: ='E1.2 Proposed Bill Determinants'!H15 -> Delivery Over 25,000 m3 | I15: ='E1.2 Proposed Bill Determinants'!I15 -> Delivery - Firm | J15: ='E1.2 Proposed Bill Determinants'!J15 -> Demand - Firm | K15: Total Distribution | M15: ='E1.2 Proposed Bill Determinants'!K15 -> Transportation (incl system gas fee) | N15: ='E1.2 Proposed Bill Determinants'!L15 -> Delivery - Int - Lower | O15: ='E1.2 Proposed Bill Determinants'!M15 -> Delivery - Int - Upper | P15: ='E1.2 Proposed Bill Determinants'!N15 -> 0 | R15: Combined Total | T15: Distribution at Current Rates | U15: Variance ($) | V15: Variance (%)
B16: R1R | C16: ='E1.2 Proposed Bill Determinants'!C16 -> R1 - Residential | D16: ='E1.1 Proposed Dist Rates '!D16*'E1.2 Proposed Bill Determinants'!D16*12 -> 2758464 | E16: ='E1.1 Proposed Dist Rates '!E16*'E1.2 Proposed Bill Determinants'!E16/100 -> 2162376.105 | F16: ='E1.1 Proposed Dist Rates '!F16*'E1.2 Proposed Bill Determinants'!F16/100 -> 0 | G16: ='E1.1 Proposed Dist Rates '!G16*'E1.2 Proposed Bill Determinants'!G16/100 -> 0 | H16: ='E1.1 Proposed Dist Rates '!H16*'E1.2 Proposed Bill Determinants'!H16/100 -> 0 | I16: ='E1.1 Proposed Dist Rates '!I16*'E1.2 Proposed Bill Determinants'!I16/100 -> 0 | J16: ='E1.1 Proposed Dist Rates '!J16*'E1.2 Proposed Bill Determinants'!J16/100 -> 0 | K16: =SUM(D16:J16) -> 4920840.105 | M16: ='E1.1 Proposed Dist Rates '!K16*'E1.2 Proposed Bill Determinants'!K16/100 -> 546254.3228 | N16: ='E1.1 Proposed Dist Rates '!L16*'E1.2 Proposed Bill Determinants'!L16/100 -> 0 | O16: ='E1.1 Proposed Dist Rates '!M16*'E1.2 Proposed Bill Determinants'!M16/100 -> 0 | P16: =SUM(D16:O16) -> 10387934.53 | R16: =K16+M16 -> 5467094.428 | T16: ='B1.3 Current Rev From Rates'!K16 -> 4757827.321 | U16: =K16-T16 -> 163012.7843 | V16: =U16/T16 -> 0.034262022
B17: R1C | C17: R1 - GS - Commercial | D17: ='E1.1 Proposed Dist Rates '!D17*'E1.2 Proposed Bill Determinants'!D17*12 -> 166380 | E17: ='E1.1 Proposed Dist Rates '!E17*'E1.2 Proposed Bill Determinants'!E17/100 -> 349453.4697 | F17: ='E1.1 Proposed Dist Rates '!F17*'E1.2 Proposed Bill Determinants'!F17/100 -> 317306.9977 | G17: ='E1.1 Proposed Dist Rates '!G17*'E1.2 Proposed Bill Determinants'!G17/100 -> 0 | H17: ='E1.1 Proposed Dist Rates '!H17*'E1.2 Proposed Bill Determinants'!H17/100 -> 0 | I17: ='E1.1 Proposed Dist Rates '!I17*'E1.2 Proposed Bill Determinants'!I17/100 -> 0 | J17: ='E1.1 Proposed Dist Rates '!J17*'E1.2 Proposed Bill Determinants'!J17/100 -> 0 | K17: 833140.4674 | M17: ='E1.1 Proposed Dist Rates '!K17*'E1.2 Proposed Bill Determinants'!K17/100 -> 171066.6579 | N17: ='E1.1 Proposed Dist Rates '!L17*'E1.2 Proposed Bill Determinants'!L17/100 -> 0 | O17: ='E1.1 Proposed Dist Rates '!M17*'E1.2 Proposed Bill Determinants'!M17/100 -> 0 | P17: 1837347.593 | R17: 1004207.125 | T17: ='B1.3 Current Rev From Rates'!K17 -> 804387.994 | U17: =K17-T17 -> 28752.47346 | V17: =U17/T17 -> 0.03574453333
B18: R1I | C18: R1 - GS - Industrial | D18: ='E1.1 Proposed Dist Rates '!D18*'E1.2 Proposed Bill Determinants'!D18*12 -> 22842 | E18: ='E1.1 Proposed Dist Rates '!E18*'E1.2 Proposed Bill Determinants'!E18/100 -> 79371.8521 | F18: ='E1.1 Proposed Dist Rates '!F18*'E1.2 Proposed Bill Determinants'!F18/100 -> 195260.4963 | G18: ='E1.1 Proposed Dist Rates '!G18*'E1.2 Proposed Bill Determinants'!G18/100 -> 0 | H18: ='E1.1 Proposed Dist Rates '!H18*'E1.2 Proposed Bill Determinants'!H18/100 -> 0 | I18: ='E1.1 Proposed Dist Rates '!I18*'E1.2 Proposed Bill Determinants'!I18/100 -> 0 | J18: ='E1.1 Proposed Dist Rates '!J18*'E1.2 Proposed Bill Determinants'!J18/100 -> 0 | K18: 297474.3484 | M18: ='E1.1 Proposed Dist Rates '!K18*'E1.2 Proposed Bill Determinants'!K18/100 -> 74194.14914 | N18: ='E1.1 Proposed Dist Rates '!L18*'E1.2 Proposed Bill Determinants'!L18/100 -> 0 | O18: ='E1.1 Proposed Dist Rates '!M18*'E1.2 Proposed Bill Determinants'!M18/100 -> 0 | P18: 669142.8459 | R18: 371668.4975 | T18: ='B1.3 Current Rev From Rates'!K18 -> 288770.8866 | U18: 8703.461807 | V18: 0.03013967893
B19: R2 | C19: ='E1.2 Proposed Bill Determinants'!C20 -> R2 - Seasonal - Nov to Mar | D19: ='E1.1 Proposed Dist Rates '!D20*'E1.2 Proposed Bill Determinants'!D20*7 -> 8217.059017 | E19: ='E1.1 Proposed Dist Rates '!E20*'E1.2 Proposed Bill Determinants'!E20/100 -> 9493.35065 | F19: ='E1.1 Proposed Dist Rates '!F20*'E1.2 Proposed Bill Determinants'!F20/100 -> 0 | G19: ='E1.1 Proposed Dist Rates '!G20*'E1.2 Proposed Bill Determinants'!G20/100 -> 24333.14735 | H19: ='E1.1 Proposed Dist Rates '!H20*'E1.2 Proposed Bill Determinants'!H20/100 -> 1752.528504 | I19: ='E1.1 Proposed Dist Rates '!I20*'E1.2 Proposed Bill Determinants'!I20/100 -> 0 | J19: ='E1.1 Proposed Dist Rates '!J20*'E1.2 Proposed Bill Determinants'!J20/100 -> 0 | K19: 43796.08552 | M19: ='E1.1 Proposed Dist Rates '!K20*'E1.2 Proposed Bill Determinants'!K20/100 -> 6229.928636 | N19: ='E1.1 Proposed Dist Rates '!L20*'E1.2 Proposed Bill Determinants'!L20/100 -> 0 | O19: ='E1.1 Proposed Dist Rates '!M20*'E1.2 Proposed Bill Determinants'!M20/100 -> 0 | P19: 93822.09968 | R19: 50026.01416 | T19: ='B1.3 Current Rev From Rates'!K20 -> 42148.38146 | U19: 1647.704062 | V19: 0.03909293798
B20: R2 | C20: ='E1.2 Proposed Bill Determinants'!C19 -> R2 - Seasonal - Apr to Oct | D20: ='E1.1 Proposed Dist Rates '!D19*'E1.2 Proposed Bill Determinants'!D19*5 -> 5869.327869 | E20: ='E1.1 Proposed Dist Rates '!E19*'E1.2 Proposed Bill Determinants'!E19/100 -> 9422.642943 | F20: ='E1.1 Proposed Dist Rates '!F19*'E1.2 Proposed Bill Determinants'!F19/100 -> 0 | G20: ='E1.1 Proposed Dist Rates '!G19*'E1.2 Proposed Bill Determinants'!G19/100 -> 35218.53646 | H20: ='E1.1 Proposed Dist Rates '!H19*'E1.2 Proposed Bill Determinants'!H19/100 -> 4864.944605 | I20: ='E1.1 Proposed Dist Rates '!I19*'E1.2 Proposed Bill Determinants'!I19/100 -> 0 | J20: ='E1.1 Proposed Dist Rates '!J19*'E1.2 Proposed Bill Determinants'!J19/100 -> 0 | K20: 55375.45188 | M20: ='E1.1 Proposed Dist Rates '!K19*'E1.2 Proposed Bill Determinants'!K19/100 -> 16756.58812 | N20: ='E1.1 Proposed Dist Rates '!L19*'E1.2 Proposed Bill Determinants'!L19/100 -> 0 | O20: ='E1.1 Proposed Dist Rates '!M19*'E1.2 Proposed Bill Determinants'!M19/100 -> 0 | P20: 127507.4919 | R20: 72132.04 | T20: ='B1.3 Current Rev From Rates'!K19 -> 53292.10685 | U20: 2083.345028 | V20: 0.03909293798
B21: R3 | C21: ='E1.2 Proposed Bill Determinants'!C21 -> R3 - Large Volume Contract | D21: ='E1.1 Proposed Dist Rates '!D21*'E1.2 Proposed Bill Determinants'!D21*12 -> 14020.93319 | E21: ='E1.1 Proposed Dist Rates '!E21*'E1.2 Proposed Bill Determinants'!E21/100 -> 0 | F21: ='E1.1 Proposed Dist Rates '!F21*'E1.2 Proposed Bill Determinants'!F21/100 -> 0 | G21: ='E1.1 Proposed Dist Rates '!G21*'E1.2 Proposed Bill Determinants'!G21/100 -> 0 | H21: ='E1.1 Proposed Dist Rates '!H21*'E1.2 Proposed Bill Determinants'!H21/100 -> 0 | I21: ='E1.1 Proposed Dist Rates '!I21*'E1.2 Proposed Bill Determinants'!I21/100 -> 68717.47906 | J21: ='E1.1 Proposed Dist Rates '!J21*'E1.2 Proposed Bill Determinants'!J21/100 -> 197685.6203 | K21: 280424.0325 | M21: ='E1.1 Proposed Dist Rates '!K21*'E1.2 Proposed Bill Determinants'!K21/100 -> 108211.0989 | N21: ='E1.1 Proposed Dist Rates '!L21*'E1.2 Proposed Bill Determinants'!L21/100 -> 0 | O21: ='E1.1 Proposed Dist Rates '!M21*'E1.2 Proposed Bill Determinants'!M21/100 -> 0 | P21: 669059.1639 | R21: 388635.1314 | T21: ='B1.3 Current Rev From Rates'!K21 -> 271133.7179 | U21: 9290.314592 | V21: 0.03426469663
B22: R3 | C22: ='E1.2 Proposed Bill Determinants'!C22 -> R4 - Peaking - Apr to Dec | D22: ='E1.1 Proposed Dist Rates '!D22*'E1.2 Proposed Bill Determinants'!D22*9 -> 9866.726514 | E22: ='E1.1 Proposed Dist Rates '!E22*'E1.2 Proposed Bill Determinants'!E22/100 -> 36905.48861 | F22: ='E1.1 Proposed Dist Rates '!F22*'E1.2 Proposed Bill Determinants'!F22/100 -> 227757.0772 | G22: ='E1.1 Proposed Dist Rates '!G22*'E1.2 Proposed Bill Determinants'!G22/100 -> 0 | H22: ='E1.1 Proposed Dist Rates '!H22*'E1.2 Proposed Bill Determinants'!H22/100 -> 0 | I22: ='E1.1 Proposed Dist Rates '!I22*'E1.2 Proposed Bill Determinants'!I22/100 -> 0 | J22: ='E1.1 Proposed Dist Rates '!J22*'E1.2 Proposed Bill Determinants'!J22/100 -> 0 | K22: 274529.2923 | M22: ='E1.1 Proposed Dist Rates '!K22*'E1.2 Proposed Bill Determinants'!K22/100 -> 63264.25762 | N22: ='E1.1 Proposed Dist Rates '!L22*'E1.2 Proposed Bill Determinants'!L22/100 -> 0 | O22: ='E1.1 Proposed Dist Rates '!M22*'E1.2 Proposed Bill Determinants'!M22/100 -> 0 | P22: 612322.8422 | R22: 337793.5499 | T22: ='B1.3 Current Rev From Rates'!K22 -> 260261.4887 | U22: 14267.80358 | V22: 0.05482103269
B23: R4 | C23: ='E1.2 Proposed Bill Determinants'!C23 -> R4 - Peaking - Jan to Mar | D23: ='E1.1 Proposed Dist Rates '!D23*'E1.2 Proposed Bill Determinants'!D23*3 -> 3288.908838 | E23: ='E1.1 Proposed Dist Rates '!E23*'E1.2 Proposed Bill Determinants'!E23/100 -> 9240.636939 | F23: ='E1.1 Proposed Dist Rates '!F23*'E1.2 Proposed Bill Determinants'!F23/100 -> 1403.488329 | G23: ='E1.1 Proposed Dist Rates '!G23*'E1.2 Proposed Bill Determinants'!G23/100 -> 0 | H23: ='E1.1 Proposed Dist Rates '!H23*'E1.2 Proposed Bill Determinants'!H23/100 -> 0 | I23: ='E1.1 Proposed Dist Rates '!I23*'E1.2 Proposed Bill Determinants'!I23/100 -> 0 | J23: ='E1.1 Proposed Dist Rates '!J23*'E1.2 Proposed Bill Determinants'!J23/100 -> 0 | K23: 13933.03411 | M23: ='E1.1 Proposed Dist Rates '!K23*'E1.2 Proposed Bill Determinants'!K23/100 -> 1214.826792 | N23: ='E1.1 Proposed Dist Rates '!L23*'E1.2 Proposed Bill Determinants'!L23/100 -> 0 | O23: ='E1.1 Proposed Dist Rates '!M23*'E1.2 Proposed Bill Determinants'!M23/100 -> 0 | P23: 29080.895 | R23: 15147.8609 | T23: ='B1.3 Current Rev From Rates'!K23 -> 13208.90812 | U23: 724.125984 | V23: 0.05482103269
B24: R5 | C24: ='E1.2 Proposed Bill Determinants'!C24 -> R5 - Interruptible Peaking | D24: ='E1.1 Proposed Dist Rates '!D24*'E1.2 Proposed Bill Determinants'!D24*12 -> 9418.609417 | E24: ='E1.1 Proposed Dist Rates '!E24*'E1.2 Proposed Bill Determinants'!E24/100 -> 0 | F24: ='E1.1 Proposed Dist Rates '!F24*'E1.2 Proposed Bill Determinants'!F24/100 -> 0 | G24: ='E1.1 Proposed Dist Rates '!G24*'E1.2 Proposed Bill Determinants'!G24/100 -> 0 | H24: ='E1.1 Proposed Dist Rates '!H24*'E1.2 Proposed Bill Determinants'!H24/100 -> 0 | I24: ='E1.1 Proposed Dist Rates '!I24*'E1.2 Proposed Bill Determinants'!I24/100 -> 36933.52176 | J24: ='E1.1 Proposed Dist Rates '!J24*'E1.2 Proposed Bill Determinants'!J24/100 -> 0 | K24: 46352.13118 | M24: ='E1.1 Proposed Dist Rates '!K24*'E1.2 Proposed Bill Determinants'!K24/100 -> 17885.47919 | N24: ='E1.1 Proposed Dist Rates '!L24*'E1.2 Proposed Bill Determinants'!L24/100 -> 0 | O24: ='E1.1 Proposed Dist Rates '!M24*'E1.2 Proposed Bill Determinants'!M24/100 -> 0 | P24: 110589.7415 | R24: 64237.61037 | T24: ='B1.3 Current Rev From Rates'!K24 -> 50703.94267 | U24: -4351.811497 | V24: -0.0858278719
B25: R6 | C25: ='E1.2 Proposed Bill Determinants'!C25 -> R6 - IGPC | D25: ='E1.1 Proposed Dist Rates '!D25*'E1.2 Proposed Bill Determinants'!D25*12 -> 858484.2378 | E25: ='E1.1 Proposed Dist Rates '!E25*'E1.2 Proposed Bill Determinants'!E25/100 -> 0 | F25: ='E1.1 Proposed Dist Rates '!F25*'E1.2 Proposed Bill Determinants'!F25/100 -> 0 | G25: ='E1.1 Proposed Dist Rates '!G25*'E1.2 Proposed Bill Determinants'!G25/100 -> 0 | H25: ='E1.1 Proposed Dist Rates '!H25*'E1.2 Proposed Bill Determinants'!H25/100 -> 0 | I25: ='E1.1 Proposed Dist Rates '!I25*'E1.2 Proposed Bill Determinants'!I25/100 -> 0 | J25: ='E1.1 Proposed Dist Rates '!J25*'E1.2 Proposed Bill Determinants'!J25/100 -> 0 | K25: 858484.2378 | M25: ='E1.1 Proposed Dist Rates '!K25*'E1.2 Proposed Bill Determinants'!K25/100 -> 0 | N25: ='E1.1 Proposed Dist Rates '!L25*'E1.2 Proposed Bill Determinants'!L25/100 -> 0 | O25: ='E1.1 Proposed Dist Rates '!M25*'E1.2 Proposed Bill Determinants'!M25/100 -> 0 | P25: 1716968.476 | R25: 858484.2378 | T25: ='B1.3 Current Rev From Rates'!K25 -> 830046.3984 | U25: 28437.83935 | V25: 0.03426054183
D26: =SUM(D16:D25) -> 3856851.803 | E26: =SUM(E16:E25) -> 2656263.546 | F26: 741728.0595 | G26: 59551.68381 | H26: 6617.473109 | I26: 105651.0008 | J26: 197685.6203 | K26: 7624349.186 | M26: 1005077.309 | N26: 0 | O26: 0 | P26: 16253775.68 | R26: 8629426.495 | T26: =SUM(T16:T25) -> 7371781.145 | U26: =SUM(U16:U25) -> 252568.0407 | V26: 0.03426146758
C28: Current Rates | D28: ='B1.3 Current Rev From Rates'!D26 -> 3401188.047 | E28: ='B1.3 Current Rev From Rates'!E26 -> 2883876.734 | F28: ='B1.3 Current Rev From Rates'!F26 -> 725058.2846 | G28: ='B1.3 Current Rev From Rates'!G26 -> 57311.21985 | H28: ='B1.3 Current Rev From Rates'!H26 -> 6368.509367 | I28: ='B1.3 Current Rev From Rates'!I26 -> 106841.9604 | J28: ='B1.3 Current Rev From Rates'!J26 -> 191136.3899 | K28: ='B1.3 Current Rev From Rates'!K26 -> 7371781.145 | M28: ='B1.3 Current Rev From Rates'!M26 -> 879174.4063 | N28: ='B1.3 Current Rev From Rates'!N26 -> 0 | O28: ='B1.3 Current Rev From Rates'!O26 -> 0 | P28: ='B1.3 Current Rev From Rates'!P26 -> 8250955.551 | Q28: ='B1.3 Current Rev From Rates'!Q26 -> 0 | R28: ='B1.3 Current Rev From Rates'!P26 -> 8250955.551
C29: Variance | D29: =D26-D28 -> 455663.7552 | E29: =E26-E28 -> -227613.188 | F29: 16669.77487 | G29: 2240.463963 | H29: 248.9637418 | I29: -1190.959545 | J29: 6549.230414 | K29: 252568.0407 | M29: 125902.9027 | N29: 0 | O29: 0 | P29: 8002820.129 | Q29: 0 | R29: 378470.9434
O30: Change | P30: =P28-P29 -> 248135.4222
D31: 2356188 | E31: 2401639.321 | P31: =P30/P29 -> 0.03100599766
C33: =MID(CELL("filename",A1),FIND("]",CELL("filename",A1))+1,255) -> E1.3 Proposed Rev From Rate

Sheet F1.1 Proposed Rate Riders
C2: ='E1.3 Proposed Rev From Rate'!C2 -> EPCOR Natural Gas Limited Partnership
C3: ='E1.3 Proposed Rev From Rate'!C3 -> EB-2024-0130
C7: Proposed Rate Riders
C9: Description | D9: PGTVA | E9: UFGVA
D10: cents / m3 | E10: cents / m3
C11: ='E1.3 Proposed Rev From Rate'!C16 -> R1 - Residential | D11: 0.6290804449 | E11: 1.316518199
C12: ='E1.3 Proposed Rev From Rate'!C17 -> R1 - GS - Commercial | D12: =D11 -> 0.6290804449 | E12: 1.316518199
C13: ='E1.3 Proposed Rev From Rate'!C18 -> R1 - GS - Industrial | D13: =D12 -> 0.6290804449 | E13: 1.316518199
C14: ='E1.3 Proposed Rev From Rate'!C19 -> R2 - Seasonal - Nov to Mar | D14: 0.7157536893 | E14: 1.457478891
C15: ='E1.3 Proposed Rev From Rate'!C20 -> R2 - Seasonal - Apr to Oct | D15: 0.7157536893 | E15: 1.457478891
C16: ='E1.3 Proposed Rev From Rate'!C21 -> R3 - Large Volume Contract | D16: 0.2336479504 | E16: 0.527673602
C17: ='E1.3 Proposed Rev From Rate'!C22 -> R4 - Peaking - Apr to Dec | D17: 0.6539084146 | E17: 1.117808199
C18: ='E1.3 Proposed Rev From Rate'!C23 -> R4 - Peaking - Jan to Mar | D18: 0.6539084146 | E18: =E17 -> 1.117808199
C19: ='E1.3 Proposed Rev From Rate'!C24 -> R5 - Interruptible Peaking | D19: 1.037404084 | E19: 1.593380434
C20: ='E1.3 Proposed Rev From Rate'!C25 -> R6 - IGPC
C26: =MID(CELL("filename",A13),FIND("]",CELL("filename",A13))+1,255) -> F1.1 Proposed Rate Riders

Sheet G1.1 R1-R Bill Impact
C1: ='E1.1 Proposed Dist Rates '!C2 -> EPCOR Natural Gas Limited Partnership
C2: ='E1.1 Proposed Dist Rates '!C2 -> EPCOR Natural Gas Limited Partnership
B3: ='G1.1 R1-R Bill Impact'!F41 -> 249.4694543 | C3: ='E1.1 Proposed Dist Rates '!C3 -> EB-2024-0130
C7: Rate 1 - Residential Bill Impacts
C10: ='For Bill Impact(HideBeforeFile)'!C6 -> R1 - Residential | F10: Current | H10: Proposed | J10: Bill Determinant | O10: Look-up
C14: =INDEX('For Bill Impact(HideBeforeFile)'!$D$48:$S$57,MATCH(C10,'For Bill Impact(HideBeforeFile)'!$C$62:$C$71,0),MATCH($O14,'For Bill Impact(HideBeforeFile)'!$D$61:$S$61,0)) -> Commodity | D14: =INDEX('For Bill Impact(HideBeforeFile)'!$D$62:$S$71,MATCH(C10,'For Bill Impact(HideBeforeFile)'!$C$62:$C$71,0),MATCH($O14,'For Bill Impact(HideBeforeFile)'!$D$61:$S$61,0)) -> cents / m3 | F14: =INDEX('For Bill Impact(HideBeforeFile)'!$D$6:$S$15,MATCH(C10,'For Bill Impact(HideBeforeFile)'!$C$62:$C$71,0),MATCH($O14,'For Bill Impact(HideBeforeFile)'!$D$61:$S$61,0)) -> 14.6336 | H14: =INDEX('For Bill Impact(HideBeforeFile)'!$D$20:$S$29,MATCH(C10,'For Bill Impact(HideBeforeFile)'!$C$62:$C$71,0),MATCH($O14,'For Bill Impact(HideBeforeFile)'!$D$61:$S$61,0)) -> 15.087 | J14: =INDEX('For Bill Impact(HideBeforeFile)'!$D$34:$S$43,MATCH(C10,'For Bill Impact(HideBeforeFile)'!$C$62:$C$71,0),MATCH($O14,'For Bill Impact(HideBeforeFile)'!$D$61:$S$61,0)) -> 2064.983894 | O14: ='For Bill Impact(HideBeforeFile)'!$D$5 -> Commodity
C16: =INDEX('For Bill Impact(HideBeforeFile)'!$D$48:$S$57,MATCH(C10,'For Bill Impact(HideBeforeFile)'!$C$62:$C$71,0),MATCH($O16,'For Bill Impact(HideBeforeFile)'!$D$61:$S$61,0)) -> Customer (excl. Bill 32) | D16: =INDEX('For Bill Impact(HideBeforeFile)'!$D$62:$S$71,MATCH(C10,'For Bill Impact(HideBeforeFile)'!$C$62:$C$71,0),MATCH($O16,'For Bill Impact(HideBeforeFile)'!$D$61:$S$61,0)) -> $ / month | F16: =INDEX('For Bill Impact(HideBeforeFile)'!$D$6:$S$15,MATCH(C10,'For Bill Impact(HideBeforeFile)'!$C$62:$C$71,0),MATCH($O16,'For Bill Impact(HideBeforeFile)'!$D$61:$S$61,0)) -> 20.5 | H16: =INDEX('For Bill Impact(HideBeforeFile)'!$D$20:$S$29,MATCH(C10,'For Bill Impact(HideBeforeFile)'!$C$62:$C$71,0),MATCH($O16,'For Bill Impact(HideBeforeFile)'!$D$61:$S$61,0)) -> 24 | J16: =INDEX('For Bill Impact(HideBeforeFile)'!$D$34:$S$43,MATCH(C10,'For Bill Impact(HideBeforeFile)'!$C$62:$C$71,0),MATCH($O16,'For Bill Impact(HideBeforeFile)'!$D$61:$S$61,0)) -> 12 | O16: ='For Bill Impact(HideBeforeFile)'!$O$5 -> Dist. Customer Rate
C17: =INDEX('For Bill Impact(HideBeforeFile)'!$D$48:$S$57,MATCH(C10,'For Bill Impact(HideBeforeFile)'!$C$62:$C$71,0),MATCH($O17,'For Bill Impact(HideBeforeFile)'!$D$61:$S$61,0)) -> Block 1 (First 1,000 m3 per month) | D17: =INDEX('For Bill Impact(HideBeforeFile)'!$D$62:$S$71,MATCH(C10,'For Bill Impact(HideBeforeFile)'!$C$62:$C$71,0),MATCH($O17,'For Bill Impact(HideBeforeFile)'!$D$61:$S$61,0)) -> cents / m3 | F17: =INDEX('For Bill Impact(HideBeforeFile)'!$D$6:$S$15,MATCH(C10,'For Bill Impact(HideBeforeFile)'!$C$62:$C$71,0),MATCH($O17,'For Bill Impact(HideBeforeFile)'!$D$61:$S$61,0)) -> 12.1616662 | H17: =INDEX('For Bill Impact(HideBeforeFile)'!$D$20:$S$29,MATCH(C10,'For Bill Impact(HideBeforeFile)'!$C$62:$C$71,0),MATCH($O17,'For Bill Impact(HideBeforeFile)'!$D$61:$S$61,0)) -> 10.93300967 | J17: =INDEX('For Bill Impact(HideBeforeFile)'!$D$34:$S$43,MATCH(C10,'For Bill Impact(HideBeforeFile)'!$C$62:$C$71,0),MATCH($O17,'For Bill Impact(HideBeforeFile)'!$D$61:$S$61,0)) -> 2051.276941 | O17: ='For Bill Impact(HideBeforeFile)'!$P$5 -> Dist. Vol. Rate Tier 1
C18: =INDEX('For Bill Impact(HideBeforeFile)'!$D$48:$S$57,MATCH(C10,'For Bill Impact(HideBeforeFile)'!$C$62:$C$71,0),MATCH($O18,'For Bill Impact(HideBeforeFile)'!$D$61:$S$61,0)) -> Block 2 (Over 1,000 m3 per month) | D18: =INDEX('For Bill Impact(HideBeforeFile)'!$D$62:$S$71,MATCH(C10,'For Bill Impact(HideBeforeFile)'!$C$62:$C$71,0),MATCH($O18,'For Bill Impact(HideBeforeFile)'!$D$61:$S$61,0)) -> cents / m3 | F18: =INDEX('For Bill Impact(HideBeforeFile)'!$D$6:$S$15,MATCH(C10,'For Bill Impact(HideBeforeFile)'!$C$62:$C$71,0),MATCH($O18,'For Bill Impact(HideBeforeFile)'!$D$61:$S$61,0)) -> 9.308655499 | H18: =INDEX('For Bill Impact(HideBeforeFile)'!$D$20:$S$29,MATCH(C10,'For Bill Impact(HideBeforeFile)'!$C$62:$C$71,0),MATCH($O18,'For Bill Impact(HideBeforeFile)'!$D$61:$S$61,0)) -> 0 | J18: =INDEX('For Bill Impact(HideBeforeFile)'!$D$34:$S$43,MATCH(C10,'For Bill Impact(HideBeforeFile)'!$C$62:$C$71,0),MATCH($O18,'For Bill Impact(HideBeforeFile)'!$D$61:$S$61,0)) -> 13.70695362 | O18: ='For Bill Impact(HideBeforeFile)'!$Q$5 -> Dist. Vol. Rate Tier 2
C19: =INDEX('For Bill Impact(HideBeforeFile)'!$D$48:$S$57,MATCH(C10,'For Bill Impact(HideBeforeFile)'!$C$62:$C$71,0),MATCH($O19,'For Bill Impact(HideBeforeFile)'!$D$61:$S$61,0)) ->  | D19: =INDEX('For Bill Impact(HideBeforeFile)'!$D$62:$S$71,MATCH(C10,'For Bill Impact(HideBeforeFile)'!$C$62:$C$71,0),MATCH($O19,'For Bill Impact(HideBeforeFile)'!$D$61:$S$61,0)) ->  | F19: =INDEX('For Bill Impact(HideBeforeFile)'!$D$6:$S$15,MATCH(C10,'For Bill Impact(HideBeforeFile)'!$C$62:$C$71,0),MATCH($O19,'For Bill Impact(HideBeforeFile)'!$D$61:$S$61,0)) ->  | H19: =INDEX('For Bill Impact(HideBeforeFile)'!$D$20:$S$29,MATCH(C10,'For Bill Impact(HideBeforeFile)'!$C$62:$C$71,0),MATCH($O19,'For Bill Impact(HideBeforeFile)'!$D$61:$S$61,0)) ->  | J19: =INDEX('For Bill Impact(HideBeforeFile)'!$D$34:$S$43,MATCH(C10,'For Bill Impact(HideBeforeFile)'!$C$62:$C$71,0),MATCH($O19,'For Bill Impact(HideBeforeFile)'!$D$61:$S$61,0)) ->  | O19: ='For Bill Impact(HideBeforeFile)'!$R$5 -> Dist. Vol. Rate Tier 3
C20: =INDEX('For Bill Impact(HideBeforeFile)'!$D$48:$S$57,MATCH(C10,'For Bill Impact(HideBeforeFile)'!$C$62:$C$71,0),MATCH($O20,'For Bill Impact(HideBeforeFile)'!$D$61:$S$61,0)) ->  | D20: =INDEX('For Bill Impact(HideBeforeFile)'!$D$62:$S$71,MATCH(C10,'For Bill Impact(HideBeforeFile)'!$C$62:$C$71,0),MATCH($O20,'For Bill Impact(HideBeforeFile)'!$D$61:$S$61,0)) ->  | F20: =INDEX('For Bill Impact(HideBeforeFile)'!$D$6:$S$15,MATCH(C10,'For Bill Impact(HideBeforeFile)'!$C$62:$C$71,0),MATCH($O20,'For Bill Impact(HideBeforeFile)'!$D$61:$S$61,0)) ->  | H20: =INDEX('For Bill Impact(HideBeforeFile)'!$D$20:$S$29,MATCH(C10,'For Bill Impact(HideBeforeFile)'!$C$62:$C$71,0),MATCH($O20,'For Bill Impact(HideBeforeFile)'!$D$61:$S$61,0)) ->  | J20: =INDEX('For Bill Impact(HideBeforeFile)'!$D$34:$S$43,MATCH(C10,'For Bill Impact(HideBeforeFile)'!$C$62:$C$71,0),MATCH($O20,'For Bill Impact(HideBeforeFile)'!$D$61:$S$61,0)) ->  | O20: ='For Bill Impact(HideBeforeFile)'!$S$5 -> Dist. Capacity Rate
C21: =INDEX('For Bill Impact(HideBeforeFile)'!$D$48:$S$57,MATCH(C10,'For Bill Impact(HideBeforeFile)'!$C$62:$C$71,0),MATCH($O21,'For Bill Impact(HideBeforeFile)'!$D$61:$S$61,0)) -> Transportation | D21: =INDEX('For Bill Impact(HideBeforeFile)'!$D$62:$S$71,MATCH(C10,'For Bill Impact(HideBeforeFile)'!$C$62:$C$71,0),MATCH($O21,'For Bill Impact(HideBeforeFile)'!$D$61:$S$61,0)) -> cents / m3 | F21: =INDEX('For Bill Impact(HideBeforeFile)'!$D$6:$S$15,MATCH(C10,'For Bill Impact(HideBeforeFile)'!$C$62:$C$71,0),MATCH($O21,'For Bill Impact(HideBeforeFile)'!$D$61:$S$61,0)) -> 2.4159 | H21: =INDEX('For Bill Impact(HideBeforeFile)'!$D$20:$S$29,MATCH(C10,'For Bill Impact(HideBeforeFile)'!$C$62:$C$71,0),MATCH($O21,'For Bill Impact(HideBeforeFile)'!$D$61:$S$61,0)) -> 2.761870971 | J21: =INDEX('For Bill Impact(HideBeforeFile)'!$D$34:$S$43,MATCH(C10,'For Bill Impact(HideBeforeFile)'!$C$62:$C$71,0),MATCH($O21,'For Bill Impact(HideBeforeFile)'!$D$61:$S$61,0)) -> 2064.983894 | O21: ='For Bill Impact(HideBeforeFile)'!$E$5 -> Transp/System Gas
C23: =INDEX('For Bill Impact(HideBeforeFile)'!$D$48:$S$57,MATCH(C10,'For Bill Impact(HideBeforeFile)'!$C$62:$C$71,0),MATCH($O23,'For Bill Impact(HideBeforeFile)'!$D$61:$S$61,0)) -> REDA | D23: =INDEX('For Bill Impact(HideBeforeFile)'!$D$62:$S$71,MATCH(C10,'For Bill Impact(HideBeforeFile)'!$C$62:$C$71,0),MATCH($O23,'For Bill Impact(HideBeforeFile)'!$D$61:$S$61,0)) -> $ / month | F23: =INDEX('For Bill Impact(HideBeforeFile)'!$D$6:$S$15,MATCH(C10,'For Bill Impact(HideBeforeFile)'!$C$62:$C$71,0),MATCH($O23,'For Bill Impact(HideBeforeFile)'!$D$61:$S$61,0)) -> 0.02 | H23: =INDEX('For Bill Impact(HideBeforeFile)'!$D$20:$S$29,MATCH(C10,'For Bill Impact(HideBeforeFile)'!$C$62:$C$71,0),MATCH($O23,'For Bill Impact(HideBeforeFile)'!$D$61:$S$61,0)) -> 0 | J23: =INDEX('For Bill Impact(HideBeforeFile)'!$D$34:$S$43,MATCH(C10,'For Bill Impact(HideBeforeFile)'!$C$62:$C$71,0),MATCH($O23,'For Bill Impact(HideBeforeFile)'!$D$61:$S$61,0)) -> 12 | O23: ='For Bill Impact(HideBeforeFile)'!$F$5 -> REDA
C24: =INDEX('For Bill Impact(HideBeforeFile)'!$D$48:$S$57,MATCH(C10,'For Bill Impact(HideBeforeFile)'!$C$62:$C$71,0),MATCH($O24,'For Bill Impact(HideBeforeFile)'!$D$61:$S$61,0)) -> PGTVA | D24: =INDEX('For Bill Impact(HideBeforeFile)'!$D$62:$S$71,MATCH(C10,'For Bill Impact(HideBeforeFile)'!$C$62:$C$71,0),MATCH($O24,'For Bill Impact(HideBeforeFile)'!$D$61:$S$61,0)) -> cents / m3 | F24: =INDEX('For Bill Impact(HideBeforeFile)'!$D$6:$S$15,MATCH(C10,'For Bill Impact(HideBeforeFile)'!$C$62:$C$71,0),MATCH($O24,'For Bill Impact(HideBeforeFile)'!$D$61:$S$61,0)) -> 0.7981 | H24: =INDEX('For Bill Impact(HideBeforeFile)'!$D$20:$S$29,MATCH(C10,'For Bill Impact(HideBeforeFile)'!$C$62:$C$71,0),MATCH($O24,'For Bill Impact(HideBeforeFile)'!$D$61:$S$61,0)) -> 0.6290804449 | J24: =INDEX('For Bill Impact(HideBeforeFile)'!$D$34:$S$43,MATCH(C10,'For Bill Impact(HideBeforeFile)'!$C$62:$C$71,0),MATCH($O24,'For Bill Impact(HideBeforeFile)'!$D$61:$S$61,0)) -> 2064.983894 | O24: ='For Bill Impact(HideBeforeFile)'!$G$5 -> PGTVA
C25: =INDEX('For Bill Impact(HideBeforeFile)'!$D$48:$S$57,MATCH(C10,'For Bill Impact(HideBeforeFile)'!$C$62:$C$71,0),MATCH($O25,'For Bill Impact(HideBeforeFile)'!$D$61:$S$61,0)) -> ADVADA | D25: =INDEX('For Bill Impact(HideBeforeFile)'!$D$62:$S$71,MATCH(C10,'For Bill Impact(HideBeforeFile)'!$C$62:$C$71,0),MATCH($O25,'For Bill Impact(HideBeforeFile)'!$D$61:$S$61,0)) -> cents / m3 | F25: =INDEX('For Bill Impact(HideBeforeFile)'!$D$6:$S$15,MATCH(C10,'For Bill Impact(HideBeforeFile)'!$C$62:$C$71,0),MATCH($O25,'For Bill Impact(HideBeforeFile)'!$D$61:$S$61,0)) -> -0.029 | H25: =INDEX('For Bill Impact(HideBeforeFile)'!$D$20:$S$29,MATCH(C10,'For Bill Impact(HideBeforeFile)'!$C$62:$C$71,0),MATCH($O25,'For Bill Impact(HideBeforeFile)'!$D$61:$S$61,0)) -> 0 | J25: =INDEX('For Bill Impact(HideBeforeFile)'!$D$34:$S$43,MATCH(C10,'For Bill Impact(HideBeforeFile)'!$C$62:$C$71,0),MATCH($O25,'For Bill Impact(HideBeforeFile)'!$D$61:$S$61,0)) -> 2064.983894 | O25: ='For Bill Impact(HideBeforeFile)'!$H$5 -> ADVADA
C26: =INDEX('For Bill Impact(HideBeforeFile)'!$D$48:$S$57,MATCH(C10,'For Bill Impact(HideBeforeFile)'!$C$62:$C$71,0),MATCH($O26,'For Bill Impact(HideBeforeFile)'!$D$61:$S$61,0)) -> LDMDA | D26: =INDEX('For Bill Impact(HideBeforeFile)'!$D$62:$S$71,MATCH(C10,'For Bill Impact(HideBeforeFile)'!$C$62:$C$71,0),MATCH($O26,'For Bill Impact(HideBeforeFile)'!$D$61:$S$61,0)) -> $ / month | F26: =INDEX('For Bill Impact(HideBeforeFile)'!$D$6:$S$15,MATCH(C10,'For Bill Impact(HideBeforeFile)'!$C$62:$C$71,0),MATCH($O26,'For Bill Impact(HideBeforeFile)'!$D$61:$S$61,0)) -> 0 | H26: =INDEX('For Bill Impact(HideBeforeFile)'!$D$20:$S$29,MATCH(C10,'For Bill Impact(HideBeforeFile)'!$C$62:$C$71,0),MATCH($O26,'For Bill Impact(HideBeforeFile)'!$D$61:$S$61,0)) -> 0 | J26: =INDEX('For Bill Impact(HideBeforeFile)'!$D$34:$S$43,MATCH(C10,'For Bill Impact(HideBeforeFile)'!$C$62:$C$71,0),MATCH($O26,'For Bill Impact(HideBeforeFile)'!$D$61:$S$61,0)) -> 12 | O26: LDMDA
C27: =INDEX('For Bill Impact(HideBeforeFile)'!$D$48:$S$57,MATCH(C10,'For Bill Impact(HideBeforeFile)'!$C$62:$C$71,0),MATCH($O27,'For Bill Impact(HideBeforeFile)'!$D$61:$S$61,0)) -> UFGVA | D27: =INDEX('For Bill Impact(HideBeforeFile)'!$D$62:$S$71,MATCH(C10,'For Bill Impact(HideBeforeFile)'!$C$62:$C$71,0),MATCH($O27,'For Bill Impact(HideBeforeFile)'!$D$61:$S$61,0)) -> cents / m3 | F27: =INDEX('For Bill Impact(HideBeforeFile)'!$D$6:$S$15,MATCH(C10,'For Bill Impact(HideBeforeFile)'!$C$62:$C$71,0),MATCH($O27,'For Bill Impact(HideBeforeFile)'!$D$61:$S$61,0)) -> 0 | H27: =INDEX('For Bill Impact(HideBeforeFile)'!$D$20:$S$29,MATCH(C10,'For Bill Impact(HideBeforeFile)'!$C$62:$C$71,0),MATCH($O27,'For Bill Impact(HideBeforeFile)'!$D$61:$S$61,0)) -> 1.316518199 | J27: =INDEX('For Bill Impact(HideBeforeFile)'!$D$34:$S$43,MATCH(C10,'For Bill Impact(HideBeforeFile)'!$C$62:$C$71,0),MATCH($O27,'For Bill Impact(HideBeforeFile)'!$D$61:$S$61,0)) -> 2064.983894 | O27: UFGVA
C28: =INDEX('For Bill Impact(HideBeforeFile)'!$D$48:$S$57,MATCH(C10,'For Bill Impact(HideBeforeFile)'!$C$62:$C$71,0),MATCH($O28,'For Bill Impact(HideBeforeFile)'!$D$61:$S$61,0)) -> FCCVA | D28: =INDEX('For Bill Impact(HideBeforeFile)'!$D$62:$S$71,MATCH(C10,'For Bill Impact(HideBeforeFile)'!$C$62:$C$71,0),MATCH($O28,'For Bill Impact(HideBeforeFile)'!$D$61:$S$61,0)) -> $ / month | F28: =INDEX('For Bill Impact(HideBeforeFile)'!$D$6:$S$15,MATCH(C10,'For Bill Impact(HideBeforeFile)'!$C$62:$C$71,0),MATCH($O28,'For Bill Impact(HideBeforeFile)'!$D$61:$S$61,0)) -> 0 | H28: =INDEX('For Bill Impact(HideBeforeFile)'!$D$20:$S$29,MATCH(C10,'For Bill Impact(HideBeforeFile)'!$C$62:$C$71,0),MATCH($O28,'For Bill Impact(HideBeforeFile)'!$D$61:$S$61,0)) -> 0 | J28: =INDEX('For Bill Impact(HideBeforeFile)'!$D$34:$S$43,MATCH(C10,'For Bill Impact(HideBeforeFile)'!$C$62:$C$71,0),MATCH($O28,'For Bill Impact(HideBeforeFile)'!$D$61:$S$61,0)) -> 12 | O28: FCCVA
C29: =INDEX('For Bill Impact(HideBeforeFile)'!$D$48:$S$57,MATCH(C10,'For Bill Impact(HideBeforeFile)'!$C$62:$C$71,0),MATCH($O29,'For Bill Impact(HideBeforeFile)'!$D$61:$S$61,0)) -> GGEADA | D29: =INDEX('For Bill Impact(HideBeforeFile)'!$D$62:$S$71,MATCH(C10,'For Bill Impact(HideBeforeFile)'!$C$62:$C$71,0),MATCH($O29,'For Bill Impact(HideBeforeFile)'!$D$61:$S$61,0)) -> $ / month | F29: =INDEX('For Bill Impact(HideBeforeFile)'!$D$6:$S$15,MATCH(C10,'For Bill Impact(HideBeforeFile)'!$C$62:$C$71,0),MATCH($O29,'For Bill Impact(HideBeforeFile)'!$D$61:$S$61,0)) -> 0 | H29: =INDEX('For Bill Impact(HideBeforeFile)'!$D$20:$S$29,MATCH(C10,'For Bill Impact(HideBeforeFile)'!$C$62:$C$71,0),MATCH($O29,'For Bill Impact(HideBeforeFile)'!$D$61:$S$61,0)) -> 0 | J29: =INDEX('For Bill Impact(HideBeforeFile)'!$D$34:$S$43,MATCH(C10,'For Bill Impact(HideBeforeFile)'!$C$62:$C$71,0),MATCH($O29,'For Bill Impact(HideBeforeFile)'!$D$61:$S$61,0)) -> 12 | O29: GGEADA
C31: =INDEX('For Bill Impact(HideBeforeFile)'!$D$48:$S$57,MATCH(C10,'For Bill Impact(HideBeforeFile)'!$C$62:$C$71,0),MATCH($O31,'For Bill Impact(HideBeforeFile)'!$D$61:$S$61,0)) -> Federal Carbon | D31: =INDEX('For Bill Impact(HideBeforeFile)'!$D$62:$S$71,MATCH(C10,'For Bill Impact(HideBeforeFile)'!$C$62:$C$71,0),MATCH($O31,'For Bill Impact(HideBeforeFile)'!$D$61:$S$61,0)) -> cents / m3 | F31: =INDEX('For Bill Impact(HideBeforeFile)'!$D$6:$S$15,MATCH(C10,'For Bill Impact(HideBeforeFile)'!$C$62:$C$71,0),MATCH($O31,'For Bill Impact(HideBeforeFile)'!$D$61:$S$61,0)) -> 15.25 | H31: =INDEX('For Bill Impact(HideBeforeFile)'!$D$20:$S$29,MATCH(C10,'For Bill Impact(HideBeforeFile)'!$C$62:$C$71,0),MATCH($O31,'For Bill Impact(HideBeforeFile)'!$D$61:$S$61,0)) -> 15.25 | J31: =INDEX('For Bill Impact(HideBeforeFile)'!$D$34:$S$43,MATCH(C10,'For Bill Impact(HideBeforeFile)'!$C$62:$C$71,0),MATCH($O31,'For Bill Impact(HideBeforeFile)'!$D$61:$S$61,0)) -> 2064.983894 | O31: ='For Bill Impact(HideBeforeFile)'!$M$5 -> Federal Carbon
C32: =INDEX('For Bill Impact(HideBeforeFile)'!$D$48:$S$57,MATCH(C10,'For Bill Impact(HideBeforeFile)'!$C$62:$C$71,0),MATCH($O32,'For Bill Impact(HideBeforeFile)'!$D$61:$S$61,0)) -> Facility Carbon | D32: =INDEX('For Bill Impact(HideBeforeFile)'!$D$62:$S$71,MATCH(C10,'For Bill Impact(HideBeforeFile)'!$C$62:$C$71,0),MATCH($O32,'For Bill Impact(HideBeforeFile)'!$D$61:$S$61,0)) -> cents / m3 | F32: =INDEX('For Bill Impact(HideBeforeFile)'!$D$6:$S$15,MATCH(C10,'For Bill Impact(HideBeforeFile)'!$C$62:$C$71,0),MATCH($O32,'For Bill Impact(HideBeforeFile)'!$D$61:$S$61,0)) -> 0.0037 | H32: =INDEX('For Bill Impact(HideBeforeFile)'!$D$20:$S$29,MATCH(C10,'For Bill Impact(HideBeforeFile)'!$C$62:$C$71,0),MATCH($O32,'For Bill Impact(HideBeforeFile)'!$D$61:$S$61,0)) -> 0.0037 | J32: =INDEX('For Bill Impact(HideBeforeFile)'!$D$34:$S$43,MATCH(C10,'For Bill Impact(HideBeforeFile)'!$C$62:$C$71,0),MATCH($O32,'For Bill Impact(HideBeforeFile)'!$D$61:$S$61,0)) -> 2064.983894 | O32: ='For Bill Impact(HideBeforeFile)'!$N$5 -> Facility Carbon
C35: Commodity | F35: Current | H35: Proposed | J35: Change $ | L35: Change %
F36: =F14*$J14/100 -> 302.1814832 | H36: =H14*$J14/100 -> 311.5441201 | J36: =H36-F36 -> 9.362636977 | L36: =IFERROR(J36/F36,"") -> 0.03098349005 | O36: ='For Bill Impact(HideBeforeFile)'!$D$5 -> Commodity
C38: Delivery | F38: Current Rate | H38: Proposed Rate | J38: Change $ | L38: Change %
C39: =IF(C16<>"",C16,"") -> Customer (excl. Bill 32) | F39: =F16*$J16 -> 246 | H39: =H16*$J16 -> 288 | J39: =IFERROR(H39-F39,"") -> 42 | L39: =IFERROR(J39/F39,"") -> 0.1707317073 | O39: ='For Bill Impact(HideBeforeFile)'!$O$5 -> Dist. Customer Rate
C40: Bill 32 | F40: 12 | H40: 12 | J40: =IFERROR(H40-F40,"") -> 0 | L40: =IFERROR(J40/F40,"") -> 0
C41: =IF(C17<>"",C17,"") -> Block 1 (First 1,000 m3 per month) | F41: =IFERROR(F17*$J17/100,"") -> 249.4694543 | H41: =IFERROR(H17*$J14/100,"") -> 225.7648888 | J41: =IFERROR(H41-F41,"") -> -23.70456552 | L41: =IFERROR(J41/F41,"") -> -0.09501991169 | O41: ='For Bill Impact(HideBeforeFile)'!$P$5 -> Dist. Vol. Rate Tier 1
C42: =IF(C18<>"",C18,"") -> Block 2 (Over 1,000 m3 per month) | F42: =IFERROR(F18*$J18/100,"") -> 1.275933091 | H42: =IFERROR(H18*$J18/100,"") -> 0 | J42: -1.275933091 | L42: -1 | O42: ='For Bill Impact(HideBeforeFile)'!$Q$5 -> Dist. Vol. Rate Tier 2
C43: =IF(C19<>"",C19,"") ->  | F43: =IFERROR(F19*$J19/100,"") ->  | H43: =IFERROR(H19*$J19/100,"") ->  | O43: ='For Bill Impact(HideBeforeFile)'!$R$5 -> Dist. Vol. Rate Tier 3
C44: =IF(C20<>"",C20,"") ->  | F44: =IFERROR(F20*$J20/100,"") ->  | H44: =IFERROR(H20*$J20/100,"") ->  | O44: ='For Bill Impact(HideBeforeFile)'!$S$5 -> Dist. Capacity Rate
C45: =IF(C21<>"",C21,"") -> Transportation | F45: =IFERROR(F21*$J21/100,"") -> 49.8879459 | H45: =IFERROR(H21*$J21/100,"") -> 57.03219073 | J45: 7.144244823 | L45: 0.1432058325 | O45: ='For Bill Impact(HideBeforeFile)'!$E$5 -> Transp/System Gas
C46: Total Delivery | F46: =SUM(F39:F45) -> 558.6333333 | H46: =SUM(H39:H45) -> 582.7970795 | J46: =H46-F46 -> 24.16374621 | L46: =IF(ISERROR(J46/F46),0,J46/F46) -> 0.04325510988
C48: Rate Riders
C50: Rate Riders | F50: Current Rate | H50: Proposed Rate | J50: Change $ | L50: Change %
C51: =C23 -> REDA | F51: =F23*$J23 -> 0.24 | H51: =H23*$J23 -> 0 | J51: =IFERROR(H51-F51,"") -> -0.24 | L51: =IFERROR(J51/F51,"") -> -1 | O51: ='For Bill Impact(HideBeforeFile)'!$F$5 -> REDA
C52: =C24 -> PGTVA | F52: =IFERROR(F24*$J24/100,"") -> 16.48063646 | H52: =IFERROR(H24*$J24/100,"") -> 12.99040987 | J52: =IFERROR(H52-F52,"") -> -3.490226591 | L52: =IFERROR(J52/F52,"") -> -0.2117774152 | O52: ='For Bill Impact(HideBeforeFile)'!$G$5 -> PGTVA
C53: =C25 -> ADVADA | F53: =IFERROR(F25*$J25/100,"") -> -0.5988453294 | H53: =IFERROR(H25*$J25/100,"") -> 0 | J53: 0.5988453294 | L53: -1 | O53: ='For Bill Impact(HideBeforeFile)'!$H$5 -> ADVADA
C54: =C26 -> LDMDA | F54: =F26*$J26 -> 0 | H54: =H26*$J26 -> 0 | J54: 0 | O54: ='For Bill Impact(HideBeforeFile)'!$I$5 -> LDMDA
C55: =C27 -> UFGVA | F55: =IFERROR(F27*$J27/100,"") -> 0 | H55: =IFERROR(H27*$J27/100,"") -> 27.18588877 | J55: 27.18588877 | O55: ='For Bill Impact(HideBeforeFile)'!$J$5 -> UFGVA
C56: =C28 -> FCCVA | F56: =F28*$J28 -> 0 | H56: =H28*$J28 -> 0 | J56: =IFERROR(H56-F56,"") -> 0 | L56: =IFERROR(J56/F56,"") -> 
C57: GGEADA | F57: 0 | H57: 0 | J57: 0
C58: Total Rate Riders | F58: =SUM(F51:F57) -> 16.12179113 | H58: =SUM(H51:H57) -> 40.17629864 | J58: =SUM(J51:J57) -> 24.0545075 | L58: =IF(ISERROR(J58/F58),0,J58/F58) -> 1.492049321
C60: Carbon Tax
C61: Federal Carbon | F61: =F31*$J31/100 -> 314.9100439 | H61: =H31*$J31/100 -> 314.9100439 | J61: =IFERROR(H61-F61,"") -> 0 | L61: =IFERROR(J61/F61,"") -> 0
C62: Facility Carbon | F62: =F32*$J32/100 -> 0.07640440409 | H62: =H32*$J32/100 -> 0.07640440409 | J62: =IFERROR(H62-F62,"") -> 0 | L62: 0
C63: Total Carbon Tax | F63: =SUM(F61:F62) -> 314.9864483 | H63: =SUM(H61:H62) -> 314.9864483 | J63: =SUM(J61:J62) -> 0 | L63: =IF(ISERROR(J63/F63),0,J63/F63) -> 0
C65: Total Bill Impact | F65: =SUM(F36,F46,F58,F63) -> 1191.923056 | H65: =SUM(H36,H46,H58,H63) -> 1249.503947 | J65: =SUM(J36,J46,J58,J63) -> 57.5808907 | L65: =IFERROR(J65/F65,"") -> 0.04830923474
C68: =MID(CELL("filename",A1),FIND("]",CELL("filename",A1))+1,255) -> G1.1 R1-R Bill Impact
C70: =C10 -> R1 - Residential | O70: Look-up
C71: R1 - Residential - Bottom 10 Percentile | F71: Current | H71: Proposed | J71: Bill Determinant
C74: =INDEX('For Bill Impact(HideBeforeFile)'!$D$48:$S$57,MATCH(C70,'For Bill Impact(HideBeforeFile)'!$C$62:$C$71,0),MATCH($O74,'For Bill Impact(HideBeforeFile)'!$D$61:$S$61,0)) -> Commodity | D74: =INDEX('For Bill Impact(HideBeforeFile)'!$D$62:$S$71,MATCH(C70,'For Bill Impact(HideBeforeFile)'!$C$62:$C$71,0),MATCH($O74,'For Bill Impact(HideBeforeFile)'!$D$61:$S$61,0)) -> cents / m3 | F74: =INDEX('For Bill Impact(HideBeforeFile)'!$D$6:$S$15,MATCH(C70,'For Bill Impact(HideBeforeFile)'!$C$62:$C$71,0),MATCH($O74,'For Bill Impact(HideBeforeFile)'!$D$61:$S$61,0)) -> 14.6336 | H74: =INDEX('For Bill Impact(HideBeforeFile)'!$D$20:$S$29,MATCH(C70,'For Bill Impact(HideBeforeFile)'!$C$62:$C$71,0),MATCH($O74,'For Bill Impact(HideBeforeFile)'!$D$61:$S$61,0)) -> 15.087 | J74: 608.4504598 | O74: ='For Bill Impact(HideBeforeFile)'!$D$5 -> Commodity
C76: =INDEX('For Bill Impact(HideBeforeFile)'!$D$48:$S$57,MATCH(C70,'For Bill Impact(HideBeforeFile)'!$C$62:$C$71,0),MATCH($O76,'For Bill Impact(HideBeforeFile)'!$D$61:$S$61,0)) -> Customer (excl. Bill 32) | D76: =INDEX('For Bill Impact(HideBeforeFile)'!$D$62:$S$71,MATCH(C70,'For Bill Impact(HideBeforeFile)'!$C$62:$C$71,0),MATCH($O76,'For Bill Impact(HideBeforeFile)'!$D$61:$S$61,0)) -> $ / month | F76: =INDEX('For Bill Impact(HideBeforeFile)'!$D$6:$S$15,MATCH(C70,'For Bill Impact(HideBeforeFile)'!$C$62:$C$71,0),MATCH($O76,'For Bill Impact(HideBeforeFile)'!$D$61:$S$61,0)) -> 20.5 | H76: =INDEX('For Bill Impact(HideBeforeFile)'!$D$20:$S$29,MATCH(C70,'For Bill Impact(HideBeforeFile)'!$C$62:$C$71,0),MATCH($O76,'For Bill Impact(HideBeforeFile)'!$D$61:$S$61,0)) -> 24 | J76: =INDEX('For Bill Impact(HideBeforeFile)'!$D$34:$S$43,MATCH(C70,'For Bill Impact(HideBeforeFile)'!$C$62:$C$71,0),MATCH($O76,'For Bill Impact(HideBeforeFile)'!$D$61:$S$61,0)) -> 12 | O76: ='For Bill Impact(HideBeforeFile)'!$O$5 -> Dist. Customer Rate
C77: =INDEX('For Bill Impact(HideBeforeFile)'!$D$48:$S$57,MATCH(C70,'For Bill Impact(HideBeforeFile)'!$C$62:$C$71,0),MATCH($O77,'For Bill Impact(HideBeforeFile)'!$D$61:$S$61,0)) -> Block 1 (First 1,000 m3 per month) | D77: =INDEX('For Bill Impact(HideBeforeFile)'!$D$62:$S$71,MATCH(C70,'For Bill Impact(HideBeforeFile)'!$C$62:$C$71,0),MATCH($O77,'For Bill Impact(HideBeforeFile)'!$D$61:$S$61,0)) -> cents / m3 | F77: =INDEX('For Bill Impact(HideBeforeFile)'!$D$6:$S$15,MATCH(C70,'For Bill Impact(HideBeforeFile)'!$C$62:$C$71,0),MATCH($O77,'For Bill Impact(HideBeforeFile)'!$D$61:$S$61,0)) -> 12.1616662 | H77: =INDEX('For Bill Impact(HideBeforeFile)'!$D$20:$S$29,MATCH(C70,'For Bill Impact(HideBeforeFile)'!$C$62:$C$71,0),MATCH($O77,'For Bill Impact(HideBeforeFile)'!$D$61:$S$61,0)) -> 10.93300967 | J77: =$J$74 -> 608.4504598 | O77: ='For Bill Impact(HideBeforeFile)'!$P$5 -> Dist. Vol. Rate Tier 1
C78: =INDEX('For Bill Impact(HideBeforeFile)'!$D$48:$S$57,MATCH(C70,'For Bill Impact(HideBeforeFile)'!$C$62:$C$71,0),MATCH($O78,'For Bill Impact(HideBeforeFile)'!$D$61:$S$61,0)) -> Block 2 (Over 1,000 m3 per month) | D78: =INDEX('For Bill Impact(HideBeforeFile)'!$D$62:$S$71,MATCH(C70,'For Bill Impact(HideBeforeFile)'!$C$62:$C$71,0),MATCH($O78,'For Bill Impact(HideBeforeFile)'!$D$61:$S$61,0)) -> cents / m3 | F78: =INDEX('For Bill Impact(HideBeforeFile)'!$D$6:$S$15,MATCH(C70,'For Bill Impact(HideBeforeFile)'!$C$62:$C$71,0),MATCH($O78,'For Bill Impact(HideBeforeFile)'!$D$61:$S$61,0)) -> 9.308655499 | H78: =INDEX('For Bill Impact(HideBeforeFile)'!$D$20:$S$29,MATCH(C70,'For Bill Impact(HideBeforeFile)'!$C$62:$C$71,0),MATCH($O78,'For Bill Impact(HideBeforeFile)'!$D$61:$S$61,0)) -> 0 | J78: 0 | O78: ='For Bill Impact(HideBeforeFile)'!$Q$5 -> Dist. Vol. Rate Tier 2
C79: =INDEX('For Bill Impact(HideBeforeFile)'!$D$48:$S$57,MATCH(C70,'For Bill Impact(HideBeforeFile)'!$C$62:$C$71,0),MATCH($O79,'For Bill Impact(HideBeforeFile)'!$D$61:$S$61,0)) ->  | D79: =INDEX('For Bill Impact(HideBeforeFile)'!$D$62:$S$71,MATCH(C70,'For Bill Impact(HideBeforeFile)'!$C$62:$C$71,0),MATCH($O79,'For Bill Impact(HideBeforeFile)'!$D$61:$S$61,0)) ->  | F79: =INDEX('For Bill Impact(HideBeforeFile)'!$D$6:$S$15,MATCH(C70,'For Bill Impact(HideBeforeFile)'!$C$62:$C$71,0),MATCH($O79,'For Bill Impact(HideBeforeFile)'!$D$61:$S$61,0)) ->  | H79: =INDEX('For Bill Impact(HideBeforeFile)'!$D$20:$S$29,MATCH(C70,'For Bill Impact(HideBeforeFile)'!$C$62:$C$71,0),MATCH($O79,'For Bill Impact(HideBeforeFile)'!$D$61:$S$61,0)) ->  | J79: =INDEX('For Bill Impact(HideBeforeFile)'!$D$34:$S$43,MATCH(C70,'For Bill Impact(HideBeforeFile)'!$C$62:$C$71,0),MATCH($O79,'For Bill Impact(HideBeforeFile)'!$D$61:$S$61,0)) ->  | O79: ='For Bill Impact(HideBeforeFile)'!$R$5 -> Dist. Vol. Rate Tier 3
C80: =INDEX('For Bill Impact(HideBeforeFile)'!$D$48:$S$57,MATCH(C70,'For Bill Impact(HideBeforeFile)'!$C$62:$C$71,0),MATCH($O80,'For Bill Impact(HideBeforeFile)'!$D$61:$S$61,0)) ->  | D80: =INDEX('For Bill Impact(HideBeforeFile)'!$D$62:$S$71,MATCH(C70,'For Bill Impact(HideBeforeFile)'!$C$62:$C$71,0),MATCH($O80,'For Bill Impact(HideBeforeFile)'!$D$61:$S$61,0)) ->  | F80: =INDEX('For Bill Impact(HideBeforeFile)'!$D$6:$S$15,MATCH(C70,'For Bill Impact(HideBeforeFile)'!$C$62:$C$71,0),MATCH($O80,'For Bill Impact(HideBeforeFile)'!$D$61:$S$61,0)) ->  | H80: =INDEX('For Bill Impact(HideBeforeFile)'!$D$20:$S$29,MATCH(C70,'For Bill Impact(HideBeforeFile)'!$C$62:$C$71,0),MATCH($O80,'For Bill Impact(HideBeforeFile)'!$D$61:$S$61,0)) ->  | J80: =INDEX('For Bill Impact(HideBeforeFile)'!$D$34:$S$43,MATCH(C70,'For Bill Impact(HideBeforeFile)'!$C$62:$C$71,0),MATCH($O80,'For Bill Impact(HideBeforeFile)'!$D$61:$S$61,0)) ->  | O80: ='For Bill Impact(HideBeforeFile)'!$S$5 -> Dist. Capacity Rate
C81: =INDEX('For Bill Impact(HideBeforeFile)'!$D$48:$S$57,MATCH(C70,'For Bill Impact(HideBeforeFile)'!$C$62:$C$71,0),MATCH($O81,'For Bill Impact(HideBeforeFile)'!$D$61:$S$61,0)) -> Transportation | D81: =INDEX('For Bill Impact(HideBeforeFile)'!$D$62:$S$71,MATCH(C70,'For Bill Impact(HideBeforeFile)'!$C$62:$C$71,0),MATCH($O81,'For Bill Impact(HideBeforeFile)'!$D$61:$S$61,0)) -> cents / m3 | F81: =INDEX('For Bill Impact(HideBeforeFile)'!$D$6:$S$15,MATCH(C70,'For Bill Impact(HideBeforeFile)'!$C$62:$C$71,0),MATCH($O81,'For Bill Impact(HideBeforeFile)'!$D$61:$S$61,0)) -> 2.4159 | H81: =INDEX('For Bill Impact(HideBeforeFile)'!$D$20:$S$29,MATCH(C70,'For Bill Impact(HideBeforeFile)'!$C$62:$C$71,0),MATCH($O81,'For Bill Impact(HideBeforeFile)'!$D$61:$S$61,0)) -> 2.761870971 | J81: =$J$74 -> 608.4504598 | O81: ='For Bill Impact(HideBeforeFile)'!$E$5 -> Transp/System Gas
C83: =INDEX('For Bill Impact(HideBeforeFile)'!$D$48:$S$57,MATCH(C70,'For Bill Impact(HideBeforeFile)'!$C$62:$C$71,0),MATCH($O83,'For Bill Impact(HideBeforeFile)'!$D$61:$S$61,0)) -> REDA | D83: =INDEX('For Bill Impact(HideBeforeFile)'!$D$62:$S$71,MATCH(C70,'For Bill Impact(HideBeforeFile)'!$C$62:$C$71,0),MATCH($O83,'For Bill Impact(HideBeforeFile)'!$D$61:$S$61,0)) -> $ / month | F83: =INDEX('For Bill Impact(HideBeforeFile)'!$D$6:$S$15,MATCH(C70,'For Bill Impact(HideBeforeFile)'!$C$62:$C$71,0),MATCH($O83,'For Bill Impact(HideBeforeFile)'!$D$61:$S$61,0)) -> 0.02 | H83: =INDEX('For Bill Impact(HideBeforeFile)'!$D$20:$S$29,MATCH(C70,'For Bill Impact(HideBeforeFile)'!$C$62:$C$71,0),MATCH($O83,'For Bill Impact(HideBeforeFile)'!$D$61:$S$61,0)) -> 0 | J83: =INDEX('For Bill Impact(HideBeforeFile)'!$D$34:$S$43,MATCH(C70,'For Bill Impact(HideBeforeFile)'!$C$62:$C$71,0),MATCH($O83,'For Bill Impact(HideBeforeFile)'!$D$61:$S$61,0)) -> 12 | O83: =O23 -> REDA
C84: =INDEX('For Bill Impact(HideBeforeFile)'!$D$48:$S$57,MATCH(C70,'For Bill Impact(HideBeforeFile)'!$C$62:$C$71,0),MATCH($O84,'For Bill Impact(HideBeforeFile)'!$D$61:$S$61,0)) -> PGTVA | D84: =INDEX('For Bill Impact(HideBeforeFile)'!$D$62:$S$71,MATCH(C70,'For Bill Impact(HideBeforeFile)'!$C$62:$C$71,0),MATCH($O84,'For Bill Impact(HideBeforeFile)'!$D$61:$S$61,0)) -> cents / m3 | F84: =INDEX('For Bill Impact(HideBeforeFile)'!$D$6:$S$15,MATCH(C70,'For Bill Impact(HideBeforeFile)'!$C$62:$C$71,0),MATCH($O84,'For Bill Impact(HideBeforeFile)'!$D$61:$S$61,0)) -> 0.7981 | H84: =INDEX('For Bill Impact(HideBeforeFile)'!$D$20:$S$29,MATCH(C70,'For Bill Impact(HideBeforeFile)'!$C$62:$C$71,0),MATCH($O84,'For Bill Impact(HideBeforeFile)'!$D$61:$S$61,0)) -> 0.6290804449 | J84: =$J$74 -> 608.4504598 | O84: =O24 -> PGTVA
C85: =INDEX('For Bill Impact(HideBeforeFile)'!$D$48:$S$57,MATCH(C70,'For Bill Impact(HideBeforeFile)'!$C$62:$C$71,0),MATCH($O85,'For Bill Impact(HideBeforeFile)'!$D$61:$S$61,0)) -> ADVADA | D85: =INDEX('For Bill Impact(HideBeforeFile)'!$D$62:$S$71,MATCH(C70,'For Bill Impact(HideBeforeFile)'!$C$62:$C$71,0),MATCH($O85,'For Bill Impact(HideBeforeFile)'!$D$61:$S$61,0)) -> cents / m3 | F85: =INDEX('For Bill Impact(HideBeforeFile)'!$D$6:$S$15,MATCH(C70,'For Bill Impact(HideBeforeFile)'!$C$62:$C$71,0),MATCH($O85,'For Bill Impact(HideBeforeFile)'!$D$61:$S$61,0)) -> -0.029 | H85: =INDEX('For Bill Impact(HideBeforeFile)'!$D$20:$S$29,MATCH(C70,'For Bill Impact(HideBeforeFile)'!$C$62:$C$71,0),MATCH($O85,'For Bill Impact(HideBeforeFile)'!$D$61:$S$61,0)) -> 0 | J85: =$J$74 -> 608.4504598 | O85: =O25 -> ADVADA
C86: =INDEX('For Bill Impact(HideBeforeFile)'!$D$48:$S$57,MATCH(C70,'For Bill Impact(HideBeforeFile)'!$C$62:$C$71,0),MATCH($O86,'For Bill Impact(HideBeforeFile)'!$D$61:$S$61,0)) -> LDMDA | D86: =INDEX('For Bill Impact(HideBeforeFile)'!$D$62:$S$71,MATCH(C70,'For Bill Impact(HideBeforeFile)'!$C$62:$C$71,0),MATCH($O86,'For Bill Impact(HideBeforeFile)'!$D$61:$S$61,0)) -> $ / month | F86: =INDEX('For Bill Impact(HideBeforeFile)'!$D$6:$S$15,MATCH(C70,'For Bill Impact(HideBeforeFile)'!$C$62:$C$71,0),MATCH($O86,'For Bill Impact(HideBeforeFile)'!$D$61:$S$61,0)) -> 0 | H86: =INDEX('For Bill Impact(HideBeforeFile)'!$D$20:$S$29,MATCH(C70,'For Bill Impact(HideBeforeFile)'!$C$62:$C$71,0),MATCH($O86,'For Bill Impact(HideBeforeFile)'!$D$61:$S$61,0)) -> 0 | J86: =INDEX('For Bill Impact(HideBeforeFile)'!$D$34:$S$43,MATCH(C70,'For Bill Impact(HideBeforeFile)'!$C$62:$C$71,0),MATCH($O86,'For Bill Impact(HideBeforeFile)'!$D$61:$S$61,0)) -> 12 | O86: =O26 -> LDMDA
C87: =INDEX('For Bill Impact(HideBeforeFile)'!$D$48:$S$57,MATCH(C70,'For Bill Impact(HideBeforeFile)'!$C$62:$C$71,0),MATCH($O87,'For Bill Impact(HideBeforeFile)'!$D$61:$S$61,0)) -> UFGVA | D87: =INDEX('For Bill Impact(HideBeforeFile)'!$D$62:$S$71,MATCH(C70,'For Bill Impact(HideBeforeFile)'!$C$62:$C$71,0),MATCH($O87,'For Bill Impact(HideBeforeFile)'!$D$61:$S$61,0)) -> cents / m3 | F87: =INDEX('For Bill Impact(HideBeforeFile)'!$D$6:$S$15,MATCH(C70,'For Bill Impact(HideBeforeFile)'!$C$62:$C$71,0),MATCH($O87,'For Bill Impact(HideBeforeFile)'!$D$61:$S$61,0)) -> 0 | H87: =INDEX('For Bill Impact(HideBeforeFile)'!$D$20:$S$29,MATCH(C70,'For Bill Impact(HideBeforeFile)'!$C$62:$C$71,0),MATCH($O87,'For Bill Impact(HideBeforeFile)'!$D$61:$S$61,0)) -> 1.316518199 | J87: =$J$74 -> 608.4504598 | O87: =O27 -> UFGVA
C88: =INDEX('For Bill Impact(HideBeforeFile)'!$D$48:$S$57,MATCH(C70,'For Bill Impact(HideBeforeFile)'!$C$62:$C$71,0),MATCH($O88,'For Bill Impact(HideBeforeFile)'!$D$61:$S$61,0)) -> FCCVA | D88: =INDEX('For Bill Impact(HideBeforeFile)'!$D$62:$S$71,MATCH(C70,'For Bill Impact(HideBeforeFile)'!$C$62:$C$71,0),MATCH($O88,'For Bill Impact(HideBeforeFile)'!$D$61:$S$61,0)) -> $ / month | F88: =INDEX('For Bill Impact(HideBeforeFile)'!$D$6:$S$15,MATCH(C70,'For Bill Impact(HideBeforeFile)'!$C$62:$C$71,0),MATCH($O88,'For Bill Impact(HideBeforeFile)'!$D$61:$S$61,0)) -> 0 | H88: =INDEX('For Bill Impact(HideBeforeFile)'!$D$20:$S$29,MATCH(C70,'For Bill Impact(HideBeforeFile)'!$C$62:$C$71,0),MATCH($O88,'For Bill Impact(HideBeforeFile)'!$D$61:$S$61,0)) -> 0 | J88: =INDEX('For Bill Impact(HideBeforeFile)'!$D$34:$S$43,MATCH(C70,'For Bill Impact(HideBeforeFile)'!$C$62:$C$71,0),MATCH($O88,'For Bill Impact(HideBeforeFile)'!$D$61:$S$61,0)) -> 12 | O88: FCCVA
C89: =INDEX('For Bill Impact(HideBeforeFile)'!$D$48:$S$57,MATCH(C70,'For Bill Impact(HideBeforeFile)'!$C$62:$C$71,0),MATCH($O89,'For Bill Impact(HideBeforeFile)'!$D$61:$S$61,0)) -> GGEADA | D89: =INDEX('For Bill Impact(HideBeforeFile)'!$D$62:$S$71,MATCH(C70,'For Bill Impact(HideBeforeFile)'!$C$62:$C$71,0),MATCH($O89,'For Bill Impact(HideBeforeFile)'!$D$61:$S$61,0)) -> $ / month | F89: =INDEX('For Bill Impact(HideBeforeFile)'!$D$6:$S$15,MATCH(C70,'For Bill Impact(HideBeforeFile)'!$C$62:$C$71,0),MATCH($O89,'For Bill Impact(HideBeforeFile)'!$D$61:$S$61,0)) -> 0 | H89: =INDEX('For Bill Impact(HideBeforeFile)'!$D$20:$S$29,MATCH(C70,'For Bill Impact(HideBeforeFile)'!$C$62:$C$71,0),MATCH($O89,'For Bill Impact(HideBeforeFile)'!$D$61:$S$61,0)) -> 0 | J89: =INDEX('For Bill Impact(HideBeforeFile)'!$D$34:$S$43,MATCH(C70,'For Bill Impact(HideBeforeFile)'!$C$62:$C$71,0),MATCH($O89,'For Bill Impact(HideBeforeFile)'!$D$61:$S$61,0)) -> 12 | O89: GGEADA
C91: =INDEX('For Bill Impact(HideBeforeFile)'!$D$48:$S$57,MATCH(C70,'For Bill Impact(HideBeforeFile)'!$C$62:$C$71,0),MATCH($O91,'For Bill Impact(HideBeforeFile)'!$D$61:$S$61,0)) -> Federal Carbon | D91: =INDEX('For Bill Impact(HideBeforeFile)'!$D$62:$S$71,MATCH(C70,'For Bill Impact(HideBeforeFile)'!$C$62:$C$71,0),MATCH($O91,'For Bill Impact(HideBeforeFile)'!$D$61:$S$61,0)) -> cents / m3 | F91: =INDEX('For Bill Impact(HideBeforeFile)'!$D$6:$S$15,MATCH(C70,'For Bill Impact(HideBeforeFile)'!$C$62:$C$71,0),MATCH($O91,'For Bill Impact(HideBeforeFile)'!$D$61:$S$61,0)) -> 15.25 | H91: =INDEX('For Bill Impact(HideBeforeFile)'!$D$20:$S$29,MATCH(C70,'For Bill Impact(HideBeforeFile)'!$C$62:$C$71,0),MATCH($O91,'For Bill Impact(HideBeforeFile)'!$D$61:$S$61,0)) -> 15.25 | J91: =$J$74 -> 608.4504598 | O91: ='For Bill Impact(HideBeforeFile)'!$M$5 -> Federal Carbon
C92: =INDEX('For Bill Impact(HideBeforeFile)'!$D$48:$S$57,MATCH(C70,'For Bill Impact(HideBeforeFile)'!$C$62:$C$71,0),MATCH($O92,'For Bill Impact(HideBeforeFile)'!$D$61:$S$61,0)) -> Facility Carbon | D92: =INDEX('For Bill Impact(HideBeforeFile)'!$D$62:$S$71,MATCH(C70,'For Bill Impact(HideBeforeFile)'!$C$62:$C$71,0),MATCH($O92,'For Bill Impact(HideBeforeFile)'!$D$61:$S$61,0)) -> cents / m3 | F92: =INDEX('For Bill Impact(HideBeforeFile)'!$D$6:$S$15,MATCH(C70,'For Bill Impact(HideBeforeFile)'!$C$62:$C$71,0),MATCH($O92,'For Bill Impact(HideBeforeFile)'!$D$61:$S$61,0)) -> 0.0037 | H92: =INDEX('For Bill Impact(HideBeforeFile)'!$D$20:$S$29,MATCH(C70,'For Bill Impact(HideBeforeFile)'!$C$62:$C$71,0),MATCH($O92,'For Bill Impact(HideBeforeFile)'!$D$61:$S$61,0)) -> 0.0037 | J92: =$J$74 -> 608.4504598 | O92: ='For Bill Impact(HideBeforeFile)'!$N$5 -> Facility Carbon
C95: Commodity | F95: Current | H95: Proposed | J95: Change $ | L95: Change %
F96: =F74*$J74/100 -> 89.03820648 | H96: =H74*$J74/100 -> 91.79692087 | J96: =H96-F96 -> 2.758714385 | L96: =IFERROR(J96/F96,"") -> 0.03098349005
C98: Delivery | F98: Current Rate | H98: Proposed Rate | J98: Change $ | L98: Change %
C99: =IF(C76<>"",C76,"") -> Customer (excl. Bill 32) | F99: =F76*$J76 -> 246 | H99: =H76*$J76 -> 288 | J99: =IFERROR(H99-F99,"") -> 42 | L99: =IFERROR(J99/F99,"") -> 0.1707317073
C100: Bill 32 | F100: 12 | H100: 12 | J100: =IFERROR(H100-F100,"") -> 0 | L100: =IFERROR(J100/F100,"") -> 0
C101: =IF(C77<>"",C77,"") -> Block 1 (First 1,000 m3 per month) | F101: =IFERROR(F77*$J77/100,"") -> 73.99771389 | H101: =IFERROR(H77*$J77/100,"") -> 66.52194759 | J101: =IFERROR(H101-F101,"") -> -7.475766306 | L101: =IFERROR(J101/F101,"") -> -0.1010269901
C102: =IF(C78<>"",C78,"") -> Block 2 (Over 1,000 m3 per month) | F102: =IFERROR(F78*$J78/100,"") -> 0 | H102: =IFERROR(H78*$J78/100,"") -> 0 | J102: 0
C103: =IF(C79<>"",C79,"") ->  | F103: =IFERROR(F79*$J79/100,"") ->  | H103: =IFERROR(H79*$J79/100,"") -> 
C104: =IF(C80<>"",C80,"") ->  | F104: =IFERROR(F80*$J80/100,"") ->  | H104: =IFERROR(H80*$J80/100,"") -> 
C105: =IF(C81<>"",C81,"") -> Transportation | F105: =IFERROR(F81*$J81/100,"") -> 14.69955466 | H105: =IFERROR(H81*$J81/100,"") -> 16.80461662 | J105: 2.105061962 | L105: 0.1432058325
C106: Total Delivery | F106: =SUM(F99:F105) -> 346.6972685 | H106: =SUM(H99:H105) -> 383.3265642 | J106: =H106-F106 -> 36.62929566 | L106: =IF(ISERROR(J106/F106),0,J106/F106) -> 0.1056521034
C108: Rate Riders
C110: Rate Riders | F110: Current Rate | H110: Proposed Rate | J110: Change $ | L110: Change %
C111: =C83 -> REDA | F111: =F83*$J83 -> 0.24 | H111: =H83*$J83 -> 0 | J111: =IFERROR(H111-F111,"") -> -0.24 | L111: =IFERROR(J111/F111,"") -> -1
C112: =C84 -> PGTVA | F112: =IFERROR(F84*$J84/100,"") -> 4.856043119 | H112: =IFERROR(H84*$J84/100,"") -> 3.827642859 | J112: =IFERROR(H112-F112,"") -> -1.02840026 | L112: =IFERROR(J112/F112,"") -> -0.2117774152
C113: =C85 -> ADVADA | F113: =IFERROR(F85*$J85/100,"") -> -0.1764506333 | H113: =IFERROR(H85*$J85/100,"") -> 0 | J113: 0.1764506333 | L113: -1
C114: =C86 -> LDMDA | F114: =F86*$J86 -> 0 | H114: =H86*$J86 -> 0 | J114: 0
C115: =C87 -> UFGVA | F115: =IFERROR(F87*$J87/100,"") -> 0 | H115: =IFERROR(H87*$J87/100,"") -> 8.010361032 | J115: 8.010361032
C116: =C88 -> FCCVA | F116: =F88*$J88 -> 0 | H116: =H88*$J88 -> 0 | J116: 0
C117: GGEADA | F117: 0 | H117: 0 | J117: 0
C118: Total Rate Riders | F118: =SUM(F111:F117) -> 4.919592486 | H118: =SUM(H111:H117) -> 11.83800389 | J118: =SUM(J111:J115) -> 6.918411405 | L118: =IF(ISERROR(J118/F118),0,J118/F118) -> 1.406297661
C120: Carbon Tax
C121: Federal Carbon | F121: =F91*$J91/100 -> 92.78869511 | H121: =H91*$J91/100 -> 92.78869511 | J121: =IFERROR(H121-F121,"") -> 0 | L121: =IFERROR(J121/F121,"") -> 0
C122: Facility Carbon | F122: =F92*$J92/100 -> 0.02251266701 | H122: =H92*$J92/100 -> 0.02251266701 | J122: =IFERROR(H122-F122,"") -> 0 | L122: 0
C123: Total Carbon Tax | F123: =SUM(F121:F122) -> 92.81120778 | H123: =SUM(H121:H122) -> 92.81120778 | J123: =SUM(J121:J122) -> 0 | L123: =IF(ISERROR(J123/F123),0,J123/F123) -> 0
C125: Total Bill Impact | F125: =SUM(F96,F106,F118,F123) -> 533.4662753 | H125: =SUM(H96,H106,H118,H123) -> 579.7726967 | J125: =SUM(J96,J106,J118,J123) -> 46.30642145 | L125: =IFERROR(J125/F125,"") -> 0.08680290318
C128: =MID(CELL("filename",A61),FIND("]",CELL("filename",A61))+1,255) -> G1.1 R1-R Bill Impact

Sheet G1.1 R1-GS Bill Impact
C1: ='E1.1 Proposed Dist Rates '!C2 -> EPCOR Natural Gas Limited Partnership
C2: ='E1.1 Proposed Dist Rates '!C2 -> EPCOR Natural Gas Limited Partnership
B3: ='G1.1 R1-GS Bill Impact'!F103 -> 597.3779709 | C3: ='E1.1 Proposed Dist Rates '!C3 -> EB-2024-0130
C7: Rate 1 - General Service Bill Impacts
C10: =C72 -> R1 - Commercial | O10: Look-up
C11: R1- General Service | F11: Current | H11: Proposed | J11: Bill Determinant (Current) | L11: Bill Determinant (Proposed
C14: =INDEX('For Bill Impact(HideBeforeFile)'!$D$48:$S$57,MATCH(C10,'For Bill Impact(HideBeforeFile)'!$C$62:$C$71,0),MATCH($O14,'For Bill Impact(HideBeforeFile)'!$D$61:$S$61,0)) -> Commodity | D14: =INDEX('For Bill Impact(HideBeforeFile)'!$D$62:$S$71,MATCH(C10,'For Bill Impact(HideBeforeFile)'!$C$62:$C$71,0),MATCH($O14,'For Bill Impact(HideBeforeFile)'!$D$61:$S$61,0)) -> cents / m3 | F14: =INDEX('For Bill Impact(HideBeforeFile)'!$D$6:$S$15,MATCH(C10,'For Bill Impact(HideBeforeFile)'!$C$62:$C$71,0),MATCH($O14,'For Bill Impact(HideBeforeFile)'!$D$61:$S$61,0)) -> 14.6336 | H14: =INDEX('For Bill Impact(HideBeforeFile)'!$D$20:$S$29,MATCH(C10,'For Bill Impact(HideBeforeFile)'!$C$62:$C$71,0),MATCH($O14,'For Bill Impact(HideBeforeFile)'!$D$61:$S$61,0)) -> 15.087 | L14: ='H1.1_IRM'!B16+'H1.1_IRM'!B17 -> 13234.33877 | O14: ='For Bill Impact(HideBeforeFile)'!$D$5 -> Commodity
C16: =INDEX('For Bill Impact(HideBeforeFile)'!$D$48:$S$57,MATCH(C10,'For Bill Impact(HideBeforeFile)'!$C$62:$C$71,0),MATCH($O16,'For Bill Impact(HideBeforeFile)'!$D$61:$S$61,0)) -> Customer (excl. Bill 32) | D16: =INDEX('For Bill Impact(HideBeforeFile)'!$D$62:$S$71,MATCH(C10,'For Bill Impact(HideBeforeFile)'!$C$62:$C$71,0),MATCH($O16,'For Bill Impact(HideBeforeFile)'!$D$61:$S$61,0)) -> $ / month | F16: =INDEX('For Bill Impact(HideBeforeFile)'!$D$6:$S$15,MATCH(C10,'For Bill Impact(HideBeforeFile)'!$C$62:$C$71,0),MATCH($O16,'For Bill Impact(HideBeforeFile)'!$D$61:$S$61,0)) -> 20.5 | H16: =INDEX('For Bill Impact(HideBeforeFile)'!$D$20:$S$29,MATCH(C10,'For Bill Impact(HideBeforeFile)'!$C$62:$C$71,0),MATCH($O16,'For Bill Impact(HideBeforeFile)'!$D$61:$S$61,0)) -> 23.5 | L16: =INDEX('For Bill Impact(HideBeforeFile)'!$D$34:$S$43,MATCH(C10,'For Bill Impact(HideBeforeFile)'!$C$62:$C$71,0),MATCH($O16,'For Bill Impact(HideBeforeFile)'!$D$61:$S$61,0)) -> 12 | O16: ='For Bill Impact(HideBeforeFile)'!$O$5 -> Dist. Customer Rate
C17: Block 1 (First 1,000 m3 per month) | D17: =INDEX('For Bill Impact(HideBeforeFile)'!$D$62:$S$71,MATCH(C10,'For Bill Impact(HideBeforeFile)'!$C$62:$C$71,0),MATCH($O17,'For Bill Impact(HideBeforeFile)'!$D$61:$S$61,0)) -> cents / m3 | F17: =INDEX('For Bill Impact(HideBeforeFile)'!$D$6:$S$15,MATCH(C10,'For Bill Impact(HideBeforeFile)'!$C$62:$C$71,0),MATCH($O17,'For Bill Impact(HideBeforeFile)'!$D$61:$S$61,0)) -> 12.1616662 | H17: =INDEX('For Bill Impact(HideBeforeFile)'!$D$20:$S$29,MATCH(C10,'For Bill Impact(HideBeforeFile)'!$C$62:$C$71,0),MATCH($O17,'For Bill Impact(HideBeforeFile)'!$D$61:$S$61,0)) -> 12.05816496 | J17: =('B1.2 Billing Determinants'!E17+'B1.2 Billing Determinants'!E18)/('B1.2 Billing Determinants'!D17+'B1.2 Billing Determinants'!D18) -> 5300.009903 | L17: ='H1.1_IRM'!B16 -> 5300.009903 | O17: ='For Bill Impact(HideBeforeFile)'!$P$5 -> Dist. Vol. Rate Tier 1
C18: Block 2 (Over 1,000 m3 per month) | D18: =INDEX('For Bill Impact(HideBeforeFile)'!$D$62:$S$71,MATCH(C10,'For Bill Impact(HideBeforeFile)'!$C$62:$C$71,0),MATCH($O18,'For Bill Impact(HideBeforeFile)'!$D$61:$S$61,0)) -> cents / m3 | F18: =INDEX('For Bill Impact(HideBeforeFile)'!$D$6:$S$15,MATCH(C10,'For Bill Impact(HideBeforeFile)'!$C$62:$C$71,0),MATCH($O18,'For Bill Impact(HideBeforeFile)'!$D$61:$S$61,0)) -> 9.308655499 | H18: =INDEX('For Bill Impact(HideBeforeFile)'!$D$20:$S$29,MATCH(C10,'For Bill Impact(HideBeforeFile)'!$C$62:$C$71,0),MATCH($O18,'For Bill Impact(HideBeforeFile)'!$D$61:$S$61,0)) -> 9.627606754 | J18: =('B1.2 Billing Determinants'!F17+'B1.2 Billing Determinants'!F18)/('B1.2 Billing Determinants'!D17+'B1.2 Billing Determinants'!D18) -> 7934.328868 | L18: ='H1.1_IRM'!B17 -> 7934.328868 | O18: ='For Bill Impact(HideBeforeFile)'!$Q$5 -> Dist. Vol. Rate Tier 2
C19: =INDEX('For Bill Impact(HideBeforeFile)'!$D$48:$S$57,MATCH(C10,'For Bill Impact(HideBeforeFile)'!$C$62:$C$71,0),MATCH($O19,'For Bill Impact(HideBeforeFile)'!$D$61:$S$61,0)) ->  | D19: =INDEX('For Bill Impact(HideBeforeFile)'!$D$62:$S$71,MATCH(C10,'For Bill Impact(HideBeforeFile)'!$C$62:$C$71,0),MATCH($O19,'For Bill Impact(HideBeforeFile)'!$D$61:$S$61,0)) ->  | F19: =INDEX('For Bill Impact(HideBeforeFile)'!$D$6:$S$15,MATCH(C10,'For Bill Impact(HideBeforeFile)'!$C$62:$C$71,0),MATCH($O19,'For Bill Impact(HideBeforeFile)'!$D$61:$S$61,0)) ->  | H19: =INDEX('For Bill Impact(HideBeforeFile)'!$D$20:$S$29,MATCH(C10,'For Bill Impact(HideBeforeFile)'!$C$62:$C$71,0),MATCH($O19,'For Bill Impact(HideBeforeFile)'!$D$61:$S$61,0)) ->  | J19: =L19 -> Current | L19: ='H1.1_IRM'!B18 -> Current | O19: ='For Bill Impact(HideBeforeFile)'!$R$5 -> Dist. Vol. Rate Tier 3
C20: =INDEX('For Bill Impact(HideBeforeFile)'!$D$48:$S$57,MATCH(C10,'For Bill Impact(HideBeforeFile)'!$C$62:$C$71,0),MATCH($O20,'For Bill Impact(HideBeforeFile)'!$D$61:$S$61,0)) ->  | D20: =INDEX('For Bill Impact(HideBeforeFile)'!$D$62:$S$71,MATCH(C10,'For Bill Impact(HideBeforeFile)'!$C$62:$C$71,0),MATCH($O20,'For Bill Impact(HideBeforeFile)'!$D$61:$S$61,0)) ->  | F20: =INDEX('For Bill Impact(HideBeforeFile)'!$D$6:$S$15,MATCH(C10,'For Bill Impact(HideBeforeFile)'!$C$62:$C$71,0),MATCH($O20,'For Bill Impact(HideBeforeFile)'!$D$61:$S$61,0)) ->  | H20: =INDEX('For Bill Impact(HideBeforeFile)'!$D$20:$S$29,MATCH(C10,'For Bill Impact(HideBeforeFile)'!$C$62:$C$71,0),MATCH($O20,'For Bill Impact(HideBeforeFile)'!$D$61:$S$61,0)) ->  | J20: 246 | L20: ='H1.1_IRM'!B19 -> 246 | O20: ='For Bill Impact(HideBeforeFile)'!$S$5 -> Dist. Capacity Rate
C21: =INDEX('For Bill Impact(HideBeforeFile)'!$D$48:$S$57,MATCH(C10,'For Bill Impact(HideBeforeFile)'!$C$62:$C$71,0),MATCH($O21,'For Bill Impact(HideBeforeFile)'!$D$61:$S$61,0)) -> Transportation | D21: =INDEX('For Bill Impact(HideBeforeFile)'!$D$62:$S$71,MATCH(C10,'For Bill Impact(HideBeforeFile)'!$C$62:$C$71,0),MATCH($O21,'For Bill Impact(HideBeforeFile)'!$D$61:$S$61,0)) -> cents / m3 | F21: =INDEX('For Bill Impact(HideBeforeFile)'!$D$6:$S$15,MATCH(C10,'For Bill Impact(HideBeforeFile)'!$C$62:$C$71,0),MATCH($O21,'For Bill Impact(HideBeforeFile)'!$D$61:$S$61,0)) -> 2.4159 | H21: =INDEX('For Bill Impact(HideBeforeFile)'!$D$20:$S$29,MATCH(C10,'For Bill Impact(HideBeforeFile)'!$C$62:$C$71,0),MATCH($O21,'For Bill Impact(HideBeforeFile)'!$D$61:$S$61,0)) -> 2.761870971 | L21: =INDEX('For Bill Impact(HideBeforeFile)'!$D$34:$S$43,MATCH(C10,'For Bill Impact(HideBeforeFile)'!$C$62:$C$71,0),MATCH($O21,'For Bill Impact(HideBeforeFile)'!$D$61:$S$61,0)) -> 10498.08231 | O21: ='For Bill Impact(HideBeforeFile)'!$E$5 -> Transp/System Gas
C23: =INDEX('For Bill Impact(HideBeforeFile)'!$D$48:$S$57,MATCH(C10,'For Bill Impact(HideBeforeFile)'!$C$62:$C$71,0),MATCH($O23,'For Bill Impact(HideBeforeFile)'!$D$61:$S$61,0)) -> REDA | D23: =INDEX('For Bill Impact(HideBeforeFile)'!$D$62:$S$71,MATCH(C10,'For Bill Impact(HideBeforeFile)'!$C$62:$C$71,0),MATCH($O23,'For Bill Impact(HideBeforeFile)'!$D$61:$S$61,0)) -> $ / month | F23: =INDEX('For Bill Impact(HideBeforeFile)'!$D$6:$S$15,MATCH(C10,'For Bill Impact(HideBeforeFile)'!$C$62:$C$71,0),MATCH($O23,'For Bill Impact(HideBeforeFile)'!$D$61:$S$61,0)) -> 0.02 | H23: =INDEX('For Bill Impact(HideBeforeFile)'!$D$20:$S$29,MATCH(C10,'For Bill Impact(HideBeforeFile)'!$C$62:$C$71,0),MATCH($O23,'For Bill Impact(HideBeforeFile)'!$D$61:$S$61,0)) -> 0 | L23: =INDEX('For Bill Impact(HideBeforeFile)'!$D$34:$S$43,MATCH(C10,'For Bill Impact(HideBeforeFile)'!$C$62:$C$71,0),MATCH($O23,'For Bill Impact(HideBeforeFile)'!$D$61:$S$61,0)) -> 12 | O23: ='For Bill Impact(HideBeforeFile)'!$F$5 -> REDA
C24: =INDEX('For Bill Impact(HideBeforeFile)'!$D$48:$S$57,MATCH(C10,'For Bill Impact(HideBeforeFile)'!$C$62:$C$71,0),MATCH($O24,'For Bill Impact(HideBeforeFile)'!$D$61:$S$61,0)) -> PGTVA | D24: =INDEX('For Bill Impact(HideBeforeFile)'!$D$62:$S$71,MATCH(C10,'For Bill Impact(HideBeforeFile)'!$C$62:$C$71,0),MATCH($O24,'For Bill Impact(HideBeforeFile)'!$D$61:$S$61,0)) -> cents / m3 | F24: =INDEX('For Bill Impact(HideBeforeFile)'!$D$6:$S$15,MATCH(C10,'For Bill Impact(HideBeforeFile)'!$C$62:$C$71,0),MATCH($O24,'For Bill Impact(HideBeforeFile)'!$D$61:$S$61,0)) -> 0.7981 | H24: =INDEX('For Bill Impact(HideBeforeFile)'!$D$20:$S$29,MATCH(C10,'For Bill Impact(HideBeforeFile)'!$C$62:$C$71,0),MATCH($O24,'For Bill Impact(HideBeforeFile)'!$D$61:$S$61,0)) -> 0.6290804449 | L24: =INDEX('For Bill Impact(HideBeforeFile)'!$D$34:$S$43,MATCH(C10,'For Bill Impact(HideBeforeFile)'!$C$62:$C$71,0),MATCH($O24,'For Bill Impact(HideBeforeFile)'!$D$61:$S$61,0)) -> 10498.08231 | O24: ='For Bill Impact(HideBeforeFile)'!$G$5 -> PGTVA
C25: =INDEX('For Bill Impact(HideBeforeFile)'!$D$48:$S$57,MATCH(C10,'For Bill Impact(HideBeforeFile)'!$C$62:$C$71,0),MATCH($O25,'For Bill Impact(HideBeforeFile)'!$D$61:$S$61,0)) -> ADVADA | D25: =INDEX('For Bill Impact(HideBeforeFile)'!$D$62:$S$71,MATCH(C10,'For Bill Impact(HideBeforeFile)'!$C$62:$C$71,0),MATCH($O25,'For Bill Impact(HideBeforeFile)'!$D$61:$S$61,0)) -> cents / m3 | F25: =INDEX('For Bill Impact(HideBeforeFile)'!$D$6:$S$15,MATCH(C10,'For Bill Impact(HideBeforeFile)'!$C$62:$C$71,0),MATCH($O25,'For Bill Impact(HideBeforeFile)'!$D$61:$S$61,0)) -> -0.029 | H25: =INDEX('For Bill Impact(HideBeforeFile)'!$D$20:$S$29,MATCH(C10,'For Bill Impact(HideBeforeFile)'!$C$62:$C$71,0),MATCH($O25,'For Bill Impact(HideBeforeFile)'!$D$61:$S$61,0)) -> 0 | L25: =INDEX('For Bill Impact(HideBeforeFile)'!$D$34:$S$43,MATCH(C10,'For Bill Impact(HideBeforeFile)'!$C$62:$C$71,0),MATCH($O25,'For Bill Impact(HideBeforeFile)'!$D$61:$S$61,0)) -> 10498.08231 | O25: ='For Bill Impact(HideBeforeFile)'!$H$5 -> ADVADA
C26: =INDEX('For Bill Impact(HideBeforeFile)'!$D$48:$S$57,MATCH(C10,'For Bill Impact(HideBeforeFile)'!$C$62:$C$71,0),MATCH($O26,'For Bill Impact(HideBeforeFile)'!$D$61:$S$61,0)) -> LDMDA | D26: =INDEX('For Bill Impact(HideBeforeFile)'!$D$62:$S$71,MATCH(C10,'For Bill Impact(HideBeforeFile)'!$C$62:$C$71,0),MATCH($O26,'For Bill Impact(HideBeforeFile)'!$D$61:$S$61,0)) -> $ / month | F26: =INDEX('For Bill Impact(HideBeforeFile)'!$D$6:$S$15,MATCH(C10,'For Bill Impact(HideBeforeFile)'!$C$62:$C$71,0),MATCH($O26,'For Bill Impact(HideBeforeFile)'!$D$61:$S$61,0)) -> 0 | H26: =INDEX('For Bill Impact(HideBeforeFile)'!$D$20:$S$29,MATCH(C10,'For Bill Impact(HideBeforeFile)'!$C$62:$C$71,0),MATCH($O26,'For Bill Impact(HideBeforeFile)'!$D$61:$S$61,0)) -> 0 | L26: =INDEX('For Bill Impact(HideBeforeFile)'!$D$34:$S$43,MATCH(C10,'For Bill Impact(HideBeforeFile)'!$C$62:$C$71,0),MATCH($O26,'For Bill Impact(HideBeforeFile)'!$D$61:$S$61,0)) -> 12 | O26: LDMDA
C27: =INDEX('For Bill Impact(HideBeforeFile)'!$D$48:$S$57,MATCH(C10,'For Bill Impact(HideBeforeFile)'!$C$62:$C$71,0),MATCH($O27,'For Bill Impact(HideBeforeFile)'!$D$61:$S$61,0)) -> UFGVA | D27: =INDEX('For Bill Impact(HideBeforeFile)'!$D$62:$S$71,MATCH(C10,'For Bill Impact(HideBeforeFile)'!$C$62:$C$71,0),MATCH($O27,'For Bill Impact(HideBeforeFile)'!$D$61:$S$61,0)) -> cents / m3 | F27: =INDEX('For Bill Impact(HideBeforeFile)'!$D$6:$S$15,MATCH(C10,'For Bill Impact(HideBeforeFile)'!$C$62:$C$71,0),MATCH($O27,'For Bill Impact(HideBeforeFile)'!$D$61:$S$61,0)) -> 0 | H27: =INDEX('For Bill Impact(HideBeforeFile)'!$D$20:$S$29,MATCH(C10,'For Bill Impact(HideBeforeFile)'!$C$62:$C$71,0),MATCH($O27,'For Bill Impact(HideBeforeFile)'!$D$61:$S$61,0)) -> 1.316518199 | L27: =INDEX('For Bill Impact(HideBeforeFile)'!$D$34:$S$43,MATCH(C10,'For Bill Impact(HideBeforeFile)'!$C$62:$C$71,0),MATCH($O27,'For Bill Impact(HideBeforeFile)'!$D$61:$S$61,0)) -> 10498.08231 | O27: UFGVA
C28: =INDEX('For Bill Impact(HideBeforeFile)'!$D$48:$S$57,MATCH(C10,'For Bill Impact(HideBeforeFile)'!$C$62:$C$71,0),MATCH($O28,'For Bill Impact(HideBeforeFile)'!$D$61:$S$61,0)) -> FCCVA | D28: =INDEX('For Bill Impact(HideBeforeFile)'!$D$62:$S$71,MATCH(C10,'For Bill Impact(HideBeforeFile)'!$C$62:$C$71,0),MATCH($O28,'For Bill Impact(HideBeforeFile)'!$D$61:$S$61,0)) -> $ / month | F28: =INDEX('For Bill Impact(HideBeforeFile)'!$D$6:$S$15,MATCH(C10,'For Bill Impact(HideBeforeFile)'!$C$62:$C$71,0),MATCH($O28,'For Bill Impact(HideBeforeFile)'!$D$61:$S$61,0)) -> 0 | H28: =INDEX('For Bill Impact(HideBeforeFile)'!$D$20:$S$29,MATCH(C10,'For Bill Impact(HideBeforeFile)'!$C$62:$C$71,0),MATCH($O28,'For Bill Impact(HideBeforeFile)'!$D$61:$S$61,0)) -> 0 | L28: =INDEX('For Bill Impact(HideBeforeFile)'!$D$34:$S$43,MATCH(C10,'For Bill Impact(HideBeforeFile)'!$C$62:$C$71,0),MATCH($O28,'For Bill Impact(HideBeforeFile)'!$D$61:$S$61,0)) -> 12 | O28: FCCVA
C29: =INDEX('For Bill Impact(HideBeforeFile)'!$D$48:$S$57,MATCH(C10,'For Bill Impact(HideBeforeFile)'!$C$62:$C$71,0),MATCH($O29,'For Bill Impact(HideBeforeFile)'!$D$61:$S$61,0)) -> GGEADA | D29: =INDEX('For Bill Impact(HideBeforeFile)'!$D$62:$S$71,MATCH(C10,'For Bill Impact(HideBeforeFile)'!$C$62:$C$71,0),MATCH($O29,'For Bill Impact(HideBeforeFile)'!$D$61:$S$61,0)) -> $ / month | F29: =INDEX('For Bill Impact(HideBeforeFile)'!$D$6:$S$15,MATCH(C10,'For Bill Impact(HideBeforeFile)'!$C$62:$C$71,0),MATCH($O29,'For Bill Impact(HideBeforeFile)'!$D$61:$S$61,0)) -> 0 | H29: =INDEX('For Bill Impact(HideBeforeFile)'!$D$20:$S$29,MATCH(C10,'For Bill Impact(HideBeforeFile)'!$C$62:$C$71,0),MATCH($O29,'For Bill Impact(HideBeforeFile)'!$D$61:$S$61,0)) -> 0 | L29: =INDEX('For Bill Impact(HideBeforeFile)'!$D$34:$S$43,MATCH(C10,'For Bill Impact(HideBeforeFile)'!$C$62:$C$71,0),MATCH($O29,'For Bill Impact(HideBeforeFile)'!$D$61:$S$61,0)) -> 12 | O29: GGEADA
C31: =INDEX('For Bill Impact(HideBeforeFile)'!$D$48:$S$57,MATCH(C10,'For Bill Impact(HideBeforeFile)'!$C$62:$C$71,0),MATCH($O31,'For Bill Impact(HideBeforeFile)'!$D$61:$S$61,0)) -> Federal Carbon | D31: =INDEX('For Bill Impact(HideBeforeFile)'!$D$62:$S$71,MATCH(C10,'For Bill Impact(HideBeforeFile)'!$C$62:$C$71,0),MATCH($O31,'For Bill Impact(HideBeforeFile)'!$D$61:$S$61,0)) -> cents / m3 | F31: =INDEX('For Bill Impact(HideBeforeFile)'!$D$6:$S$15,MATCH(C10,'For Bill Impact(HideBeforeFile)'!$C$62:$C$71,0),MATCH($O31,'For Bill Impact(HideBeforeFile)'!$D$61:$S$61,0)) -> 15.25 | H31: =INDEX('For Bill Impact(HideBeforeFile)'!$D$20:$S$29,MATCH(C10,'For Bill Impact(HideBeforeFile)'!$C$62:$C$71,0),MATCH($O31,'For Bill Impact(HideBeforeFile)'!$D$61:$S$61,0)) -> 15.25 | L31: =INDEX('For Bill Impact(HideBeforeFile)'!$D$34:$S$43,MATCH(C10,'For Bill Impact(HideBeforeFile)'!$C$62:$C$71,0),MATCH($O31,'For Bill Impact(HideBeforeFile)'!$D$61:$S$61,0)) -> 10498.08231 | O31: ='For Bill Impact(HideBeforeFile)'!$M$5 -> Federal Carbon
C32: =INDEX('For Bill Impact(HideBeforeFile)'!$D$48:$S$57,MATCH(C10,'For Bill Impact(HideBeforeFile)'!$C$62:$C$71,0),MATCH($O32,'For Bill Impact(HideBeforeFile)'!$D$61:$S$61,0)) -> Facility Carbon | D32: =INDEX('For Bill Impact(HideBeforeFile)'!$D$62:$S$71,MATCH(C10,'For Bill Impact(HideBeforeFile)'!$C$62:$C$71,0),MATCH($O32,'For Bill Impact(HideBeforeFile)'!$D$61:$S$61,0)) -> cents / m3 | F32: =INDEX('For Bill Impact(HideBeforeFile)'!$D$6:$S$15,MATCH(C10,'For Bill Impact(HideBeforeFile)'!$C$62:$C$71,0),MATCH($O32,'For Bill Impact(HideBeforeFile)'!$D$61:$S$61,0)) -> 0.0037 | H32: =INDEX('For Bill Impact(HideBeforeFile)'!$D$20:$S$29,MATCH(C10,'For Bill Impact(HideBeforeFile)'!$C$62:$C$71,0),MATCH($O32,'For Bill Impact(HideBeforeFile)'!$D$61:$S$61,0)) -> 0.0037 | L32: =INDEX('For Bill Impact(HideBeforeFile)'!$D$34:$S$43,MATCH(C10,'For Bill Impact(HideBeforeFile)'!$C$62:$C$71,0),MATCH($O32,'For Bill Impact(HideBeforeFile)'!$D$61:$S$61,0)) -> 10498.08231 | O32: ='For Bill Impact(HideBeforeFile)'!$N$5 -> Facility Carbon
C35: Commodity | F35: Current | H35: Proposed | J35: Change $ | L35: Change %
F36: =F14*$L14/100 -> 1936.660198 | H36: =H14*$L14/100 -> 1996.66469 | J36: =H36-F36 -> 60.00449199 | L36: =IFERROR(J36/F36,"") -> 0.03098349005 | O36: ='For Bill Impact(HideBeforeFile)'!$D$5 -> Commodity
C38: Delivery | F38: Current Rate | H38: Proposed Rate | J38: Change $ | L38: Change %
C39: =IF(C16<>"",C16,"") -> Customer (excl. Bill 32) | F39: =F16*$L16 -> 246 | H39: =H16*$L16 -> 282 | J39: =IFERROR(H39-F39,"") -> 36 | L39: =IFERROR(J39/F39,"") -> 0.1463414634 | O39: ='For Bill Impact(HideBeforeFile)'!$O$5 -> Dist. Customer Rate
C40: Bill 32 | F40: 12 | H40: 12 | J40: =IFERROR(H40-F40,"") -> 0 | L40: =IFERROR(J40/F40,"") -> 0
C41: =IF(C17<>"",C17,"") -> Block 1 (First 1,000 m3 per month) | F41: =IFERROR(F17*$J17/100,"") -> 644.5695128 | H41: =IFERROR(H17*$L17/100,"") -> 639.0839372 | J41: =IFERROR(H41-F41,"") -> -5.485575596 | L41: =IFERROR(J41/F41,"") -> -0.008510448428 | O41: ='For Bill Impact(HideBeforeFile)'!$P$5 -> Dist. Vol. Rate Tier 1
C42: =IF(C18<>"",C18,"") -> Block 2 (Over 1,000 m3 per month) | F42: =IFERROR(F18*$J18/100,"") -> 738.5793405 | H42: =IFERROR(H18*$L18/100,"") -> 763.885982 | J42: 25.30664157 | L42: 0.03426394455 | O42: ='For Bill Impact(HideBeforeFile)'!$Q$5 -> Dist. Vol. Rate Tier 2
C43: =IF(C19<>"",C19,"") ->  | F43: =IFERROR(F19*$L19/100,"") ->  | H43: =IFERROR(H19*$L19/100,"") ->  | O43: ='For Bill Impact(HideBeforeFile)'!$R$5 -> Dist. Vol. Rate Tier 3
C44: =IF(C20<>"",C20,"") ->  | F44: =IFERROR(F20*$L20/100,"") ->  | H44: =IFERROR(H20*$L20/100,"") ->  | O44: ='For Bill Impact(HideBeforeFile)'!$S$5 -> Dist. Capacity Rate
C45: =IF(C21<>"",C21,"") -> Transportation | F45: =IFERROR(F21*$L21/100,"") -> 253.6231706 | H45: =IFERROR(H21*$L21/100,"") -> 289.9434879 | J45: 36.32031728 | L45: 0.1432058325 | O45: ='For Bill Impact(HideBeforeFile)'!$E$5 -> Transp/System Gas
C46: Total Delivery | F46: =SUM(F39:F45) -> 1894.772024 | H46: =SUM(H39:H45) -> 1986.913407 | J46: =H46-F46 -> 92.14138326 | L46: =IF(ISERROR(J46/F46),0,J46/F46) -> 0.04862927154
C48: Rate Riders
C50: Rate Riders | F50: Current Rate | H50: Proposed Rate | J50: Change $ | L50: Change %
C51: =C23 -> REDA | F51: =F23*$L23 -> 0.24 | H51: =H23*$L23 -> 0 | J51: =IFERROR(H51-F51,"") -> -0.24 | L51: =IFERROR(J51/F51,"") -> -1 | O51: ='For Bill Impact(HideBeforeFile)'!$F$5 -> REDA
C52: =C24 -> PGTVA | F52: =IFERROR(F24*$L24/100,"") -> 83.78519495 | H52: =IFERROR(H24*$L24/100,"") -> 66.04138293 | J52: =IFERROR(H52-F52,"") -> -17.74381202 | L52: =IFERROR(J52/F52,"") -> -0.2117774152 | O52: ='For Bill Impact(HideBeforeFile)'!$G$5 -> PGTVA
C53: =C25 -> ADVADA | F53: =IFERROR(F25*$L25/100,"") -> -3.044443871 | H53: =IFERROR(H25*$L25/100,"") -> 0 | J53: 3.044443871 | L53: -1 | O53: ='For Bill Impact(HideBeforeFile)'!$H$5 -> ADVADA
C54: =C26 -> LDMDA | F54: =F26*$L26 -> 0 | H54: =H26*$L26 -> 0 | J54: 0 | O54: ='For Bill Impact(HideBeforeFile)'!$I$5 -> LDMDA
C55: =C27 -> UFGVA | F55: =IFERROR(F27*$L27/100,"") -> 0 | H55: =IFERROR(H27*$L27/100,"") -> 138.2091642 | J55: 138.2091642 | O55: ='For Bill Impact(HideBeforeFile)'!$J$5 -> UFGVA
C56: =C28 -> FCCVA | F56: =F28*$L28 -> 0 | H56: =H28*$L28 -> 0 | J56: 0
C57: GGEADA | F57: =F29*$L29 -> 0 | H57: =H29*$L29 -> 0 | J57: 0
C58: Total Rate Riders | F58: =SUM(F51:F57) -> 80.98075108 | H58: =SUM(H51:H57) -> 204.2505471 | J58: =SUM(J51:J57) -> 123.269796 | L58: =IF(ISERROR(J58/F58),0,J58/F58) -> 1.522211073
C60: Carbon Tax
C61: Federal Carbon | F61: =F31*$L31/100 -> 1600.957553 | H61: =H31*$L31/100 -> 1600.957553 | J61: =IFERROR(H61-F61,"") -> 0 | L61: =IFERROR(J61/F61,"") -> 0
C62: Facility Carbon | F62: =F32*$L32/100 -> 0.3884290456 | H62: =H32*$L32/100 -> 0.3884290456 | J62: =IFERROR(H62-F62,"") -> 0 | L62: 0
C63: Total Carbon Tax | F63: =SUM(F61:F62) -> 1601.345982 | H63: =SUM(H61:H62) -> 1601.345982 | J63: =SUM(J61:J62) -> 0 | L63: =IF(ISERROR(J63/F63),0,J63/F63) -> 0
C65: Total Bill Impact | F65: =SUM(F36,F46,F58,F63) -> 5513.758955 | H65: =SUM(H36,H46,H58,H63) -> 5789.174627 | J65: =SUM(J36,J46,J58,J63) -> 275.4156713 | L65: =IFERROR(J65/F65,"") -> 0.04995061872
C72: ='For Bill Impact(HideBeforeFile)'!C7 -> R1 - Commercial | O72: Look-up
C73: R1-GS - Commercial | F73: Current | H73: Proposed | J73: Bill Determinant (Current) | L73: Bill Determinant (Proposed
C76: =INDEX('For Bill Impact(HideBeforeFile)'!$D$48:$S$57,MATCH(C72,'For Bill Impact(HideBeforeFile)'!$C$62:$C$71,0),MATCH($O76,'For Bill Impact(HideBeforeFile)'!$D$61:$S$61,0)) -> Commodity | D76: =INDEX('For Bill Impact(HideBeforeFile)'!$D$62:$S$71,MATCH(C72,'For Bill Impact(HideBeforeFile)'!$C$62:$C$71,0),MATCH($O76,'For Bill Impact(HideBeforeFile)'!$D$61:$S$61,0)) -> cents / m3 | F76: =INDEX('For Bill Impact(HideBeforeFile)'!$D$6:$S$15,MATCH(C72,'For Bill Impact(HideBeforeFile)'!$C$62:$C$71,0),MATCH($O76,'For Bill Impact(HideBeforeFile)'!$D$61:$S$61,0)) -> 14.6336 | H76: =INDEX('For Bill Impact(HideBeforeFile)'!$D$20:$S$29,MATCH(C72,'For Bill Impact(HideBeforeFile)'!$C$62:$C$71,0),MATCH($O76,'For Bill Impact(HideBeforeFile)'!$D$61:$S$61,0)) -> 15.087 | L76: =INDEX('For Bill Impact(HideBeforeFile)'!$D$34:$S$43,MATCH(C72,'For Bill Impact(HideBeforeFile)'!$C$62:$C$71,0),MATCH($O76,'For Bill Impact(HideBeforeFile)'!$D$61:$S$61,0)) -> 10498.08231 | O76: ='For Bill Impact(HideBeforeFile)'!$D$5 -> Commodity
C78: =INDEX('For Bill Impact(HideBeforeFile)'!$D$48:$S$57,MATCH(C72,'For Bill Impact(HideBeforeFile)'!$C$62:$C$71,0),MATCH($O78,'For Bill Impact(HideBeforeFile)'!$D$61:$S$61,0)) -> Customer (excl. Bill 32) | D78: =INDEX('For Bill Impact(HideBeforeFile)'!$D$62:$S$71,MATCH(C72,'For Bill Impact(HideBeforeFile)'!$C$62:$C$71,0),MATCH($O78,'For Bill Impact(HideBeforeFile)'!$D$61:$S$61,0)) -> $ / month | F78: =INDEX('For Bill Impact(HideBeforeFile)'!$D$6:$S$15,MATCH(C72,'For Bill Impact(HideBeforeFile)'!$C$62:$C$71,0),MATCH($O78,'For Bill Impact(HideBeforeFile)'!$D$61:$S$61,0)) -> 20.5 | H78: =INDEX('For Bill Impact(HideBeforeFile)'!$D$20:$S$29,MATCH(C72,'For Bill Impact(HideBeforeFile)'!$C$62:$C$71,0),MATCH($O78,'For Bill Impact(HideBeforeFile)'!$D$61:$S$61,0)) -> 23.5 | L78: =INDEX('For Bill Impact(HideBeforeFile)'!$D$34:$S$43,MATCH(C72,'For Bill Impact(HideBeforeFile)'!$C$62:$C$71,0),MATCH($O78,'For Bill Impact(HideBeforeFile)'!$D$61:$S$61,0)) -> 12 | O78: ='For Bill Impact(HideBeforeFile)'!$O$5 -> Dist. Customer Rate
C79: Block 1 (Current 1000m3, Proposed 5000m3) | D79: =INDEX('For Bill Impact(HideBeforeFile)'!$D$62:$S$71,MATCH(C72,'For Bill Impact(HideBeforeFile)'!$C$62:$C$71,0),MATCH($O79,'For Bill Impact(HideBeforeFile)'!$D$61:$S$61,0)) -> cents / m3 | F79: =INDEX('For Bill Impact(HideBeforeFile)'!$D$6:$S$15,MATCH(C72,'For Bill Impact(HideBeforeFile)'!$C$62:$C$71,0),MATCH($O79,'For Bill Impact(HideBeforeFile)'!$D$61:$S$61,0)) -> 12.1616662 | H79: =INDEX('For Bill Impact(HideBeforeFile)'!$D$20:$S$29,MATCH(C72,'For Bill Impact(HideBeforeFile)'!$C$62:$C$71,0),MATCH($O79,'For Bill Impact(HideBeforeFile)'!$D$61:$S$61,0)) -> 12.05816496 | J79: ='B1.2 Billing Determinants'!E17/'B1.2 Billing Determinants'!$D$17 -> 4911.974735 | L79: =INDEX('For Bill Impact(HideBeforeFile)'!$D$34:$S$43,MATCH(C72,'For Bill Impact(HideBeforeFile)'!$C$62:$C$71,0),MATCH($O79,'For Bill Impact(HideBeforeFile)'!$D$61:$S$61,0)) -> 4911.974735 | O79: ='For Bill Impact(HideBeforeFile)'!$P$5 -> Dist. Vol. Rate Tier 1
C80: Block 2 (Current > 1000m3, Proposed >5000m3) | D80: =INDEX('For Bill Impact(HideBeforeFile)'!$D$62:$S$71,MATCH(C72,'For Bill Impact(HideBeforeFile)'!$C$62:$C$71,0),MATCH($O80,'For Bill Impact(HideBeforeFile)'!$D$61:$S$61,0)) -> cents / m3 | F80: =INDEX('For Bill Impact(HideBeforeFile)'!$D$6:$S$15,MATCH(C72,'For Bill Impact(HideBeforeFile)'!$C$62:$C$71,0),MATCH($O80,'For Bill Impact(HideBeforeFile)'!$D$61:$S$61,0)) -> 9.308655499 | H80: =INDEX('For Bill Impact(HideBeforeFile)'!$D$20:$S$29,MATCH(C72,'For Bill Impact(HideBeforeFile)'!$C$62:$C$71,0),MATCH($O80,'For Bill Impact(HideBeforeFile)'!$D$61:$S$61,0)) -> 9.627606754 | J80: ='B1.2 Billing Determinants'!F17/'B1.2 Billing Determinants'!$D$17 -> 5586.10758 | L80: =INDEX('For Bill Impact(HideBeforeFile)'!$D$34:$S$43,MATCH(C72,'For Bill Impact(HideBeforeFile)'!$C$62:$C$71,0),MATCH($O80,'For Bill Impact(HideBeforeFile)'!$D$61:$S$61,0)) -> 5586.10758 | O80: ='For Bill Impact(HideBeforeFile)'!$Q$5 -> Dist. Vol. Rate Tier 2
C81: =INDEX('For Bill Impact(HideBeforeFile)'!$D$48:$S$57,MATCH(C72,'For Bill Impact(HideBeforeFile)'!$C$62:$C$71,0),MATCH($O81,'For Bill Impact(HideBeforeFile)'!$D$61:$S$61,0)) ->  | D81: =INDEX('For Bill Impact(HideBeforeFile)'!$D$62:$S$71,MATCH(C72,'For Bill Impact(HideBeforeFile)'!$C$62:$C$71,0),MATCH($O81,'For Bill Impact(HideBeforeFile)'!$D$61:$S$61,0)) ->  | F81: =INDEX('For Bill Impact(HideBeforeFile)'!$D$6:$S$15,MATCH(C72,'For Bill Impact(HideBeforeFile)'!$C$62:$C$71,0),MATCH($O81,'For Bill Impact(HideBeforeFile)'!$D$61:$S$61,0)) ->  | H81: =INDEX('For Bill Impact(HideBeforeFile)'!$D$20:$S$29,MATCH(C72,'For Bill Impact(HideBeforeFile)'!$C$62:$C$71,0),MATCH($O81,'For Bill Impact(HideBeforeFile)'!$D$61:$S$61,0)) ->  | J81: =L81 ->  | L81: =INDEX('For Bill Impact(HideBeforeFile)'!$D$34:$S$43,MATCH(C72,'For Bill Impact(HideBeforeFile)'!$C$62:$C$71,0),MATCH($O81,'For Bill Impact(HideBeforeFile)'!$D$61:$S$61,0)) ->  | O81: ='For Bill Impact(HideBeforeFile)'!$R$5 -> Dist. Vol. Rate Tier 3
C82: =INDEX('For Bill Impact(HideBeforeFile)'!$D$48:$S$57,MATCH(C72,'For Bill Impact(HideBeforeFile)'!$C$62:$C$71,0),MATCH($O82,'For Bill Impact(HideBeforeFile)'!$D$61:$S$61,0)) ->  | D82: =INDEX('For Bill Impact(HideBeforeFile)'!$D$62:$S$71,MATCH(C72,'For Bill Impact(HideBeforeFile)'!$C$62:$C$71,0),MATCH($O82,'For Bill Impact(HideBeforeFile)'!$D$61:$S$61,0)) ->  | F82: =INDEX('For Bill Impact(HideBeforeFile)'!$D$6:$S$15,MATCH(C72,'For Bill Impact(HideBeforeFile)'!$C$62:$C$71,0),MATCH($O82,'For Bill Impact(HideBeforeFile)'!$D$61:$S$61,0)) ->  | H82: =INDEX('For Bill Impact(HideBeforeFile)'!$D$20:$S$29,MATCH(C72,'For Bill Impact(HideBeforeFile)'!$C$62:$C$71,0),MATCH($O82,'For Bill Impact(HideBeforeFile)'!$D$61:$S$61,0)) ->  | L82: =INDEX('For Bill Impact(HideBeforeFile)'!$D$34:$S$43,MATCH(C72,'For Bill Impact(HideBeforeFile)'!$C$62:$C$71,0),MATCH($O82,'For Bill Impact(HideBeforeFile)'!$D$61:$S$61,0)) ->  | O82: ='For Bill Impact(HideBeforeFile)'!$S$5 -> Dist. Capacity Rate
C83: =INDEX('For Bill Impact(HideBeforeFile)'!$D$48:$S$57,MATCH(C72,'For Bill Impact(HideBeforeFile)'!$C$62:$C$71,0),MATCH($O83,'For Bill Impact(HideBeforeFile)'!$D$61:$S$61,0)) -> Transportation | D83: =INDEX('For Bill Impact(HideBeforeFile)'!$D$62:$S$71,MATCH(C72,'For Bill Impact(HideBeforeFile)'!$C$62:$C$71,0),MATCH($O83,'For Bill Impact(HideBeforeFile)'!$D$61:$S$61,0)) -> cents / m3 | F83: =INDEX('For Bill Impact(HideBeforeFile)'!$D$6:$S$15,MATCH(C72,'For Bill Impact(HideBeforeFile)'!$C$62:$C$71,0),MATCH($O83,'For Bill Impact(HideBeforeFile)'!$D$61:$S$61,0)) -> 2.4159 | H83: =INDEX('For Bill Impact(HideBeforeFile)'!$D$20:$S$29,MATCH(C72,'For Bill Impact(HideBeforeFile)'!$C$62:$C$71,0),MATCH($O83,'For Bill Impact(HideBeforeFile)'!$D$61:$S$61,0)) -> 2.761870971 | L83: =INDEX('For Bill Impact(HideBeforeFile)'!$D$34:$S$43,MATCH(C72,'For Bill Impact(HideBeforeFile)'!$C$62:$C$71,0),MATCH($O83,'For Bill Impact(HideBeforeFile)'!$D$61:$S$61,0)) -> 10498.08231 | O83: ='For Bill Impact(HideBeforeFile)'!$E$5 -> Transp/System Gas
C85: =INDEX('For Bill Impact(HideBeforeFile)'!$D$48:$S$57,MATCH(C72,'For Bill Impact(HideBeforeFile)'!$C$62:$C$71,0),MATCH($O85,'For Bill Impact(HideBeforeFile)'!$D$61:$S$61,0)) -> REDA | D85: =INDEX('For Bill Impact(HideBeforeFile)'!$D$62:$S$71,MATCH(C72,'For Bill Impact(HideBeforeFile)'!$C$62:$C$71,0),MATCH($O85,'For Bill Impact(HideBeforeFile)'!$D$61:$S$61,0)) -> $ / month | F85: =INDEX('For Bill Impact(HideBeforeFile)'!$D$6:$S$15,MATCH(C72,'For Bill Impact(HideBeforeFile)'!$C$62:$C$71,0),MATCH($O85,'For Bill Impact(HideBeforeFile)'!$D$61:$S$61,0)) -> 0.02 | H85: =INDEX('For Bill Impact(HideBeforeFile)'!$D$20:$S$29,MATCH(C72,'For Bill Impact(HideBeforeFile)'!$C$62:$C$71,0),MATCH($O85,'For Bill Impact(HideBeforeFile)'!$D$61:$S$61,0)) -> 0 | L85: =INDEX('For Bill Impact(HideBeforeFile)'!$D$34:$S$43,MATCH(C72,'For Bill Impact(HideBeforeFile)'!$C$62:$C$71,0),MATCH($O85,'For Bill Impact(HideBeforeFile)'!$D$61:$S$61,0)) -> 12 | O85: ='For Bill Impact(HideBeforeFile)'!$F$5 -> REDA
C86: =INDEX('For Bill Impact(HideBeforeFile)'!$D$48:$S$57,MATCH(C72,'For Bill Impact(HideBeforeFile)'!$C$62:$C$71,0),MATCH($O86,'For Bill Impact(HideBeforeFile)'!$D$61:$S$61,0)) -> PGTVA | D86: =INDEX('For Bill Impact(HideBeforeFile)'!$D$62:$S$71,MATCH(C72,'For Bill Impact(HideBeforeFile)'!$C$62:$C$71,0),MATCH($O86,'For Bill Impact(HideBeforeFile)'!$D$61:$S$61,0)) -> cents / m3 | F86: =INDEX('For Bill Impact(HideBeforeFile)'!$D$6:$S$15,MATCH(C72,'For Bill Impact(HideBeforeFile)'!$C$62:$C$71,0),MATCH($O86,'For Bill Impact(HideBeforeFile)'!$D$61:$S$61,0)) -> 0.7981 | H86: =INDEX('For Bill Impact(HideBeforeFile)'!$D$20:$S$29,MATCH(C72,'For Bill Impact(HideBeforeFile)'!$C$62:$C$71,0),MATCH($O86,'For Bill Impact(HideBeforeFile)'!$D$61:$S$61,0)) -> 0.6290804449 | L86: =INDEX('For Bill Impact(HideBeforeFile)'!$D$34:$S$43,MATCH(C72,'For Bill Impact(HideBeforeFile)'!$C$62:$C$71,0),MATCH($O86,'For Bill Impact(HideBeforeFile)'!$D$61:$S$61,0)) -> 10498.08231 | O86: ='For Bill Impact(HideBeforeFile)'!$G$5 -> PGTVA
C87: =INDEX('For Bill Impact(HideBeforeFile)'!$D$48:$S$57,MATCH(C72,'For Bill Impact(HideBeforeFile)'!$C$62:$C$71,0),MATCH($O87,'For Bill Impact(HideBeforeFile)'!$D$61:$S$61,0)) -> ADVADA | D87: =INDEX('For Bill Impact(HideBeforeFile)'!$D$62:$S$71,MATCH(C72,'For Bill Impact(HideBeforeFile)'!$C$62:$C$71,0),MATCH($O87,'For Bill Impact(HideBeforeFile)'!$D$61:$S$61,0)) -> cents / m3 | F87: =INDEX('For Bill Impact(HideBeforeFile)'!$D$6:$S$15,MATCH(C72,'For Bill Impact(HideBeforeFile)'!$C$62:$C$71,0),MATCH($O87,'For Bill Impact(HideBeforeFile)'!$D$61:$S$61,0)) -> -0.029 | H87: =INDEX('For Bill Impact(HideBeforeFile)'!$D$20:$S$29,MATCH(C72,'For Bill Impact(HideBeforeFile)'!$C$62:$C$71,0),MATCH($O87,'For Bill Impact(HideBeforeFile)'!$D$61:$S$61,0)) -> 0 | L87: =INDEX('For Bill Impact(HideBeforeFile)'!$D$34:$S$43,MATCH(C72,'For Bill Impact(HideBeforeFile)'!$C$62:$C$71,0),MATCH($O87,'For Bill Impact(HideBeforeFile)'!$D$61:$S$61,0)) -> 10498.08231 | O87: ='For Bill Impact(HideBeforeFile)'!$H$5 -> ADVADA
C88: =INDEX('For Bill Impact(HideBeforeFile)'!$D$48:$S$57,MATCH(C72,'For Bill Impact(HideBeforeFile)'!$C$62:$C$71,0),MATCH($O88,'For Bill Impact(HideBeforeFile)'!$D$61:$S$61,0)) -> LDMDA | D88: =INDEX('For Bill Impact(HideBeforeFile)'!$D$62:$S$71,MATCH(C72,'For Bill Impact(HideBeforeFile)'!$C$62:$C$71,0),MATCH($O88,'For Bill Impact(HideBeforeFile)'!$D$61:$S$61,0)) -> $ / month | F88: =INDEX('For Bill Impact(HideBeforeFile)'!$D$6:$S$15,MATCH(C72,'For Bill Impact(HideBeforeFile)'!$C$62:$C$71,0),MATCH($O88,'For Bill Impact(HideBeforeFile)'!$D$61:$S$61,0)) -> 0 | H88: =INDEX('For Bill Impact(HideBeforeFile)'!$D$20:$S$29,MATCH(C72,'For Bill Impact(HideBeforeFile)'!$C$62:$C$71,0),MATCH($O88,'For Bill Impact(HideBeforeFile)'!$D$61:$S$61,0)) -> 0 | L88: =INDEX('For Bill Impact(HideBeforeFile)'!$D$34:$S$43,MATCH(C72,'For Bill Impact(HideBeforeFile)'!$C$62:$C$71,0),MATCH($O88,'For Bill Impact(HideBeforeFile)'!$D$61:$S$61,0)) -> 12 | O88: LDMDA
C89: =INDEX('For Bill Impact(HideBeforeFile)'!$D$48:$S$57,MATCH(C72,'For Bill Impact(HideBeforeFile)'!$C$62:$C$71,0),MATCH($O89,'For Bill Impact(HideBeforeFile)'!$D$61:$S$61,0)) -> UFGVA | D89: =INDEX('For Bill Impact(HideBeforeFile)'!$D$62:$S$71,MATCH(C72,'For Bill Impact(HideBeforeFile)'!$C$62:$C$71,0),MATCH($O89,'For Bill Impact(HideBeforeFile)'!$D$61:$S$61,0)) -> cents / m3 | F89: =INDEX('For Bill Impact(HideBeforeFile)'!$D$6:$S$15,MATCH(C72,'For Bill Impact(HideBeforeFile)'!$C$62:$C$71,0),MATCH($O89,'For Bill Impact(HideBeforeFile)'!$D$61:$S$61,0)) -> 0 | H89: =INDEX('For Bill Impact(HideBeforeFile)'!$D$20:$S$29,MATCH(C72,'For Bill Impact(HideBeforeFile)'!$C$62:$C$71,0),MATCH($O89,'For Bill Impact(HideBeforeFile)'!$D$61:$S$61,0)) -> 1.316518199 | L89: =INDEX('For Bill Impact(HideBeforeFile)'!$D$34:$S$43,MATCH(C72,'For Bill Impact(HideBeforeFile)'!$C$62:$C$71,0),MATCH($O89,'For Bill Impact(HideBeforeFile)'!$D$61:$S$61,0)) -> 10498.08231 | O89: UFGVA
C90: =INDEX('For Bill Impact(HideBeforeFile)'!$D$48:$S$57,MATCH(C72,'For Bill Impact(HideBeforeFile)'!$C$62:$C$71,0),MATCH($O90,'For Bill Impact(HideBeforeFile)'!$D$61:$S$61,0)) -> FCCVA | D90: =INDEX('For Bill Impact(HideBeforeFile)'!$D$62:$S$71,MATCH(C72,'For Bill Impact(HideBeforeFile)'!$C$62:$C$71,0),MATCH($O90,'For Bill Impact(HideBeforeFile)'!$D$61:$S$61,0)) -> $ / month | F90: =INDEX('For Bill Impact(HideBeforeFile)'!$D$6:$S$15,MATCH(C72,'For Bill Impact(HideBeforeFile)'!$C$62:$C$71,0),MATCH($O90,'For Bill Impact(HideBeforeFile)'!$D$61:$S$61,0)) -> 0 | H90: =INDEX('For Bill Impact(HideBeforeFile)'!$D$20:$S$29,MATCH(C72,'For Bill Impact(HideBeforeFile)'!$C$62:$C$71,0),MATCH($O90,'For Bill Impact(HideBeforeFile)'!$D$61:$S$61,0)) -> 0 | L90: =INDEX('For Bill Impact(HideBeforeFile)'!$D$34:$S$43,MATCH(C72,'For Bill Impact(HideBeforeFile)'!$C$62:$C$71,0),MATCH($O90,'For Bill Impact(HideBeforeFile)'!$D$61:$S$61,0)) -> 12 | O90: FCCVA
C91: =INDEX('For Bill Impact(HideBeforeFile)'!$D$48:$S$57,MATCH(C72,'For Bill Impact(HideBeforeFile)'!$C$62:$C$71,0),MATCH($O91,'For Bill Impact(HideBeforeFile)'!$D$61:$S$61,0)) -> GGEADA | D91: =INDEX('For Bill Impact(HideBeforeFile)'!$D$62:$S$71,MATCH(C72,'For Bill Impact(HideBeforeFile)'!$C$62:$C$71,0),MATCH($O91,'For Bill Impact(HideBeforeFile)'!$D$61:$S$61,0)) -> $ / month | F91: =INDEX('For Bill Impact(HideBeforeFile)'!$D$6:$S$15,MATCH(C72,'For Bill Impact(HideBeforeFile)'!$C$62:$C$71,0),MATCH($O91,'For Bill Impact(HideBeforeFile)'!$D$61:$S$61,0)) -> 0 | H91: =INDEX('For Bill Impact(HideBeforeFile)'!$D$20:$S$29,MATCH(C72,'For Bill Impact(HideBeforeFile)'!$C$62:$C$71,0),MATCH($O91,'For Bill Impact(HideBeforeFile)'!$D$61:$S$61,0)) -> 0 | L91: =INDEX('For Bill Impact(HideBeforeFile)'!$D$34:$S$43,MATCH(C72,'For Bill Impact(HideBeforeFile)'!$C$62:$C$71,0),MATCH($O91,'For Bill Impact(HideBeforeFile)'!$D$61:$S$61,0)) -> 12 | O91: GGEADA
C93: =INDEX('For Bill Impact(HideBeforeFile)'!$D$48:$S$57,MATCH(C72,'For Bill Impact(HideBeforeFile)'!$C$62:$C$71,0),MATCH($O93,'For Bill Impact(HideBeforeFile)'!$D$61:$S$61,0)) -> Federal Carbon | D93: =INDEX('For Bill Impact(HideBeforeFile)'!$D$62:$S$71,MATCH(C72,'For Bill Impact(HideBeforeFile)'!$C$62:$C$71,0),MATCH($O93,'For Bill Impact(HideBeforeFile)'!$D$61:$S$61,0)) -> cents / m3 | F93: =INDEX('For Bill Impact(HideBeforeFile)'!$D$6:$S$15,MATCH(C72,'For Bill Impact(HideBeforeFile)'!$C$62:$C$71,0),MATCH($O93,'For Bill Impact(HideBeforeFile)'!$D$61:$S$61,0)) -> 15.25 | H93: =INDEX('For Bill Impact(HideBeforeFile)'!$D$20:$S$29,MATCH(C72,'For Bill Impact(HideBeforeFile)'!$C$62:$C$71,0),MATCH($O93,'For Bill Impact(HideBeforeFile)'!$D$61:$S$61,0)) -> 15.25 | L93: =INDEX('For Bill Impact(HideBeforeFile)'!$D$34:$S$43,MATCH(C72,'For Bill Impact(HideBeforeFile)'!$C$62:$C$71,0),MATCH($O93,'For Bill Impact(HideBeforeFile)'!$D$61:$S$61,0)) -> 10498.08231 | O93: ='For Bill Impact(HideBeforeFile)'!$M$5 -> Federal Carbon
C94: =INDEX('For Bill Impact(HideBeforeFile)'!$D$48:$S$57,MATCH(C72,'For Bill Impact(HideBeforeFile)'!$C$62:$C$71,0),MATCH($O94,'For Bill Impact(HideBeforeFile)'!$D$61:$S$61,0)) -> Facility Carbon | D94: =INDEX('For Bill Impact(HideBeforeFile)'!$D$62:$S$71,MATCH(C72,'For Bill Impact(HideBeforeFile)'!$C$62:$C$71,0),MATCH($O94,'For Bill Impact(HideBeforeFile)'!$D$61:$S$61,0)) -> cents / m3 | F94: =INDEX('For Bill Impact(HideBeforeFile)'!$D$6:$S$15,MATCH(C72,'For Bill Impact(HideBeforeFile)'!$C$62:$C$71,0),MATCH($O94,'For Bill Impact(HideBeforeFile)'!$D$61:$S$61,0)) -> 0.0037 | H94: =INDEX('For Bill Impact(HideBeforeFile)'!$D$20:$S$29,MATCH(C72,'For Bill Impact(HideBeforeFile)'!$C$62:$C$71,0),MATCH($O94,'For Bill Impact(HideBeforeFile)'!$D$61:$S$61,0)) -> 0.0037 | L94: =INDEX('For Bill Impact(HideBeforeFile)'!$D$34:$S$43,MATCH(C72,'For Bill Impact(HideBeforeFile)'!$C$62:$C$71,0),MATCH($O94,'For Bill Impact(HideBeforeFile)'!$D$61:$S$61,0)) -> 10498.08231 | O94: ='For Bill Impact(HideBeforeFile)'!$N$5 -> Facility Carbon
C97: Commodity | F97: Current | H97: Proposed | J97: Change $ | L97: Change %
F98: =F76*$L76/100 -> 1536.247374 | H98: =H76*$L76/100 -> 1583.845679 | J98: =H98-F98 -> 47.59830521 | L98: =IFERROR(J98/F98,"") -> 0.03098349005 | O98: ='For Bill Impact(HideBeforeFile)'!$D$5 -> Commodity
C100: Delivery | F100: Current Rate | H100: Proposed Rate | J100: Change $ | L100: Change %
C101: =IF(C78<>"",C78,"") -> Customer (excl. Bill 32) | F101: =F78*$L78 -> 246 | H101: =H78*$L78 -> 282 | J101: =IFERROR(H101-F101,"") -> 36 | L101: =IFERROR(J101/F101,"") -> 0.1463414634 | O101: ='For Bill Impact(HideBeforeFile)'!$O$5 -> Dist. Customer Rate
C102: Bill 32 | F102: 12 | H102: 12 | J102: =IFERROR(H102-F102,"") -> 0 | L102: =IFERROR(J102/F102,"") -> 0
C103: =IF(C79<>"",C79,"") -> Block 1 (Current 1000m3, Proposed 5000m3) | F103: =IFERROR(F79*$J79/100,"") -> 597.3779709 | H103: =IFERROR(H79*$L79/100,"") -> 592.2940165 | J103: =IFERROR(H103-F103,"") -> -5.083954413 | L103: =IFERROR(J103/F103,"") -> -0.008510448428 | O103: ='For Bill Impact(HideBeforeFile)'!$P$5 -> Dist. Vol. Rate Tier 1
C104: =IF(C80<>"",C80,"") -> Block 2 (Current > 1000m3, Proposed >5000m3) | F104: =IFERROR(F80*$J80/100,"") -> 519.9915104 | H104: =IFERROR(H80*$L80/100,"") -> 537.8084707 | J104: 17.81696028 | L104: 0.03426394455 | O104: ='For Bill Impact(HideBeforeFile)'!$Q$5 -> Dist. Vol. Rate Tier 2
C105: =IF(C81<>"",C81,"") ->  | F105: =IFERROR(F81*$L81/100,"") ->  | H105: =IFERROR(H81*$L81/100,"") ->  | O105: ='For Bill Impact(HideBeforeFile)'!$R$5 -> Dist. Vol. Rate Tier 3
C106: =IF(C82<>"",C82,"") ->  | F106: =IFERROR(F82*$L82/100,"") ->  | H106: =IFERROR(H82*$L82/100,"") ->  | O106: ='For Bill Impact(HideBeforeFile)'!$S$5 -> Dist. Capacity Rate
C107: =IF(C83<>"",C83,"") -> Transportation | F107: =IFERROR(F83*$L83/100,"") -> 253.6231706 | H107: =IFERROR(H83*$L83/100,"") -> 289.9434879 | J107: 36.32031728 | L107: 0.1432058325 | O107: ='For Bill Impact(HideBeforeFile)'!$E$5 -> Transp/System Gas
C108: Total Delivery | F108: =SUM(F101:F107) -> 1628.992652 | H108: =SUM(H101:H107) -> 1714.045975 | J108: =H108-F108 -> 85.05332315 | L108: =IF(ISERROR(J108/F108),0,J108/F108) -> 0.05221222026
C110: Rate Riders
C112: Rate Riders | F112: Current Rate | H112: Proposed Rate | J112: Change $ | L112: Change %
C113: =C85 -> REDA | F113: =F85*$L85 -> 0.24 | H113: =H85*$L85 -> 0 | J113: =IFERROR(H113-F113,"") -> -0.24 | L113: =IFERROR(J113/F113,"") -> -1 | O113: ='For Bill Impact(HideBeforeFile)'!$F$5 -> REDA
C114: =C86 -> PGTVA | F114: =IFERROR(F86*$L86/100,"") -> 83.78519495 | H114: =IFERROR(H86*$L86/100,"") -> 66.04138293 | J114: =IFERROR(H114-F114,"") -> -17.74381202 | L114: =IFERROR(J114/F114,"") -> -0.2117774152 | O114: ='For Bill Impact(HideBeforeFile)'!$G$5 -> PGTVA
C115: =C87 -> ADVADA | F115: =IFERROR(F87*$L87/100,"") -> -3.044443871 | H115: =IFERROR(H87*$L87/100,"") -> 0 | J115: 3.044443871 | L115: -1 | O115: ='For Bill Impact(HideBeforeFile)'!$H$5 -> ADVADA
C116: =C88 -> LDMDA | F116: =F88*$L88 -> 0 | H116: =H88*$L88 -> 0 | J116: 0 | O116: ='For Bill Impact(HideBeforeFile)'!$I$5 -> LDMDA
C117: =C89 -> UFGVA | F117: =IFERROR(F89*$L89/100,"") -> 0 | H117: =IFERROR(H89*$L89/100,"") -> 138.2091642 | J117: 138.2091642 | O117: ='For Bill Impact(HideBeforeFile)'!$J$5 -> UFGVA
C118: =C90 -> FCCVA | F118: =F90*$L90 -> 0 | H118: =H90*$L90 -> 0 | J118: 0
C119: GGEADA | F119: =F91*$L91 -> 0 | H119: =H91*$L91 -> 0 | J119: 0
C120: Total Rate Riders | F120: =SUM(F113:F119) -> 80.98075108 | H120: =SUM(H113:H119) -> 204.2505471 | J120: =SUM(J113:J119) -> 123.269796 | L120: =IF(ISERROR(J120/F120),0,J120/F120) -> 1.522211073
C122: Carbon Tax
C123: Federal Carbon | F123: =F93*$L93/100 -> 1600.957553 | H123: =H93*$L93/100 -> 1600.957553 | J123: =IFERROR(H123-F123,"") -> 0 | L123: =IFERROR(J123/F123,"") -> 0
C124: Facility Carbon | F124: =F94*$L94/100 -> 0.3884290456 | H124: =H94*$L94/100 -> 0.3884290456 | J124: =IFERROR(H124-F124,"") -> 0 | L124: 0
C125: Total Carbon Tax | F125: =SUM(F123:F124) -> 1601.345982 | H125: =SUM(H123:H124) -> 1601.345982 | J125: =SUM(J123:J124) -> 0 | L125: =IF(ISERROR(J125/F125),0,J125/F125) -> 0
C127: Total Bill Impact | F127: =SUM(F98,F108,F120,F125) -> 4847.566759 | H127: =SUM(H98,H108,H120,H125) -> 5103.488183 | J127: =SUM(J98,J108,J120,J125) -> 255.9214244 | L127: =IFERROR(J127/F127,"") -> 0.0527937906
C132: ='For Bill Impact(HideBeforeFile)'!C8 -> R1 - Industrial | O132: Look-up
C133: R1-GS - Industrial | F133: Current | H133: Proposed | J133: Bill Determinant (Current) | L133: Bill Determinant (Proposed
C136: =INDEX('For Bill Impact(HideBeforeFile)'!$D$48:$S$57,MATCH(C132,'For Bill Impact(HideBeforeFile)'!$C$62:$C$71,0),MATCH($O136,'For Bill Impact(HideBeforeFile)'!$D$61:$S$61,0)) -> Commodity | D136: =INDEX('For Bill Impact(HideBeforeFile)'!$D$62:$S$71,MATCH(C132,'For Bill Impact(HideBeforeFile)'!$C$62:$C$71,0),MATCH($O136,'For Bill Impact(HideBeforeFile)'!$D$61:$S$61,0)) -> cents / m3 | F136: =INDEX('For Bill Impact(HideBeforeFile)'!$D$6:$S$15,MATCH(C132,'For Bill Impact(HideBeforeFile)'!$C$62:$C$71,0),MATCH($O136,'For Bill Impact(HideBeforeFile)'!$D$61:$S$61,0)) -> 14.6336 | H136: =INDEX('For Bill Impact(HideBeforeFile)'!$D$20:$S$29,MATCH(C132,'For Bill Impact(HideBeforeFile)'!$C$62:$C$71,0),MATCH($O136,'For Bill Impact(HideBeforeFile)'!$D$61:$S$61,0)) -> 15.087 | L136: =INDEX('For Bill Impact(HideBeforeFile)'!$D$34:$S$43,MATCH(C132,'For Bill Impact(HideBeforeFile)'!$C$62:$C$71,0),MATCH($O136,'For Bill Impact(HideBeforeFile)'!$D$61:$S$61,0)) -> 33165.09568 | O136: ='For Bill Impact(HideBeforeFile)'!$D$5 -> Commodity
C138: =INDEX('For Bill Impact(HideBeforeFile)'!$D$48:$S$57,MATCH(C132,'For Bill Impact(HideBeforeFile)'!$C$62:$C$71,0),MATCH($O138,'For Bill Impact(HideBeforeFile)'!$D$61:$S$61,0)) -> Customer (excl. Bill 32) | D138: =INDEX('For Bill Impact(HideBeforeFile)'!$D$62:$S$71,MATCH(C132,'For Bill Impact(HideBeforeFile)'!$C$62:$C$71,0),MATCH($O138,'For Bill Impact(HideBeforeFile)'!$D$61:$S$61,0)) -> $ / month | F138: =INDEX('For Bill Impact(HideBeforeFile)'!$D$6:$S$15,MATCH(C132,'For Bill Impact(HideBeforeFile)'!$C$62:$C$71,0),MATCH($O138,'For Bill Impact(HideBeforeFile)'!$D$61:$S$61,0)) -> 20.5 | H138: =INDEX('For Bill Impact(HideBeforeFile)'!$D$20:$S$29,MATCH(C132,'For Bill Impact(HideBeforeFile)'!$C$62:$C$71,0),MATCH($O138,'For Bill Impact(HideBeforeFile)'!$D$61:$S$61,0)) -> 23.5 | L138: =INDEX('For Bill Impact(HideBeforeFile)'!$D$34:$S$43,MATCH(C132,'For Bill Impact(HideBeforeFile)'!$C$62:$C$71,0),MATCH($O138,'For Bill Impact(HideBeforeFile)'!$D$61:$S$61,0)) -> 12 | O138: ='For Bill Impact(HideBeforeFile)'!$O$5 -> Dist. Customer Rate
C139: =C103 -> Block 1 (Current 1000m3, Proposed 5000m3) | D139: =INDEX('For Bill Impact(HideBeforeFile)'!$D$62:$S$71,MATCH(C132,'For Bill Impact(HideBeforeFile)'!$C$62:$C$71,0),MATCH($O139,'For Bill Impact(HideBeforeFile)'!$D$61:$S$61,0)) -> cents / m3 | F139: =INDEX('For Bill Impact(HideBeforeFile)'!$D$6:$S$15,MATCH(C132,'For Bill Impact(HideBeforeFile)'!$C$62:$C$71,0),MATCH($O139,'For Bill Impact(HideBeforeFile)'!$D$61:$S$61,0)) -> 12.1616662 | H139: =INDEX('For Bill Impact(HideBeforeFile)'!$D$20:$S$29,MATCH(C132,'For Bill Impact(HideBeforeFile)'!$C$62:$C$71,0),MATCH($O139,'For Bill Impact(HideBeforeFile)'!$D$61:$S$61,0)) -> 12.05816496 | J139: ='B1.2 Billing Determinants'!E18/'B1.2 Billing Determinants'!$D$18 -> 8126.438903 | L139: =INDEX('For Bill Impact(HideBeforeFile)'!$D$34:$S$43,MATCH(C132,'For Bill Impact(HideBeforeFile)'!$C$62:$C$71,0),MATCH($O139,'For Bill Impact(HideBeforeFile)'!$D$61:$S$61,0)) -> 8126.438903 | O139: ='For Bill Impact(HideBeforeFile)'!$P$5 -> Dist. Vol. Rate Tier 1
C140: =C104 -> Block 2 (Current > 1000m3, Proposed >5000m3) | D140: =INDEX('For Bill Impact(HideBeforeFile)'!$D$62:$S$71,MATCH(C132,'For Bill Impact(HideBeforeFile)'!$C$62:$C$71,0),MATCH($O140,'For Bill Impact(HideBeforeFile)'!$D$61:$S$61,0)) -> cents / m3 | F140: =INDEX('For Bill Impact(HideBeforeFile)'!$D$6:$S$15,MATCH(C132,'For Bill Impact(HideBeforeFile)'!$C$62:$C$71,0),MATCH($O140,'For Bill Impact(HideBeforeFile)'!$D$61:$S$61,0)) -> 9.308655499 | H140: =INDEX('For Bill Impact(HideBeforeFile)'!$D$20:$S$29,MATCH(C132,'For Bill Impact(HideBeforeFile)'!$C$62:$C$71,0),MATCH($O140,'For Bill Impact(HideBeforeFile)'!$D$61:$S$61,0)) -> 9.627606754 | J140: ='B1.2 Billing Determinants'!F18/'B1.2 Billing Determinants'!$D$18 -> 25038.65677 | L140: =INDEX('For Bill Impact(HideBeforeFile)'!$D$34:$S$43,MATCH(C132,'For Bill Impact(HideBeforeFile)'!$C$62:$C$71,0),MATCH($O140,'For Bill Impact(HideBeforeFile)'!$D$61:$S$61,0)) -> 25038.65677 | O140: ='For Bill Impact(HideBeforeFile)'!$Q$5 -> Dist. Vol. Rate Tier 2
C141: =INDEX('For Bill Impact(HideBeforeFile)'!$D$48:$S$57,MATCH(C132,'For Bill Impact(HideBeforeFile)'!$C$62:$C$71,0),MATCH($O141,'For Bill Impact(HideBeforeFile)'!$D$61:$S$61,0)) ->  | D141: =INDEX('For Bill Impact(HideBeforeFile)'!$D$62:$S$71,MATCH(C132,'For Bill Impact(HideBeforeFile)'!$C$62:$C$71,0),MATCH($O141,'For Bill Impact(HideBeforeFile)'!$D$61:$S$61,0)) ->  | F141: =INDEX('For Bill Impact(HideBeforeFile)'!$D$6:$S$15,MATCH(C132,'For Bill Impact(HideBeforeFile)'!$C$62:$C$71,0),MATCH($O141,'For Bill Impact(HideBeforeFile)'!$D$61:$S$61,0)) ->  | H141: =INDEX('For Bill Impact(HideBeforeFile)'!$D$20:$S$29,MATCH(C132,'For Bill Impact(HideBeforeFile)'!$C$62:$C$71,0),MATCH($O141,'For Bill Impact(HideBeforeFile)'!$D$61:$S$61,0)) ->  | J141: ='B1.2 Billing Determinants'!F78/'B1.2 Billing Determinants'!$D$17 -> 0 | L141: =INDEX('For Bill Impact(HideBeforeFile)'!$D$34:$S$43,MATCH(C132,'For Bill Impact(HideBeforeFile)'!$C$62:$C$71,0),MATCH($O141,'For Bill Impact(HideBeforeFile)'!$D$61:$S$61,0)) ->  | O141: ='For Bill Impact(HideBeforeFile)'!$R$5 -> Dist. Vol. Rate Tier 3
C142: =INDEX('For Bill Impact(HideBeforeFile)'!$D$48:$S$57,MATCH(C132,'For Bill Impact(HideBeforeFile)'!$C$62:$C$71,0),MATCH($O142,'For Bill Impact(HideBeforeFile)'!$D$61:$S$61,0)) ->  | D142: =INDEX('For Bill Impact(HideBeforeFile)'!$D$62:$S$71,MATCH(C132,'For Bill Impact(HideBeforeFile)'!$C$62:$C$71,0),MATCH($O142,'For Bill Impact(HideBeforeFile)'!$D$61:$S$61,0)) ->  | F142: =INDEX('For Bill Impact(HideBeforeFile)'!$D$6:$S$15,MATCH(C132,'For Bill Impact(HideBeforeFile)'!$C$62:$C$71,0),MATCH($O142,'For Bill Impact(HideBeforeFile)'!$D$61:$S$61,0)) ->  | H142: =INDEX('For Bill Impact(HideBeforeFile)'!$D$20:$S$29,MATCH(C132,'For Bill Impact(HideBeforeFile)'!$C$62:$C$71,0),MATCH($O142,'For Bill Impact(HideBeforeFile)'!$D$61:$S$61,0)) ->  | L142: =INDEX('For Bill Impact(HideBeforeFile)'!$D$34:$S$43,MATCH(C132,'For Bill Impact(HideBeforeFile)'!$C$62:$C$71,0),MATCH($O142,'For Bill Impact(HideBeforeFile)'!$D$61:$S$61,0)) ->  | O142: ='For Bill Impact(HideBeforeFile)'!$S$5 -> Dist. Capacity Rate
C143: =INDEX('For Bill Impact(HideBeforeFile)'!$D$48:$S$57,MATCH(C132,'For Bill Impact(HideBeforeFile)'!$C$62:$C$71,0),MATCH($O143,'For Bill Impact(HideBeforeFile)'!$D$61:$S$61,0)) -> Transportation | D143: =INDEX('For Bill Impact(HideBeforeFile)'!$D$62:$S$71,MATCH(C132,'For Bill Impact(HideBeforeFile)'!$C$62:$C$71,0),MATCH($O143,'For Bill Impact(HideBeforeFile)'!$D$61:$S$61,0)) -> cents / m3 | F143: =INDEX('For Bill Impact(HideBeforeFile)'!$D$6:$S$15,MATCH(C132,'For Bill Impact(HideBeforeFile)'!$C$62:$C$71,0),MATCH($O143,'For Bill Impact(HideBeforeFile)'!$D$61:$S$61,0)) -> 2.4159 | H143: =INDEX('For Bill Impact(HideBeforeFile)'!$D$20:$S$29,MATCH(C132,'For Bill Impact(HideBeforeFile)'!$C$62:$C$71,0),MATCH($O143,'For Bill Impact(HideBeforeFile)'!$D$61:$S$61,0)) -> 2.761870971 | L143: =INDEX('For Bill Impact(HideBeforeFile)'!$D$34:$S$43,MATCH(C132,'For Bill Impact(HideBeforeFile)'!$C$62:$C$71,0),MATCH($O143,'For Bill Impact(HideBeforeFile)'!$D$61:$S$61,0)) -> 33165.09568 | O143: ='For Bill Impact(HideBeforeFile)'!$E$5 -> Transp/System Gas
C145: =INDEX('For Bill Impact(HideBeforeFile)'!$D$48:$S$57,MATCH(C132,'For Bill Impact(HideBeforeFile)'!$C$62:$C$71,0),MATCH($O145,'For Bill Impact(HideBeforeFile)'!$D$61:$S$61,0)) -> REDA | D145: =INDEX('For Bill Impact(HideBeforeFile)'!$D$62:$S$71,MATCH(C132,'For Bill Impact(HideBeforeFile)'!$C$62:$C$71,0),MATCH($O145,'For Bill Impact(HideBeforeFile)'!$D$61:$S$61,0)) -> $ / month | F145: =INDEX('For Bill Impact(HideBeforeFile)'!$D$6:$S$15,MATCH(C132,'For Bill Impact(HideBeforeFile)'!$C$62:$C$71,0),MATCH($O145,'For Bill Impact(HideBeforeFile)'!$D$61:$S$61,0)) -> 0.02 | H145: =INDEX('For Bill Impact(HideBeforeFile)'!$D$20:$S$29,MATCH(C132,'For Bill Impact(HideBeforeFile)'!$C$62:$C$71,0),MATCH($O145,'For Bill Impact(HideBeforeFile)'!$D$61:$S$61,0)) -> 0 | L145: =INDEX('For Bill Impact(HideBeforeFile)'!$D$34:$S$43,MATCH(C132,'For Bill Impact(HideBeforeFile)'!$C$62:$C$71,0),MATCH($O145,'For Bill Impact(HideBeforeFile)'!$D$61:$S$61,0)) -> 12 | O145: =O85 -> REDA
C146: =INDEX('For Bill Impact(HideBeforeFile)'!$D$48:$S$57,MATCH(C132,'For Bill Impact(HideBeforeFile)'!$C$62:$C$71,0),MATCH($O146,'For Bill Impact(HideBeforeFile)'!$D$61:$S$61,0)) -> PGTVA | D146: =INDEX('For Bill Impact(HideBeforeFile)'!$D$62:$S$71,MATCH(C132,'For Bill Impact(HideBeforeFile)'!$C$62:$C$71,0),MATCH($O146,'For Bill Impact(HideBeforeFile)'!$D$61:$S$61,0)) -> cents / m3 | F146: =INDEX('For Bill Impact(HideBeforeFile)'!$D$6:$S$15,MATCH(C132,'For Bill Impact(HideBeforeFile)'!$C$62:$C$71,0),MATCH($O146,'For Bill Impact(HideBeforeFile)'!$D$61:$S$61,0)) -> 0.7981 | H146: =INDEX('For Bill Impact(HideBeforeFile)'!$D$20:$S$29,MATCH(C132,'For Bill Impact(HideBeforeFile)'!$C$62:$C$71,0),MATCH($O146,'For Bill Impact(HideBeforeFile)'!$D$61:$S$61,0)) -> 0.6290804449 | L146: =INDEX('For Bill Impact(HideBeforeFile)'!$D$34:$S$43,MATCH(C132,'For Bill Impact(HideBeforeFile)'!$C$62:$C$71,0),MATCH($O146,'For Bill Impact(HideBeforeFile)'!$D$61:$S$61,0)) -> 33165.09568 | O146: =O86 -> PGTVA
C147: =INDEX('For Bill Impact(HideBeforeFile)'!$D$48:$S$57,MATCH(C132,'For Bill Impact(HideBeforeFile)'!$C$62:$C$71,0),MATCH($O147,'For Bill Impact(HideBeforeFile)'!$D$61:$S$61,0)) -> ADVADA | D147: =INDEX('For Bill Impact(HideBeforeFile)'!$D$62:$S$71,MATCH(C132,'For Bill Impact(HideBeforeFile)'!$C$62:$C$71,0),MATCH($O147,'For Bill Impact(HideBeforeFile)'!$D$61:$S$61,0)) -> cents / m3 | F147: =INDEX('For Bill Impact(HideBeforeFile)'!$D$6:$S$15,MATCH(C132,'For Bill Impact(HideBeforeFile)'!$C$62:$C$71,0),MATCH($O147,'For Bill Impact(HideBeforeFile)'!$D$61:$S$61,0)) -> -0.029 | H147: =INDEX('For Bill Impact(HideBeforeFile)'!$D$20:$S$29,MATCH(C132,'For Bill Impact(HideBeforeFile)'!$C$62:$C$71,0),MATCH($O147,'For Bill Impact(HideBeforeFile)'!$D$61:$S$61,0)) -> 0 | L147: =INDEX('For Bill Impact(HideBeforeFile)'!$D$34:$S$43,MATCH(C132,'For Bill Impact(HideBeforeFile)'!$C$62:$C$71,0),MATCH($O147,'For Bill Impact(HideBeforeFile)'!$D$61:$S$61,0)) -> 33165.09568 | O147: =O87 -> ADVADA
C148: =INDEX('For Bill Impact(HideBeforeFile)'!$D$48:$S$57,MATCH(C132,'For Bill Impact(HideBeforeFile)'!$C$62:$C$71,0),MATCH($O148,'For Bill Impact(HideBeforeFile)'!$D$61:$S$61,0)) -> LDMDA | D148: =INDEX('For Bill Impact(HideBeforeFile)'!$D$62:$S$71,MATCH(C132,'For Bill Impact(HideBeforeFile)'!$C$62:$C$71,0),MATCH($O148,'For Bill Impact(HideBeforeFile)'!$D$61:$S$61,0)) -> $ / month | F148: =INDEX('For Bill Impact(HideBeforeFile)'!$D$6:$S$15,MATCH(C132,'For Bill Impact(HideBeforeFile)'!$C$62:$C$71,0),MATCH($O148,'For Bill Impact(HideBeforeFile)'!$D$61:$S$61,0)) -> 0 | H148: =INDEX('For Bill Impact(HideBeforeFile)'!$D$20:$S$29,MATCH(C132,'For Bill Impact(HideBeforeFile)'!$C$62:$C$71,0),MATCH($O148,'For Bill Impact(HideBeforeFile)'!$D$61:$S$61,0)) -> 0 | L148: =INDEX('For Bill Impact(HideBeforeFile)'!$D$34:$S$43,MATCH(C132,'For Bill Impact(HideBeforeFile)'!$C$62:$C$71,0),MATCH($O148,'For Bill Impact(HideBeforeFile)'!$D$61:$S$61,0)) -> 12 | O148: =O88 -> LDMDA
C149: =INDEX('For Bill Impact(HideBeforeFile)'!$D$48:$S$57,MATCH(C132,'For Bill Impact(HideBeforeFile)'!$C$62:$C$71,0),MATCH($O149,'For Bill Impact(HideBeforeFile)'!$D$61:$S$61,0)) -> UFGVA | D149: =INDEX('For Bill Impact(HideBeforeFile)'!$D$62:$S$71,MATCH(C132,'For Bill Impact(HideBeforeFile)'!$C$62:$C$71,0),MATCH($O149,'For Bill Impact(HideBeforeFile)'!$D$61:$S$61,0)) -> cents / m3 | F149: =INDEX('For Bill Impact(HideBeforeFile)'!$D$6:$S$15,MATCH(C132,'For Bill Impact(HideBeforeFile)'!$C$62:$C$71,0),MATCH($O149,'For Bill Impact(HideBeforeFile)'!$D$61:$S$61,0)) -> 0 | H149: =INDEX('For Bill Impact(HideBeforeFile)'!$D$20:$S$29,MATCH(C132,'For Bill Impact(HideBeforeFile)'!$C$62:$C$71,0),MATCH($O149,'For Bill Impact(HideBeforeFile)'!$D$61:$S$61,0)) -> 1.316518199 | L149: =INDEX('For Bill Impact(HideBeforeFile)'!$D$34:$S$43,MATCH(C132,'For Bill Impact(HideBeforeFile)'!$C$62:$C$71,0),MATCH($O149,'For Bill Impact(HideBeforeFile)'!$D$61:$S$61,0)) -> 33165.09568 | O149: =O89 -> UFGVA
C150: =INDEX('For Bill Impact(HideBeforeFile)'!$D$48:$S$57,MATCH(C132,'For Bill Impact(HideBeforeFile)'!$C$62:$C$71,0),MATCH($O150,'For Bill Impact(HideBeforeFile)'!$D$61:$S$61,0)) -> FCCVA | D150: =INDEX('For Bill Impact(HideBeforeFile)'!$D$62:$S$71,MATCH(C132,'For Bill Impact(HideBeforeFile)'!$C$62:$C$71,0),MATCH($O150,'For Bill Impact(HideBeforeFile)'!$D$61:$S$61,0)) -> $ / month | F150: =INDEX('For Bill Impact(HideBeforeFile)'!$D$6:$S$15,MATCH(C132,'For Bill Impact(HideBeforeFile)'!$C$62:$C$71,0),MATCH($O150,'For Bill Impact(HideBeforeFile)'!$D$61:$S$61,0)) -> 0 | H150: =INDEX('For Bill Impact(HideBeforeFile)'!$D$20:$S$29,MATCH(C132,'For Bill Impact(HideBeforeFile)'!$C$62:$C$71,0),MATCH($O150,'For Bill Impact(HideBeforeFile)'!$D$61:$S$61,0)) -> 0 | L150: =INDEX('For Bill Impact(HideBeforeFile)'!$D$34:$S$43,MATCH(C132,'For Bill Impact(HideBeforeFile)'!$C$62:$C$71,0),MATCH($O150,'For Bill Impact(HideBeforeFile)'!$D$61:$S$61,0)) -> 12 | O150: FCCVA
C151: =INDEX('For Bill Impact(HideBeforeFile)'!$D$48:$S$57,MATCH(C132,'For Bill Impact(HideBeforeFile)'!$C$62:$C$71,0),MATCH($O151,'For Bill Impact(HideBeforeFile)'!$D$61:$S$61,0)) -> GGEADA | D151: =INDEX('For Bill Impact(HideBeforeFile)'!$D$62:$S$71,MATCH(C132,'For Bill Impact(HideBeforeFile)'!$C$62:$C$71,0),MATCH($O151,'For Bill Impact(HideBeforeFile)'!$D$61:$S$61,0)) -> $ / month | F151: =INDEX('For Bill Impact(HideBeforeFile)'!$D$6:$S$15,MATCH(C132,'For Bill Impact(HideBeforeFile)'!$C$62:$C$71,0),MATCH($O151,'For Bill Impact(HideBeforeFile)'!$D$61:$S$61,0)) -> 0 | H151: =INDEX('For Bill Impact(HideBeforeFile)'!$D$20:$S$29,MATCH(C132,'For Bill Impact(HideBeforeFile)'!$C$62:$C$71,0),MATCH($O151,'For Bill Impact(HideBeforeFile)'!$D$61:$S$61,0)) -> 0 | L151: =INDEX('For Bill Impact(HideBeforeFile)'!$D$34:$S$43,MATCH(C132,'For Bill Impact(HideBeforeFile)'!$C$62:$C$71,0),MATCH($O151,'For Bill Impact(HideBeforeFile)'!$D$61:$S$61,0)) -> 12 | O151: GGEADA
C153: =INDEX('For Bill Impact(HideBeforeFile)'!$D$48:$S$57,MATCH(C132,'For Bill Impact(HideBeforeFile)'!$C$62:$C$71,0),MATCH($O153,'For Bill Impact(HideBeforeFile)'!$D$61:$S$61,0)) -> Federal Carbon | D153: =INDEX('For Bill Impact(HideBeforeFile)'!$D$62:$S$71,MATCH(C132,'For Bill Impact(HideBeforeFile)'!$C$62:$C$71,0),MATCH($O153,'For Bill Impact(HideBeforeFile)'!$D$61:$S$61,0)) -> cents / m3 | F153: =INDEX('For Bill Impact(HideBeforeFile)'!$D$6:$S$15,MATCH(C132,'For Bill Impact(HideBeforeFile)'!$C$62:$C$71,0),MATCH($O153,'For Bill Impact(HideBeforeFile)'!$D$61:$S$61,0)) -> 15.25 | H153: =INDEX('For Bill Impact(HideBeforeFile)'!$D$20:$S$29,MATCH(C132,'For Bill Impact(HideBeforeFile)'!$C$62:$C$71,0),MATCH($O153,'For Bill Impact(HideBeforeFile)'!$D$61:$S$61,0)) -> 15.25 | L153: =INDEX('For Bill Impact(HideBeforeFile)'!$D$34:$S$43,MATCH(C132,'For Bill Impact(HideBeforeFile)'!$C$62:$C$71,0),MATCH($O153,'For Bill Impact(HideBeforeFile)'!$D$61:$S$61,0)) -> 33165.09568 | O153: ='For Bill Impact(HideBeforeFile)'!$M$5 -> Federal Carbon
C154: =INDEX('For Bill Impact(HideBeforeFile)'!$D$48:$S$57,MATCH(C132,'For Bill Impact(HideBeforeFile)'!$C$62:$C$71,0),MATCH($O154,'For Bill Impact(HideBeforeFile)'!$D$61:$S$61,0)) -> Facility Carbon | D154: =INDEX('For Bill Impact(HideBeforeFile)'!$D$62:$S$71,MATCH(C132,'For Bill Impact(HideBeforeFile)'!$C$62:$C$71,0),MATCH($O154,'For Bill Impact(HideBeforeFile)'!$D$61:$S$61,0)) -> cents / m3 | F154: =INDEX('For Bill Impact(HideBeforeFile)'!$D$6:$S$15,MATCH(C132,'For Bill Impact(HideBeforeFile)'!$C$62:$C$71,0),MATCH($O154,'For Bill Impact(HideBeforeFile)'!$D$61:$S$61,0)) -> 0.0037 | H154: =INDEX('For Bill Impact(HideBeforeFile)'!$D$20:$S$29,MATCH(C132,'For Bill Impact(HideBeforeFile)'!$C$62:$C$71,0),MATCH($O154,'For Bill Impact(HideBeforeFile)'!$D$61:$S$61,0)) -> 0.0037 | L154: =INDEX('For Bill Impact(HideBeforeFile)'!$D$34:$S$43,MATCH(C132,'For Bill Impact(HideBeforeFile)'!$C$62:$C$71,0),MATCH($O154,'For Bill Impact(HideBeforeFile)'!$D$61:$S$61,0)) -> 33165.09568 | O154: ='For Bill Impact(HideBeforeFile)'!$N$5 -> Facility Carbon
C157: Commodity | F157: Current | H157: Proposed | J157: Change $ | L157: Change %
F158: =F136*$L136/100 -> 4853.247441 | H158: =H136*$L136/100 -> 5003.617985 | J158: =H158-F158 -> 150.3705438 | L158: =IFERROR(J158/F158,"") -> 0.03098349005
C160: Delivery | F160: Current Rate | H160: Proposed Rate | J160: Change $ | L160: Change %
C161: =IF(C138<>"",C138,"") -> Customer (excl. Bill 32) | F161: =F138*$L138 -> 246 | H161: =H138*$L138 -> 282 | J161: =IFERROR(H161-F161,"") -> 36 | L161: =IFERROR(J161/F161,"") -> 0.1463414634
C162: Bill 32 | F162: 12 | H162: 12 | J162: =IFERROR(H162-F162,"") -> 0 | L162: =IFERROR(J162/F162,"") -> 0
C163: =IF(C139<>"",C139,"") -> Block 1 (Current 1000m3, Proposed 5000m3) | F163: =IFERROR(F139*$J139/100,"") -> 988.3103731 | H163: =IFERROR(H139*$L139/100,"") -> 979.8994087 | J163: =IFERROR(H163-F163,"") -> -8.410964461 | L163: =IFERROR(J163/F163,"") -> -0.008510448428
C164: =IF(C140<>"",C140,"") -> Block 2 (Current > 1000m3, Proposed >5000m3) | F164: =IFERROR(F140*$J140/100,"") -> 2330.7623 | H164: =IFERROR(H140*$L140/100,"") -> 2410.623411 | J164: 79.86111022 | L164: 0.03426394455
C165: =IF(C141<>"",C141,"") ->  | F165: =IFERROR(F141*$L141/100,"") ->  | H165: =IFERROR(H141*$L141/100,"") -> 
C166: =IF(C142<>"",C142,"") ->  | F166: =IFERROR(F142*$L142/100,"") ->  | H166: =IFERROR(H142*$L142/100,"") -> 
C167: =IF(C143<>"",C143,"") -> Transportation | F167: =IFERROR(F143*$L143/100,"") -> 801.2355465 | H167: =IFERROR(H143*$L143/100,"") -> 915.9771499 | J167: 114.7416034 | L167: 0.1432058325
C168: Total Delivery | F168: =SUM(F161:F167) -> 4378.30822 | H168: =SUM(H161:H167) -> 4600.499969 | J168: =H168-F168 -> 222.1917492 | L168: =IF(ISERROR(J168/F168),0,J168/F168) -> 0.05074831145
C170: Rate Riders
C172: Rate Riders | F172: Current Rate | H172: Proposed Rate | J172: Change $ | L172: Change %
C173: =C145 -> REDA | F173: =F145*$L145 -> 0.24 | H173: =H145*$L145 -> 0 | J173: =IFERROR(H173-F173,"") -> -0.24 | L173: =IFERROR(J173/F173,"") -> -1
C174: =C146 -> PGTVA | F174: =IFERROR(F146*$L146/100,"") -> 264.6906286 | H174: =IFERROR(H146*$L146/100,"") -> 208.6351314 | J174: =IFERROR(H174-F174,"") -> -56.05549715 | L174: =IFERROR(J174/F174,"") -> -0.2117774152
C175: =C147 -> ADVADA | F175: =IFERROR(F147*$L147/100,"") -> -9.617877746 | H175: =IFERROR(H147*$L147/100,"") -> 0 | J175: 9.617877746 | L175: -1
C176: =C148 -> LDMDA | F176: =F148*$L148 -> 0 | H176: =H148*$L148 -> 0 | J176: 0
C177: =C149 -> UFGVA | F177: =IFERROR(F149*$L149/100,"") -> 0 | H177: =IFERROR(H149*$L149/100,"") -> 436.6245202 | J177: 436.6245202
C178: =C150 -> FCCVA | F178: =F150*$L150 -> 0 | H178: =H150*$L150 -> 0 | J178: 0
C179: GGEADA | F179: =F151*$L151 -> 0 | H179: =H151*$L151 -> 0 | J179: 0
C180: Total Rate Riders | F180: =SUM(F173:F179) -> 255.3127508 | H180: =SUM(H173:H179) -> 645.2596516 | J180: =SUM(J173:J177) -> 389.9469007 | L180: =IF(ISERROR(J180/F180),0,J180/F180) -> 1.527330302
C182: Carbon Tax
C183: Federal Carbon | F183: =F153*$L153/100 -> 5057.677091 | H183: =H153*$L153/100 -> 5057.677091 | J183: =IFERROR(H183-F183,"") -> 0 | L183: =IFERROR(J183/F183,"") -> 0
C184: Facility Carbon | F184: =F154*$L154/100 -> 1.22710854 | H184: =H154*$L154/100 -> 1.22710854 | J184: =IFERROR(H184-F184,"") -> 0 | L184: 0
C185: Total Carbon Tax | F185: =SUM(F183:F184) -> 5058.904199 | H185: =SUM(H183:H184) -> 5058.904199 | J185: =SUM(J183:J184) -> 0 | L185: =IF(ISERROR(J185/F185),0,J185/F185) -> 0
C187: Total Bill Impact | F187: =SUM(F158,F168,F180,F185) -> 14545.77261 | H187: =SUM(H158,H168,H180,H185) -> 15308.2818 | J187: =SUM(J158,J168,J180,J185) -> 762.5091937 | L187: =IFERROR(J187/F187,"") -> 0.05242136077
C191: =C132 -> R1 - Industrial | O191: Look-up

Sheet G1.1 R1-GS Bill Impact %
C1: ='E1.1 Proposed Dist Rates '!C2 -> EPCOR Natural Gas Limited Partnership
C2: ='E1.1 Proposed Dist Rates '!C2 -> EPCOR Natural Gas Limited Partnership
B3: ='G1.1 R1-GS Bill Impact %'!F41 -> 59.71378103 | C3: ='E1.1 Proposed Dist Rates '!C3 -> EB-2024-0130
C7: Rate 1 - General Service Bill Impacts
C10: ='For Bill Impact(HideBeforeFile)'!C7 -> R1 - Commercial | O10: Look-up
C11: R1-GS - Commercial - Bottom 10 Percentile | F11: Current | H11: Proposed | J11: Bill Determinant (Current) | L11: Bill Determinant (Proposed
C14: =INDEX('For Bill Impact(HideBeforeFile)'!$D$48:$S$57,MATCH(C10,'For Bill Impact(HideBeforeFile)'!$C$62:$C$71,0),MATCH($O14,'For Bill Impact(HideBeforeFile)'!$D$61:$S$61,0)) -> Commodity | D14: =INDEX('For Bill Impact(HideBeforeFile)'!$D$62:$S$71,MATCH(C10,'For Bill Impact(HideBeforeFile)'!$C$62:$C$71,0),MATCH($O14,'For Bill Impact(HideBeforeFile)'!$D$61:$S$61,0)) -> cents / m3 | F14: =INDEX('For Bill Impact(HideBeforeFile)'!$D$6:$S$15,MATCH(C10,'For Bill Impact(HideBeforeFile)'!$C$62:$C$71,0),MATCH($O14,'For Bill Impact(HideBeforeFile)'!$D$61:$S$61,0)) -> 14.6336 | H14: =INDEX('For Bill Impact(HideBeforeFile)'!$D$20:$S$29,MATCH(C10,'For Bill Impact(HideBeforeFile)'!$C$62:$C$71,0),MATCH($O14,'For Bill Impact(HideBeforeFile)'!$D$61:$S$61,0)) -> 15.087 | L14: 491 | O14: ='For Bill Impact(HideBeforeFile)'!$D$5 -> Commodity
C16: =INDEX('For Bill Impact(HideBeforeFile)'!$D$48:$S$57,MATCH(C10,'For Bill Impact(HideBeforeFile)'!$C$62:$C$71,0),MATCH($O16,'For Bill Impact(HideBeforeFile)'!$D$61:$S$61,0)) -> Customer (excl. Bill 32) | D16: =INDEX('For Bill Impact(HideBeforeFile)'!$D$62:$S$71,MATCH(C10,'For Bill Impact(HideBeforeFile)'!$C$62:$C$71,0),MATCH($O16,'For Bill Impact(HideBeforeFile)'!$D$61:$S$61,0)) -> $ / month | F16: =INDEX('For Bill Impact(HideBeforeFile)'!$D$6:$S$15,MATCH(C10,'For Bill Impact(HideBeforeFile)'!$C$62:$C$71,0),MATCH($O16,'For Bill Impact(HideBeforeFile)'!$D$61:$S$61,0)) -> 20.5 | H16: =INDEX('For Bill Impact(HideBeforeFile)'!$D$20:$S$29,MATCH(C10,'For Bill Impact(HideBeforeFile)'!$C$62:$C$71,0),MATCH($O16,'For Bill Impact(HideBeforeFile)'!$D$61:$S$61,0)) -> 23.5 | L16: =INDEX('For Bill Impact(HideBeforeFile)'!$D$34:$S$43,MATCH(C10,'For Bill Impact(HideBeforeFile)'!$C$62:$C$71,0),MATCH($O16,'For Bill Impact(HideBeforeFile)'!$D$61:$S$61,0)) -> 12 | O16: ='For Bill Impact(HideBeforeFile)'!$O$5 -> Dist. Customer Rate
C17: Block 1 (First 1,000 m3 per month) | D17: =INDEX('For Bill Impact(HideBeforeFile)'!$D$62:$S$71,MATCH(C10,'For Bill Impact(HideBeforeFile)'!$C$62:$C$71,0),MATCH($O17,'For Bill Impact(HideBeforeFile)'!$D$61:$S$61,0)) -> cents / m3 | F17: =INDEX('For Bill Impact(HideBeforeFile)'!$D$6:$S$15,MATCH(C10,'For Bill Impact(HideBeforeFile)'!$C$62:$C$71,0),MATCH($O17,'For Bill Impact(HideBeforeFile)'!$D$61:$S$61,0)) -> 12.1616662 | H17: =INDEX('For Bill Impact(HideBeforeFile)'!$D$20:$S$29,MATCH(C10,'For Bill Impact(HideBeforeFile)'!$C$62:$C$71,0),MATCH($O17,'For Bill Impact(HideBeforeFile)'!$D$61:$S$61,0)) -> 12.05816496 | J17: =L14 -> 491 | L17: =L14 -> 491 | O17: ='For Bill Impact(HideBeforeFile)'!$P$5 -> Dist. Vol. Rate Tier 1
C18: Block 2 (Over 1,000 m3 per month) | D18: =INDEX('For Bill Impact(HideBeforeFile)'!$D$62:$S$71,MATCH(C10,'For Bill Impact(HideBeforeFile)'!$C$62:$C$71,0),MATCH($O18,'For Bill Impact(HideBeforeFile)'!$D$61:$S$61,0)) -> cents / m3 | F18: =INDEX('For Bill Impact(HideBeforeFile)'!$D$6:$S$15,MATCH(C10,'For Bill Impact(HideBeforeFile)'!$C$62:$C$71,0),MATCH($O18,'For Bill Impact(HideBeforeFile)'!$D$61:$S$61,0)) -> 9.308655499 | H18: =INDEX('For Bill Impact(HideBeforeFile)'!$D$20:$S$29,MATCH(C10,'For Bill Impact(HideBeforeFile)'!$C$62:$C$71,0),MATCH($O18,'For Bill Impact(HideBeforeFile)'!$D$61:$S$61,0)) -> 9.627606754 | J18: 0 | L18: 0 | O18: ='For Bill Impact(HideBeforeFile)'!$Q$5 -> Dist. Vol. Rate Tier 2
C19: =INDEX('For Bill Impact(HideBeforeFile)'!$D$48:$S$57,MATCH(C10,'For Bill Impact(HideBeforeFile)'!$C$62:$C$71,0),MATCH($O19,'For Bill Impact(HideBeforeFile)'!$D$61:$S$61,0)) ->  | D19: =INDEX('For Bill Impact(HideBeforeFile)'!$D$62:$S$71,MATCH(C10,'For Bill Impact(HideBeforeFile)'!$C$62:$C$71,0),MATCH($O19,'For Bill Impact(HideBeforeFile)'!$D$61:$S$61,0)) ->  | F19: =INDEX('For Bill Impact(HideBeforeFile)'!$D$6:$S$15,MATCH(C10,'For Bill Impact(HideBeforeFile)'!$C$62:$C$71,0),MATCH($O19,'For Bill Impact(HideBeforeFile)'!$D$61:$S$61,0)) ->  | H19: =INDEX('For Bill Impact(HideBeforeFile)'!$D$20:$S$29,MATCH(C10,'For Bill Impact(HideBeforeFile)'!$C$62:$C$71,0),MATCH($O19,'For Bill Impact(HideBeforeFile)'!$D$61:$S$61,0)) ->  | J19: =L19 ->  | L19: =INDEX('For Bill Impact(HideBeforeFile)'!$D$34:$S$43,MATCH(C10,'For Bill Impact(HideBeforeFile)'!$C$62:$C$71,0),MATCH($O19,'For Bill Impact(HideBeforeFile)'!$D$61:$S$61,0)) ->  | O19: ='For Bill Impact(HideBeforeFile)'!$R$5 -> Dist. Vol. Rate Tier 3
C20: =INDEX('For Bill Impact(HideBeforeFile)'!$D$48:$S$57,MATCH(C10,'For Bill Impact(HideBeforeFile)'!$C$62:$C$71,0),MATCH($O20,'For Bill Impact(HideBeforeFile)'!$D$61:$S$61,0)) ->  | D20: =INDEX('For Bill Impact(HideBeforeFile)'!$D$62:$S$71,MATCH(C10,'For Bill Impact(HideBeforeFile)'!$C$62:$C$71,0),MATCH($O20,'For Bill Impact(HideBeforeFile)'!$D$61:$S$61,0)) ->  | F20: =INDEX('For Bill Impact(HideBeforeFile)'!$D$6:$S$15,MATCH(C10,'For Bill Impact(HideBeforeFile)'!$C$62:$C$71,0),MATCH($O20,'For Bill Impact(HideBeforeFile)'!$D$61:$S$61,0)) ->  | H20: =INDEX('For Bill Impact(HideBeforeFile)'!$D$20:$S$29,MATCH(C10,'For Bill Impact(HideBeforeFile)'!$C$62:$C$71,0),MATCH($O20,'For Bill Impact(HideBeforeFile)'!$D$61:$S$61,0)) ->  | L20: =INDEX('For Bill Impact(HideBeforeFile)'!$D$34:$S$43,MATCH(C10,'For Bill Impact(HideBeforeFile)'!$C$62:$C$71,0),MATCH($O20,'For Bill Impact(HideBeforeFile)'!$D$61:$S$61,0)) ->  | O20: ='For Bill Impact(HideBeforeFile)'!$S$5 -> Dist. Capacity Rate
C21: =INDEX('For Bill Impact(HideBeforeFile)'!$D$48:$S$57,MATCH(C10,'For Bill Impact(HideBeforeFile)'!$C$62:$C$71,0),MATCH($O21,'For Bill Impact(HideBeforeFile)'!$D$61:$S$61,0)) -> Transportation | D21: =INDEX('For Bill Impact(HideBeforeFile)'!$D$62:$S$71,MATCH(C10,'For Bill Impact(HideBeforeFile)'!$C$62:$C$71,0),MATCH($O21,'For Bill Impact(HideBeforeFile)'!$D$61:$S$61,0)) -> cents / m3 | F21: =INDEX('For Bill Impact(HideBeforeFile)'!$D$6:$S$15,MATCH(C10,'For Bill Impact(HideBeforeFile)'!$C$62:$C$71,0),MATCH($O21,'For Bill Impact(HideBeforeFile)'!$D$61:$S$61,0)) -> 2.4159 | H21: =INDEX('For Bill Impact(HideBeforeFile)'!$D$20:$S$29,MATCH(C10,'For Bill Impact(HideBeforeFile)'!$C$62:$C$71,0),MATCH($O21,'For Bill Impact(HideBeforeFile)'!$D$61:$S$61,0)) -> 2.761870971 | L21: =$L$17 -> 491 | O21: ='For Bill Impact(HideBeforeFile)'!$E$5 -> Transp/System Gas
C23: =INDEX('For Bill Impact(HideBeforeFile)'!$D$48:$S$57,MATCH(C10,'For Bill Impact(HideBeforeFile)'!$C$62:$C$71,0),MATCH($O23,'For Bill Impact(HideBeforeFile)'!$D$61:$S$61,0)) -> REDA | D23: =INDEX('For Bill Impact(HideBeforeFile)'!$D$62:$S$71,MATCH(C10,'For Bill Impact(HideBeforeFile)'!$C$62:$C$71,0),MATCH($O23,'For Bill Impact(HideBeforeFile)'!$D$61:$S$61,0)) -> $ / month | F23: =INDEX('For Bill Impact(HideBeforeFile)'!$D$6:$S$15,MATCH(C10,'For Bill Impact(HideBeforeFile)'!$C$62:$C$71,0),MATCH($O23,'For Bill Impact(HideBeforeFile)'!$D$61:$S$61,0)) -> 0.02 | H23: =INDEX('For Bill Impact(HideBeforeFile)'!$D$20:$S$29,MATCH(C10,'For Bill Impact(HideBeforeFile)'!$C$62:$C$71,0),MATCH($O23,'For Bill Impact(HideBeforeFile)'!$D$61:$S$61,0)) -> 0 | L23: =INDEX('For Bill Impact(HideBeforeFile)'!$D$34:$S$43,MATCH(C10,'For Bill Impact(HideBeforeFile)'!$C$62:$C$71,0),MATCH($O23,'For Bill Impact(HideBeforeFile)'!$D$61:$S$61,0)) -> 12 | O23: ='For Bill Impact(HideBeforeFile)'!$F$5 -> REDA
C24: =INDEX('For Bill Impact(HideBeforeFile)'!$D$48:$S$57,MATCH(C10,'For Bill Impact(HideBeforeFile)'!$C$62:$C$71,0),MATCH($O24,'For Bill Impact(HideBeforeFile)'!$D$61:$S$61,0)) -> PGTVA | D24: =INDEX('For Bill Impact(HideBeforeFile)'!$D$62:$S$71,MATCH(C10,'For Bill Impact(HideBeforeFile)'!$C$62:$C$71,0),MATCH($O24,'For Bill Impact(HideBeforeFile)'!$D$61:$S$61,0)) -> cents / m3 | F24: =INDEX('For Bill Impact(HideBeforeFile)'!$D$6:$S$15,MATCH(C10,'For Bill Impact(HideBeforeFile)'!$C$62:$C$71,0),MATCH($O24,'For Bill Impact(HideBeforeFile)'!$D$61:$S$61,0)) -> 0.7981 | H24: =INDEX('For Bill Impact(HideBeforeFile)'!$D$20:$S$29,MATCH(C10,'For Bill Impact(HideBeforeFile)'!$C$62:$C$71,0),MATCH($O24,'For Bill Impact(HideBeforeFile)'!$D$61:$S$61,0)) -> 0.6290804449 | L24: =$L$17 -> 491 | O24: ='For Bill Impact(HideBeforeFile)'!$G$5 -> PGTVA
C25: =INDEX('For Bill Impact(HideBeforeFile)'!$D$48:$S$57,MATCH(C10,'For Bill Impact(HideBeforeFile)'!$C$62:$C$71,0),MATCH($O25,'For Bill Impact(HideBeforeFile)'!$D$61:$S$61,0)) -> ADVADA | D25: =INDEX('For Bill Impact(HideBeforeFile)'!$D$62:$S$71,MATCH(C10,'For Bill Impact(HideBeforeFile)'!$C$62:$C$71,0),MATCH($O25,'For Bill Impact(HideBeforeFile)'!$D$61:$S$61,0)) -> cents / m3 | F25: =INDEX('For Bill Impact(HideBeforeFile)'!$D$6:$S$15,MATCH(C10,'For Bill Impact(HideBeforeFile)'!$C$62:$C$71,0),MATCH($O25,'For Bill Impact(HideBeforeFile)'!$D$61:$S$61,0)) -> -0.029 | H25: =INDEX('For Bill Impact(HideBeforeFile)'!$D$20:$S$29,MATCH(C10,'For Bill Impact(HideBeforeFile)'!$C$62:$C$71,0),MATCH($O25,'For Bill Impact(HideBeforeFile)'!$D$61:$S$61,0)) -> 0 | L25: 491 | O25: ='For Bill Impact(HideBeforeFile)'!$H$5 -> ADVADA
C26: =INDEX('For Bill Impact(HideBeforeFile)'!$D$48:$S$57,MATCH(C10,'For Bill Impact(HideBeforeFile)'!$C$62:$C$71,0),MATCH($O26,'For Bill Impact(HideBeforeFile)'!$D$61:$S$61,0)) -> LDMDA | D26: =INDEX('For Bill Impact(HideBeforeFile)'!$D$62:$S$71,MATCH(C10,'For Bill Impact(HideBeforeFile)'!$C$62:$C$71,0),MATCH($O26,'For Bill Impact(HideBeforeFile)'!$D$61:$S$61,0)) -> $ / month | F26: =INDEX('For Bill Impact(HideBeforeFile)'!$D$6:$S$15,MATCH(C10,'For Bill Impact(HideBeforeFile)'!$C$62:$C$71,0),MATCH($O26,'For Bill Impact(HideBeforeFile)'!$D$61:$S$61,0)) -> 0 | H26: =INDEX('For Bill Impact(HideBeforeFile)'!$D$20:$S$29,MATCH(C10,'For Bill Impact(HideBeforeFile)'!$C$62:$C$71,0),MATCH($O26,'For Bill Impact(HideBeforeFile)'!$D$61:$S$61,0)) -> 0 | L26: 491 | O26: LDMDA
C27: =INDEX('For Bill Impact(HideBeforeFile)'!$D$48:$S$57,MATCH(C10,'For Bill Impact(HideBeforeFile)'!$C$62:$C$71,0),MATCH($O27,'For Bill Impact(HideBeforeFile)'!$D$61:$S$61,0)) -> UFGVA | D27: =INDEX('For Bill Impact(HideBeforeFile)'!$D$62:$S$71,MATCH(C10,'For Bill Impact(HideBeforeFile)'!$C$62:$C$71,0),MATCH($O27,'For Bill Impact(HideBeforeFile)'!$D$61:$S$61,0)) -> cents / m3 | F27: =INDEX('For Bill Impact(HideBeforeFile)'!$D$6:$S$15,MATCH(C10,'For Bill Impact(HideBeforeFile)'!$C$62:$C$71,0),MATCH($O27,'For Bill Impact(HideBeforeFile)'!$D$61:$S$61,0)) -> 0 | H27: =INDEX('For Bill Impact(HideBeforeFile)'!$D$20:$S$29,MATCH(C10,'For Bill Impact(HideBeforeFile)'!$C$62:$C$71,0),MATCH($O27,'For Bill Impact(HideBeforeFile)'!$D$61:$S$61,0)) -> 1.316518199 | L27: 491 | O27: UFGVA
C28: =INDEX('For Bill Impact(HideBeforeFile)'!$D$48:$S$57,MATCH(C10,'For Bill Impact(HideBeforeFile)'!$C$62:$C$71,0),MATCH($O28,'For Bill Impact(HideBeforeFile)'!$D$61:$S$61,0)) -> FCCVA | D28: =INDEX('For Bill Impact(HideBeforeFile)'!$D$62:$S$71,MATCH(C10,'For Bill Impact(HideBeforeFile)'!$C$62:$C$71,0),MATCH($O28,'For Bill Impact(HideBeforeFile)'!$D$61:$S$61,0)) -> $ / month | F28: =INDEX('For Bill Impact(HideBeforeFile)'!$D$6:$S$15,MATCH(C10,'For Bill Impact(HideBeforeFile)'!$C$62:$C$71,0),MATCH($O28,'For Bill Impact(HideBeforeFile)'!$D$61:$S$61,0)) -> 0 | H28: =INDEX('For Bill Impact(HideBeforeFile)'!$D$20:$S$29,MATCH(C10,'For Bill Impact(HideBeforeFile)'!$C$62:$C$71,0),MATCH($O28,'For Bill Impact(HideBeforeFile)'!$D$61:$S$61,0)) -> 0 | L28: =INDEX('For Bill Impact(HideBeforeFile)'!$D$34:$S$43,MATCH(C10,'For Bill Impact(HideBeforeFile)'!$C$62:$C$71,0),MATCH($O28,'For Bill Impact(HideBeforeFile)'!$D$61:$S$61,0)) -> 12 | O28: FCCVA
C29: =INDEX('For Bill Impact(HideBeforeFile)'!$D$48:$S$57,MATCH(C10,'For Bill Impact(HideBeforeFile)'!$C$62:$C$71,0),MATCH($O29,'For Bill Impact(HideBeforeFile)'!$D$61:$S$61,0)) -> GGEADA | D29: =INDEX('For Bill Impact(HideBeforeFile)'!$D$62:$S$71,MATCH(C10,'For Bill Impact(HideBeforeFile)'!$C$62:$C$71,0),MATCH($O29,'For Bill Impact(HideBeforeFile)'!$D$61:$S$61,0)) -> $ / month | F29: =INDEX('For Bill Impact(HideBeforeFile)'!$D$6:$S$15,MATCH(C10,'For Bill Impact(HideBeforeFile)'!$C$62:$C$71,0),MATCH($O29,'For Bill Impact(HideBeforeFile)'!$D$61:$S$61,0)) -> 0 | H29: =INDEX('For Bill Impact(HideBeforeFile)'!$D$20:$S$29,MATCH(C10,'For Bill Impact(HideBeforeFile)'!$C$62:$C$71,0),MATCH($O29,'For Bill Impact(HideBeforeFile)'!$D$61:$S$61,0)) -> 0 | L29: =INDEX('For Bill Impact(HideBeforeFile)'!$D$34:$S$43,MATCH(C10,'For Bill Impact(HideBeforeFile)'!$C$62:$C$71,0),MATCH($O29,'For Bill Impact(HideBeforeFile)'!$D$61:$S$61,0)) -> 12 | O29: GGEADA
C31: =INDEX('For Bill Impact(HideBeforeFile)'!$D$48:$S$57,MATCH(C10,'For Bill Impact(HideBeforeFile)'!$C$62:$C$71,0),MATCH($O31,'For Bill Impact(HideBeforeFile)'!$D$61:$S$61,0)) -> Federal Carbon | D31: =INDEX('For Bill Impact(HideBeforeFile)'!$D$62:$S$71,MATCH(C10,'For Bill Impact(HideBeforeFile)'!$C$62:$C$71,0),MATCH($O31,'For Bill Impact(HideBeforeFile)'!$D$61:$S$61,0)) -> cents / m3 | F31: =INDEX('For Bill Impact(HideBeforeFile)'!$D$6:$S$15,MATCH(C10,'For Bill Impact(HideBeforeFile)'!$C$62:$C$71,0),MATCH($O31,'For Bill Impact(HideBeforeFile)'!$D$61:$S$61,0)) -> 15.25 | H31: =INDEX('For Bill Impact(HideBeforeFile)'!$D$20:$S$29,MATCH(C10,'For Bill Impact(HideBeforeFile)'!$C$62:$C$71,0),MATCH($O31,'For Bill Impact(HideBeforeFile)'!$D$61:$S$61,0)) -> 15.25 | L31: =L14 -> 491 | O31: ='For Bill Impact(HideBeforeFile)'!$M$5 -> Federal Carbon
C32: =INDEX('For Bill Impact(HideBeforeFile)'!$D$48:$S$57,MATCH(C10,'For Bill Impact(HideBeforeFile)'!$C$62:$C$71,0),MATCH($O32,'For Bill Impact(HideBeforeFile)'!$D$61:$S$61,0)) -> Facility Carbon | D32: =INDEX('For Bill Impact(HideBeforeFile)'!$D$62:$S$71,MATCH(C10,'For Bill Impact(HideBeforeFile)'!$C$62:$C$71,0),MATCH($O32,'For Bill Impact(HideBeforeFile)'!$D$61:$S$61,0)) -> cents / m3 | F32: =INDEX('For Bill Impact(HideBeforeFile)'!$D$6:$S$15,MATCH(C10,'For Bill Impact(HideBeforeFile)'!$C$62:$C$71,0),MATCH($O32,'For Bill Impact(HideBeforeFile)'!$D$61:$S$61,0)) -> 0.0037 | H32: =INDEX('For Bill Impact(HideBeforeFile)'!$D$20:$S$29,MATCH(C10,'For Bill Impact(HideBeforeFile)'!$C$62:$C$71,0),MATCH($O32,'For Bill Impact(HideBeforeFile)'!$D$61:$S$61,0)) -> 0.0037 | L32: =L31 -> 491 | O32: ='For Bill Impact(HideBeforeFile)'!$N$5 -> Facility Carbon
C35: Commodity | F35: Current | H35: Proposed | J35: Change $ | L35: Change %
F36: =F14*$L14/100 -> 71.850976 | H36: =H14*$L14/100 -> 74.07717 | J36: =H36-F36 -> 2.226194 | L36: =IFERROR(J36/F36,"") -> 0.03098349005 | O36: ='For Bill Impact(HideBeforeFile)'!$D$5 -> Commodity
C38: Delivery | F38: Current Rate | H38: Proposed Rate | J38: Change $ | L38: Change %
C39: =IF(C16<>"",C16,"") -> Customer (excl. Bill 32) | F39: =F16*$L16 -> 246 | H39: =H16*$L16 -> 282 | J39: =IFERROR(H39-F39,"") -> 36 | L39: =IFERROR(J39/F39,"") -> 0.1463414634 | O39: ='For Bill Impact(HideBeforeFile)'!$O$5 -> Dist. Customer Rate
C40: Bill 32 | F40: 12 | H40: 12 | J40: =IFERROR(H40-F40,"") -> 0 | L40: =IFERROR(J40/F40,"") -> 0
C41: =IF(C17<>"",C17,"") -> Block 1 (First 1,000 m3 per month) | F41: =IFERROR(F17*$J17/100,"") -> 59.71378103 | H41: =IFERROR(H17*$L17/100,"") -> 59.20558997 | J41: =IFERROR(H41-F41,"") -> -0.5081910539 | L41: =IFERROR(J41/F41,"") -> -0.008510448428 | O41: ='For Bill Impact(HideBeforeFile)'!$P$5 -> Dist. Vol. Rate Tier 1
C42: =IF(C18<>"",C18,"") -> Block 2 (Over 1,000 m3 per month) | F42: =IFERROR(F18*$J18/100,"") -> 0 | H42: =IFERROR(H18*$L18/100,"") -> 0 | J42: 0 | O42: ='For Bill Impact(HideBeforeFile)'!$Q$5 -> Dist. Vol. Rate Tier 2
C43: =IF(C19<>"",C19,"") ->  | F43: =IFERROR(F19*$L19/100,"") ->  | H43: =IFERROR(H19*$L19/100,"") ->  | O43: ='For Bill Impact(HideBeforeFile)'!$R$5 -> Dist. Vol. Rate Tier 3
C44: =IF(C20<>"",C20,"") ->  | F44: =IFERROR(F20*$L20/100,"") ->  | H44: =IFERROR(H20*$L20/100,"") ->  | O44: ='For Bill Impact(HideBeforeFile)'!$S$5 -> Dist. Capacity Rate
C45: =IF(C21<>"",C21,"") -> Transportation | F45: =IFERROR(F21*$L21/100,"") -> 11.862069 | H45: =IFERROR(H21*$L21/100,"") -> 13.56078647 | J45: 1.698717466 | L45: 0.1432058325 | O45: ='For Bill Impact(HideBeforeFile)'!$E$5 -> Transp/System Gas
C46: Total Delivery | F46: =SUM(F39:F45) -> 329.57585 | H46: =SUM(H39:H45) -> 366.7663764 | J46: =H46-F46 -> 37.19052641 | L46: =IF(ISERROR(J46/F46),0,J46/F46) -> 0.1128436031
C48: Rate Riders
C50: Rate Riders | F50: Current Rate | H50: Proposed Rate | J50: Change $ | L50: Change %
C51: =C23 -> REDA | F51: =F23*$L23 -> 0.24 | H51: =H23*$L23 -> 0 | J51: =IFERROR(H51-F51,"") -> -0.24 | L51: =IFERROR(J51/F51,"") -> -1 | O51: ='For Bill Impact(HideBeforeFile)'!$F$5 -> REDA
C52: =C24 -> PGTVA | F52: =IFERROR(F24*$L24/100,"") -> 3.918671 | H52: =IFERROR(H24*$L24/100,"") -> 3.088784985 | J52: =IFERROR(H52-F52,"") -> -0.8298860154 | L52: =IFERROR(J52/F52,"") -> -0.2117774152 | O52: ='For Bill Impact(HideBeforeFile)'!$G$5 -> PGTVA
C53: =C25 -> ADVADA | F53: =IFERROR(F25*$L25/100,"") -> -0.14239 | H53: =IFERROR(H25*$L25/100,"") -> 0 | J53: 0.14239 | L53: -1 | O53: ='For Bill Impact(HideBeforeFile)'!$H$5 -> ADVADA
C54: =C26 -> LDMDA | F54: =F26*$L26 -> 0 | H54: =H26*$L26 -> 0 | J54: 0 | O54: ='For Bill Impact(HideBeforeFile)'!$I$5 -> LDMDA
C55: =C27 -> UFGVA | F55: =IFERROR(F27*$L27/100,"") -> 0 | H55: =IFERROR(H27*$L27/100,"") -> 6.464104355 | J55: 6.464104355 | O55: ='For Bill Impact(HideBeforeFile)'!$J$5 -> UFGVA
C56: =C28 -> FCCVA | F56: =F28*$L28 -> 0 | H56: =H28*$L28 -> 0 | J56: 0
C57: GGEADA | F57: =F29*$L29 -> 0 | H57: =H29*$L29 -> 0 | J57: 0
C58: Total Rate Riders | F58: =SUM(F51:F57) -> 4.016281 | H58: =SUM(H51:H57) -> 9.55288934 | J58: =SUM(J51:J57) -> 5.53660834 | L58: =IF(ISERROR(J58/F58),0,J58/F58) -> 1.378541078
C60: Carbon Tax
C61: Federal Carbon | F61: =F31*$L31/100 -> 74.8775 | H61: =H31*$L31/100 -> 74.8775 | J61: =IFERROR(H61-F61,"") -> 0 | L61: =IFERROR(J61/F61,"") -> 0
C62: Facility Carbon | F62: =F32*$L32/100 -> 0.018167 | H62: =H32*$L32/100 -> 0.018167 | J62: =IFERROR(H62-F62,"") -> 0 | L62: 0
C63: Total Carbon Tax | F63: =SUM(F61:F62) -> 74.895667 | H63: =SUM(H61:H62) -> 74.895667 | J63: =SUM(J61:J62) -> 0 | L63: =IF(ISERROR(J63/F63),0,J63/F63) -> 0
C65: Total Bill Impact | F65: =SUM(F36,F46,F58,F63) -> 480.338774 | H65: =SUM(H36,H46,H58,H63) -> 525.2921028 | J65: =SUM(J36,J46,J58,J63) -> 44.95332875 | L65: =IFERROR(J65/F65,"") -> 0.09358671667
C70: ='For Bill Impact(HideBeforeFile)'!C8 -> R1 - Industrial | O70: Look-up
C71: R1-GS - Commercial - Top 10 Percentile | F71: Current | H71: Proposed | J71: Bill Determinant (Current) | L71: Bill Determinant (Proposed
C74: =INDEX('For Bill Impact(HideBeforeFile)'!$D$48:$S$57,MATCH(C70,'For Bill Impact(HideBeforeFile)'!$C$62:$C$71,0),MATCH($O74,'For Bill Impact(HideBeforeFile)'!$D$61:$S$61,0)) -> Commodity | D74: =INDEX('For Bill Impact(HideBeforeFile)'!$D$62:$S$71,MATCH(C70,'For Bill Impact(HideBeforeFile)'!$C$62:$C$71,0),MATCH($O74,'For Bill Impact(HideBeforeFile)'!$D$61:$S$61,0)) -> cents / m3 | F74: =INDEX('For Bill Impact(HideBeforeFile)'!$D$6:$S$15,MATCH(C70,'For Bill Impact(HideBeforeFile)'!$C$62:$C$71,0),MATCH($O74,'For Bill Impact(HideBeforeFile)'!$D$61:$S$61,0)) -> 14.6336 | H74: =INDEX('For Bill Impact(HideBeforeFile)'!$D$20:$S$29,MATCH(C70,'For Bill Impact(HideBeforeFile)'!$C$62:$C$71,0),MATCH($O74,'For Bill Impact(HideBeforeFile)'!$D$61:$S$61,0)) -> 15.087 | L74: 52425 | O74: ='For Bill Impact(HideBeforeFile)'!$D$5 -> Commodity
C76: =INDEX('For Bill Impact(HideBeforeFile)'!$D$48:$S$57,MATCH(C70,'For Bill Impact(HideBeforeFile)'!$C$62:$C$71,0),MATCH($O76,'For Bill Impact(HideBeforeFile)'!$D$61:$S$61,0)) -> Customer (excl. Bill 32) | D76: =INDEX('For Bill Impact(HideBeforeFile)'!$D$62:$S$71,MATCH(C70,'For Bill Impact(HideBeforeFile)'!$C$62:$C$71,0),MATCH($O76,'For Bill Impact(HideBeforeFile)'!$D$61:$S$61,0)) -> $ / month | F76: =INDEX('For Bill Impact(HideBeforeFile)'!$D$6:$S$15,MATCH(C70,'For Bill Impact(HideBeforeFile)'!$C$62:$C$71,0),MATCH($O76,'For Bill Impact(HideBeforeFile)'!$D$61:$S$61,0)) -> 20.5 | H76: =INDEX('For Bill Impact(HideBeforeFile)'!$D$20:$S$29,MATCH(C70,'For Bill Impact(HideBeforeFile)'!$C$62:$C$71,0),MATCH($O76,'For Bill Impact(HideBeforeFile)'!$D$61:$S$61,0)) -> 23.5 | L76: =INDEX('For Bill Impact(HideBeforeFile)'!$D$34:$S$43,MATCH(C70,'For Bill Impact(HideBeforeFile)'!$C$62:$C$71,0),MATCH($O76,'For Bill Impact(HideBeforeFile)'!$D$61:$S$61,0)) -> 12 | O76: ='For Bill Impact(HideBeforeFile)'!$O$5 -> Dist. Customer Rate
C77: =C41 -> Block 1 (First 1,000 m3 per month) | D77: =INDEX('For Bill Impact(HideBeforeFile)'!$D$62:$S$71,MATCH(C70,'For Bill Impact(HideBeforeFile)'!$C$62:$C$71,0),MATCH($O77,'For Bill Impact(HideBeforeFile)'!$D$61:$S$61,0)) -> cents / m3 | F77: =INDEX('For Bill Impact(HideBeforeFile)'!$D$6:$S$15,MATCH(C70,'For Bill Impact(HideBeforeFile)'!$C$62:$C$71,0),MATCH($O77,'For Bill Impact(HideBeforeFile)'!$D$61:$S$61,0)) -> 12.1616662 | H77: =INDEX('For Bill Impact(HideBeforeFile)'!$D$20:$S$29,MATCH(C70,'For Bill Impact(HideBeforeFile)'!$C$62:$C$71,0),MATCH($O77,'For Bill Impact(HideBeforeFile)'!$D$61:$S$61,0)) -> 12.05816496 | J77: 12000 | L77: =J77 -> 12000 | O77: ='For Bill Impact(HideBeforeFile)'!$P$5 -> Dist. Vol. Rate Tier 1
C78: =C42 -> Block 2 (Over 1,000 m3 per month) | D78: =INDEX('For Bill Impact(HideBeforeFile)'!$D$62:$S$71,MATCH(C70,'For Bill Impact(HideBeforeFile)'!$C$62:$C$71,0),MATCH($O78,'For Bill Impact(HideBeforeFile)'!$D$61:$S$61,0)) -> cents / m3 | F78: =INDEX('For Bill Impact(HideBeforeFile)'!$D$6:$S$15,MATCH(C70,'For Bill Impact(HideBeforeFile)'!$C$62:$C$71,0),MATCH($O78,'For Bill Impact(HideBeforeFile)'!$D$61:$S$61,0)) -> 9.308655499 | H78: =INDEX('For Bill Impact(HideBeforeFile)'!$D$20:$S$29,MATCH(C70,'For Bill Impact(HideBeforeFile)'!$C$62:$C$71,0),MATCH($O78,'For Bill Impact(HideBeforeFile)'!$D$61:$S$61,0)) -> 9.627606754 | J78: =L74-J77 -> 40425 | L78: =L74-L77 -> 40425 | O78: ='For Bill Impact(HideBeforeFile)'!$Q$5 -> Dist. Vol. Rate Tier 2
C79: =INDEX('For Bill Impact(HideBeforeFile)'!$D$48:$S$57,MATCH(C70,'For Bill Impact(HideBeforeFile)'!$C$62:$C$71,0),MATCH($O79,'For Bill Impact(HideBeforeFile)'!$D$61:$S$61,0)) ->  | D79: =INDEX('For Bill Impact(HideBeforeFile)'!$D$62:$S$71,MATCH(C70,'For Bill Impact(HideBeforeFile)'!$C$62:$C$71,0),MATCH($O79,'For Bill Impact(HideBeforeFile)'!$D$61:$S$61,0)) ->  | F79: =INDEX('For Bill Impact(HideBeforeFile)'!$D$6:$S$15,MATCH(C70,'For Bill Impact(HideBeforeFile)'!$C$62:$C$71,0),MATCH($O79,'For Bill Impact(HideBeforeFile)'!$D$61:$S$61,0)) ->  | H79: =INDEX('For Bill Impact(HideBeforeFile)'!$D$20:$S$29,MATCH(C70,'For Bill Impact(HideBeforeFile)'!$C$62:$C$71,0),MATCH($O79,'For Bill Impact(HideBeforeFile)'!$D$61:$S$61,0)) ->  | J79: ='B1.2 Billing Determinants'!F78/'B1.2 Billing Determinants'!$D$17 -> 0 | L79: =INDEX('For Bill Impact(HideBeforeFile)'!$D$34:$S$43,MATCH(C70,'For Bill Impact(HideBeforeFile)'!$C$62:$C$71,0),MATCH($O79,'For Bill Impact(HideBeforeFile)'!$D$61:$S$61,0)) ->  | O79: ='For Bill Impact(HideBeforeFile)'!$R$5 -> Dist. Vol. Rate Tier 3
C80: =INDEX('For Bill Impact(HideBeforeFile)'!$D$48:$S$57,MATCH(C70,'For Bill Impact(HideBeforeFile)'!$C$62:$C$71,0),MATCH($O80,'For Bill Impact(HideBeforeFile)'!$D$61:$S$61,0)) ->  | D80: =INDEX('For Bill Impact(HideBeforeFile)'!$D$62:$S$71,MATCH(C70,'For Bill Impact(HideBeforeFile)'!$C$62:$C$71,0),MATCH($O80,'For Bill Impact(HideBeforeFile)'!$D$61:$S$61,0)) ->  | F80: =INDEX('For Bill Impact(HideBeforeFile)'!$D$6:$S$15,MATCH(C70,'For Bill Impact(HideBeforeFile)'!$C$62:$C$71,0),MATCH($O80,'For Bill Impact(HideBeforeFile)'!$D$61:$S$61,0)) ->  | H80: =INDEX('For Bill Impact(HideBeforeFile)'!$D$20:$S$29,MATCH(C70,'For Bill Impact(HideBeforeFile)'!$C$62:$C$71,0),MATCH($O80,'For Bill Impact(HideBeforeFile)'!$D$61:$S$61,0)) ->  | L80: =INDEX('For Bill Impact(HideBeforeFile)'!$D$34:$S$43,MATCH(C70,'For Bill Impact(HideBeforeFile)'!$C$62:$C$71,0),MATCH($O80,'For Bill Impact(HideBeforeFile)'!$D$61:$S$61,0)) ->  | O80: ='For Bill Impact(HideBeforeFile)'!$S$5 -> Dist. Capacity Rate
C81: =INDEX('For Bill Impact(HideBeforeFile)'!$D$48:$S$57,MATCH(C70,'For Bill Impact(HideBeforeFile)'!$C$62:$C$71,0),MATCH($O81,'For Bill Impact(HideBeforeFile)'!$D$61:$S$61,0)) -> Transportation | D81: =INDEX('For Bill Impact(HideBeforeFile)'!$D$62:$S$71,MATCH(C70,'For Bill Impact(HideBeforeFile)'!$C$62:$C$71,0),MATCH($O81,'For Bill Impact(HideBeforeFile)'!$D$61:$S$61,0)) -> cents / m3 | F81: =INDEX('For Bill Impact(HideBeforeFile)'!$D$6:$S$15,MATCH(C70,'For Bill Impact(HideBeforeFile)'!$C$62:$C$71,0),MATCH($O81,'For Bill Impact(HideBeforeFile)'!$D$61:$S$61,0)) -> 2.4159 | H81: =INDEX('For Bill Impact(HideBeforeFile)'!$D$20:$S$29,MATCH(C70,'For Bill Impact(HideBeforeFile)'!$C$62:$C$71,0),MATCH($O81,'For Bill Impact(HideBeforeFile)'!$D$61:$S$61,0)) -> 2.761870971 | L81: =$L$74 -> 52425 | O81: ='For Bill Impact(HideBeforeFile)'!$E$5 -> Transp/System Gas
C83: =INDEX('For Bill Impact(HideBeforeFile)'!$D$48:$S$57,MATCH(C70,'For Bill Impact(HideBeforeFile)'!$C$62:$C$71,0),MATCH($O83,'For Bill Impact(HideBeforeFile)'!$D$61:$S$61,0)) -> REDA | D83: =INDEX('For Bill Impact(HideBeforeFile)'!$D$62:$S$71,MATCH(C70,'For Bill Impact(HideBeforeFile)'!$C$62:$C$71,0),MATCH($O83,'For Bill Impact(HideBeforeFile)'!$D$61:$S$61,0)) -> $ / month | F83: =INDEX('For Bill Impact(HideBeforeFile)'!$D$6:$S$15,MATCH(C70,'For Bill Impact(HideBeforeFile)'!$C$62:$C$71,0),MATCH($O83,'For Bill Impact(HideBeforeFile)'!$D$61:$S$61,0)) -> 0.02 | H83: =INDEX('For Bill Impact(HideBeforeFile)'!$D$20:$S$29,MATCH(C70,'For Bill Impact(HideBeforeFile)'!$C$62:$C$71,0),MATCH($O83,'For Bill Impact(HideBeforeFile)'!$D$61:$S$61,0)) -> 0 | L83: =INDEX('For Bill Impact(HideBeforeFile)'!$D$34:$S$43,MATCH(C70,'For Bill Impact(HideBeforeFile)'!$C$62:$C$71,0),MATCH($O83,'For Bill Impact(HideBeforeFile)'!$D$61:$S$61,0)) -> 12 | O83: =O23 -> REDA
C84: =INDEX('For Bill Impact(HideBeforeFile)'!$D$48:$S$57,MATCH(C70,'For Bill Impact(HideBeforeFile)'!$C$62:$C$71,0),MATCH($O84,'For Bill Impact(HideBeforeFile)'!$D$61:$S$61,0)) -> PGTVA | D84: =INDEX('For Bill Impact(HideBeforeFile)'!$D$62:$S$71,MATCH(C70,'For Bill Impact(HideBeforeFile)'!$C$62:$C$71,0),MATCH($O84,'For Bill Impact(HideBeforeFile)'!$D$61:$S$61,0)) -> cents / m3 | F84: =INDEX('For Bill Impact(HideBeforeFile)'!$D$6:$S$15,MATCH(C70,'For Bill Impact(HideBeforeFile)'!$C$62:$C$71,0),MATCH($O84,'For Bill Impact(HideBeforeFile)'!$D$61:$S$61,0)) -> 0.7981 | H84: =INDEX('For Bill Impact(HideBeforeFile)'!$D$20:$S$29,MATCH(C70,'For Bill Impact(HideBeforeFile)'!$C$62:$C$71,0),MATCH($O84,'For Bill Impact(HideBeforeFile)'!$D$61:$S$61,0)) -> 0.6290804449 | L84: =$L$74 -> 52425 | O84: =O24 -> PGTVA
C85: =INDEX('For Bill Impact(HideBeforeFile)'!$D$48:$S$57,MATCH(C70,'For Bill Impact(HideBeforeFile)'!$C$62:$C$71,0),MATCH($O85,'For Bill Impact(HideBeforeFile)'!$D$61:$S$61,0)) -> ADVADA | D85: =INDEX('For Bill Impact(HideBeforeFile)'!$D$62:$S$71,MATCH(C70,'For Bill Impact(HideBeforeFile)'!$C$62:$C$71,0),MATCH($O85,'For Bill Impact(HideBeforeFile)'!$D$61:$S$61,0)) -> cents / m3 | F85: =INDEX('For Bill Impact(HideBeforeFile)'!$D$6:$S$15,MATCH(C70,'For Bill Impact(HideBeforeFile)'!$C$62:$C$71,0),MATCH($O85,'For Bill Impact(HideBeforeFile)'!$D$61:$S$61,0)) -> -0.029 | H85: =INDEX('For Bill Impact(HideBeforeFile)'!$D$20:$S$29,MATCH(C70,'For Bill Impact(HideBeforeFile)'!$C$62:$C$71,0),MATCH($O85,'For Bill Impact(HideBeforeFile)'!$D$61:$S$61,0)) -> 0 | L85: 52425 | O85: =O25 -> ADVADA
C86: =INDEX('For Bill Impact(HideBeforeFile)'!$D$48:$S$57,MATCH(C70,'For Bill Impact(HideBeforeFile)'!$C$62:$C$71,0),MATCH($O86,'For Bill Impact(HideBeforeFile)'!$D$61:$S$61,0)) -> LDMDA | D86: =INDEX('For Bill Impact(HideBeforeFile)'!$D$62:$S$71,MATCH(C70,'For Bill Impact(HideBeforeFile)'!$C$62:$C$71,0),MATCH($O86,'For Bill Impact(HideBeforeFile)'!$D$61:$S$61,0)) -> $ / month | F86: =INDEX('For Bill Impact(HideBeforeFile)'!$D$6:$S$15,MATCH(C70,'For Bill Impact(HideBeforeFile)'!$C$62:$C$71,0),MATCH($O86,'For Bill Impact(HideBeforeFile)'!$D$61:$S$61,0)) -> 0 | H86: =INDEX('For Bill Impact(HideBeforeFile)'!$D$20:$S$29,MATCH(C70,'For Bill Impact(HideBeforeFile)'!$C$62:$C$71,0),MATCH($O86,'For Bill Impact(HideBeforeFile)'!$D$61:$S$61,0)) -> 0 | L86: 52425 | O86: =O26 -> LDMDA
C87: =INDEX('For Bill Impact(HideBeforeFile)'!$D$48:$S$57,MATCH(C70,'For Bill Impact(HideBeforeFile)'!$C$62:$C$71,0),MATCH($O87,'For Bill Impact(HideBeforeFile)'!$D$61:$S$61,0)) -> UFGVA | D87: =INDEX('For Bill Impact(HideBeforeFile)'!$D$62:$S$71,MATCH(C70,'For Bill Impact(HideBeforeFile)'!$C$62:$C$71,0),MATCH($O87,'For Bill Impact(HideBeforeFile)'!$D$61:$S$61,0)) -> cents / m3 | F87: =INDEX('For Bill Impact(HideBeforeFile)'!$D$6:$S$15,MATCH(C70,'For Bill Impact(HideBeforeFile)'!$C$62:$C$71,0),MATCH($O87,'For Bill Impact(HideBeforeFile)'!$D$61:$S$61,0)) -> 0 | H87: =INDEX('For Bill Impact(HideBeforeFile)'!$D$20:$S$29,MATCH(C70,'For Bill Impact(HideBeforeFile)'!$C$62:$C$71,0),MATCH($O87,'For Bill Impact(HideBeforeFile)'!$D$61:$S$61,0)) -> 1.316518199 | L87: 52425 | O87: =O27 -> UFGVA
C88: =INDEX('For Bill Impact(HideBeforeFile)'!$D$48:$S$57,MATCH(C70,'For Bill Impact(HideBeforeFile)'!$C$62:$C$71,0),MATCH($O88,'For Bill Impact(HideBeforeFile)'!$D$61:$S$61,0)) -> FCCVA | D88: =INDEX('For Bill Impact(HideBeforeFile)'!$D$62:$S$71,MATCH(C70,'For Bill Impact(HideBeforeFile)'!$C$62:$C$71,0),MATCH($O88,'For Bill Impact(HideBeforeFile)'!$D$61:$S$61,0)) -> $ / month | F88: =INDEX('For Bill Impact(HideBeforeFile)'!$D$6:$S$15,MATCH(C70,'For Bill Impact(HideBeforeFile)'!$C$62:$C$71,0),MATCH($O88,'For Bill Impact(HideBeforeFile)'!$D$61:$S$61,0)) -> 0 | H88: =INDEX('For Bill Impact(HideBeforeFile)'!$D$20:$S$29,MATCH(C70,'For Bill Impact(HideBeforeFile)'!$C$62:$C$71,0),MATCH($O88,'For Bill Impact(HideBeforeFile)'!$D$61:$S$61,0)) -> 0 | L88: =INDEX('For Bill Impact(HideBeforeFile)'!$D$34:$S$43,MATCH(C70,'For Bill Impact(HideBeforeFile)'!$C$62:$C$71,0),MATCH($O88,'For Bill Impact(HideBeforeFile)'!$D$61:$S$61,0)) -> 12 | O88: FCCVA
C89: =INDEX('For Bill Impact(HideBeforeFile)'!$D$48:$S$57,MATCH(C70,'For Bill Impact(HideBeforeFile)'!$C$62:$C$71,0),MATCH($O89,'For Bill Impact(HideBeforeFile)'!$D$61:$S$61,0)) -> GGEADA | D89: =INDEX('For Bill Impact(HideBeforeFile)'!$D$62:$S$71,MATCH(C70,'For Bill Impact(HideBeforeFile)'!$C$62:$C$71,0),MATCH($O89,'For Bill Impact(HideBeforeFile)'!$D$61:$S$61,0)) -> $ / month | F89: =INDEX('For Bill Impact(HideBeforeFile)'!$D$6:$S$15,MATCH(C70,'For Bill Impact(HideBeforeFile)'!$C$62:$C$71,0),MATCH($O89,'For Bill Impact(HideBeforeFile)'!$D$61:$S$61,0)) -> 0 | H89: =INDEX('For Bill Impact(HideBeforeFile)'!$D$20:$S$29,MATCH(C70,'For Bill Impact(HideBeforeFile)'!$C$62:$C$71,0),MATCH($O89,'For Bill Impact(HideBeforeFile)'!$D$61:$S$61,0)) -> 0 | L89: =INDEX('For Bill Impact(HideBeforeFile)'!$D$34:$S$43,MATCH(C70,'For Bill Impact(HideBeforeFile)'!$C$62:$C$71,0),MATCH($O89,'For Bill Impact(HideBeforeFile)'!$D$61:$S$61,0)) -> 12 | O89: GGEADA
C91: =INDEX('For Bill Impact(HideBeforeFile)'!$D$48:$S$57,MATCH(C70,'For Bill Impact(HideBeforeFile)'!$C$62:$C$71,0),MATCH($O91,'For Bill Impact(HideBeforeFile)'!$D$61:$S$61,0)) -> Federal Carbon | D91: =INDEX('For Bill Impact(HideBeforeFile)'!$D$62:$S$71,MATCH(C70,'For Bill Impact(HideBeforeFile)'!$C$62:$C$71,0),MATCH($O91,'For Bill Impact(HideBeforeFile)'!$D$61:$S$61,0)) -> cents / m3 | F91: =INDEX('For Bill Impact(HideBeforeFile)'!$D$6:$S$15,MATCH(C70,'For Bill Impact(HideBeforeFile)'!$C$62:$C$71,0),MATCH($O91,'For Bill Impact(HideBeforeFile)'!$D$61:$S$61,0)) -> 15.25 | H91: =INDEX('For Bill Impact(HideBeforeFile)'!$D$20:$S$29,MATCH(C70,'For Bill Impact(HideBeforeFile)'!$C$62:$C$71,0),MATCH($O91,'For Bill Impact(HideBeforeFile)'!$D$61:$S$61,0)) -> 15.25 | L91: =$L$74 -> 52425 | O91: ='For Bill Impact(HideBeforeFile)'!$M$5 -> Federal Carbon
C92: =INDEX('For Bill Impact(HideBeforeFile)'!$D$48:$S$57,MATCH(C70,'For Bill Impact(HideBeforeFile)'!$C$62:$C$71,0),MATCH($O92,'For Bill Impact(HideBeforeFile)'!$D$61:$S$61,0)) -> Facility Carbon | D92: =INDEX('For Bill Impact(HideBeforeFile)'!$D$62:$S$71,MATCH(C70,'For Bill Impact(HideBeforeFile)'!$C$62:$C$71,0),MATCH($O92,'For Bill Impact(HideBeforeFile)'!$D$61:$S$61,0)) -> cents / m3 | F92: =INDEX('For Bill Impact(HideBeforeFile)'!$D$6:$S$15,MATCH(C70,'For Bill Impact(HideBeforeFile)'!$C$62:$C$71,0),MATCH($O92,'For Bill Impact(HideBeforeFile)'!$D$61:$S$61,0)) -> 0.0037 | H92: =INDEX('For Bill Impact(HideBeforeFile)'!$D$20:$S$29,MATCH(C70,'For Bill Impact(HideBeforeFile)'!$C$62:$C$71,0),MATCH($O92,'For Bill Impact(HideBeforeFile)'!$D$61:$S$61,0)) -> 0.0037 | L92: 52425 | O92: ='For Bill Impact(HideBeforeFile)'!$N$5 -> Facility Carbon
C95: Commodity | F95: Current | H95: Proposed | J95: Change $ | L95: Change %
F96: =F74*$L74/100 -> 7671.6648 | H96: =H74*$L74/100 -> 7909.35975 | J96: =H96-F96 -> 237.69495 | L96: =IFERROR(J96/F96,"") -> 0.03098349005
C98: Delivery | F98: Current Rate | H98: Proposed Rate | J98: Change $ | L98: Change %
C99: =IF(C76<>"",C76,"") -> Customer (excl. Bill 32) | F99: =F76*$L76 -> 246 | H99: =H76*$L76 -> 282 | J99: =IFERROR(H99-F99,"") -> 36 | L99: =IFERROR(J99/F99,"") -> 0.1463414634
C100: Bill 32 | F100: 12 | H100: 12 | J100: =IFERROR(H100-F100,"") -> 0 | L100: =IFERROR(J100/F100,"") -> 0
C101: =IF(C77<>"",C77,"") -> Block 1 (First 1,000 m3 per month) | F101: =IFERROR(F77*$J77/100,"") -> 1459.399944 | H101: =IFERROR(H77*$L77/100,"") -> 1446.979796 | J101: =IFERROR(H101-F101,"") -> -12.42014796 | L101: =IFERROR(J101/F101,"") -> -0.008510448428
C102: =IF(C78<>"",C78,"") -> Block 2 (Over 1,000 m3 per month) | F102: =IFERROR(F78*$J78/100,"") -> 3763.023985 | H102: =IFERROR(H78*$L78/100,"") -> 3891.96003 | J102: 128.9360452 | L102: 0.03426394455
C103: =IF(C79<>"",C79,"") ->  | F103: =IFERROR(F79*$L79/100,"") ->  | H103: =IFERROR(H79*$L79/100,"") -> 
C104: =IF(C80<>"",C80,"") ->  | F104: =IFERROR(F80*$L80/100,"") ->  | H104: =IFERROR(H80*$L80/100,"") -> 
C105: =IF(C81<>"",C81,"") -> Transportation | F105: =IFERROR(F81*$L81/100,"") -> 1266.535575 | H105: =IFERROR(H81*$L81/100,"") -> 1447.910856 | J105: 181.3752814 | L105: 0.1432058325
C106: Total Delivery | F106: =SUM(F99:F105) -> 6746.959504 | H106: =SUM(H99:H105) -> 7080.850683 | J106: =H106-F106 -> 333.8911786 | L106: =IF(ISERROR(J106/F106),0,J106/F106) -> 0.0494876512
C108: Rate Riders
C110: Rate Riders | F110: Current Rate | H110: Proposed Rate | J110: Change $ | L110: Change %
C111: =C83 -> REDA | F111: =F83*$L83 -> 0.24 | H111: =H83*$L83 -> 0 | J111: =IFERROR(H111-F111,"") -> -0.24 | L111: =IFERROR(J111/F111,"") -> -1
C112: =C84 -> PGTVA | F112: =IFERROR(F84*$L84/100,"") -> 418.403925 | H112: =IFERROR(H84*$L84/100,"") -> 329.7954232 | J112: =IFERROR(H112-F112,"") -> -88.60850175 | L112: =IFERROR(J112/F112,"") -> -0.2117774152
C113: =C85 -> ADVADA | F113: =IFERROR(F85*$L85/100,"") -> -15.20325 | H113: =IFERROR(H85*$L85/100,"") -> 0 | J113: 15.20325 | L113: -1
C114: =C86 -> LDMDA | F114: =F86*$L86 -> 0 | H114: =H86*$L86 -> 0 | J114: 0
C115: =C87 -> UFGVA | F115: =IFERROR(F87*$L87/100,"") -> 0 | H115: =IFERROR(H87*$L87/100,"") -> 690.1846656 | J115: 690.1846656
C116: =C88 -> FCCVA | F116: =F88*$L88 -> 0 | H116: =H88*$L88 -> 0 | J116: 0
C117: GGEADA | F117: =F89*$L89 -> 0 | H117: =H89*$L89 -> 0 | J117: 0
C118: Total Rate Riders | F118: =SUM(F111:F117) -> 403.440675 | H118: =SUM(H111:H117) -> 1019.980089 | J118: =SUM(J111:J115) -> 616.5394138 | L118: =IF(ISERROR(J118/F118),0,J118/F118) -> 1.528203406
C120: Carbon Tax
C121: Federal Carbon | F121: =F91*$L91/100 -> 7994.8125 | H121: =H91*$L91/100 -> 7994.8125 | J121: =IFERROR(H121-F121,"") -> 0 | L121: =IFERROR(J121/F121,"") -> 0
C122: Facility Carbon | F122: =F92*$L92/100 -> 1.939725 | H122: =H92*$L92/100 -> 1.939725 | J122: =IFERROR(H122-F122,"") -> 0 | L122: 0
C123: Total Carbon Tax | F123: =SUM(F121:F122) -> 7996.752225 | H123: =SUM(H121:H122) -> 7996.752225 | J123: =SUM(J121:J122) -> 0 | L123: =IF(ISERROR(J123/F123),0,J123/F123) -> 0
C125: Total Bill Impact | F125: =SUM(F96,F106,F118,F123) -> 22818.8172 | H125: =SUM(H96,H106,H118,H123) -> 24006.94275 | J125: =SUM(J96,J106,J118,J123) -> 1188.125542 | L125: =IFERROR(J125/F125,"") -> 0.05206779702
C129: =C70 -> R1 - Industrial | O129: Look-up
C130: R1-GS - Industrial - Bottom 10 Percentile | F130: Current | H130: Proposed | J130: Bill Determinant (Current) | L130: Bill Determinant (Proposed
C133: =INDEX('For Bill Impact(HideBeforeFile)'!$D$48:$S$57,MATCH(C129,'For Bill Impact(HideBeforeFile)'!$C$62:$C$71,0),MATCH($O133,'For Bill Impact(HideBeforeFile)'!$D$61:$S$61,0)) -> Commodity | D133: =INDEX('For Bill Impact(HideBeforeFile)'!$D$62:$S$71,MATCH(C129,'For Bill Impact(HideBeforeFile)'!$C$62:$C$71,0),MATCH($O133,'For Bill Impact(HideBeforeFile)'!$D$61:$S$61,0)) -> cents / m3 | F133: =INDEX('For Bill Impact(HideBeforeFile)'!$D$6:$S$15,MATCH(C129,'For Bill Impact(HideBeforeFile)'!$C$62:$C$71,0),MATCH($O133,'For Bill Impact(HideBeforeFile)'!$D$61:$S$61,0)) -> 14.6336 | H133: =INDEX('For Bill Impact(HideBeforeFile)'!$D$20:$S$29,MATCH(C129,'For Bill Impact(HideBeforeFile)'!$C$62:$C$71,0),MATCH($O133,'For Bill Impact(HideBeforeFile)'!$D$61:$S$61,0)) -> 15.087 | L133: 1594 | O133: ='For Bill Impact(HideBeforeFile)'!$D$5 -> Commodity
C135: =C76 -> Customer (excl. Bill 32) | D135: =INDEX('For Bill Impact(HideBeforeFile)'!$D$62:$S$71,MATCH(C129,'For Bill Impact(HideBeforeFile)'!$C$62:$C$71,0),MATCH($O135,'For Bill Impact(HideBeforeFile)'!$D$61:$S$61,0)) -> $ / month | F135: =INDEX('For Bill Impact(HideBeforeFile)'!$D$6:$S$15,MATCH(C129,'For Bill Impact(HideBeforeFile)'!$C$62:$C$71,0),MATCH($O135,'For Bill Impact(HideBeforeFile)'!$D$61:$S$61,0)) -> 20.5 | H135: =INDEX('For Bill Impact(HideBeforeFile)'!$D$20:$S$29,MATCH(C129,'For Bill Impact(HideBeforeFile)'!$C$62:$C$71,0),MATCH($O135,'For Bill Impact(HideBeforeFile)'!$D$61:$S$61,0)) -> 23.5 | L135: =INDEX('For Bill Impact(HideBeforeFile)'!$D$34:$S$43,MATCH(C129,'For Bill Impact(HideBeforeFile)'!$C$62:$C$71,0),MATCH($O135,'For Bill Impact(HideBeforeFile)'!$D$61:$S$61,0)) -> 12 | O135: ='For Bill Impact(HideBeforeFile)'!$O$5 -> Dist. Customer Rate
C136: =C77 -> Block 1 (First 1,000 m3 per month) | D136: =INDEX('For Bill Impact(HideBeforeFile)'!$D$62:$S$71,MATCH(C129,'For Bill Impact(HideBeforeFile)'!$C$62:$C$71,0),MATCH($O136,'For Bill Impact(HideBeforeFile)'!$D$61:$S$61,0)) -> cents / m3 | F136: =INDEX('For Bill Impact(HideBeforeFile)'!$D$6:$S$15,MATCH(C129,'For Bill Impact(HideBeforeFile)'!$C$62:$C$71,0),MATCH($O136,'For Bill Impact(HideBeforeFile)'!$D$61:$S$61,0)) -> 12.1616662 | H136: =INDEX('For Bill Impact(HideBeforeFile)'!$D$20:$S$29,MATCH(C129,'For Bill Impact(HideBeforeFile)'!$C$62:$C$71,0),MATCH($O136,'For Bill Impact(HideBeforeFile)'!$D$61:$S$61,0)) -> 12.05816496 | J136: =L133 -> 1594 | L136: =L133 -> 1594 | O136: ='For Bill Impact(HideBeforeFile)'!$P$5 -> Dist. Vol. Rate Tier 1
C137: Block 2 (Over 1,000 m3 per month) | D137: =INDEX('For Bill Impact(HideBeforeFile)'!$D$62:$S$71,MATCH(C129,'For Bill Impact(HideBeforeFile)'!$C$62:$C$71,0),MATCH($O137,'For Bill Impact(HideBeforeFile)'!$D$61:$S$61,0)) -> cents / m3 | F137: =INDEX('For Bill Impact(HideBeforeFile)'!$D$6:$S$15,MATCH(C129,'For Bill Impact(HideBeforeFile)'!$C$62:$C$71,0),MATCH($O137,'For Bill Impact(HideBeforeFile)'!$D$61:$S$61,0)) -> 9.308655499 | H137: =INDEX('For Bill Impact(HideBeforeFile)'!$D$20:$S$29,MATCH(C129,'For Bill Impact(HideBeforeFile)'!$C$62:$C$71,0),MATCH($O137,'For Bill Impact(HideBeforeFile)'!$D$61:$S$61,0)) -> 9.627606754 | J137: 0 | L137: 0 | O137: ='For Bill Impact(HideBeforeFile)'!$Q$5 -> Dist. Vol. Rate Tier 2
C138: =INDEX('For Bill Impact(HideBeforeFile)'!$D$48:$S$57,MATCH(C129,'For Bill Impact(HideBeforeFile)'!$C$62:$C$71,0),MATCH($O138,'For Bill Impact(HideBeforeFile)'!$D$61:$S$61,0)) ->  | D138: =INDEX('For Bill Impact(HideBeforeFile)'!$D$62:$S$71,MATCH(C129,'For Bill Impact(HideBeforeFile)'!$C$62:$C$71,0),MATCH($O138,'For Bill Impact(HideBeforeFile)'!$D$61:$S$61,0)) ->  | F138: =INDEX('For Bill Impact(HideBeforeFile)'!$D$6:$S$15,MATCH(C129,'For Bill Impact(HideBeforeFile)'!$C$62:$C$71,0),MATCH($O138,'For Bill Impact(HideBeforeFile)'!$D$61:$S$61,0)) ->  | H138: =INDEX('For Bill Impact(HideBeforeFile)'!$D$20:$S$29,MATCH(C129,'For Bill Impact(HideBeforeFile)'!$C$62:$C$71,0),MATCH($O138,'For Bill Impact(HideBeforeFile)'!$D$61:$S$61,0)) ->  | L138: =INDEX('For Bill Impact(HideBeforeFile)'!$D$34:$S$43,MATCH(C129,'For Bill Impact(HideBeforeFile)'!$C$62:$C$71,0),MATCH($O138,'For Bill Impact(HideBeforeFile)'!$D$61:$S$61,0)) ->  | O138: ='For Bill Impact(HideBeforeFile)'!$R$5 -> Dist. Vol. Rate Tier 3
C139: =INDEX('For Bill Impact(HideBeforeFile)'!$D$48:$S$57,MATCH(C129,'For Bill Impact(HideBeforeFile)'!$C$62:$C$71,0),MATCH($O139,'For Bill Impact(HideBeforeFile)'!$D$61:$S$61,0)) ->  | D139: =INDEX('For Bill Impact(HideBeforeFile)'!$D$62:$S$71,MATCH(C129,'For Bill Impact(HideBeforeFile)'!$C$62:$C$71,0),MATCH($O139,'For Bill Impact(HideBeforeFile)'!$D$61:$S$61,0)) ->  | F139: =INDEX('For Bill Impact(HideBeforeFile)'!$D$6:$S$15,MATCH(C129,'For Bill Impact(HideBeforeFile)'!$C$62:$C$71,0),MATCH($O139,'For Bill Impact(HideBeforeFile)'!$D$61:$S$61,0)) ->  | H139: =INDEX('For Bill Impact(HideBeforeFile)'!$D$20:$S$29,MATCH(C129,'For Bill Impact(HideBeforeFile)'!$C$62:$C$71,0),MATCH($O139,'For Bill Impact(HideBeforeFile)'!$D$61:$S$61,0)) ->  | L139: =INDEX('For Bill Impact(HideBeforeFile)'!$D$34:$S$43,MATCH(C129,'For Bill Impact(HideBeforeFile)'!$C$62:$C$71,0),MATCH($O139,'For Bill Impact(HideBeforeFile)'!$D$61:$S$61,0)) ->  | O139: ='For Bill Impact(HideBeforeFile)'!$S$5 -> Dist. Capacity Rate
C140: =INDEX('For Bill Impact(HideBeforeFile)'!$D$48:$S$57,MATCH(C129,'For Bill Impact(HideBeforeFile)'!$C$62:$C$71,0),MATCH($O140,'For Bill Impact(HideBeforeFile)'!$D$61:$S$61,0)) -> Transportation | D140: =INDEX('For Bill Impact(HideBeforeFile)'!$D$62:$S$71,MATCH(C129,'For Bill Impact(HideBeforeFile)'!$C$62:$C$71,0),MATCH($O140,'For Bill Impact(HideBeforeFile)'!$D$61:$S$61,0)) -> cents / m3 | F140: =INDEX('For Bill Impact(HideBeforeFile)'!$D$6:$S$15,MATCH(C129,'For Bill Impact(HideBeforeFile)'!$C$62:$C$71,0),MATCH($O140,'For Bill Impact(HideBeforeFile)'!$D$61:$S$61,0)) -> 2.4159 | H140: =INDEX('For Bill Impact(HideBeforeFile)'!$D$20:$S$29,MATCH(C129,'For Bill Impact(HideBeforeFile)'!$C$62:$C$71,0),MATCH($O140,'For Bill Impact(HideBeforeFile)'!$D$61:$S$61,0)) -> 2.761870971 | L140: =L133 -> 1594 | O140: ='For Bill Impact(HideBeforeFile)'!$E$5 -> Transp/System Gas
C143: =INDEX('For Bill Impact(HideBeforeFile)'!$D$48:$S$57,MATCH(C129,'For Bill Impact(HideBeforeFile)'!$C$62:$C$71,0),MATCH($O143,'For Bill Impact(HideBeforeFile)'!$D$61:$S$61,0)) -> REDA | D143: =INDEX('For Bill Impact(HideBeforeFile)'!$D$62:$S$71,MATCH(C129,'For Bill Impact(HideBeforeFile)'!$C$62:$C$71,0),MATCH($O143,'For Bill Impact(HideBeforeFile)'!$D$61:$S$61,0)) -> $ / month | F143: =INDEX('For Bill Impact(HideBeforeFile)'!$D$6:$S$15,MATCH(C129,'For Bill Impact(HideBeforeFile)'!$C$62:$C$71,0),MATCH($O143,'For Bill Impact(HideBeforeFile)'!$D$61:$S$61,0)) -> 0.02 | H143: =INDEX('For Bill Impact(HideBeforeFile)'!$D$20:$S$29,MATCH(C129,'For Bill Impact(HideBeforeFile)'!$C$62:$C$71,0),MATCH($O143,'For Bill Impact(HideBeforeFile)'!$D$61:$S$61,0)) -> 0 | L143: =INDEX('For Bill Impact(HideBeforeFile)'!$D$34:$S$43,MATCH(C129,'For Bill Impact(HideBeforeFile)'!$C$62:$C$71,0),MATCH($O143,'For Bill Impact(HideBeforeFile)'!$D$61:$S$61,0)) -> 12 | O143: =O83 -> REDA
C144: =INDEX('For Bill Impact(HideBeforeFile)'!$D$48:$S$57,MATCH(C129,'For Bill Impact(HideBeforeFile)'!$C$62:$C$71,0),MATCH($O144,'For Bill Impact(HideBeforeFile)'!$D$61:$S$61,0)) -> PGTVA | D144: =INDEX('For Bill Impact(HideBeforeFile)'!$D$62:$S$71,MATCH(C129,'For Bill Impact(HideBeforeFile)'!$C$62:$C$71,0),MATCH($O144,'For Bill Impact(HideBeforeFile)'!$D$61:$S$61,0)) -> cents / m3 | F144: =INDEX('For Bill Impact(HideBeforeFile)'!$D$6:$S$15,MATCH(C129,'For Bill Impact(HideBeforeFile)'!$C$62:$C$71,0),MATCH($O144,'For Bill Impact(HideBeforeFile)'!$D$61:$S$61,0)) -> 0.7981 | H144: =INDEX('For Bill Impact(HideBeforeFile)'!$D$20:$S$29,MATCH(C129,'For Bill Impact(HideBeforeFile)'!$C$62:$C$71,0),MATCH($O144,'For Bill Impact(HideBeforeFile)'!$D$61:$S$61,0)) -> 0.6290804449 | L144: =$L$133 -> 1594 | O144: =O84 -> PGTVA
C145: =INDEX('For Bill Impact(HideBeforeFile)'!$D$48:$S$57,MATCH(C129,'For Bill Impact(HideBeforeFile)'!$C$62:$C$71,0),MATCH($O145,'For Bill Impact(HideBeforeFile)'!$D$61:$S$61,0)) -> ADVADA | D145: =INDEX('For Bill Impact(HideBeforeFile)'!$D$62:$S$71,MATCH(C129,'For Bill Impact(HideBeforeFile)'!$C$62:$C$71,0),MATCH($O145,'For Bill Impact(HideBeforeFile)'!$D$61:$S$61,0)) -> cents / m3 | F145: =INDEX('For Bill Impact(HideBeforeFile)'!$D$6:$S$15,MATCH(C129,'For Bill Impact(HideBeforeFile)'!$C$62:$C$71,0),MATCH($O145,'For Bill Impact(HideBeforeFile)'!$D$61:$S$61,0)) -> -0.029 | H145: =INDEX('For Bill Impact(HideBeforeFile)'!$D$20:$S$29,MATCH(C129,'For Bill Impact(HideBeforeFile)'!$C$62:$C$71,0),MATCH($O145,'For Bill Impact(HideBeforeFile)'!$D$61:$S$61,0)) -> 0 | L145: =$L$133 -> 1594 | O145: =O85 -> ADVADA
C146: =C115 -> UFGVA | D146: =INDEX('For Bill Impact(HideBeforeFile)'!$D$62:$S$71,MATCH(C129,'For Bill Impact(HideBeforeFile)'!$C$62:$C$71,0),MATCH($O146,'For Bill Impact(HideBeforeFile)'!$D$61:$S$61,0)) -> cents / m3 | F146: =INDEX('For Bill Impact(HideBeforeFile)'!$D$6:$S$15,MATCH(C129,'For Bill Impact(HideBeforeFile)'!$C$62:$C$71,0),MATCH($O146,'For Bill Impact(HideBeforeFile)'!$D$61:$S$61,0)) -> 0 | H146: =INDEX('For Bill Impact(HideBeforeFile)'!$D$20:$S$29,MATCH(C129,'For Bill Impact(HideBeforeFile)'!$C$62:$C$71,0),MATCH($O146,'For Bill Impact(HideBeforeFile)'!$D$61:$S$61,0)) -> 1.316518199 | L146: =$L$133 -> 1594 | O146: =O87 -> UFGVA
C147: =INDEX('For Bill Impact(HideBeforeFile)'!$D$48:$S$57,MATCH(C129,'For Bill Impact(HideBeforeFile)'!$C$62:$C$71,0),MATCH($O147,'For Bill Impact(HideBeforeFile)'!$D$61:$S$61,0)) -> FCCVA | D147: =INDEX('For Bill Impact(HideBeforeFile)'!$D$62:$S$71,MATCH(C129,'For Bill Impact(HideBeforeFile)'!$C$62:$C$71,0),MATCH($O147,'For Bill Impact(HideBeforeFile)'!$D$61:$S$61,0)) -> $ / month | F147: =INDEX('For Bill Impact(HideBeforeFile)'!$D$6:$S$15,MATCH(C129,'For Bill Impact(HideBeforeFile)'!$C$62:$C$71,0),MATCH($O147,'For Bill Impact(HideBeforeFile)'!$D$61:$S$61,0)) -> 0 | H147: =INDEX('For Bill Impact(HideBeforeFile)'!$D$20:$S$29,MATCH(C129,'For Bill Impact(HideBeforeFile)'!$C$62:$C$71,0),MATCH($O147,'For Bill Impact(HideBeforeFile)'!$D$61:$S$61,0)) -> 0 | L147: =INDEX('For Bill Impact(HideBeforeFile)'!$D$34:$S$43,MATCH(C129,'For Bill Impact(HideBeforeFile)'!$C$62:$C$71,0),MATCH($O147,'For Bill Impact(HideBeforeFile)'!$D$61:$S$61,0)) -> 12 | O147: FCCVA
C148: =INDEX('For Bill Impact(HideBeforeFile)'!$D$48:$S$57,MATCH(C129,'For Bill Impact(HideBeforeFile)'!$C$62:$C$71,0),MATCH($O148,'For Bill Impact(HideBeforeFile)'!$D$61:$S$61,0)) -> GGEADA | D148: =INDEX('For Bill Impact(HideBeforeFile)'!$D$62:$S$71,MATCH(C129,'For Bill Impact(HideBeforeFile)'!$C$62:$C$71,0),MATCH($O148,'For Bill Impact(HideBeforeFile)'!$D$61:$S$61,0)) -> $ / month | F148: =INDEX('For Bill Impact(HideBeforeFile)'!$D$6:$S$15,MATCH(C129,'For Bill Impact(HideBeforeFile)'!$C$62:$C$71,0),MATCH($O148,'For Bill Impact(HideBeforeFile)'!$D$61:$S$61,0)) -> 0 | H148: =INDEX('For Bill Impact(HideBeforeFile)'!$D$20:$S$29,MATCH(C129,'For Bill Impact(HideBeforeFile)'!$C$62:$C$71,0),MATCH($O148,'For Bill Impact(HideBeforeFile)'!$D$61:$S$61,0)) -> 0 | L148: =INDEX('For Bill Impact(HideBeforeFile)'!$D$34:$S$43,MATCH(C129,'For Bill Impact(HideBeforeFile)'!$C$62:$C$71,0),MATCH($O148,'For Bill Impact(HideBeforeFile)'!$D$61:$S$61,0)) -> 12 | O148: GGEADA
C150: =INDEX('For Bill Impact(HideBeforeFile)'!$D$48:$S$57,MATCH(C129,'For Bill Impact(HideBeforeFile)'!$C$62:$C$71,0),MATCH($O150,'For Bill Impact(HideBeforeFile)'!$D$61:$S$61,0)) -> Federal Carbon | D150: =INDEX('For Bill Impact(HideBeforeFile)'!$D$62:$S$71,MATCH(C129,'For Bill Impact(HideBeforeFile)'!$C$62:$C$71,0),MATCH($O150,'For Bill Impact(HideBeforeFile)'!$D$61:$S$61,0)) -> cents / m3 | F150: =INDEX('For Bill Impact(HideBeforeFile)'!$D$6:$S$15,MATCH(C129,'For Bill Impact(HideBeforeFile)'!$C$62:$C$71,0),MATCH($O150,'For Bill Impact(HideBeforeFile)'!$D$61:$S$61,0)) -> 15.25 | H150: =INDEX('For Bill Impact(HideBeforeFile)'!$D$20:$S$29,MATCH(C129,'For Bill Impact(HideBeforeFile)'!$C$62:$C$71,0),MATCH($O150,'For Bill Impact(HideBeforeFile)'!$D$61:$S$61,0)) -> 15.25 | L150: =$L$133 -> 1594 | O150: ='For Bill Impact(HideBeforeFile)'!$M$5 -> Federal Carbon
C151: =INDEX('For Bill Impact(HideBeforeFile)'!$D$48:$S$57,MATCH(C129,'For Bill Impact(HideBeforeFile)'!$C$62:$C$71,0),MATCH($O151,'For Bill Impact(HideBeforeFile)'!$D$61:$S$61,0)) -> Facility Carbon | D151: =INDEX('For Bill Impact(HideBeforeFile)'!$D$62:$S$71,MATCH(C129,'For Bill Impact(HideBeforeFile)'!$C$62:$C$71,0),MATCH($O151,'For Bill Impact(HideBeforeFile)'!$D$61:$S$61,0)) -> cents / m3 | F151: =INDEX('For Bill Impact(HideBeforeFile)'!$D$6:$S$15,MATCH(C129,'For Bill Impact(HideBeforeFile)'!$C$62:$C$71,0),MATCH($O151,'For Bill Impact(HideBeforeFile)'!$D$61:$S$61,0)) -> 0.0037 | H151: =INDEX('For Bill Impact(HideBeforeFile)'!$D$20:$S$29,MATCH(C129,'For Bill Impact(HideBeforeFile)'!$C$62:$C$71,0),MATCH($O151,'For Bill Impact(HideBeforeFile)'!$D$61:$S$61,0)) -> 0.0037 | L151: =$L$133 -> 1594 | O151: ='For Bill Impact(HideBeforeFile)'!$N$5 -> Facility Carbon
C154: Commodity | F154: Current | H154: Proposed | J154: Change $ | L154: Change %
F155: =F133*$L133/100 -> 233.259584 | H155: =H133*$L133/100 -> 240.48678 | J155: =H155-F155 -> 7.227196 | L155: =IFERROR(J155/F155,"") -> 0.03098349005
C157: Delivery | F157: Current Rate | H157: Proposed Rate | J157: Change $ | L157: Change %
C158: =IF(C135<>"",C135,"") -> Customer (excl. Bill 32) | F158: =F135*$L135 -> 246 | H158: =H135*$L135 -> 282 | J158: =IFERROR(H158-F158,"") -> 36 | L158: =IFERROR(J158/F158,"") -> 0.1463414634
C159: Bill 32 | F159: 12 | H159: 12 | J159: =IFERROR(H159-F159,"") -> 0 | L159: =IFERROR(J159/F159,"") -> 0
C160: =IF(C136<>"",C136,"") -> Block 1 (First 1,000 m3 per month) | F160: =IFERROR(F136*$J136/100,"") -> 193.8569592 | H160: =IFERROR(H136*$L136/100,"") -> 192.2071495 | J160: =IFERROR(H160-F160,"") -> -1.649809653 | L160: =IFERROR(J160/F160,"") -> -0.008510448428
C161: =IF(C137<>"",C137,"") -> Block 2 (Over 1,000 m3 per month) | F161: =IFERROR(F137*$J137/100,"") -> 0 | H161: =IFERROR(H137*$L137/100,"") -> 0 | J161: 0
C162: =IF(C138<>"",C138,"") ->  | F162: =IFERROR(F138*$L138/100,"") ->  | H162: =IFERROR(H138*$L138/100,"") -> 
C163: =IF(C139<>"",C139,"") ->  | F163: =IFERROR(F139*$L139/100,"") ->  | H163: =IFERROR(H139*$L139/100,"") -> 
C164: =IF(C140<>"",C140,"") -> Transportation | F164: =IFERROR(F140*$L140/100,"") -> 38.509446 | H164: =IFERROR(H140*$L140/100,"") -> 44.02422327 | J164: 5.514777272 | L164: 0.1432058325
C165: Total Delivery | F165: =SUM(F158:F164) -> 490.3664052 | H165: =SUM(H158:H164) -> 530.2313728 | J165: =H165-F165 -> 39.86496762 | L165: =IF(ISERROR(J165/F165),0,J165/F165) -> 0.0812962862
C167: Rate Riders
C169: Rate Riders | F169: Current Rate | H169: Proposed Rate | J169: Change $ | L169: Change %
C170: =C142 -> 0 | F170: =F142*$L142 -> 0 | H170: =H142*$L142 -> 0 | J170: =IFERROR(H170-F170,"") -> 0 | L170: =IFERROR(J170/F170,"") -> 
C171: =C143 -> REDA | F171: =F143*$L143 -> 0.24 | H171: =H143*$L143 -> 0 | J171: =IFERROR(H171-F171,"") -> -0.24 | L171: =IFERROR(J171/F171,"") -> -1
C172: =C144 -> PGTVA | F172: =IFERROR(F144*$L144/100,"") -> 12.721714 | H172: =IFERROR(H144*$L144/100,"") -> 10.02754229 | J172: -2.694171708 | L172: -0.2117774152
C173: =C145 -> ADVADA | F173: =IFERROR(F145*$L145/100,"") -> -0.46226 | H173: =IFERROR(H145*$L145/100,"") -> 0 | J173: 0.46226 | L173: -1
C174: =C146 -> UFGVA | F174: =F146*$L146 -> 0 | H174: =IFERROR(H146*$L146/100,"") -> 20.98530009 | J174: 20.98530009
C175: =C147 -> FCCVA | F175: =IFERROR(F147*$L147/100,"") -> 0 | H175: =IFERROR(H147*$L147/100,"") -> 0 | J175: 0
C176: GGEADA | F176: =F148*$L148 -> 0 | H176: =H148*$L148 -> 0 | J176: 0
C177: Total Rate Riders | F177: =SUM(F170:F176) -> 12.499454 | H177: =SUM(H170:H176) -> 31.01284238 | J177: =SUM(J170:J174) -> 18.51338838 | L177: =IF(ISERROR(J177/F177),0,J177/F177) -> 1.481135766
C179: Carbon Tax
C180: Federal Carbon | F180: =F150*$L150/100 -> 243.085 | H180: =H150*$L150/100 -> 243.085 | J180: =IFERROR(H180-F180,"") -> 0 | L180: =IFERROR(J180/F180,"") -> 0
C181: Facility Carbon | F181: =F151*$L151/100 -> 0.058978 | H181: =H151*$L151/100 -> 0.058978 | J181: =IFERROR(H181-F181,"") -> 0 | L181: 0
C182: Total Carbon Tax | F182: =SUM(F180:F181) -> 243.143978 | H182: =SUM(H180:H181) -> 243.143978 | J182: =SUM(J180:J181) -> 0 | L182: =IF(ISERROR(J182/F182),0,J182/F182) -> 0
C184: Total Bill Impact | F184: =SUM(F155,F165,F177,F182) -> 979.2694212 | H184: =SUM(H155,H165,H177,H182) -> 1044.874973 | J184: =SUM(J155,J165,J177,J182) -> 65.605552 | L184: =IFERROR(J184/F184,"") -> 0.06699438436
C186: =C129 -> R1 - Industrial
C187: R1-GS - Industrial - Top 10 Percentile | F187: Current | H187: Proposed | J187: Bill Determinant (Current) | L187: Bill Determinant (Proposed
C190: =INDEX('For Bill Impact(HideBeforeFile)'!$D$48:$S$57,MATCH(C186,'For Bill Impact(HideBeforeFile)'!$C$62:$C$71,0),MATCH($O190,'For Bill Impact(HideBeforeFile)'!$D$61:$S$61,0)) -> Commodity | D190: =INDEX('For Bill Impact(HideBeforeFile)'!$D$62:$S$71,MATCH(C186,'For Bill Impact(HideBeforeFile)'!$C$62:$C$71,0),MATCH($O190,'For Bill Impact(HideBeforeFile)'!$D$61:$S$61,0)) -> cents / m3 | F190: =INDEX('For Bill Impact(HideBeforeFile)'!$D$6:$S$15,MATCH(C186,'For Bill Impact(HideBeforeFile)'!$C$62:$C$71,0),MATCH($O190,'For Bill Impact(HideBeforeFile)'!$D$61:$S$61,0)) -> 14.6336 | H190: =INDEX('For Bill Impact(HideBeforeFile)'!$D$20:$S$29,MATCH(C186,'For Bill Impact(HideBeforeFile)'!$C$62:$C$71,0),MATCH($O190,'For Bill Impact(HideBeforeFile)'!$D$61:$S$61,0)) -> 15.087 | L190: 133339 | O190: ='For Bill Impact(HideBeforeFile)'!$D$5 -> Commodity
C192: =C135 -> Customer (excl. Bill 32) | D192: =INDEX('For Bill Impact(HideBeforeFile)'!$D$62:$S$71,MATCH(C186,'For Bill Impact(HideBeforeFile)'!$C$62:$C$71,0),MATCH($O192,'For Bill Impact(HideBeforeFile)'!$D$61:$S$61,0)) -> $ / month | F192: =INDEX('For Bill Impact(HideBeforeFile)'!$D$6:$S$15,MATCH(C186,'For Bill Impact(HideBeforeFile)'!$C$62:$C$71,0),MATCH($O192,'For Bill Impact(HideBeforeFile)'!$D$61:$S$61,0)) -> 20.5 | H192: =INDEX('For Bill Impact(HideBeforeFile)'!$D$20:$S$29,MATCH(C186,'For Bill Impact(HideBeforeFile)'!$C$62:$C$71,0),MATCH($O192,'For Bill Impact(HideBeforeFile)'!$D$61:$S$61,0)) -> 23.5 | L192: =INDEX('For Bill Impact(HideBeforeFile)'!$D$34:$S$43,MATCH(C186,'For Bill Impact(HideBeforeFile)'!$C$62:$C$71,0),MATCH($O192,'For Bill Impact(HideBeforeFile)'!$D$61:$S$61,0)) -> 12 | O192: ='For Bill Impact(HideBeforeFile)'!$O$5 -> Dist. Customer Rate
C193: =C136 -> Block 1 (First 1,000 m3 per month) | D193: =INDEX('For Bill Impact(HideBeforeFile)'!$D$62:$S$71,MATCH(C186,'For Bill Impact(HideBeforeFile)'!$C$62:$C$71,0),MATCH($O193,'For Bill Impact(HideBeforeFile)'!$D$61:$S$61,0)) -> cents / m3 | F193: =INDEX('For Bill Impact(HideBeforeFile)'!$D$6:$S$15,MATCH(C186,'For Bill Impact(HideBeforeFile)'!$C$62:$C$71,0),MATCH($O193,'For Bill Impact(HideBeforeFile)'!$D$61:$S$61,0)) -> 12.1616662 | H193: =INDEX('For Bill Impact(HideBeforeFile)'!$D$20:$S$29,MATCH(C186,'For Bill Impact(HideBeforeFile)'!$C$62:$C$71,0),MATCH($O193,'For Bill Impact(HideBeforeFile)'!$D$61:$S$61,0)) -> 12.05816496 | J193: 12000 | L193: =J193 -> 12000 | O193: ='For Bill Impact(HideBeforeFile)'!$P$5 -> Dist. Vol. Rate Tier 1
C194: Block 2 (Over 1,000 m3 per month) | D194: =INDEX('For Bill Impact(HideBeforeFile)'!$D$62:$S$71,MATCH(C186,'For Bill Impact(HideBeforeFile)'!$C$62:$C$71,0),MATCH($O194,'For Bill Impact(HideBeforeFile)'!$D$61:$S$61,0)) -> cents / m3 | F194: =INDEX('For Bill Impact(HideBeforeFile)'!$D$6:$S$15,MATCH(C186,'For Bill Impact(HideBeforeFile)'!$C$62:$C$71,0),MATCH($O194,'For Bill Impact(HideBeforeFile)'!$D$61:$S$61,0)) -> 9.308655499 | H194: =INDEX('For Bill Impact(HideBeforeFile)'!$D$20:$S$29,MATCH(C186,'For Bill Impact(HideBeforeFile)'!$C$62:$C$71,0),MATCH($O194,'For Bill Impact(HideBeforeFile)'!$D$61:$S$61,0)) -> 9.627606754 | J194: =L190-J193 -> 121339 | L194: =L190-L193 -> 121339 | O194: ='For Bill Impact(HideBeforeFile)'!$Q$5 -> Dist. Vol. Rate Tier 2
D195: =INDEX('For Bill Impact(HideBeforeFile)'!$D$62:$S$71,MATCH(C186,'For Bill Impact(HideBeforeFile)'!$C$62:$C$71,0),MATCH($O195,'For Bill Impact(HideBeforeFile)'!$D$61:$S$61,0)) ->  | F195: =INDEX('For Bill Impact(HideBeforeFile)'!$D$6:$S$15,MATCH(C186,'For Bill Impact(HideBeforeFile)'!$C$62:$C$71,0),MATCH($O195,'For Bill Impact(HideBeforeFile)'!$D$61:$S$61,0)) ->  | H195: =INDEX('For Bill Impact(HideBeforeFile)'!$D$20:$S$29,MATCH(C186,'For Bill Impact(HideBeforeFile)'!$C$62:$C$71,0),MATCH($O195,'For Bill Impact(HideBeforeFile)'!$D$61:$S$61,0)) ->  | L195: =INDEX('For Bill Impact(HideBeforeFile)'!$D$34:$S$43,MATCH(C186,'For Bill Impact(HideBeforeFile)'!$C$62:$C$71,0),MATCH($O195,'For Bill Impact(HideBeforeFile)'!$D$61:$S$61,0)) ->  | O195: ='For Bill Impact(HideBeforeFile)'!$R$5 -> Dist. Vol. Rate Tier 3
D196: =INDEX('For Bill Impact(HideBeforeFile)'!$D$62:$S$71,MATCH(C186,'For Bill Impact(HideBeforeFile)'!$C$62:$C$71,0),MATCH($O196,'For Bill Impact(HideBeforeFile)'!$D$61:$S$61,0)) ->  | F196: =INDEX('For Bill Impact(HideBeforeFile)'!$D$6:$S$15,MATCH(C186,'For Bill Impact(HideBeforeFile)'!$C$62:$C$71,0),MATCH($O196,'For Bill Impact(HideBeforeFile)'!$D$61:$S$61,0)) ->  | H196: =INDEX('For Bill Impact(HideBeforeFile)'!$D$20:$S$29,MATCH(C186,'For Bill Impact(HideBeforeFile)'!$C$62:$C$71,0),MATCH($O196,'For Bill Impact(HideBeforeFile)'!$D$61:$S$61,0)) ->  | L196: =INDEX('For Bill Impact(HideBeforeFile)'!$D$34:$S$43,MATCH(C186,'For Bill Impact(HideBeforeFile)'!$C$62:$C$71,0),MATCH($O196,'For Bill Impact(HideBeforeFile)'!$D$61:$S$61,0)) ->  | O196: ='For Bill Impact(HideBeforeFile)'!$S$5 -> Dist. Capacity Rate
C197: Transportation | D197: =INDEX('For Bill Impact(HideBeforeFile)'!$D$62:$S$71,MATCH(C186,'For Bill Impact(HideBeforeFile)'!$C$62:$C$71,0),MATCH($O197,'For Bill Impact(HideBeforeFile)'!$D$61:$S$61,0)) -> cents / m3 | F197: =INDEX('For Bill Impact(HideBeforeFile)'!$D$6:$S$15,MATCH(C186,'For Bill Impact(HideBeforeFile)'!$C$62:$C$71,0),MATCH($O197,'For Bill Impact(HideBeforeFile)'!$D$61:$S$61,0)) -> 2.4159 | H197: =INDEX('For Bill Impact(HideBeforeFile)'!$D$20:$S$29,MATCH(C186,'For Bill Impact(HideBeforeFile)'!$C$62:$C$71,0),MATCH($O197,'For Bill Impact(HideBeforeFile)'!$D$61:$S$61,0)) -> 2.761870971 | L197: =$L$190 -> 133339 | O197: ='For Bill Impact(HideBeforeFile)'!$E$5 -> Transp/System Gas
C200: =C169 -> Rate Riders | O200: =O140 -> Transp/System Gas
C201: 0 | O201: =O141 -> 0
C202: REDA | F202: =INDEX('For Bill Impact(HideBeforeFile)'!$D$6:$S$15,MATCH(C186,'For Bill Impact(HideBeforeFile)'!$C$62:$C$71,0),MATCH($O202,'For Bill Impact(HideBeforeFile)'!$D$61:$S$61,0)) -> 0.02 | H202: =INDEX('For Bill Impact(HideBeforeFile)'!$D$20:$S$29,MATCH(C186,'For Bill Impact(HideBeforeFile)'!$C$62:$C$71,0),MATCH($O202,'For Bill Impact(HideBeforeFile)'!$D$61:$S$61,0)) -> 0 | L202: =INDEX('For Bill Impact(HideBeforeFile)'!$D$34:$S$43,MATCH(C186,'For Bill Impact(HideBeforeFile)'!$C$62:$C$71,0),MATCH($O202,'For Bill Impact(HideBeforeFile)'!$D$61:$S$61,0)) -> 12 | O202: =O143 -> REDA
C203: =C172 -> PGTVA | D203: =INDEX('For Bill Impact(HideBeforeFile)'!$D$62:$S$71,MATCH(C186,'For Bill Impact(HideBeforeFile)'!$C$62:$C$71,0),MATCH($O203,'For Bill Impact(HideBeforeFile)'!$D$61:$S$61,0)) -> cents / m3 | F203: =INDEX('For Bill Impact(HideBeforeFile)'!$D$6:$S$15,MATCH(C186,'For Bill Impact(HideBeforeFile)'!$C$62:$C$71,0),MATCH($O203,'For Bill Impact(HideBeforeFile)'!$D$61:$S$61,0)) -> 0.7981 | H203: =INDEX('For Bill Impact(HideBeforeFile)'!$D$20:$S$29,MATCH(C186,'For Bill Impact(HideBeforeFile)'!$C$62:$C$71,0),MATCH($O203,'For Bill Impact(HideBeforeFile)'!$D$61:$S$61,0)) -> 0.6290804449 | L203: =$L$190 -> 133339 | O203: =O144 -> PGTVA
C204: =C173 -> ADVADA | D204: =INDEX('For Bill Impact(HideBeforeFile)'!$D$62:$S$71,MATCH(C186,'For Bill Impact(HideBeforeFile)'!$C$62:$C$71,0),MATCH($O204,'For Bill Impact(HideBeforeFile)'!$D$61:$S$61,0)) -> cents / m3 | F204: =INDEX('For Bill Impact(HideBeforeFile)'!$D$6:$S$15,MATCH(C186,'For Bill Impact(HideBeforeFile)'!$C$62:$C$71,0),MATCH($O204,'For Bill Impact(HideBeforeFile)'!$D$61:$S$61,0)) -> -0.029 | H204: =INDEX('For Bill Impact(HideBeforeFile)'!$D$20:$S$29,MATCH(C186,'For Bill Impact(HideBeforeFile)'!$C$62:$C$71,0),MATCH($O204,'For Bill Impact(HideBeforeFile)'!$D$61:$S$61,0)) -> 0 | L204: =$L$190 -> 133339 | O204: ADVADA
C205: UFGVA | D205: =INDEX('For Bill Impact(HideBeforeFile)'!$D$62:$S$71,MATCH(C186,'For Bill Impact(HideBeforeFile)'!$C$62:$C$71,0),MATCH($O205,'For Bill Impact(HideBeforeFile)'!$D$61:$S$61,0)) -> cents / m3 | F205: =INDEX('For Bill Impact(HideBeforeFile)'!$D$6:$S$15,MATCH(C186,'For Bill Impact(HideBeforeFile)'!$C$62:$C$71,0),MATCH($O205,'For Bill Impact(HideBeforeFile)'!$D$61:$S$61,0)) -> 0 | H205: =INDEX('For Bill Impact(HideBeforeFile)'!$D$20:$S$29,MATCH(C186,'For Bill Impact(HideBeforeFile)'!$C$62:$C$71,0),MATCH($O205,'For Bill Impact(HideBeforeFile)'!$D$61:$S$61,0)) -> 1.316518199 | L205: =$L$190 -> 133339 | O205: UFGVA
C207: =INDEX('For Bill Impact(HideBeforeFile)'!$D$48:$S$57,MATCH(C186,'For Bill Impact(HideBeforeFile)'!$C$62:$C$71,0),MATCH($O207,'For Bill Impact(HideBeforeFile)'!$D$61:$S$61,0)) -> Federal Carbon | D207: =INDEX('For Bill Impact(HideBeforeFile)'!$D$62:$S$71,MATCH(C186,'For Bill Impact(HideBeforeFile)'!$C$62:$C$71,0),MATCH($O207,'For Bill Impact(HideBeforeFile)'!$D$61:$S$61,0)) -> cents / m3 | F207: =INDEX('For Bill Impact(HideBeforeFile)'!$D$6:$S$15,MATCH(C186,'For Bill Impact(HideBeforeFile)'!$C$62:$C$71,0),MATCH($O207,'For Bill Impact(HideBeforeFile)'!$D$61:$S$61,0)) -> 15.25 | H207: =INDEX('For Bill Impact(HideBeforeFile)'!$D$20:$S$29,MATCH(C186,'For Bill Impact(HideBeforeFile)'!$C$62:$C$71,0),MATCH($O207,'For Bill Impact(HideBeforeFile)'!$D$61:$S$61,0)) -> 15.25 | L207: =$L$190 -> 133339 | O207: ='For Bill Impact(HideBeforeFile)'!$M$5 -> Federal Carbon
C208: =INDEX('For Bill Impact(HideBeforeFile)'!$D$48:$S$57,MATCH(C186,'For Bill Impact(HideBeforeFile)'!$C$62:$C$71,0),MATCH($O208,'For Bill Impact(HideBeforeFile)'!$D$61:$S$61,0)) -> Facility Carbon | D208: =INDEX('For Bill Impact(HideBeforeFile)'!$D$62:$S$71,MATCH(C186,'For Bill Impact(HideBeforeFile)'!$C$62:$C$71,0),MATCH($O208,'For Bill Impact(HideBeforeFile)'!$D$61:$S$61,0)) -> cents / m3 | F208: =INDEX('For Bill Impact(HideBeforeFile)'!$D$6:$S$15,MATCH(C186,'For Bill Impact(HideBeforeFile)'!$C$62:$C$71,0),MATCH($O208,'For Bill Impact(HideBeforeFile)'!$D$61:$S$61,0)) -> 0.0037 | H208: =INDEX('For Bill Impact(HideBeforeFile)'!$D$20:$S$29,MATCH(C186,'For Bill Impact(HideBeforeFile)'!$C$62:$C$71,0),MATCH($O208,'For Bill Impact(HideBeforeFile)'!$D$61:$S$61,0)) -> 0.0037 | L208: =$L$190 -> 133339 | O208: ='For Bill Impact(HideBeforeFile)'!$N$5 -> Facility Carbon
C211: Commodity | F211: Current | H211: Proposed | J211: Change $ | L211: Change %
F212: =F190*$L190/100 -> 19512.2959 | H212: =H190*$L190/100 -> 20116.85493 | J212: =H212-F212 -> 604.559026 | L212: =IFERROR(J212/F212,"") -> 0.03098349005
C214: Delivery | F214: Current Rate | H214: Proposed Rate | J214: Change $ | L214: Change %
C215: =IF(C192<>"",C192,"") -> Customer (excl. Bill 32) | F215: =F192*$L192 -> 246 | H215: =H192*$L192 -> 282 | J215: =IFERROR(H215-F215,"") -> 36 | L215: =IFERROR(J215/F215,"") -> 0.1463414634
C216: Bill 32 | F216: 12 | H216: 12 | J216: =IFERROR(H216-F216,"") -> 0 | L216: =IFERROR(J216/F216,"") -> 0
C217: =IF(C193<>"",C193,"") -> Block 1 (First 1,000 m3 per month) | F217: =IFERROR(F193*$J193/100,"") -> 1459.399944 | H217: =IFERROR(H193*$L193/100,"") -> 1446.979796 | J217: =IFERROR(H217-F217,"") -> -12.42014796 | L217: =IFERROR(J217/F217,"") -> -0.008510448428
C218: =IF(C194<>"",C194,"") -> Block 2 (Over 1,000 m3 per month) | F218: =IFERROR(F194*$J194/100,"") -> 11295.0295 | H218: =IFERROR(H194*$L194/100,"") -> 11682.04176 | J218: 387.0122643 | L218: 0.03426394455
C219: =IF(C195<>"",C195,"") ->  | F219: =IFERROR(F195*$L195/100,"") ->  | H219: =IFERROR(H195*$L195/100,"") -> 
C220: =IF(C196<>"",C196,"") ->  | F220: =IFERROR(F196*$L196/100,"") ->  | H220: =IFERROR(H196*$L196/100,"") -> 
C221: =IF(C197<>"",C197,"") -> Transportation | F221: =IFERROR(F197*$L197/100,"") -> 3221.336901 | H221: =IFERROR(H197*$L197/100,"") -> 3682.651134 | J221: 461.3142326 | L221: 0.1432058325
C222: Total Delivery | F222: =SUM(F215:F221) -> 16233.76634 | H222: =SUM(H215:H221) -> 17105.67269 | J222: =H222-F222 -> 871.9063489 | L222: =IF(ISERROR(J222/F222),0,J222/F222) -> 0.05370943074
C224: Rate Riders
C226: Rate Riders | F226: Current Rate | H226: Proposed Rate | J226: Change $ | L226: Change %
C227: =C199 -> 0 | F227: =F199*$L199 -> 0 | H227: =H199*$L199 -> 0 | J227: =IFERROR(H227-F227,"") -> 0 | L227: =IFERROR(J227/F227,"") -> 
C228: =C171 -> REDA | F228: =F202*L202 -> 0.24 | H228: =H202*L202 -> 0 | J228: =IFERROR(H228-F228,"") -> -0.24 | L228: =IFERROR(J228/F228,"") -> -1
C229: =C172 -> PGTVA | F229: =F203*$L$190/100 -> 1064.178559 | H229: =H203*$L$190/100 -> 838.8095745 | J229: -225.3689845 | L229: -0.2117774152
C230: ADVADA | F230: =F204*$L$190/100 -> -38.66831 | H230: =H204*$L$190 -> 0 | J230: 38.66831 | L230: -1
C231: UFGVA | F231: =F205*$L$190/100 -> 0 | H231: =H205*$L$190/100 -> 1755.432201 | J231: 1755.432201
C234: Total Rate Riders | F234: =SUM(F227:F233) -> 1025.750249 | H234: =SUM(H227:H233) -> 2594.241775 | J234: =SUM(J227:J231) -> 1568.491526 | L234: =IF(ISERROR(J234/F234),0,J234/F234) -> 1.529116398
C236: Carbon Tax
C237: Federal Carbon | F237: =F207*$L207/100 -> 20334.1975 | H237: =H207*$L207/100 -> 20334.1975 | J237: =IFERROR(H237-F237,"") -> 0 | L237: =IFERROR(J237/F237,"") -> 0
C238: Facility Carbon | F238: =F208*$L208/100 -> 4.933543 | H238: =H208*$L208/100 -> 4.933543 | J238: =IFERROR(H238-F238,"") -> 0 | L238: 0
C239: Total Carbon Tax | F239: =SUM(F237:F238) -> 20339.13104 | H239: =SUM(H237:H238) -> 20339.13104 | J239: =SUM(J237:J238) -> 0 | L239: =IF(ISERROR(J239/F239),0,J239/F239) -> 0
C241: Total Bill Impact | F241: =SUM(F212,F222,F234,F239) -> 57110.94354 | H241: =SUM(H212,H222,H234,H239) -> 60155.90044 | J241: =SUM(J212,J222,J234,J239) -> 3044.956901 | L241: =IFERROR(J241/F241,"") -> 0.05331652242

Sheet G1.2 Rate 2 Bill Impact
C2: ='G1.1 R1-R Bill Impact'!C2 -> EPCOR Natural Gas Limited Partnership
C3: ='G1.1 R1-R Bill Impact'!C3 -> EB-2024-0130
C7: Rate 2 Delivery Bill Impact
C10: ='For Bill Impact(HideBeforeFile)'!C9 -> R2 - Seasonal - Nov to Mar | F10: Current | H10: Proposed | J10: Bill Determinant | O10: Look-up
C14: =INDEX('For Bill Impact(HideBeforeFile)'!$D$48:$S$57,MATCH(C10,'For Bill Impact(HideBeforeFile)'!$C$62:$C$71,0),MATCH($O14,'For Bill Impact(HideBeforeFile)'!$D$61:$S$61,0)) -> Commodity | D14: =INDEX('For Bill Impact(HideBeforeFile)'!$D$62:$S$71,MATCH(C10,'For Bill Impact(HideBeforeFile)'!$C$62:$C$71,0),MATCH($O14,'For Bill Impact(HideBeforeFile)'!$D$61:$S$61,0)) -> cents / m3 | F14: =INDEX('For Bill Impact(HideBeforeFile)'!$D$6:$S$15,MATCH(C10,'For Bill Impact(HideBeforeFile)'!$C$62:$C$71,0),MATCH($O14,'For Bill Impact(HideBeforeFile)'!$D$61:$S$61,0)) -> 14.6336 | H14: =INDEX('For Bill Impact(HideBeforeFile)'!$D$20:$S$29,MATCH(C10,'For Bill Impact(HideBeforeFile)'!$C$62:$C$71,0),MATCH($O14,'For Bill Impact(HideBeforeFile)'!$D$61:$S$61,0)) -> 15.087 | J14: =INDEX('For Bill Impact(HideBeforeFile)'!$D$34:$S$43,MATCH(C10,'For Bill Impact(HideBeforeFile)'!$C$62:$C$71,0),MATCH($O14,'For Bill Impact(HideBeforeFile)'!$D$61:$S$61,0)) -> 4511.382829 | O14: ='For Bill Impact(HideBeforeFile)'!$D$5 -> Commodity
C16: =INDEX('For Bill Impact(HideBeforeFile)'!$D$48:$S$57,MATCH(C10,'For Bill Impact(HideBeforeFile)'!$C$62:$C$71,0),MATCH($O16,'For Bill Impact(HideBeforeFile)'!$D$61:$S$61,0)) -> Customer (excl. Bill 32) | D16: =INDEX('For Bill Impact(HideBeforeFile)'!$D$62:$S$71,MATCH(C10,'For Bill Impact(HideBeforeFile)'!$C$62:$C$71,0),MATCH($O16,'For Bill Impact(HideBeforeFile)'!$D$61:$S$61,0)) -> $ / month | F16: =INDEX('For Bill Impact(HideBeforeFile)'!$D$6:$S$15,MATCH(C10,'For Bill Impact(HideBeforeFile)'!$C$62:$C$71,0),MATCH($O16,'For Bill Impact(HideBeforeFile)'!$D$61:$S$61,0)) -> 22.59404392 | H16: =INDEX('For Bill Impact(HideBeforeFile)'!$D$20:$S$29,MATCH(C10,'For Bill Impact(HideBeforeFile)'!$C$62:$C$71,0),MATCH($O16,'For Bill Impact(HideBeforeFile)'!$D$61:$S$61,0)) -> 23.47731148 | J16: =INDEX('For Bill Impact(HideBeforeFile)'!$D$34:$S$43,MATCH(C10,'For Bill Impact(HideBeforeFile)'!$C$62:$C$71,0),MATCH($O16,'For Bill Impact(HideBeforeFile)'!$D$61:$S$61,0)) -> 7 | O16: ='For Bill Impact(HideBeforeFile)'!$O$5 -> Dist. Customer Rate
C17: =INDEX('For Bill Impact(HideBeforeFile)'!$D$48:$S$57,MATCH(C10,'For Bill Impact(HideBeforeFile)'!$C$62:$C$71,0),MATCH($O17,'For Bill Impact(HideBeforeFile)'!$D$61:$S$61,0)) -> Block 1 (First 1,000 m3 per month) | D17: =INDEX('For Bill Impact(HideBeforeFile)'!$D$62:$S$71,MATCH(C10,'For Bill Impact(HideBeforeFile)'!$C$62:$C$71,0),MATCH($O17,'For Bill Impact(HideBeforeFile)'!$D$61:$S$61,0)) -> cents / m3 | F17: =INDEX('For Bill Impact(HideBeforeFile)'!$D$6:$S$15,MATCH(C10,'For Bill Impact(HideBeforeFile)'!$C$62:$C$71,0),MATCH($O17,'For Bill Impact(HideBeforeFile)'!$D$61:$S$61,0)) -> 21.24470223 | H17: =INDEX('For Bill Impact(HideBeforeFile)'!$D$20:$S$29,MATCH(C10,'For Bill Impact(HideBeforeFile)'!$C$62:$C$71,0),MATCH($O17,'For Bill Impact(HideBeforeFile)'!$D$61:$S$61,0)) -> 22.07522005 | J17: =INDEX('For Bill Impact(HideBeforeFile)'!$D$34:$S$43,MATCH(C10,'For Bill Impact(HideBeforeFile)'!$C$62:$C$71,0),MATCH($O17,'For Bill Impact(HideBeforeFile)'!$D$61:$S$61,0)) -> 860.0911453 | O17: ='For Bill Impact(HideBeforeFile)'!$P$5 -> Dist. Vol. Rate Tier 1
C18: =INDEX('For Bill Impact(HideBeforeFile)'!$D$48:$S$57,MATCH(C10,'For Bill Impact(HideBeforeFile)'!$C$62:$C$71,0),MATCH($O18,'For Bill Impact(HideBeforeFile)'!$D$61:$S$61,0)) -> Block 2 (Next 24,000 m3 per month) | D18: =INDEX('For Bill Impact(HideBeforeFile)'!$D$62:$S$71,MATCH(C10,'For Bill Impact(HideBeforeFile)'!$C$62:$C$71,0),MATCH($O18,'For Bill Impact(HideBeforeFile)'!$D$61:$S$61,0)) -> cents / m3 | F18: =INDEX('For Bill Impact(HideBeforeFile)'!$D$6:$S$15,MATCH(C10,'For Bill Impact(HideBeforeFile)'!$C$62:$C$71,0),MATCH($O18,'For Bill Impact(HideBeforeFile)'!$D$61:$S$61,0)) -> 13.67490672 | H18: =INDEX('For Bill Impact(HideBeforeFile)'!$D$20:$S$29,MATCH(C10,'For Bill Impact(HideBeforeFile)'!$C$62:$C$71,0),MATCH($O18,'For Bill Impact(HideBeforeFile)'!$D$61:$S$61,0)) -> 14.209499 | J18: =INDEX('For Bill Impact(HideBeforeFile)'!$D$34:$S$43,MATCH(C10,'For Bill Impact(HideBeforeFile)'!$C$62:$C$71,0),MATCH($O18,'For Bill Impact(HideBeforeFile)'!$D$61:$S$61,0)) -> 3424.912778 | O18: ='For Bill Impact(HideBeforeFile)'!$Q$5 -> Dist. Vol. Rate Tier 2
C19: =INDEX('For Bill Impact(HideBeforeFile)'!$D$48:$S$57,MATCH(C10,'For Bill Impact(HideBeforeFile)'!$C$62:$C$71,0),MATCH($O19,'For Bill Impact(HideBeforeFile)'!$D$61:$S$61,0)) -> Block 3 (Over 25,000 m3 per month) | D19: =INDEX('For Bill Impact(HideBeforeFile)'!$D$62:$S$71,MATCH(C10,'For Bill Impact(HideBeforeFile)'!$C$62:$C$71,0),MATCH($O19,'For Bill Impact(HideBeforeFile)'!$D$61:$S$61,0)) -> cents / m3 | F19: =INDEX('For Bill Impact(HideBeforeFile)'!$D$6:$S$15,MATCH(C10,'For Bill Impact(HideBeforeFile)'!$C$62:$C$71,0),MATCH($O19,'For Bill Impact(HideBeforeFile)'!$D$61:$S$61,0)) -> 14.90063361 | H19: =INDEX('For Bill Impact(HideBeforeFile)'!$D$20:$S$29,MATCH(C10,'For Bill Impact(HideBeforeFile)'!$C$62:$C$71,0),MATCH($O19,'For Bill Impact(HideBeforeFile)'!$D$61:$S$61,0)) -> 15.48314315 | J19: =INDEX('For Bill Impact(HideBeforeFile)'!$D$34:$S$43,MATCH(C10,'For Bill Impact(HideBeforeFile)'!$C$62:$C$71,0),MATCH($O19,'For Bill Impact(HideBeforeFile)'!$D$61:$S$61,0)) -> 226.378906 | O19: ='For Bill Impact(HideBeforeFile)'!$R$5 -> Dist. Vol. Rate Tier 3
C20: =INDEX('For Bill Impact(HideBeforeFile)'!$D$48:$S$57,MATCH(C10,'For Bill Impact(HideBeforeFile)'!$C$62:$C$71,0),MATCH($O20,'For Bill Impact(HideBeforeFile)'!$D$61:$S$61,0)) ->  | D20: =INDEX('For Bill Impact(HideBeforeFile)'!$D$62:$S$71,MATCH(C10,'For Bill Impact(HideBeforeFile)'!$C$62:$C$71,0),MATCH($O20,'For Bill Impact(HideBeforeFile)'!$D$61:$S$61,0)) ->  | F20: =INDEX('For Bill Impact(HideBeforeFile)'!$D$6:$S$15,MATCH(C10,'For Bill Impact(HideBeforeFile)'!$C$62:$C$71,0),MATCH($O20,'For Bill Impact(HideBeforeFile)'!$D$61:$S$61,0)) ->  | H20: =INDEX('For Bill Impact(HideBeforeFile)'!$D$20:$S$29,MATCH(C10,'For Bill Impact(HideBeforeFile)'!$C$62:$C$71,0),MATCH($O20,'For Bill Impact(HideBeforeFile)'!$D$61:$S$61,0)) ->  | J20: =INDEX('For Bill Impact(HideBeforeFile)'!$D$34:$S$43,MATCH(C10,'For Bill Impact(HideBeforeFile)'!$C$62:$C$71,0),MATCH($O20,'For Bill Impact(HideBeforeFile)'!$D$61:$S$61,0)) ->  | O20: ='For Bill Impact(HideBeforeFile)'!$S$5 -> Dist. Capacity Rate
C21: =INDEX('For Bill Impact(HideBeforeFile)'!$D$48:$S$57,MATCH(C10,'For Bill Impact(HideBeforeFile)'!$C$62:$C$71,0),MATCH($O21,'For Bill Impact(HideBeforeFile)'!$D$61:$S$61,0)) -> Transportation | D21: =INDEX('For Bill Impact(HideBeforeFile)'!$D$62:$S$71,MATCH(C10,'For Bill Impact(HideBeforeFile)'!$C$62:$C$71,0),MATCH($O21,'For Bill Impact(HideBeforeFile)'!$D$61:$S$61,0)) -> cents / m3 | F21: =INDEX('For Bill Impact(HideBeforeFile)'!$D$6:$S$15,MATCH(C10,'For Bill Impact(HideBeforeFile)'!$C$62:$C$71,0),MATCH($O21,'For Bill Impact(HideBeforeFile)'!$D$61:$S$61,0)) -> 2.4159 | H21: =INDEX('For Bill Impact(HideBeforeFile)'!$D$20:$S$29,MATCH(C10,'For Bill Impact(HideBeforeFile)'!$C$62:$C$71,0),MATCH($O21,'For Bill Impact(HideBeforeFile)'!$D$61:$S$61,0)) -> 2.761870971 | J21: =INDEX('For Bill Impact(HideBeforeFile)'!$D$34:$S$43,MATCH(C10,'For Bill Impact(HideBeforeFile)'!$C$62:$C$71,0),MATCH($O21,'For Bill Impact(HideBeforeFile)'!$D$61:$S$61,0)) -> 4511.382829 | O21: ='For Bill Impact(HideBeforeFile)'!$E$5 -> Transp/System Gas
C23: =INDEX('For Bill Impact(HideBeforeFile)'!$D$48:$S$57,MATCH(C10,'For Bill Impact(HideBeforeFile)'!$C$62:$C$71,0),MATCH($O23,'For Bill Impact(HideBeforeFile)'!$D$61:$S$61,0)) -> REDA | D23: =INDEX('For Bill Impact(HideBeforeFile)'!$D$62:$S$71,MATCH(C10,'For Bill Impact(HideBeforeFile)'!$C$62:$C$71,0),MATCH($O23,'For Bill Impact(HideBeforeFile)'!$D$61:$S$61,0)) -> $ / month | F23: =INDEX('For Bill Impact(HideBeforeFile)'!$D$6:$S$15,MATCH(C10,'For Bill Impact(HideBeforeFile)'!$C$62:$C$71,0),MATCH($O23,'For Bill Impact(HideBeforeFile)'!$D$61:$S$61,0)) -> 0.02 | H23: =INDEX('For Bill Impact(HideBeforeFile)'!$D$20:$S$29,MATCH(C10,'For Bill Impact(HideBeforeFile)'!$C$62:$C$71,0),MATCH($O23,'For Bill Impact(HideBeforeFile)'!$D$61:$S$61,0)) -> 0 | J23: =INDEX('For Bill Impact(HideBeforeFile)'!$D$34:$S$43,MATCH(C10,'For Bill Impact(HideBeforeFile)'!$C$62:$C$71,0),MATCH($O23,'For Bill Impact(HideBeforeFile)'!$D$61:$S$61,0)) -> 7 | O23: ='For Bill Impact(HideBeforeFile)'!$F$5 -> REDA
C24: =INDEX('For Bill Impact(HideBeforeFile)'!$D$48:$S$57,MATCH(C10,'For Bill Impact(HideBeforeFile)'!$C$62:$C$71,0),MATCH($O24,'For Bill Impact(HideBeforeFile)'!$D$61:$S$61,0)) -> PGTVA | D24: =INDEX('For Bill Impact(HideBeforeFile)'!$D$62:$S$71,MATCH(C10,'For Bill Impact(HideBeforeFile)'!$C$62:$C$71,0),MATCH($O24,'For Bill Impact(HideBeforeFile)'!$D$61:$S$61,0)) -> cents / m3 | F24: =INDEX('For Bill Impact(HideBeforeFile)'!$D$6:$S$15,MATCH(C10,'For Bill Impact(HideBeforeFile)'!$C$62:$C$71,0),MATCH($O24,'For Bill Impact(HideBeforeFile)'!$D$61:$S$61,0)) -> 0.7981 | H24: =INDEX('For Bill Impact(HideBeforeFile)'!$D$20:$S$29,MATCH(C10,'For Bill Impact(HideBeforeFile)'!$C$62:$C$71,0),MATCH($O24,'For Bill Impact(HideBeforeFile)'!$D$61:$S$61,0)) -> 0.7157536893 | J24: =INDEX('For Bill Impact(HideBeforeFile)'!$D$34:$S$43,MATCH(C10,'For Bill Impact(HideBeforeFile)'!$C$62:$C$71,0),MATCH($O24,'For Bill Impact(HideBeforeFile)'!$D$61:$S$61,0)) -> 4511.382829 | O24: ='For Bill Impact(HideBeforeFile)'!$G$5 -> PGTVA
C25: =INDEX('For Bill Impact(HideBeforeFile)'!$D$48:$S$57,MATCH(C10,'For Bill Impact(HideBeforeFile)'!$C$62:$C$71,0),MATCH($O25,'For Bill Impact(HideBeforeFile)'!$D$61:$S$61,0)) -> ADVADA | D25: =INDEX('For Bill Impact(HideBeforeFile)'!$D$62:$S$71,MATCH(C10,'For Bill Impact(HideBeforeFile)'!$C$62:$C$71,0),MATCH($O25,'For Bill Impact(HideBeforeFile)'!$D$61:$S$61,0)) -> cents / m3 | F25: =INDEX('For Bill Impact(HideBeforeFile)'!$D$6:$S$15,MATCH(C10,'For Bill Impact(HideBeforeFile)'!$C$62:$C$71,0),MATCH($O25,'For Bill Impact(HideBeforeFile)'!$D$61:$S$61,0)) -> -0.029 | H25: =INDEX('For Bill Impact(HideBeforeFile)'!$D$20:$S$29,MATCH(C10,'For Bill Impact(HideBeforeFile)'!$C$62:$C$71,0),MATCH($O25,'For Bill Impact(HideBeforeFile)'!$D$61:$S$61,0)) -> 0 | J25: =INDEX('For Bill Impact(HideBeforeFile)'!$D$34:$S$43,MATCH(C10,'For Bill Impact(HideBeforeFile)'!$C$62:$C$71,0),MATCH($O25,'For Bill Impact(HideBeforeFile)'!$D$61:$S$61,0)) -> 4511.382829 | O25: ='For Bill Impact(HideBeforeFile)'!$H$5 -> ADVADA
C26: =INDEX('For Bill Impact(HideBeforeFile)'!$D$48:$S$57,MATCH(C10,'For Bill Impact(HideBeforeFile)'!$C$62:$C$71,0),MATCH($O26,'For Bill Impact(HideBeforeFile)'!$D$61:$S$61,0)) -> LDMDA | D26: =INDEX('For Bill Impact(HideBeforeFile)'!$D$62:$S$71,MATCH(C10,'For Bill Impact(HideBeforeFile)'!$C$62:$C$71,0),MATCH($O26,'For Bill Impact(HideBeforeFile)'!$D$61:$S$61,0)) -> $ / month | F26: =INDEX('For Bill Impact(HideBeforeFile)'!$D$6:$S$15,MATCH(C10,'For Bill Impact(HideBeforeFile)'!$C$62:$C$71,0),MATCH($O26,'For Bill Impact(HideBeforeFile)'!$D$61:$S$61,0)) -> 0 | H26: =INDEX('For Bill Impact(HideBeforeFile)'!$D$20:$S$29,MATCH(C10,'For Bill Impact(HideBeforeFile)'!$C$62:$C$71,0),MATCH($O26,'For Bill Impact(HideBeforeFile)'!$D$61:$S$61,0)) -> 0 | J26: =INDEX('For Bill Impact(HideBeforeFile)'!$D$34:$S$43,MATCH(C10,'For Bill Impact(HideBeforeFile)'!$C$62:$C$71,0),MATCH($O26,'For Bill Impact(HideBeforeFile)'!$D$61:$S$61,0)) -> 7 | O26: LDMDA
C27: =INDEX('For Bill Impact(HideBeforeFile)'!$D$48:$S$57,MATCH(C10,'For Bill Impact(HideBeforeFile)'!$C$62:$C$71,0),MATCH($O27,'For Bill Impact(HideBeforeFile)'!$D$61:$S$61,0)) -> UFGVA | D27: =INDEX('For Bill Impact(HideBeforeFile)'!$D$62:$S$71,MATCH(C10,'For Bill Impact(HideBeforeFile)'!$C$62:$C$71,0),MATCH($O27,'For Bill Impact(HideBeforeFile)'!$D$61:$S$61,0)) -> cents / m3 | F27: =INDEX('For Bill Impact(HideBeforeFile)'!$D$6:$S$15,MATCH(C10,'For Bill Impact(HideBeforeFile)'!$C$62:$C$71,0),MATCH($O27,'For Bill Impact(HideBeforeFile)'!$D$61:$S$61,0)) -> 0 | H27: =INDEX('For Bill Impact(HideBeforeFile)'!$D$20:$S$29,MATCH(C10,'For Bill Impact(HideBeforeFile)'!$C$62:$C$71,0),MATCH($O27,'For Bill Impact(HideBeforeFile)'!$D$61:$S$61,0)) -> 1.457478891 | J27: =INDEX('For Bill Impact(HideBeforeFile)'!$D$34:$S$43,MATCH(C10,'For Bill Impact(HideBeforeFile)'!$C$62:$C$71,0),MATCH($O27,'For Bill Impact(HideBeforeFile)'!$D$61:$S$61,0)) -> 4511.382829 | O27: UFGVA
C28: =INDEX('For Bill Impact(HideBeforeFile)'!$D$48:$S$57,MATCH(C10,'For Bill Impact(HideBeforeFile)'!$C$62:$C$71,0),MATCH($O28,'For Bill Impact(HideBeforeFile)'!$D$61:$S$61,0)) -> FCCVA | D28: =INDEX('For Bill Impact(HideBeforeFile)'!$D$62:$S$71,MATCH(C10,'For Bill Impact(HideBeforeFile)'!$C$62:$C$71,0),MATCH($O28,'For Bill Impact(HideBeforeFile)'!$D$61:$S$61,0)) -> $ / month | F28: =INDEX('For Bill Impact(HideBeforeFile)'!$D$6:$S$15,MATCH(C10,'For Bill Impact(HideBeforeFile)'!$C$62:$C$71,0),MATCH($O28,'For Bill Impact(HideBeforeFile)'!$D$61:$S$61,0)) -> 0 | H28: =INDEX('For Bill Impact(HideBeforeFile)'!$D$20:$S$29,MATCH(C10,'For Bill Impact(HideBeforeFile)'!$C$62:$C$71,0),MATCH($O28,'For Bill Impact(HideBeforeFile)'!$D$61:$S$61,0)) -> 0 | J28: =INDEX('For Bill Impact(HideBeforeFile)'!$D$34:$S$43,MATCH(C10,'For Bill Impact(HideBeforeFile)'!$C$62:$C$71,0),MATCH($O28,'For Bill Impact(HideBeforeFile)'!$D$61:$S$61,0)) -> 7 | O28: FCCVA
C29: =INDEX('For Bill Impact(HideBeforeFile)'!$D$48:$S$57,MATCH(C10,'For Bill Impact(HideBeforeFile)'!$C$62:$C$71,0),MATCH($O29,'For Bill Impact(HideBeforeFile)'!$D$61:$S$61,0)) -> GGEADA | D29: =INDEX('For Bill Impact(HideBeforeFile)'!$D$62:$S$71,MATCH(C10,'For Bill Impact(HideBeforeFile)'!$C$62:$C$71,0),MATCH($O29,'For Bill Impact(HideBeforeFile)'!$D$61:$S$61,0)) -> $ / month | F29: =INDEX('For Bill Impact(HideBeforeFile)'!$D$6:$S$15,MATCH(C10,'For Bill Impact(HideBeforeFile)'!$C$62:$C$71,0),MATCH($O29,'For Bill Impact(HideBeforeFile)'!$D$61:$S$61,0)) -> 0 | H29: =INDEX('For Bill Impact(HideBeforeFile)'!$D$20:$S$29,MATCH(C10,'For Bill Impact(HideBeforeFile)'!$C$62:$C$71,0),MATCH($O29,'For Bill Impact(HideBeforeFile)'!$D$61:$S$61,0)) -> 0 | J29: =INDEX('For Bill Impact(HideBeforeFile)'!$D$34:$S$43,MATCH(C10,'For Bill Impact(HideBeforeFile)'!$C$62:$C$71,0),MATCH($O29,'For Bill Impact(HideBeforeFile)'!$D$61:$S$61,0)) -> 7 | O29: GGEADA
C31: =INDEX('For Bill Impact(HideBeforeFile)'!$D$48:$S$57,MATCH(C10,'For Bill Impact(HideBeforeFile)'!$C$62:$C$71,0),MATCH($O31,'For Bill Impact(HideBeforeFile)'!$D$61:$S$61,0)) -> Federal Carbon | D31: =INDEX('For Bill Impact(HideBeforeFile)'!$D$62:$S$71,MATCH(C10,'For Bill Impact(HideBeforeFile)'!$C$62:$C$71,0),MATCH($O31,'For Bill Impact(HideBeforeFile)'!$D$61:$S$61,0)) -> cents / m3 | F31: =INDEX('For Bill Impact(HideBeforeFile)'!$D$6:$S$15,MATCH(C10,'For Bill Impact(HideBeforeFile)'!$C$62:$C$71,0),MATCH($O31,'For Bill Impact(HideBeforeFile)'!$D$61:$S$61,0)) -> 15.25 | H31: =INDEX('For Bill Impact(HideBeforeFile)'!$D$20:$S$29,MATCH(C10,'For Bill Impact(HideBeforeFile)'!$C$62:$C$71,0),MATCH($O31,'For Bill Impact(HideBeforeFile)'!$D$61:$S$61,0)) -> 15.25 | J31: =INDEX('For Bill Impact(HideBeforeFile)'!$D$34:$S$43,MATCH(C10,'For Bill Impact(HideBeforeFile)'!$C$62:$C$71,0),MATCH($O31,'For Bill Impact(HideBeforeFile)'!$D$61:$S$61,0)) -> 4511.382829 | O31: ='For Bill Impact(HideBeforeFile)'!$M$5 -> Federal Carbon
C32: =INDEX('For Bill Impact(HideBeforeFile)'!$D$48:$S$57,MATCH(C10,'For Bill Impact(HideBeforeFile)'!$C$62:$C$71,0),MATCH($O32,'For Bill Impact(HideBeforeFile)'!$D$61:$S$61,0)) -> Facility Carbon | D32: =INDEX('For Bill Impact(HideBeforeFile)'!$D$62:$S$71,MATCH(C10,'For Bill Impact(HideBeforeFile)'!$C$62:$C$71,0),MATCH($O32,'For Bill Impact(HideBeforeFile)'!$D$61:$S$61,0)) -> cents / m3 | F32: =INDEX('For Bill Impact(HideBeforeFile)'!$D$6:$S$15,MATCH(C10,'For Bill Impact(HideBeforeFile)'!$C$62:$C$71,0),MATCH($O32,'For Bill Impact(HideBeforeFile)'!$D$61:$S$61,0)) -> 0.0037 | H32: =INDEX('For Bill Impact(HideBeforeFile)'!$D$20:$S$29,MATCH(C10,'For Bill Impact(HideBeforeFile)'!$C$62:$C$71,0),MATCH($O32,'For Bill Impact(HideBeforeFile)'!$D$61:$S$61,0)) -> 0.0037 | J32: =INDEX('For Bill Impact(HideBeforeFile)'!$D$34:$S$43,MATCH(C10,'For Bill Impact(HideBeforeFile)'!$C$62:$C$71,0),MATCH($O32,'For Bill Impact(HideBeforeFile)'!$D$61:$S$61,0)) -> 4511.382829 | O32: ='For Bill Impact(HideBeforeFile)'!$N$5 -> Facility Carbon
C35: Commodity | F35: Current | H35: Proposed | J35: Change $ | L35: Change %
F36: =F14*$J14/100 -> 660.1777177 | H36: =H14*$J14/100 -> 680.6323274 | J36: =H36-F36 -> 20.45460975 | L36: =IFERROR(J36/F36,"") -> 0.03098349005 | O36: ='For Bill Impact(HideBeforeFile)'!$D$5 -> Commodity
C38: Delivery | F38: Current Rate | H38: Proposed Rate | J38: Change $ | L38: Change %
C39: =IF(C16<>"",C16,"") -> Customer (excl. Bill 32) | F39: =F16*$J16 -> 158.1583074 | H39: =H16*$J16 -> 164.3411803 | J39: =IFERROR(H39-F39,"") -> 6.182872904 | L39: =IFERROR(J39/F39,"") -> 0.03909293798 | O39: ='For Bill Impact(HideBeforeFile)'!$O$5 -> Dist. Customer Rate
C40: Bill 32 | F40: =J16 -> 7 | H40: =J16 -> 7 | J40: =IFERROR(H40-F40,"") -> 0 | L40: =IFERROR(J40/F40,"") -> 0
C41: =IF(C17<>"",C17,"") -> Block 1 (First 1,000 m3 per month) | F41: =IFERROR(F17*$J17/100,"") -> 182.7238027 | H41: =IFERROR(H17*$J17/100,"") -> 189.867013 | J41: =IFERROR(H41-F41,"") -> 7.143210287 | L41: =IFERROR(J41/F41,"") -> 0.03909293798 | O41: ='For Bill Impact(HideBeforeFile)'!$P$5 -> Dist. Vol. Rate Tier 1
C42: =IF(C18<>"",C18,"") -> Block 2 (Next 24,000 m3 per month) | F42: =IFERROR(F18*$J18/100,"") -> 468.3536277 | H42: =IFERROR(H18*$J18/100,"") -> 486.662947 | J42: 18.30931932 | L42: 0.03909293798 | O42: ='For Bill Impact(HideBeforeFile)'!$Q$5 -> Dist. Vol. Rate Tier 2
C43: =IF(C19<>"",C19,"") -> Block 3 (Over 25,000 m3 per month) | F43: =IFERROR(F19*$J19/100,"") -> 33.73189134 | H43: =IFERROR(H19*$J19/100,"") -> 35.05057007 | J43: 1.318678736 | L43: 0.03909293798 | O43: ='For Bill Impact(HideBeforeFile)'!$R$5 -> Dist. Vol. Rate Tier 3
C44: =IF(C20<>"",C20,"") ->  | F44: =IFERROR(F20*$J20/100,"") ->  | H44: =IFERROR(H20*$J20/100,"") ->  | O44: ='For Bill Impact(HideBeforeFile)'!$S$5 -> Dist. Capacity Rate
C45: =IF(C21<>"",C21,"") -> Transportation | F45: =IFERROR(F21*$J21/100,"") -> 108.9904978 | H45: =IFERROR(H21*$J21/100,"") -> 124.5985727 | J45: 15.60807496 | L45: 0.1432058325 | O45: ='For Bill Impact(HideBeforeFile)'!$E$5 -> Transp/System Gas
C46: Total Delivery | F46: =SUM(F39:F45) -> 958.9581269 | H46: =SUM(H39:H45) -> 1007.520283 | J46: =H46-F46 -> 48.56215621 | L46: =IF(ISERROR(J46/F46),0,J46/F46) -> 0.05064053878
C48: Rate Riders
C50: Rate Riders | F50: Current Rate | H50: Proposed Rate | J50: Change $ | L50: Change %
C51: =C23 -> REDA | F51: =F23*$J23 -> 0.14 | H51: =H23*$J23 -> 0 | J51: =IFERROR(H51-F51,"") -> -0.14 | L51: =IFERROR(J51/F51,"") -> -1 | O51: ='For Bill Impact(HideBeforeFile)'!$F$5 -> REDA
C52: PGTVA | F52: =IFERROR(F24*$J24/100,"") -> 36.00534636 | H52: =IFERROR(H24*$J24/100,"") -> 32.29038904 | J52: =IFERROR(H52-F52,"") -> -3.714957322 | L52: =IFERROR(J52/F52,"") -> -0.103177936 | O52: ='For Bill Impact(HideBeforeFile)'!$G$5 -> PGTVA
C53: ADVADA | F53: =IFERROR(F25*$J25/100,"") -> -1.30830102 | H53: =IFERROR(H25*$J25/100,"") -> 0 | J53: 1.30830102 | L53: -1 | O53: ='For Bill Impact(HideBeforeFile)'!$H$5 -> ADVADA
C54: LDMDA | F54: =F26*$J26 -> 0 | H54: =H26*$J26 -> 0 | J54: 0 | O54: ='For Bill Impact(HideBeforeFile)'!$I$5 -> LDMDA
C55: UFGVA | F55: =IFERROR(F27*$J27/100,"") -> 0 | H55: =IFERROR(H27*$J27/100,"") -> 65.75245244 | J55: 65.75245244 | O55: ='For Bill Impact(HideBeforeFile)'!$J$5 -> UFGVA
C56: FCCVA | F56: =F28*$J28 -> 0 | H56: =H28*$J28 -> 0 | J56: 0 | O56: ='For Bill Impact(HideBeforeFile)'!$I$5 -> LDMDA
C57: GGEADA | F57: 0 | H57: 0 | J57: 0 | O57: ='For Bill Impact(HideBeforeFile)'!$J$5 -> UFGVA
C58: Total Rate Riders | F58: =SUM(F51:F57) -> 34.83704534 | H58: =SUM(H51:H57) -> 98.04284148 | J58: =SUM(J51:J57) -> 63.20579614 | L58: =IF(ISERROR(J58/F58),0,J58/F58) -> 1.81432712
C60: Carbon Tax
C61: Federal Carbon | F61: =F31*$J31/100 -> 687.9858814 | H61: =H31*$J31/100 -> 687.9858814 | J61: =IFERROR(H61-F61,"") -> 0 | L61: =IFERROR(J61/F61,"") -> 0
C62: Facility Carbon | F62: =F32*$J32/100 -> 0.1669211647 | H62: =H32*$J32/100 -> 0.1669211647 | J62: =IFERROR(H62-F62,"") -> 0 | L62: 0
C63: Total Carbon Tax | F63: =SUM(F61:F62) -> 688.1528026 | H63: =SUM(H61:H62) -> 688.1528026 | J63: =SUM(J61:J62) -> 0 | L63: =IF(ISERROR(J63/F63),0,J63/F63) -> 0
C65: Total Bill Impact | F65: =SUM(F36,F46,F58,F63) -> 2342.125693 | H65: =SUM(H36,H46,H58,H63) -> 2474.348255 | J65: =SUM(J36,J46,J58,J63) -> 132.2225621 | L65: =IFERROR(J65/F65,"") -> 0.05645408465
C68: =MID(CELL("filename",A1),FIND("]",CELL("filename",A1))+1,255) -> G1.2 Rate 2 Bill Impact
C70: ='For Bill Impact(HideBeforeFile)'!C10 -> R2 - Seasonal - Apr to Oct | F70: Current | H70: Proposed | J70: Bill Determinant | O70: Look-up
C74: =INDEX('For Bill Impact(HideBeforeFile)'!$D$48:$S$57,MATCH(C70,'For Bill Impact(HideBeforeFile)'!$C$62:$C$71,0),MATCH($O74,'For Bill Impact(HideBeforeFile)'!$D$61:$S$61,0)) -> Commodity | D74: =INDEX('For Bill Impact(HideBeforeFile)'!$D$62:$S$71,MATCH(C70,'For Bill Impact(HideBeforeFile)'!$C$62:$C$71,0),MATCH($O74,'For Bill Impact(HideBeforeFile)'!$D$61:$S$61,0)) -> cents / m3 | F74: =INDEX('For Bill Impact(HideBeforeFile)'!$D$6:$S$15,MATCH(C70,'For Bill Impact(HideBeforeFile)'!$C$62:$C$71,0),MATCH($O74,'For Bill Impact(HideBeforeFile)'!$D$61:$S$61,0)) -> 14.6336 | H74: =INDEX('For Bill Impact(HideBeforeFile)'!$D$20:$S$29,MATCH(C70,'For Bill Impact(HideBeforeFile)'!$C$62:$C$71,0),MATCH($O74,'For Bill Impact(HideBeforeFile)'!$D$61:$S$61,0)) -> 15.087 | J74: =INDEX('For Bill Impact(HideBeforeFile)'!$D$34:$S$43,MATCH(C70,'For Bill Impact(HideBeforeFile)'!$C$62:$C$71,0),MATCH($O74,'For Bill Impact(HideBeforeFile)'!$D$61:$S$61,0)) -> 12134.22951 | O74: ='For Bill Impact(HideBeforeFile)'!$D$5 -> Commodity
C76: =INDEX('For Bill Impact(HideBeforeFile)'!$D$48:$S$57,MATCH(C70,'For Bill Impact(HideBeforeFile)'!$C$62:$C$71,0),MATCH($O76,'For Bill Impact(HideBeforeFile)'!$D$61:$S$61,0)) -> Customer (excl. Bill 32) | D76: =INDEX('For Bill Impact(HideBeforeFile)'!$D$62:$S$71,MATCH(C70,'For Bill Impact(HideBeforeFile)'!$C$62:$C$71,0),MATCH($O76,'For Bill Impact(HideBeforeFile)'!$D$61:$S$61,0)) -> $ / month | F76: =INDEX('For Bill Impact(HideBeforeFile)'!$D$6:$S$15,MATCH(C70,'For Bill Impact(HideBeforeFile)'!$C$62:$C$71,0),MATCH($O76,'For Bill Impact(HideBeforeFile)'!$D$61:$S$61,0)) -> 22.59404392 | H76: =INDEX('For Bill Impact(HideBeforeFile)'!$D$20:$S$29,MATCH(C70,'For Bill Impact(HideBeforeFile)'!$C$62:$C$71,0),MATCH($O76,'For Bill Impact(HideBeforeFile)'!$D$61:$S$61,0)) -> 23.47731148 | J76: =INDEX('For Bill Impact(HideBeforeFile)'!$D$34:$S$43,MATCH(C70,'For Bill Impact(HideBeforeFile)'!$C$62:$C$71,0),MATCH($O76,'For Bill Impact(HideBeforeFile)'!$D$61:$S$61,0)) -> 5 | O76: ='For Bill Impact(HideBeforeFile)'!$O$5 -> Dist. Customer Rate
C77: =INDEX('For Bill Impact(HideBeforeFile)'!$D$48:$S$57,MATCH(C70,'For Bill Impact(HideBeforeFile)'!$C$62:$C$71,0),MATCH($O77,'For Bill Impact(HideBeforeFile)'!$D$61:$S$61,0)) -> Block 1 (First 1,000 m3 per month) | D77: =INDEX('For Bill Impact(HideBeforeFile)'!$D$62:$S$71,MATCH(C70,'For Bill Impact(HideBeforeFile)'!$C$62:$C$71,0),MATCH($O77,'For Bill Impact(HideBeforeFile)'!$D$61:$S$61,0)) -> cents / m3 | F77: =INDEX('For Bill Impact(HideBeforeFile)'!$D$6:$S$15,MATCH(C70,'For Bill Impact(HideBeforeFile)'!$C$62:$C$71,0),MATCH($O77,'For Bill Impact(HideBeforeFile)'!$D$61:$S$61,0)) -> 16.3641628 | H77: =INDEX('For Bill Impact(HideBeforeFile)'!$D$20:$S$29,MATCH(C70,'For Bill Impact(HideBeforeFile)'!$C$62:$C$71,0),MATCH($O77,'For Bill Impact(HideBeforeFile)'!$D$61:$S$61,0)) -> 17.003886 | J77: =INDEX('For Bill Impact(HideBeforeFile)'!$D$34:$S$43,MATCH(C70,'For Bill Impact(HideBeforeFile)'!$C$62:$C$71,0),MATCH($O77,'For Bill Impact(HideBeforeFile)'!$D$61:$S$61,0)) -> 1108.292886 | O77: ='For Bill Impact(HideBeforeFile)'!$P$5 -> Dist. Vol. Rate Tier 1
C78: =INDEX('For Bill Impact(HideBeforeFile)'!$D$48:$S$57,MATCH(C70,'For Bill Impact(HideBeforeFile)'!$C$62:$C$71,0),MATCH($O78,'For Bill Impact(HideBeforeFile)'!$D$61:$S$61,0)) -> Block 2 (Next 24,000 m3 per month) | D78: =INDEX('For Bill Impact(HideBeforeFile)'!$D$62:$S$71,MATCH(C70,'For Bill Impact(HideBeforeFile)'!$C$62:$C$71,0),MATCH($O78,'For Bill Impact(HideBeforeFile)'!$D$61:$S$61,0)) -> cents / m3 | F78: =INDEX('For Bill Impact(HideBeforeFile)'!$D$6:$S$15,MATCH(C70,'For Bill Impact(HideBeforeFile)'!$C$62:$C$71,0),MATCH($O78,'For Bill Impact(HideBeforeFile)'!$D$61:$S$61,0)) -> 7.322478305 | H78: =INDEX('For Bill Impact(HideBeforeFile)'!$D$20:$S$29,MATCH(C70,'For Bill Impact(HideBeforeFile)'!$C$62:$C$71,0),MATCH($O78,'For Bill Impact(HideBeforeFile)'!$D$61:$S$61,0)) -> 7.608735495 | J78: =INDEX('For Bill Impact(HideBeforeFile)'!$D$34:$S$43,MATCH(C70,'For Bill Impact(HideBeforeFile)'!$C$62:$C$71,0),MATCH($O78,'For Bill Impact(HideBeforeFile)'!$D$61:$S$61,0)) -> 9257.395393 | O78: ='For Bill Impact(HideBeforeFile)'!$Q$5 -> Dist. Vol. Rate Tier 2
C79: =INDEX('For Bill Impact(HideBeforeFile)'!$D$48:$S$57,MATCH(C70,'For Bill Impact(HideBeforeFile)'!$C$62:$C$71,0),MATCH($O79,'For Bill Impact(HideBeforeFile)'!$D$61:$S$61,0)) -> Block 3 (Over 25,000 m3 per month) | D79: =INDEX('For Bill Impact(HideBeforeFile)'!$D$62:$S$71,MATCH(C70,'For Bill Impact(HideBeforeFile)'!$C$62:$C$71,0),MATCH($O79,'For Bill Impact(HideBeforeFile)'!$D$61:$S$61,0)) -> cents / m3 | F79: =INDEX('For Bill Impact(HideBeforeFile)'!$D$6:$S$15,MATCH(C70,'For Bill Impact(HideBeforeFile)'!$C$62:$C$71,0),MATCH($O79,'For Bill Impact(HideBeforeFile)'!$D$61:$S$61,0)) -> 5.294662863 | H79: =INDEX('For Bill Impact(HideBeforeFile)'!$D$20:$S$29,MATCH(C70,'For Bill Impact(HideBeforeFile)'!$C$62:$C$71,0),MATCH($O79,'For Bill Impact(HideBeforeFile)'!$D$61:$S$61,0)) -> 5.50164679 | J79: =INDEX('For Bill Impact(HideBeforeFile)'!$D$34:$S$43,MATCH(C70,'For Bill Impact(HideBeforeFile)'!$C$62:$C$71,0),MATCH($O79,'For Bill Impact(HideBeforeFile)'!$D$61:$S$61,0)) -> 1768.541235 | O79: ='For Bill Impact(HideBeforeFile)'!$R$5 -> Dist. Vol. Rate Tier 3
C80: =INDEX('For Bill Impact(HideBeforeFile)'!$D$48:$S$57,MATCH(C70,'For Bill Impact(HideBeforeFile)'!$C$62:$C$71,0),MATCH($O80,'For Bill Impact(HideBeforeFile)'!$D$61:$S$61,0)) ->  | D80: =INDEX('For Bill Impact(HideBeforeFile)'!$D$62:$S$71,MATCH(C70,'For Bill Impact(HideBeforeFile)'!$C$62:$C$71,0),MATCH($O80,'For Bill Impact(HideBeforeFile)'!$D$61:$S$61,0)) ->  | F80: =INDEX('For Bill Impact(HideBeforeFile)'!$D$6:$S$15,MATCH(C70,'For Bill Impact(HideBeforeFile)'!$C$62:$C$71,0),MATCH($O80,'For Bill Impact(HideBeforeFile)'!$D$61:$S$61,0)) ->  | H80: =INDEX('For Bill Impact(HideBeforeFile)'!$D$20:$S$29,MATCH(C70,'For Bill Impact(HideBeforeFile)'!$C$62:$C$71,0),MATCH($O80,'For Bill Impact(HideBeforeFile)'!$D$61:$S$61,0)) ->  | J80: =INDEX('For Bill Impact(HideBeforeFile)'!$D$34:$S$43,MATCH(C70,'For Bill Impact(HideBeforeFile)'!$C$62:$C$71,0),MATCH($O80,'For Bill Impact(HideBeforeFile)'!$D$61:$S$61,0)) ->  | O80: ='For Bill Impact(HideBeforeFile)'!$S$5 -> Dist. Capacity Rate
C81: =INDEX('For Bill Impact(HideBeforeFile)'!$D$48:$S$57,MATCH(C70,'For Bill Impact(HideBeforeFile)'!$C$62:$C$71,0),MATCH($O81,'For Bill Impact(HideBeforeFile)'!$D$61:$S$61,0)) -> Transportation | D81: =INDEX('For Bill Impact(HideBeforeFile)'!$D$62:$S$71,MATCH(C70,'For Bill Impact(HideBeforeFile)'!$C$62:$C$71,0),MATCH($O81,'For Bill Impact(HideBeforeFile)'!$D$61:$S$61,0)) -> cents / m3 | F81: =INDEX('For Bill Impact(HideBeforeFile)'!$D$6:$S$15,MATCH(C70,'For Bill Impact(HideBeforeFile)'!$C$62:$C$71,0),MATCH($O81,'For Bill Impact(HideBeforeFile)'!$D$61:$S$61,0)) -> 2.4159 | H81: =INDEX('For Bill Impact(HideBeforeFile)'!$D$20:$S$29,MATCH(C70,'For Bill Impact(HideBeforeFile)'!$C$62:$C$71,0),MATCH($O81,'For Bill Impact(HideBeforeFile)'!$D$61:$S$61,0)) -> 2.761870971 | J81: =INDEX('For Bill Impact(HideBeforeFile)'!$D$34:$S$43,MATCH(C70,'For Bill Impact(HideBeforeFile)'!$C$62:$C$71,0),MATCH($O81,'For Bill Impact(HideBeforeFile)'!$D$61:$S$61,0)) -> 12134.22951 | O81: ='For Bill Impact(HideBeforeFile)'!$E$5 -> Transp/System Gas
C83: =INDEX('For Bill Impact(HideBeforeFile)'!$D$48:$S$57,MATCH(C70,'For Bill Impact(HideBeforeFile)'!$C$62:$C$71,0),MATCH($O83,'For Bill Impact(HideBeforeFile)'!$D$61:$S$61,0)) -> REDA | D83: =INDEX('For Bill Impact(HideBeforeFile)'!$D$62:$S$71,MATCH(C70,'For Bill Impact(HideBeforeFile)'!$C$62:$C$71,0),MATCH($O83,'For Bill Impact(HideBeforeFile)'!$D$61:$S$61,0)) -> $ / month | F83: =INDEX('For Bill Impact(HideBeforeFile)'!$D$6:$S$15,MATCH(C70,'For Bill Impact(HideBeforeFile)'!$C$62:$C$71,0),MATCH($O83,'For Bill Impact(HideBeforeFile)'!$D$61:$S$61,0)) -> 0.02 | H83: =INDEX('For Bill Impact(HideBeforeFile)'!$D$20:$S$29,MATCH(C70,'For Bill Impact(HideBeforeFile)'!$C$62:$C$71,0),MATCH($O83,'For Bill Impact(HideBeforeFile)'!$D$61:$S$61,0)) -> 0 | J83: =INDEX('For Bill Impact(HideBeforeFile)'!$D$34:$S$43,MATCH(C70,'For Bill Impact(HideBeforeFile)'!$C$62:$C$71,0),MATCH($O83,'For Bill Impact(HideBeforeFile)'!$D$61:$S$61,0)) -> 5 | O83: =O23 -> REDA
C84: =INDEX('For Bill Impact(HideBeforeFile)'!$D$48:$S$57,MATCH(C70,'For Bill Impact(HideBeforeFile)'!$C$62:$C$71,0),MATCH($O84,'For Bill Impact(HideBeforeFile)'!$D$61:$S$61,0)) -> PGTVA | D84: =INDEX('For Bill Impact(HideBeforeFile)'!$D$62:$S$71,MATCH(C70,'For Bill Impact(HideBeforeFile)'!$C$62:$C$71,0),MATCH($O84,'For Bill Impact(HideBeforeFile)'!$D$61:$S$61,0)) -> cents / m3 | F84: =INDEX('For Bill Impact(HideBeforeFile)'!$D$6:$S$15,MATCH(C70,'For Bill Impact(HideBeforeFile)'!$C$62:$C$71,0),MATCH($O84,'For Bill Impact(HideBeforeFile)'!$D$61:$S$61,0)) -> 0.7981 | H84: =INDEX('For Bill Impact(HideBeforeFile)'!$D$20:$S$29,MATCH(C70,'For Bill Impact(HideBeforeFile)'!$C$62:$C$71,0),MATCH($O84,'For Bill Impact(HideBeforeFile)'!$D$61:$S$61,0)) -> 0.7157536893 | J84: =INDEX('For Bill Impact(HideBeforeFile)'!$D$34:$S$43,MATCH(C70,'For Bill Impact(HideBeforeFile)'!$C$62:$C$71,0),MATCH($O84,'For Bill Impact(HideBeforeFile)'!$D$61:$S$61,0)) -> 12134.22951 | O84: =O24 -> PGTVA
C85: =INDEX('For Bill Impact(HideBeforeFile)'!$D$48:$S$57,MATCH(C70,'For Bill Impact(HideBeforeFile)'!$C$62:$C$71,0),MATCH($O85,'For Bill Impact(HideBeforeFile)'!$D$61:$S$61,0)) -> ADVADA | D85: =INDEX('For Bill Impact(HideBeforeFile)'!$D$62:$S$71,MATCH(C70,'For Bill Impact(HideBeforeFile)'!$C$62:$C$71,0),MATCH($O85,'For Bill Impact(HideBeforeFile)'!$D$61:$S$61,0)) -> cents / m3 | F85: =INDEX('For Bill Impact(HideBeforeFile)'!$D$6:$S$15,MATCH(C70,'For Bill Impact(HideBeforeFile)'!$C$62:$C$71,0),MATCH($O85,'For Bill Impact(HideBeforeFile)'!$D$61:$S$61,0)) -> -0.029 | H85: =INDEX('For Bill Impact(HideBeforeFile)'!$D$20:$S$29,MATCH(C70,'For Bill Impact(HideBeforeFile)'!$C$62:$C$71,0),MATCH($O85,'For Bill Impact(HideBeforeFile)'!$D$61:$S$61,0)) -> 0 | J85: =INDEX('For Bill Impact(HideBeforeFile)'!$D$34:$S$43,MATCH(C70,'For Bill Impact(HideBeforeFile)'!$C$62:$C$71,0),MATCH($O85,'For Bill Impact(HideBeforeFile)'!$D$61:$S$61,0)) -> 12134.22951 | O85: =O25 -> ADVADA
C86: =INDEX('For Bill Impact(HideBeforeFile)'!$D$48:$S$57,MATCH(C70,'For Bill Impact(HideBeforeFile)'!$C$62:$C$71,0),MATCH($O86,'For Bill Impact(HideBeforeFile)'!$D$61:$S$61,0)) -> LDMDA | D86: =INDEX('For Bill Impact(HideBeforeFile)'!$D$62:$S$71,MATCH(C70,'For Bill Impact(HideBeforeFile)'!$C$62:$C$71,0),MATCH($O86,'For Bill Impact(HideBeforeFile)'!$D$61:$S$61,0)) -> $ / month | F86: =INDEX('For Bill Impact(HideBeforeFile)'!$D$6:$S$15,MATCH(C70,'For Bill Impact(HideBeforeFile)'!$C$62:$C$71,0),MATCH($O86,'For Bill Impact(HideBeforeFile)'!$D$61:$S$61,0)) -> 0 | H86: =INDEX('For Bill Impact(HideBeforeFile)'!$D$20:$S$29,MATCH(C70,'For Bill Impact(HideBeforeFile)'!$C$62:$C$71,0),MATCH($O86,'For Bill Impact(HideBeforeFile)'!$D$61:$S$61,0)) -> 0 | J86: =INDEX('For Bill Impact(HideBeforeFile)'!$D$34:$S$43,MATCH(C70,'For Bill Impact(HideBeforeFile)'!$C$62:$C$71,0),MATCH($O86,'For Bill Impact(HideBeforeFile)'!$D$61:$S$61,0)) -> 5 | O86: =O26 -> LDMDA
C87: =INDEX('For Bill Impact(HideBeforeFile)'!$D$48:$S$57,MATCH(C70,'For Bill Impact(HideBeforeFile)'!$C$62:$C$71,0),MATCH($O87,'For Bill Impact(HideBeforeFile)'!$D$61:$S$61,0)) -> UFGVA | D87: =INDEX('For Bill Impact(HideBeforeFile)'!$D$62:$S$71,MATCH(C70,'For Bill Impact(HideBeforeFile)'!$C$62:$C$71,0),MATCH($O87,'For Bill Impact(HideBeforeFile)'!$D$61:$S$61,0)) -> cents / m3 | F87: =INDEX('For Bill Impact(HideBeforeFile)'!$D$6:$S$15,MATCH(C70,'For Bill Impact(HideBeforeFile)'!$C$62:$C$71,0),MATCH($O87,'For Bill Impact(HideBeforeFile)'!$D$61:$S$61,0)) -> 0 | H87: =INDEX('For Bill Impact(HideBeforeFile)'!$D$20:$S$29,MATCH(C70,'For Bill Impact(HideBeforeFile)'!$C$62:$C$71,0),MATCH($O87,'For Bill Impact(HideBeforeFile)'!$D$61:$S$61,0)) -> 1.457478891 | J87: =INDEX('For Bill Impact(HideBeforeFile)'!$D$34:$S$43,MATCH(C70,'For Bill Impact(HideBeforeFile)'!$C$62:$C$71,0),MATCH($O87,'For Bill Impact(HideBeforeFile)'!$D$61:$S$61,0)) -> 12134.22951 | O87: =O27 -> UFGVA
C88: =INDEX('For Bill Impact(HideBeforeFile)'!$D$48:$S$57,MATCH(C70,'For Bill Impact(HideBeforeFile)'!$C$62:$C$71,0),MATCH($O88,'For Bill Impact(HideBeforeFile)'!$D$61:$S$61,0)) -> FCCVA | D88: =INDEX('For Bill Impact(HideBeforeFile)'!$D$62:$S$71,MATCH(C70,'For Bill Impact(HideBeforeFile)'!$C$62:$C$71,0),MATCH($O88,'For Bill Impact(HideBeforeFile)'!$D$61:$S$61,0)) -> $ / month | F88: =INDEX('For Bill Impact(HideBeforeFile)'!$D$6:$S$15,MATCH(C70,'For Bill Impact(HideBeforeFile)'!$C$62:$C$71,0),MATCH($O88,'For Bill Impact(HideBeforeFile)'!$D$61:$S$61,0)) -> 0 | H88: =INDEX('For Bill Impact(HideBeforeFile)'!$D$20:$S$29,MATCH(C70,'For Bill Impact(HideBeforeFile)'!$C$62:$C$71,0),MATCH($O88,'For Bill Impact(HideBeforeFile)'!$D$61:$S$61,0)) -> 0 | J88: =INDEX('For Bill Impact(HideBeforeFile)'!$D$34:$S$43,MATCH(C70,'For Bill Impact(HideBeforeFile)'!$C$62:$C$71,0),MATCH($O88,'For Bill Impact(HideBeforeFile)'!$D$61:$S$61,0)) -> 5 | O88: FCCVA
C89: =INDEX('For Bill Impact(HideBeforeFile)'!$D$48:$S$57,MATCH(C70,'For Bill Impact(HideBeforeFile)'!$C$62:$C$71,0),MATCH($O89,'For Bill Impact(HideBeforeFile)'!$D$61:$S$61,0)) -> GGEADA | D89: =INDEX('For Bill Impact(HideBeforeFile)'!$D$62:$S$71,MATCH(C70,'For Bill Impact(HideBeforeFile)'!$C$62:$C$71,0),MATCH($O89,'For Bill Impact(HideBeforeFile)'!$D$61:$S$61,0)) -> $ / month | F89: =INDEX('For Bill Impact(HideBeforeFile)'!$D$6:$S$15,MATCH(C70,'For Bill Impact(HideBeforeFile)'!$C$62:$C$71,0),MATCH($O89,'For Bill Impact(HideBeforeFile)'!$D$61:$S$61,0)) -> 0 | H89: =INDEX('For Bill Impact(HideBeforeFile)'!$D$20:$S$29,MATCH(C70,'For Bill Impact(HideBeforeFile)'!$C$62:$C$71,0),MATCH($O89,'For Bill Impact(HideBeforeFile)'!$D$61:$S$61,0)) -> 0 | J89: =INDEX('For Bill Impact(HideBeforeFile)'!$D$34:$S$43,MATCH(C70,'For Bill Impact(HideBeforeFile)'!$C$62:$C$71,0),MATCH($O89,'For Bill Impact(HideBeforeFile)'!$D$61:$S$61,0)) -> 5 | O89: GGEADA
C91: =INDEX('For Bill Impact(HideBeforeFile)'!$D$48:$S$57,MATCH(C70,'For Bill Impact(HideBeforeFile)'!$C$62:$C$71,0),MATCH($O91,'For Bill Impact(HideBeforeFile)'!$D$61:$S$61,0)) -> Federal Carbon | D91: =INDEX('For Bill Impact(HideBeforeFile)'!$D$62:$S$71,MATCH(C70,'For Bill Impact(HideBeforeFile)'!$C$62:$C$71,0),MATCH($O91,'For Bill Impact(HideBeforeFile)'!$D$61:$S$61,0)) -> cents / m3 | F91: =INDEX('For Bill Impact(HideBeforeFile)'!$D$6:$S$15,MATCH(C70,'For Bill Impact(HideBeforeFile)'!$C$62:$C$71,0),MATCH($O91,'For Bill Impact(HideBeforeFile)'!$D$61:$S$61,0)) -> 15.25 | H91: =INDEX('For Bill Impact(HideBeforeFile)'!$D$20:$S$29,MATCH(C70,'For Bill Impact(HideBeforeFile)'!$C$62:$C$71,0),MATCH($O91,'For Bill Impact(HideBeforeFile)'!$D$61:$S$61,0)) -> 15.25 | J91: =INDEX('For Bill Impact(HideBeforeFile)'!$D$34:$S$43,MATCH(C70,'For Bill Impact(HideBeforeFile)'!$C$62:$C$71,0),MATCH($O91,'For Bill Impact(HideBeforeFile)'!$D$61:$S$61,0)) -> 12134.22951 | O91: ='For Bill Impact(HideBeforeFile)'!$M$5 -> Federal Carbon
C92: =INDEX('For Bill Impact(HideBeforeFile)'!$D$48:$S$57,MATCH(C70,'For Bill Impact(HideBeforeFile)'!$C$62:$C$71,0),MATCH($O92,'For Bill Impact(HideBeforeFile)'!$D$61:$S$61,0)) -> Facility Carbon | D92: =INDEX('For Bill Impact(HideBeforeFile)'!$D$62:$S$71,MATCH(C70,'For Bill Impact(HideBeforeFile)'!$C$62:$C$71,0),MATCH($O92,'For Bill Impact(HideBeforeFile)'!$D$61:$S$61,0)) -> cents / m3 | F92: =INDEX('For Bill Impact(HideBeforeFile)'!$D$6:$S$15,MATCH(C70,'For Bill Impact(HideBeforeFile)'!$C$62:$C$71,0),MATCH($O92,'For Bill Impact(HideBeforeFile)'!$D$61:$S$61,0)) -> 0.0037 | H92: =INDEX('For Bill Impact(HideBeforeFile)'!$D$20:$S$29,MATCH(C70,'For Bill Impact(HideBeforeFile)'!$C$62:$C$71,0),MATCH($O92,'For Bill Impact(HideBeforeFile)'!$D$61:$S$61,0)) -> 0.0037 | J92: =INDEX('For Bill Impact(HideBeforeFile)'!$D$34:$S$43,MATCH(C70,'For Bill Impact(HideBeforeFile)'!$C$62:$C$71,0),MATCH($O92,'For Bill Impact(HideBeforeFile)'!$D$61:$S$61,0)) -> 12134.22951 | O92: ='For Bill Impact(HideBeforeFile)'!$N$5 -> Facility Carbon
C95: Commodity | F95: Current | H95: Proposed | J95: Change $ | L95: Change %
F96: =F74*$J74/100 -> 1775.67461 | H96: =H74*$J74/100 -> 1830.691207 | J96: =H96-F96 -> 55.01659662 | L96: =IFERROR(J96/F96,"") -> 0.03098349005
C98: Delivery | F98: Current Rate | H98: Proposed Rate | J98: Change $ | L98: Change %
C99: =IF(C76<>"",C76,"") -> Customer (excl. Bill 32) | F99: =F76*$J76 -> 112.9702196 | H99: =H76*$J76 -> 117.3865574 | J99: =IFERROR(H99-F99,"") -> 4.416337789 | L99: =IFERROR(J99/F99,"") -> 0.03909293798
C100: Bill 32 | F100: =J76 -> 5 | H100: =J76 -> 5 | J100: =IFERROR(H100-F100,"") -> 0 | L100: =IFERROR(J100/F100,"") -> 0
C101: =IF(C77<>"",C77,"") -> Block 1 (First 1,000 m3 per month) | F101: =IFERROR(F77*$J77/100,"") -> 181.3628521 | H101: =IFERROR(H77*$J77/100,"") -> 188.4528589 | J101: =IFERROR(H101-F101,"") -> 7.090006731 | L101: =IFERROR(J101/F101,"") -> 0.03909293798
C102: =IF(C78<>"",C78,"") -> Block 2 (Next 24,000 m3 per month) | F102: =IFERROR(F78*$J78/100,"") -> 677.8707693 | H102: =IFERROR(H78*$J78/100,"") -> 704.3707292 | J102: 26.49995994 | L102: 0.03909293798
C103: =IF(C79<>"",C79,"") -> Block 3 (Over 25,000 m3 per month) | F103: =IFERROR(F79*$J79/100,"") -> 93.63829601 | H103: =IFERROR(H79*$J79/100,"") -> 97.29889211 | J103: 3.660596099 | L103: 0.03909293798
C104: =IF(C80<>"",C80,"") ->  | F104: =IFERROR(F80*$J80/100,"") ->  | H104: =IFERROR(H80*$J80/100,"") -> 
C105: =IF(C81<>"",C81,"") -> Transportation | F105: =IFERROR(F81*$J81/100,"") -> 293.1508508 | H105: =IFERROR(H81*$J81/100,"") -> 335.1317625 | J105: 41.98091163 | L105: 0.1432058325
C106: Total Delivery | F106: =SUM(F99:F105) -> 1363.992988 | H106: =SUM(H99:H105) -> 1447.6408 | J106: =H106-F106 -> 83.64781219 | L106: =IF(ISERROR(J106/F106),0,J106/F106) -> 0.06132569078
C108: Rate Riders
C110: Rate Riders | F110: Current Rate | H110: Proposed Rate | J110: Change $ | L110: Change %
C111: =C83 -> REDA | F111: =F83*$J83 -> 0.1 | H111: =H83*$J83 -> 0 | J111: =IFERROR(H111-F111,"") -> -0.1 | L111: =IFERROR(J111/F111,"") -> -1
C112: PGTVA | F112: =IFERROR(F84*$J84/100,"") -> 96.84328575 | H112: =IFERROR(H84*$J84/100,"") -> 86.85119541 | J112: =IFERROR(H112-F112,"") -> -9.992090339 | L112: =IFERROR(J112/F112,"") -> -0.103177936
C113: ADVADA | F113: =IFERROR(F85*$J85/100,"") -> -3.518926559 | H113: =IFERROR(H85*$J85/100,"") -> 0 | J113: 3.518926559 | L113: -1
C114: LDMDA | F114: =F86*$J86 -> 0 | H114: =H86*$J86 -> 0 | J114: 0
C115: UFGVA | F115: =IFERROR(F87*$J87/100,"") -> 0 | H115: =IFERROR(H87*$J87/100,"") -> 176.8538338 | J115: 176.8538338
C116: FCCVA | F116: =F88*$J88 -> 0 | H116: =H88*$J88 -> 0 | J116: 0 | O116: ='For Bill Impact(HideBeforeFile)'!$I$5 -> LDMDA
C117: GGEADA | F117: 0 | H117: 0 | J117: 0 | O117: ='For Bill Impact(HideBeforeFile)'!$J$5 -> UFGVA
C118: Total Rate Riders | F118: =SUM(F111:F117) -> 93.42435919 | H118: =SUM(H111:H117) -> 263.7050292 | J118: =SUM(J111:J117) -> 170.28067 | L118: =IF(ISERROR(J118/F118),0,J118/F118) -> 1.822658154
C120: Carbon Tax
C121: Federal Carbon | F121: =F91*$J91/100 -> 1850.470001 | H121: =H91*$J91/100 -> 1850.470001 | J121: =IFERROR(H121-F121,"") -> 0 | L121: =IFERROR(J121/F121,"") -> 0
C122: Facility Carbon | F122: =F92*$J92/100 -> 0.448966492 | H122: =H92*$J92/100 -> 0.448966492 | J122: =IFERROR(H122-F122,"") -> 0 | L122: 0
C123: Total Carbon Tax | F123: =SUM(F121:F122) -> 1850.918967 | H123: =SUM(H121:H122) -> 1850.918967 | J123: =SUM(J121:J122) -> 0 | L123: =IF(ISERROR(J123/F123),0,J123/F123) -> 0
C125: Total Bill Impact | F125: =SUM(F96,F106,F118,F123) -> 5084.010925 | H125: =SUM(H96,H106,H118,H123) -> 5392.956003 | J125: =SUM(J96,J106,J118,J123) -> 308.9450788 | L125: =IFERROR(J125/F125,"") -> 0.06076798091
C128: =MID(CELL("filename",A61),FIND("]",CELL("filename",A61))+1,255) -> G1.2 Rate 2 Bill Impact
C130: R2 - Seasonal - Annual
C132: Commodity | F132: Current | H132: Proposed | J132: Change $ | L132: Change %
F133: =F36+F96 -> 2435.852328 | H133: =H36+H96 -> 2511.323534 | J133: =H133-F133 -> 75.47120636 | L133: =IFERROR(J133/F133,"") -> 0.03098349005
C135: Delivery | F135: Current Rate | H135: Proposed Rate | J135: Change $ | L135: Change %
C136: =C39 -> Customer (excl. Bill 32) | F136: =IFERROR(F39+F99,"") -> 271.128527 | H136: =IFERROR(H39+H99,"") -> 281.7277377 | J136: =IFERROR(H136-F136,"") -> 10.59921069 | L136: =IFERROR(J136/F136,"") -> 0.03909293798
C137: Bill 32 | F137: 12 | H137: 12 | J137: =IFERROR(H137-F137,"") -> 0 | L137: =IFERROR(J137/F137,"") -> 0
C138: =C41 -> Block 1 (First 1,000 m3 per month) | F138: 364.0866548 | H138: 378.3198719 | J138: 14.23321702 | L138: =IFERROR(J138/F138,"") -> 0.03909293798
C139: =C42 -> Block 2 (Next 24,000 m3 per month) | F139: 1146.224397 | H139: 1191.033676 | J139: 44.80927927 | L139: 0.03909293798
C140: =C43 -> Block 3 (Over 25,000 m3 per month) | F140: 127.3701873 | H140: 132.3494622 | J140: 4.979274835 | L140: 0.03909293798
C141: =C44 -> 
C142: =C45 -> Transportation | F142: 402.1413486 | H142: 459.7303352 | J142: 57.5889866 | L142: 0.1432058325
C143: Total Delivery | F143: =SUM(F136:F142) -> 2322.951115 | H143: =SUM(H136:H142) -> 2455.161083 | J143: =H143-F143 -> 132.2099684 | L143: =IF(ISERROR(J143/F143),0,J143/F143) -> 0.05691465807
C145: Rate Riders
C147: Rate Riders | F147: Current Rate | H147: Proposed Rate | J147: Change $ | L147: Change %
C148: =C111 -> REDA | F148: =IFERROR(F51+F111,"") -> 0.24 | H148: =IFERROR(H51+H111,"") -> 0 | J148: =IFERROR(H148-F148,"") -> -0.24 | L148: =IFERROR(J148/F148,"") -> -1
C149: PGTVA | F149: 132.8486321 | H149: 119.1415844 | J149: =IFERROR(H149-F149,"") -> -13.70704766 | L149: =IFERROR(J149/F149,"") -> -0.103177936
C150: ADVADA | F150: -4.827227579 | H150: 0 | J150: 4.827227579 | L150: -1
C151: LDMDA | F151: 0 | H151: 0 | J151: 0
C152: UFGVA | F152: 0 | H152: 242.6062862 | J152: 242.6062862
C153: FCCVA | F153: 0 | H153: 0 | J153: 0 | L153: =IFERROR(J153/F153,"") -> 
C154: GGEADA | F154: 0 | H154: 0 | J154: 0
C155: Total Rate Riders | F155: =SUM(F148:F154) -> 128.2614045 | H155: =SUM(H148:H154) -> 361.7478707 | J155: =SUM(J148:J154) -> 233.4864662 | L155: =IF(ISERROR(J155/F155),0,J155/F155) -> 1.820395364
C157: Carbon Tax
C158: Federal Carbon | F158: =IFERROR(F61+F121,"") -> 2538.455882 | H158: =IFERROR(H61+H121,"") -> 2538.455882 | J158: =IFERROR(H158-F158,"") -> 0 | L158: =IFERROR(J158/F158,"") -> 0
C159: Facility Carbon | F159: =IFERROR(F62+F122,"") -> 0.6158876567 | H159: =IFERROR(H62+H122,"") -> 0.6158876567 | J159: =IFERROR(H159-F159,"") -> 0 | L159: 0
C160: Total Carbon Tax | F160: =SUM(F158:F159) -> 2539.07177 | H160: =SUM(H158:H159) -> 2539.07177 | J160: =SUM(J158:J159) -> 0 | L160: =IF(ISERROR(J160/F160),0,J160/F160) -> 0
C162: Total Bill Impact | F162: =SUM(F133,F143,F155,F160) -> 7426.136617 | H162: =SUM(H133,H143,H155,H160) -> 7867.304258 | J162: =SUM(J133,J143,J155,J160) -> 441.1676409 | L162: =IFERROR(J162/F162,"") -> 0.05940742322
C165: =MID(CELL("filename",A121),FIND("]",CELL("filename",A121))+1,255) -> G1.2 Rate 2 Bill Impact

Sheet G1.3 Rate 3 Bill Impact
C2: ='G1.2 Rate 2 Bill Impact'!C2 -> EPCOR Natural Gas Limited Partnership
C3: ='G1.2 Rate 2 Bill Impact'!C3 -> EB-2024-0130
C7: Rate 3 Delivery Bill Impact
C10: ='For Bill Impact(HideBeforeFile)'!C11 -> R3 - Large Volume Contract | F10: Current | H10: Proposed | J10: Bill Determinant | O10: Look-up
C14: =INDEX('For Bill Impact(HideBeforeFile)'!$D$48:$S$57,MATCH(C10,'For Bill Impact(HideBeforeFile)'!$C$62:$C$71,0),MATCH($O14,'For Bill Impact(HideBeforeFile)'!$D$61:$S$61,0)) -> Commodity | D14: =INDEX('For Bill Impact(HideBeforeFile)'!$D$62:$S$71,MATCH(C10,'For Bill Impact(HideBeforeFile)'!$C$62:$C$71,0),MATCH($O14,'For Bill Impact(HideBeforeFile)'!$D$61:$S$61,0)) -> cents / m3 | F14: =INDEX('For Bill Impact(HideBeforeFile)'!$D$6:$S$15,MATCH(C10,'For Bill Impact(HideBeforeFile)'!$C$62:$C$71,0),MATCH($O14,'For Bill Impact(HideBeforeFile)'!$D$61:$S$61,0)) -> 14.6336 | H14: =INDEX('For Bill Impact(HideBeforeFile)'!$D$20:$S$29,MATCH(C10,'For Bill Impact(HideBeforeFile)'!$C$62:$C$71,0),MATCH($O14,'For Bill Impact(HideBeforeFile)'!$D$61:$S$61,0)) -> 15.087 | J14: =INDEX('For Bill Impact(HideBeforeFile)'!$D$34:$S$43,MATCH(C10,'For Bill Impact(HideBeforeFile)'!$C$62:$C$71,0),MATCH($O14,'For Bill Impact(HideBeforeFile)'!$D$61:$S$61,0)) -> 783607.2 | O14: ='For Bill Impact(HideBeforeFile)'!$D$5 -> Commodity
C16: =INDEX('For Bill Impact(HideBeforeFile)'!$D$48:$S$57,MATCH(C10,'For Bill Impact(HideBeforeFile)'!$C$62:$C$71,0),MATCH($O16,'For Bill Impact(HideBeforeFile)'!$D$61:$S$61,0)) -> Customer (excl. Bill 32) | D16: =INDEX('For Bill Impact(HideBeforeFile)'!$D$62:$S$71,MATCH(C10,'For Bill Impact(HideBeforeFile)'!$C$62:$C$71,0),MATCH($O16,'For Bill Impact(HideBeforeFile)'!$D$61:$S$61,0)) -> $ / month | F16: =INDEX('For Bill Impact(HideBeforeFile)'!$D$6:$S$15,MATCH(C10,'For Bill Impact(HideBeforeFile)'!$C$62:$C$71,0),MATCH($O16,'For Bill Impact(HideBeforeFile)'!$D$61:$S$61,0)) -> 225.9404392 | H16: =INDEX('For Bill Impact(HideBeforeFile)'!$D$20:$S$29,MATCH(C10,'For Bill Impact(HideBeforeFile)'!$C$62:$C$71,0),MATCH($O16,'For Bill Impact(HideBeforeFile)'!$D$61:$S$61,0)) -> 233.6822198 | J16: =INDEX('For Bill Impact(HideBeforeFile)'!$D$34:$S$43,MATCH(C10,'For Bill Impact(HideBeforeFile)'!$C$62:$C$71,0),MATCH($O16,'For Bill Impact(HideBeforeFile)'!$D$61:$S$61,0)) -> 12 | O16: ='For Bill Impact(HideBeforeFile)'!$O$5 -> Dist. Customer Rate
C17: =INDEX('For Bill Impact(HideBeforeFile)'!$D$48:$S$57,MATCH(C10,'For Bill Impact(HideBeforeFile)'!$C$62:$C$71,0),MATCH($O17,'For Bill Impact(HideBeforeFile)'!$D$61:$S$61,0)) -> Delivery - Firm | D17: =INDEX('For Bill Impact(HideBeforeFile)'!$D$62:$S$71,MATCH(C10,'For Bill Impact(HideBeforeFile)'!$C$62:$C$71,0),MATCH($O17,'For Bill Impact(HideBeforeFile)'!$D$61:$S$61,0)) -> cents / m3 | F17: =INDEX('For Bill Impact(HideBeforeFile)'!$D$6:$S$15,MATCH(C10,'For Bill Impact(HideBeforeFile)'!$C$62:$C$71,0),MATCH($O17,'For Bill Impact(HideBeforeFile)'!$D$61:$S$61,0)) -> 1.695770578 | H17: =INDEX('For Bill Impact(HideBeforeFile)'!$D$20:$S$29,MATCH(C10,'For Bill Impact(HideBeforeFile)'!$C$62:$C$71,0),MATCH($O17,'For Bill Impact(HideBeforeFile)'!$D$61:$S$61,0)) -> 1.753875642 | J17: =INDEX('For Bill Impact(HideBeforeFile)'!$D$34:$S$43,MATCH(C10,'For Bill Impact(HideBeforeFile)'!$C$62:$C$71,0),MATCH($O17,'For Bill Impact(HideBeforeFile)'!$D$61:$S$61,0)) -> 783607.2 | O17: ='For Bill Impact(HideBeforeFile)'!$P$5 -> Dist. Vol. Rate Tier 1
C18: =INDEX('For Bill Impact(HideBeforeFile)'!$D$48:$S$57,MATCH(C10,'For Bill Impact(HideBeforeFile)'!$C$62:$C$71,0),MATCH($O18,'For Bill Impact(HideBeforeFile)'!$D$61:$S$61,0)) ->  | D18: =INDEX('For Bill Impact(HideBeforeFile)'!$D$62:$S$71,MATCH(C10,'For Bill Impact(HideBeforeFile)'!$C$62:$C$71,0),MATCH($O18,'For Bill Impact(HideBeforeFile)'!$D$61:$S$61,0)) ->  | F18: =INDEX('For Bill Impact(HideBeforeFile)'!$D$6:$S$15,MATCH(C10,'For Bill Impact(HideBeforeFile)'!$C$62:$C$71,0),MATCH($O18,'For Bill Impact(HideBeforeFile)'!$D$61:$S$61,0)) ->  | H18: =INDEX('For Bill Impact(HideBeforeFile)'!$D$20:$S$29,MATCH(C10,'For Bill Impact(HideBeforeFile)'!$C$62:$C$71,0),MATCH($O18,'For Bill Impact(HideBeforeFile)'!$D$61:$S$61,0)) ->  | J18: =INDEX('For Bill Impact(HideBeforeFile)'!$D$34:$S$43,MATCH(C10,'For Bill Impact(HideBeforeFile)'!$C$62:$C$71,0),MATCH($O18,'For Bill Impact(HideBeforeFile)'!$D$61:$S$61,0)) ->  | O18: ='For Bill Impact(HideBeforeFile)'!$Q$5 -> Dist. Vol. Rate Tier 2
